Workbook

Sheet Tabelle1
K1: Info | N1: Sanierungsvorschlag
A2: BAB | B2: Rissbildung Riss komplexe Rissbildung | K2: Vorschlag Sanierung fehlt noch | N2: Kurzliner
A3: BAF | B3: Oberflächenschaden Zuschlagstoffe fehlen Ursache nicht eindeutig festellbar | K3: Vorschlag Sanierung fehlt noch | N3: keine Reparatur wirtschaftlich
A4: BAH | B4: Schadhafter Anschluss Spalt zwischen dem Ende des Anschlusses und der Rohrleitung (Zurückliegende Anschluss)
A10: Änderungen:
A11: Haltungsbezeichnung immer von … nach angeben. Haltungsbezeichung alleine reicht nicht aus.
A13: Möglichkeit alle untersuchten Haltungen und Leitungen in eigene Zusammenfassungen zu bringen, damit eine Übersicht entsteht + Massen?
A15: Haltung | C15: Sanierungsvorschlag | D15: Sanierungskosten | E15: Priorität | F15: TV-Neubefahrung | G15: TV-Neubefahrung | H15: Bemerkung
A16: xa39328 | B16: xa39329 | C16: Schlauch | D16: 15,000.00 € | E16: Kurzfristig | F16: ja | G16: Befahrung mangelhaft
A17: xa39329 | B17: xa39330 | C17: Reparatur | D17: 1,200.00 € | E17: mittelfristig | F17: nein
A18: xa39330 | B18: xa39331 | C18: Schlauch | D18: 8,000.00 € | E18: langfristig | F18: nein | H18: Haltung sehr flach, wenn möglich Erneuerung
A19: xa39331 | B19: xa39332 | C19: Schlauch | D19: 7,500.00 € | E19: Kurzfristig | F19: nein
A20: xa39332 | B20: xa39333 | C20: Schlauch | D20: 4,500.00 € | E20: mittelfristig | F20: nein
A21: xa39333 | B21: xa39334 | C21: Schlauch | D21: 21,000.00 € | E21: mittelfristig | F21: nein
A22: xa39334 | B22: xa39335 | C22: Schlauch | D22: 12,000.00 € | E22: Kurzfristig | F22: nein
A23: xa39335 | B23: xa39336 | C23: Schlauch | D23: 11,000.00 € | E23: Kurzfristig | F23: nein
A24: xa39336 | B24: xa39337 | C24: Schlauch | D24: 8,500.00 € | E24: Kurzfristig | F24: ja | G24: Sohle nicht einsehbar
A25: xa39337 | B25: xa39338 | C25: Schlauch | D25: 9,000.00 € | E25: mittelfristig | F25: ja | G25: Haltung unvollständig befahren
A26: xa39338 | B26: xa39339 | C26: Erneuerung | D26: 45,000.00 € | E26: Kurzfristig | F26: ja | G26: Sohle nicht einsehbar | H26: Orstsbesichtigung ob Tiefbau möglich
A27: xa39339 | B27: xa39340 | C27: Reparatur | D27: 2,550.00 € | E27: langfristig | F27: nein
A28: xa39340 | B28: xa39341 | C28: Reparatur | D28: 2,100.00 € | E28: langfristig | F28: nein
A29: xa39341 | B29: xa39342 | C29: Reparatur | D29: 900.00 € | E29: langfristig | F29: nein
A30: xa39342 | B30: xa39343 | C30: Schlauch | D30: 1,860.00 € | E30: mittelfristig | F30: nein
A31: xa39343 | B31: xa39344 | C31: Schlauch | D31: 12,000.00 € | E31: mittelfristig | F31: nein
A32: xa39344 | B32: xa39345 | C32: Reparatur | D32: 500.00 € | E32: Kurzfristig | F32: nein
A33: xa39345 | B33: xa39346 | C33: Reparatur | D33: 990.00 € | E33: Kurzfristig | F33: nein
B34: Summe: | D34: =SUM(D16:D33) -> 163,600.00 €
A36: Zusammenfassung:
A38: Schlauchlining | C38: =SUM(D31,D30,D18:D25,D16) -> 110,360.00 €
A40: Reparatur | C40: =SUM(D32:D33,D27:D29,D17) -> 8,240.00 €
A42: Erneuerng | C42: =SUM(D26) -> 45,000.00 €
A44: Gesamt: | C44: =SUM(C37:C43) -> 163,600.00 €
A47: Sanierungpriorität: | E47: Sanierungskosten:
A49: kurzfristig | C49: 8.00 | D49: Haltungen | E49: =SUM(D32:D33,D26,D24,D23,D22,D19,D16) -> 100,490.00 €
A51: mittelfristig | C51: 6.00 | D51: Haltungen | E51: =SUM(D30:D31,D25,D20:D21,D17) -> 49,560.00 €
A53: langfristig | C53: 4.00 | D53: Haltungen | E53: =SUM(D18,D27:D29) -> 13,550.00 €
D55: Kontrollsumme: | E55: =SUM(E49:E53) -> 163,600.00 €
A58: Abschließende Bewertung:
A60: Upgrade Haltungen empfohlen:
A62: 3 Haltungen von mittelfristig in kurzfristig (manuelle Auswertung)

Sheet 09340048
A1: Haltung | B1: Straße | C1: Inspizierte Länge | D1: Länge | E1: Tiefe | G1: Schadensbeschreibung | I1: Durchmesser | J1: Material
A2: 09340048 | B2: BERLINER STRAßE | C2: 30,70 | D2: 31,70 | E2: Not Implemented yet | I2: 300 | J2: STZ
A4: Station | B4: Kürzel | C4: Charakterisi. | D4: Quantifizierung | E4: Lage im Kreis | G4: Schadensbeschreibung / Info | H4: Strecke | I4: Sanierungsvorschlag | J4: Kostenans.
A5: 0,00 | B5: BCD | C5: XP | G5: Anfangsknoten
A6: 0,10 | B6: BAB | C6: B / C | D6: 2,00 | E6: 12 - 12 | G6: Rissbildung Riss komplexe Rissbildung | I6: Kurzliner | J6: €450 | M6: Kurzliner | N6: €450
A7: 13,00 | B7: BCA | C7: C / A | D7: 200,00 | E7: 9 | G7: Anschluss Sattelanschluss – gemeißelt offen (nicht fachgerecht) | I7: Stutzensanierung | J7: €600 | M7: Stutzensanierung | N7: €600
A8: 23,10 | B8: BCA | C8: C / A | D8: 200,00 | E8: 3 | G8: Anschluss Sattelanschluss – gemeißelt offen
A9: 23,10 | B9: BAH | C9: B | E9: 3 - 9 | F9: JA | G9: Schadhafter Anschluss Spalt zwischen dem Ende des Anschlusses und der Rohrleitung (Zurückliegende Anschluss) | I9: Stutzensanierung | J9: €600 | M9: Kurzliner | N9: €450
A10: 23,10 | B10: BAP | E10: 3 - 9 | F10: JA | G10: Hohlraum sichtbar | M10: Stutzensanierung | N10: €600
A11: 27,70 | B11: BCA | C11: C / A | D11: 150,00 | E11: 2 | G11: Anschluss Sattelanschluss – gemeißelt offen (nicht fachgerecht) | I11: Stutzensanierung | J11: €600
A12: 30,60 | B12: BAB | C12: B / D | D12: 1,00 | E12: 12 - 12 | F12: JA | G12: Rissbildung Riss gewundene oder spiralförmige Rissbildung | I12: Kurzliner | J12: €450
A13: 30,70 | B13: BCE | C13: XP | G13: Endknoten | M13: Kurzliner | N13: €450
G14: netto-Zwischensumme | J14: =SUM(J5:J13) -> €2,700 | M14: Stutzensanierung | N14: €600
A15: Reparatur | G15: Baustelleneinrichtung anteilig Haltung | H15: 10 | J15: =(H15/100)*J14 -> €270
G16: Verkehrssicherung anteilig Haltung | H16: 5 | J16: =(H16/100)*J14 -> €135
A17: Sanierungspriorität | C17: Info | G17: Aufrechterhaltung der Vorflut Haltung | H17: 12 | J17: =(H17/100)*J14 -> €324
A18: kurzfristing | B18: ja oder nein | C18: 6-12 Monate | G18: Kanalreinigung vor Sanierung | H18: 30.7 | I18: 2 | J18: =H18*I18 -> €61
A19: mittelfristig | B19: ja oder nein | C19: 1 bis 5 Jahre | G19: Kamerainspektion Abnahme | H19: 30.7 | I19: 3 | J19: =H19*I19 -> €92
A20: langfristig | B20: ja oder nein | C20: 5 bis 10 Jahre | G20: Summe netto Haltung | J20: =SUM(J14:J19) -> €3,583
G21: Mehrwertsteuer | H21: 19 | J21: =(H21/100)*J20 -> €681
A22: Sanierung im Verbund | B22: ja oder nein | G22: Summe brutto Haltung | J22: =SUM(J20:J21) -> €4,263
A27: Haltung | B27: Straße | C27: Inspizierte Länge | D27: Länge | E27: Tiefe | G27: Schadensbeschreibung | I27: Durchmesser | J27: Material
A28: 09340048 | B28: BERLINER STRAßE | C28: 30,70 | D28: 31,70 | E28: Not Implemented yet | I28: 300 | J28: STZ
A30: Station | B30: Kürzel | C30: Charakterisi. | D30: Quantifizierung | E30: Lage im Kreis | G30: Schadensbeschreibung / Info | H30: Strecke | I30: Sanierungsvorschlag | J30: Kostenans.
A31: 0,00 | B31: BCD | C31: XP | G31: Anfangsknoten
A32: 0,10 | B32: BAB | C32: B / C | D32: 2,00 | E32: 12 - 12 | G32: Rissbildung Riss komplexe Rissbildung
A33: 13,00 | B33: BCA | C33: C / A | D33: 200,00 | E33: 9 | G33: Anschluss Sattelanschluss – gemeißelt offen (nicht fachgerecht) | I33: Einmessen,Öffnen,Stsan | J33: €800 | M33: Einmessen,Öffnen,Stsan | N33: €800
A34: 23,10 | B34: BCA | C34: C / A | D34: 200,00 | E34: 3 | G34: Anschluss Sattelanschluss – gemeißelt offen | M34: Einmessen,Öffnen,Stsan | N34: €800
A35: 23,10 | B35: BAH | C35: B | E35: 3 - 9 | F35: JA | G35: Schadhafter Anschluss Spalt zwischen dem Ende des Anschlusses und der Rohrleitung (Zurückliegende Anschluss) | I35: Einmessen,Öffnen,Stsan | J35: €800
A36: 23,10 | B36: BAP | E36: 3 - 9 | F36: JA | G36: Hohlraum sichtbar
A37: 27,70 | B37: BCA | C37: C / A | D37: 150,00 | E37: 2 | G37: Anschluss Sattelanschluss – gemeißelt offen (nicht fachgerecht) | I37: Einmessen,Öffnen,Stsan | J37: €800
A38: 30,60 | B38: BAB | C38: B / D | D38: 1,00 | E38: 12 - 12 | F38: JA | G38: Rissbildung Riss gewundene oder spiralförmige Rissbildung
A39: 30,70 | B39: BCE | C39: XP | G39: Endknoten | I39: Schlauchliner | J39: €3,170
G40: netto-Zwischensumme | J40: =SUM(J31:J39) -> €5,570
A41: Renovation | G41: Baustelleneinrichtung anteilig Haltung | H41: 10 | J41: =(H41/100)*J40 -> €557
G42: Verkehrssicherung anteilig Haltung | H42: 5 | J42: =(H42/100)*J40 -> €279
A43: Sanierungspriorität | C43: Info | G43: Aufrechterhaltung der Vorflut Haltung | H43: 12 | J43: =(H43/100)*J40 -> €668
A44: kurzfristing | B44: ja oder nein | C44: 6-12 Monate | G44: Kanalreinigung vor Sanierung | H44: 30.7 | I44: 2 | J44: =H44*I44 -> €61
A45: mittelfristig | B45: ja oder nein | C45: 1 bis 5 Jahre | G45: Kamerainspektion Abnahme | H45: 30.7 | I45: 3 | J45: =H45*I45 -> €92
A46: langfristig | B46: ja oder nein | C46: 5 bis 10 Jahre | G46: Summe netto Haltung | J46: =SUM(J40:J45) -> €7,227
G47: Mehrwertsteuer | H47: 19 | J47: =(H47/100)*J46 -> €1,373
A48: Sanierung im Verbund | B48: ja oder nein | G48: Summe brutto Haltung | J48: =SUM(J46:J47) -> €8,601
A50: Info: Steinzeughaltung. Diverse Muffenversätze, vor einer Schlauchlinersanierung wegen Haltungsgröße DN300 vorab nicht anzufräsen. Sanierung mittelfristig. Stutzen angeschlagen, Hohlräume teilweise sichtbar.

Sheet 09340049
A1: Haltung | B1: Straße | C1: Inspizierte Länge | D1: Länge | E1: Tiefe | G1: Schadensbeschreibung | I1: Durchmesser | J1: Material
A2: 09340049 | B2: BERLINER STRAßE | C2: 18,00 | D2: 19,00 | E2: Not Implemented yet | I2: 300 | J2: B
A4: Station | B4: Kürzel | C4: Charakterisi. | D4: Quantifizierung | E4: Lage im Kreis | G4: Schadensbeschreibung / Info | H4: Strecke | I4: Sanierungsvorschlag | J4: Kostenans.
A5: 0,00 | B5: BCD | C5: XP | G5: Anfangsknoten
A6: 0,00 | B6: BAB | C6: B / A | D6: 5,00 | E6: 9 | G6: Rissbildung Riss in Längsrichtung | I6: Kurzliner | J6: €450
A7: 0,20 | B7: BCA | C7: C / A | D7: 200,00 | E7: 9 | G7: Anschluss Sattelanschluss – gemeißelt offen (nicht fachgerecht) | I7: Stutzensanierung | J7: €600
A8: 3,60 | B8: BCA | C8: C / A | D8: 150,00 | E8: 2 | G8: Anschluss Sattelanschluss – gemeißelt offen
A9: 3,60 | B9: BAH | C9: A | E9: 12 - 3 | G9: Schadhafter Anschluss Lage des Anschlusses um das Rohr ist falsch | I9: Stutzensanierung | J9: €600
A10: 16,20 | B10: BCA | C10: C / A | D10: 200,00 | E10: 3 | G10: Anschluss Sattelanschluss – gemeißelt offen
A11: 17,80 | B11: BAB | C11: B / A | D11: 2,00 | E11: 10 | G11: Rissbildung Riss in Längsrichtung | I11: Kurzliner | J11: €450
A12: 18,00 | B12: BCE | C12: XP | G12: Endknoten
G13: netto-Zwischensumme | J13: =SUM(J5:J12) -> €2,100
A14: Reparatur | G14: Baustelleneinrichtung anteilig Haltung | H14: 10 | J14: =(H14/100)*J13 -> €210
G15: Verkehrssicherung anteilig Haltung | H15: 5 | J15: =(H15/100)*J13 -> €105
A16: Sanierungspriorität | C16: Info | G16: Aufrechterhaltung der Vorflut Haltung | H16: 12 | J16: =(H16/100)*J13 -> €252
A17: kurzfristing | B17: ja oder nein | C17: 6-12 Monate | G17: Kanalreinigung vor Sanierung | H17: 18 | I17: 2 | J17: =H17*I17 -> €36
A18: mittelfristig | B18: ja oder nein | C18: 1 bis 5 Jahre | G18: Kamerainspektion Abnahme | H18: 18 | I18: 3 | J18: =H18*I18 -> €54
A19: langfristig | B19: ja oder nein | C19: 5 bis 10 Jahre | G19: Summe netto Haltung | J19: =SUM(J13:J18) -> €2,757
G20: Mehrwertsteuer | H20: 19 | J20: =(H20/100)*J19 -> €524
A21: Sanierung im Verbund | B21: ja oder nein | G21: Summe brutto Haltung | J21: =SUM(J19:J20) -> €3,281
A26: Haltung | B26: Straße | C26: Inspizierte Länge | D26: Länge | E26: Tiefe | G26: Schadensbeschreibung | I26: Durchmesser | J26: Material
A27: 09340049 | B27: BERLINER STRAßE | C27: 18,00 | D27: 19,00 | E27: Not Implemented yet | I27: 300 | J27: B
A29: Station | B29: Kürzel | C29: Charakterisi. | D29: Quantifizierung | E29: Lage im Kreis | G29: Schadensbeschreibung / Info | H29: Strecke | I29: Sanierungsvorschlag | J29: Kostenans.
A30: 0,00 | B30: BCD | C30: XP | G30: Anfangsknoten
A31: 0,00 | B31: BAB | C31: B / A | D31: 5,00 | E31: 9 | G31: Rissbildung Riss in Längsrichtung
A32: 0,20 | B32: BCA | C32: C / A | D32: 200,00 | E32: 9 | G32: Anschluss Sattelanschluss – gemeißelt offen (nicht fachgerecht) | I32: Einmessen,Öffnen,Stsan | J32: €800 | L32: wenn Hinweis Sattelschluss, dann Stutzensanierung
A33: 3,60 | B33: BCA | C33: C / A | D33: 150,00 | E33: 2 | G33: Anschluss Sattelanschluss – gemeißelt offen (nicht fachgerecht) | I33: Einmessen,Öffnen,Stsan | J33: €800
A34: 3,60 | B34: BAH | C34: A | E34: 12 - 3 | G34: Schadhafter Anschluss Lage des Anschlusses um das Rohr ist falsch
A35: 16,20 | B35: BCA | C35: C / A | D35: 200,00 | E35: 3 | G35: Anschluss Sattelanschluss – gemeißelt offen (nicht fachgerecht) | I35: Einmessen,Öffnen,Stsan | J35: €800
A36: 17,80 | B36: BAB | C36: B / A | D36: 2,00 | E36: 10 | G36: Rissbildung Riss in Längsrichtung
A37: 18,00 | B37: BCE | C37: XP | G37: Endknoten | I37: Schlauchliner | J37: €2,470
G38: netto-Zwischensumme | J38: =SUM(J30:J37) -> €4,870
A39: Renovation | G39: Baustelleneinrichtung anteilig Haltung | H39: 10 | J39: =(H39/100)*J38 -> €487
G40: Verkehrssicherung anteilig Haltung | H40: 5 | J40: =(H40/100)*J38 -> €244
A41: Sanierungspriorität | C41: Info | G41: Aufrechterhaltung der Vorflut Haltung | H41: 12 | J41: =(H41/100)*J38 -> €584
A42: kurzfristing | B42: ja oder nein | C42: 6-12 Monate | G42: Kanalreinigung vor Sanierung | H42: 18 | I42: 3 | J42: =H42*I42 -> €54
A43: mittelfristig | B43: ja oder nein | C43: 1 bis 5 Jahre | G43: Kamerainspektion Abnahme | H43: 18 | I43: 4 | J43: =H43*I43 -> €72
A44: langfristig | B44: ja oder nein | C44: 5 bis 10 Jahre | G44: Summe netto Haltung | J44: =SUM(J38:J43) -> €6,311
G45: Mehrwertsteuer | H45: 19 | J45: =(H45/100)*J44 -> €1,199
A46: Sanierung im Verbund | B46: ja oder nein | G46: Summe brutto Haltung | J46: =SUM(J44:J45) -> €7,510
A52: Haltungsbewertung:
A53: Info: Haltung Beton, deutliche Alterserscheinigungen, beginnende Betonkorrosion. Schlauchliner mittelfristig zu empfehlen. Stutzen nicht fachgerecht und undicht. Sanierungsempfehlung:
A58: Sanierungsempfehlung: | B58: Renovation Schlauch
A60: TV-Befahrung: | B60: Sohle sichtbar: | C60: 5 | D60: % Wasser in der Sohle

Sheet 09340050
A1: Haltung | B1: Straße | C1: Inspizierte Länge | D1: Länge | E1: Tiefe | G1: Schadensbeschreibung | I1: Durchmesser | J1: Material
A2: 09340051 - 09340050 | B2: BERLINER STRAßE | C2: 11,90 | D2: 12,90 | E2: Not Implemented yet | I2: 300 | J2: B
A4: Station | B4: Kürzel | C4: Charakterisi. | D4: Quantifizierung | E4: Lage im Kreis | G4: Schadensbeschreibung / Info | H4: Strecke | I4: Sanierungsvorschlag | J4: Kostenans.
A5: 0,00 | B5: BCD | C5: XP | G5: Anfangsknoten
A6: 0,00 | B6: BAF | C6: E / E | E6: 12 - 12 | G6: Oberflächenschaden Zuschlagstoffe fehlen Ursache nicht eindeutig festellbar | H6: A | K6: Streckenschaden! Sanierungsvorschlag automatisch Schlauch=
A7: 11,90 | B7: BAF | C7: E / E | E7: 12 - 12 | G7: Oberflächenschaden Zuschlagstoffe fehlen Ursache nicht eindeutig festellbar | H7: B
A8: 11,90 | B8: BCE | C8: XP | G8: Endknoten
G9: netto-Zwischensumme | J9: =SUM(J5:J8) -> €0
A10: Reparatur | G10: Baustelleneinrichtung anteilig Haltung | H10: 10 | J10: =(H10/100)*J9 -> €0
G11: Verkehrssicherung anteilig Haltung | H11: 5 | J11: =(H11/100)*J9 -> €0
A12: Sanierungspriorität | C12: Info | G12: Aufrechterhaltung der Vorflut Haltung | H12: 12 | J12: =(H12/100)*J9 -> €0
A13: kurzfristing | B13: ja oder nein | C13: 6-12 Monate | G13: Kanalreinigung vor Sanierung | H13: 11.9 | I13: 2 | J13: =H13*I13 -> €24
A14: mittelfristig | B14: ja oder nein | C14: 1 bis 5 Jahre | G14: Kamerainspektion Abnahme | H14: 11.9 | I14: 3 | J14: =H14*I14 -> €36
A15: langfristig | B15: ja oder nein | C15: 5 bis 10 Jahre | G15: Summe netto Haltung | J15: =SUM(J9:J14) -> €60
G16: Mehrwertsteuer | H16: 19 | J16: =(H16/100)*J15 -> €11
A17: Sanierung im Verbund | B17: ja oder nein | G17: Summe brutto Haltung | J17: =SUM(J15:J16) -> €71
A22: Haltung | B22: Straße | C22: Inspizierte Länge | D22: Länge | E22: Tiefe | G22: Schadensbeschreibung | I22: Durchmesser | J22: Material
A23: 09340051 - 09340050 | B23: BERLINER STRAßE | C23: 11,90 | D23: 12,90 | E23: Not Implemented yet | I23: 300 | J23: B
A25: Station | B25: Kürzel | C25: Charakterisi. | D25: Quantifizierung | E25: Lage im Kreis | G25: Schadensbeschreibung / Info | H25: Strecke | I25: Sanierungsvorschlag | J25: Kostenans.
A26: 0,00 | B26: BCD | C26: XP | G26: Anfangsknoten
A27: 0,00 | B27: BAF | C27: E / E | E27: 12 - 12 | G27: Oberflächenschaden Zuschlagstoffe fehlen Ursache nicht eindeutig festellbar | H27: A | K27: Streckenschaden! Sanierungsvorschlag automatisch Schlauch=
A28: 11,90 | B28: BAF | C28: E / E | E28: 12 - 12 | G28: Oberflächenschaden Zuschlagstoffe fehlen Ursache nicht eindeutig festellbar | H28: B
A29: 11,90 | B29: BCE | C29: XP | G29: Endknoten | I29: Schlauchliner | J29: €1,935
G30: netto-Zwischensumme | J30: =SUM(J26:J29) -> €1,935
A31: Renovation | G31: Baustelleneinrichtung anteilig Haltung | H31: 10 | J31: =(H31/100)*J30 -> €194
G32: Verkehrssicherung anteilig Haltung | H32: 5 | J32: =(H32/100)*J30 -> €97
A33: Sanierungspriorität | C33: Info | G33: Aufrechterhaltung der Vorflut Haltung | H33: 12 | J33: =(H33/100)*J30 -> €232
A34: kurzfristing | B34: ja oder nein | C34: 6-12 Monate | G34: Kanalreinigung vor Sanierung | H34: 11.9 | I34: 2 | J34: =H34*I34 -> €24
A35: mittelfristig | B35: ja oder nein | C35: 1 bis 5 Jahre | G35: Kamerainspektion Abnahme | H35: 11.9 | I35: 3 | J35: =H35*I35 -> €36
A36: langfristig | B36: ja oder nein | C36: 5 bis 10 Jahre | G36: Summe netto Haltung | J36: =SUM(J30:J35) -> €2,517
G37: Mehrwertsteuer | H37: 19 | J37: =(H37/100)*J36 -> €478
A38: Sanierung im Verbund | B38: ja oder nein | G38: Summe brutto Haltung | J38: =SUM(J36:J37) -> €2,995
A40: Haltungsbewertung:
A41: Info: Haltung Beton, deutliche Alterserscheinigungen, beginnende Betonkorrosion. Schlauchliner mittelfristig zu empfehlen. Stutzen nicht fachgerecht und undicht. Sanierung im Reparaturverfahren nicht zu empfehlen
A46: Sanierungsempfehlung: | B46: Renovation Schlauch
A48: Hinweis:
A49: TV-Befahrung: | B49: Sohle sichtbar: | C49: 20 | D49: % Wasser in der Sohle

Sheet 09340051
A1: Haltung | B1: Straße | C1: Inspizierte Länge | D1: Länge | E1: Tiefe | G1: Schadensbeschreibung | I1: Durchmesser | J1: Material
A2: 09340052 - 09340051 | B2: BERLINER STRAßE | C2: 9,90 | D2: 10,90 | E2: Not Implemented yet | I2: 300 | J2: B
A4: Station | B4: Kürzel | C4: Charakterisi. | D4: Quantifizierung | E4: Lage im Kreis | G4: Schadensbeschreibung / Info | H4: Strecke | I4: Sanierungsvorschlag | J4: Kostenans.
A5: 0,00 | B5: BCD | C5: XP | G5: Anfangsknoten
A6: 9,90 | B6: BCE | C6: XP | G6: Endknoten
G7: netto-Zwischensumme | J7: =SUM(J5:J6) -> €0
A8: Reparatur | G8: Baustelleneinrichtung anteilig Haltung | H8: 10 | J8: =(H8/100)*J7 -> €0
G9: Verkehrssicherung anteilig Haltung | H9: 5 | J9: =(H9/100)*J7 -> €0
A10: Sanierungspriorität | C10: Info | G10: Aufrechterhaltung der Vorflut Haltung | H10: 12 | J10: =(H10/100)*J7 -> €0
A11: kurzfristing | B11: ja oder nein | C11: 6-12 Monate | G11: Kanalreinigung vor Sanierung | H11: 9.9 | I11: 2 | J11: =H11*I11 -> €20
A12: mittelfristig | B12: ja oder nein | C12: 1 bis 5 Jahre | G12: Kamerainspektion Abnahme | H12: 9.9 | I12: 3 | J12: =H12*I12 -> €30
A13: langfristig | B13: ja oder nein | C13: 5 bis 10 Jahre | G13: Summe netto Haltung | J13: =SUM(J7:J12) -> €50
G14: Mehrwertsteuer | H14: 19 | J14: =(H14/100)*J13 -> €9
A15: Sanierung im Verbund | B15: ja oder nein | G15: Summe brutto Haltung | J15: =SUM(J13:J14) -> €59
A20: Haltung | B20: Straße | C20: Inspizierte Länge | D20: Länge | E20: Tiefe | G20: Schadensbeschreibung | I20: Durchmesser | J20: Material
A21: 09340051 | B21: BERLINER STRAßE | C21: 9,90 | D21: 10,90 | E21: Not Implemented yet | I21: 300 | J21: B
A23: Station | B23: Kürzel | C23: Charakterisi. | D23: Quantifizierung | E23: Lage im Kreis | G23: Schadensbeschreibung / Info | H23: Strecke | I23: Sanierungsvorschlag | J23: Kostenans.
A24: 0,00 | B24: BCD | C24: XP | G24: Anfangsknoten
A25: 9,90 | B25: BCE | C25: XP | G25: Endknoten | I25: Schlauchliner | J25: €1,635
G26: netto-Zwischensumme | J26: =SUM(J24:J25) -> €1,635
A27: Renovation | G27: Baustelleneinrichtung anteilig Haltung | H27: 10 | J27: =(H27/100)*J26 -> €164
G28: Verkehrssicherung anteilig Haltung | H28: 5 | J28: =(H28/100)*J26 -> €82
A29: Sanierungspriorität | C29: Info | G29: Aufrechterhaltung der Vorflut Haltung | H29: 12 | J29: =(H29/100)*J26 -> €196
A30: kurzfristing | B30: ja oder nein | C30: 6-12 Monate | G30: Kanalreinigung vor Sanierung | H30: 9.9 | I30: 2 | J30: =H30*I30 -> €20
A31: mittelfristig | B31: ja oder nein | C31: 1 bis 5 Jahre | G31: Kamerainspektion Abnahme | H31: 9.9 | I31: 3 | J31: =H31*I31 -> €30
A32: langfristig | B32: ja oder nein | C32: 5 bis 10 Jahre | G32: Summe netto Haltung | J32: =SUM(J26:J31) -> €2,126
G33: Mehrwertsteuer | H33: 19 | J33: =(H33/100)*J32 -> €404
A34: Sanierung im Verbund | B34: ja oder nein | G34: Summe brutto Haltung | J34: =SUM(J32:J33) -> €2,530
A36: Haltungsbewertung:
A37: Info: Haltung Beton, deutliche Alterserscheinigungen, beginnende Betonkorrosion. Schlauchliner mittelfristig zu empfehlen. Stutzen nicht fachgerecht und undicht. Sanieriung im Reparaturverfahren nicht zu empfehlen
A42: Sanierungsempfehlung: | B42: Renovation Schlauch
A44: Hinweis:
A45: TV-Befahrung: | B45: Sohle sichtbar: | C45: 20 | D45: % Wasser in der Sohle

Sheet 09340052
A1: Haltung | B1: Straße | C1: Inspizierte Länge | D1: Länge | E1: Tiefe | G1: Schadensbeschreibung | I1: Durchmesser | J1: Material
A2: 09340053 - 09340052 | B2: BERLINER STRAßE | C2: 22,80 | D2: 23,80 | E2: Not Implemented yet | I2: 300 | J2: B
A4: Station | B4: Kürzel | C4: Charakterisi. | D4: Quantifizierung | E4: Lage im Kreis | G4: Schadensbeschreibung / Info | H4: Strecke | I4: Sanierungsvorschlag | J4: Kostenans.
A5: 0,00 | B5: BCD | C5: XP | G5: Anfangsknoten
A6: 6,80 | B6: BAF | C6: E / E | E6: 12 - 12 | G6: Oberflächenschaden Zuschlagstoffe fehlen Ursache nicht eindeutig festellbar | H6: A
A7: 8,10 | B7: BAH | C7: A | E7: 1 - 4 | G7: Schadhafter Anschluss Lage des Anschlusses um das Rohr ist falsch | J7: €0
A8: 8,10 | B8: BCA | C8: C / A | D8: 200,00 | E8: 2 | G8: Anschluss Sattelanschluss – gemeißelt offen
A9: 8,10 | B9: BAH | C9: C | E9: 12 - 12 | G9: Schadhafter Anschluss am Umfang des Anschlusses ist teilweise ein Spalt (Anschluss unvollständig eingebunden) | I9: Stutzensanierung | J9: €600
A10: 8,50 | B10: BCA | C10: C / A | D10: 150,00 | E10: 1 | G10: Anschluss Sattelanschluss – gemeißelt offen
A11: 8,50 | B11: BAH | C11: A | E11: 12 - 2 | G11: Schadhafter Anschluss Lage des Anschlusses um das Rohr ist falsch | I11: Einzelbaugrube | J11: €3,000
A12: 9,00 | B12: BAF | C12: E / E | E12: 12 - 12 | G12: Oberflächenschaden Zuschlagstoffe fehlen Ursache nicht eindeutig festellbar | H12: B
A13: 9,10 | B13: BAF | C13: E / E | E13: 12 - 12 | G13: Oberflächenschaden Zuschlagstoffe fehlen Ursache nicht eindeutig festellbar | H13: A
A14: 16,20 | B14: BAH | C14: B | E14: 3 - 9 | F14: JA | G14: Schadhafter Anschluss Spalt zwischen dem Ende des Anschlusses und der Rohrleitung (Zurückliegende Anschluss) | I14: Stutzensanierung | J14: €600
A15: 16,20 | B15: BAP | E15: 7 - 9 | G15: Hohlraum sichtbar
A16: 16,20 | B16: BCA | C16: C / A | D16: 200,00 | E16: 9 | G16: Anschluss Sattelanschluss – gemeißelt offen
A17: 20,60 | B17: BDD | C17: C | D17: 10,00 | G17: Wasserspiegel trüb | H17: A
A18: 22,80 | B18: BDD | C18: C | D18: 10,00 | G18: Wasserspiegel trüb | H18: B
A19: 22,80 | B19: BAF | C19: E / E | E19: 12 - 12 | G19: Oberflächenschaden Zuschlagstoffe fehlen Ursache nicht eindeutig festellbar | H19: B
A20: 22,80 | B20: BCE | C20: XP | G20: Endknoten
G21: netto-Zwischensumme | J21: =SUM(J5:J20) -> €4,200
A22: Reparatur | G22: Baustelleneinrichtung anteilig Haltung | H22: 10 | J22: =(H22/100)*J21 -> €420
G23: Verkehrssicherung anteilig Haltung | H23: 5 | J23: =(H23/100)*J21 -> €210
A24: Sanierungspriorität | C24: Info | G24: Aufrechterhaltung der Vorflut Haltung | H24: 12 | J24: =(H24/100)*J21 -> €504
A25: kurzfristing | B25: ja oder nein | C25: 6-12 Monate | G25: Kanalreinigung vor Sanierung | H25: 22.8 | I25: 2 | J25: =H25*I25 -> €46
A26: mittelfristig | B26: ja oder nein | C26: 1 bis 5 Jahre | G26: Kamerainspektion Abnahme | H26: 22.8 | I26: 3 | J26: =H26*I26 -> €68
A27: langfristig | B27: ja oder nein | C27: 5 bis 10 Jahre | G27: Summe netto Haltung | J27: =SUM(J21:J26) -> €5,448
G28: Mehrwertsteuer | H28: 19 | J28: =(H28/100)*J27 -> €1,035
A29: Sanierung im Verbund | B29: ja oder nein | G29: Summe brutto Haltung | J29: =SUM(J27:J28) -> €6,483
A34: Haltung | B34: Straße | C34: Inspizierte Länge | D34: Länge | E34: Tiefe | G34: Schadensbeschreibung | I34: Durchmesser | J34: Material
A35: 09340053 - 09340052 | B35: BERLINER STRAßE | C35: 22,80 | D35: 23,80 | E35: Not Implemented yet | I35: 300 | J35: B
A37: Station | B37: Kürzel | C37: Charakterisi. | D37: Quantifizierung | E37: Lage im Kreis | G37: Schadensbeschreibung / Info | H37: Strecke | I37: Sanierungsvorschlag | J37: Kostenans.
A38: 0,00 | B38: BCD | C38: XP | G38: Anfangsknoten
A39: 6,80 | B39: BAF | C39: E / E | E39: 12 - 12 | G39: Oberflächenschaden Zuschlagstoffe fehlen Ursache nicht eindeutig festellbar | H39: A
A40: 8,10 | B40: BAH | C40: A | E40: 1 - 4 | G40: Schadhafter Anschluss Lage des Anschlusses um das Rohr ist falsch
A41: 8,10 | B41: BCA | C41: C / A | D41: 200,00 | E41: 2 | G41: Anschluss Sattelanschluss – gemeißelt offen | I41: Einmessen,Öffnen,Stsan | J41: €800
A42: 8,10 | B42: BAH | C42: C | E42: 12 - 12 | G42: Schadhafter Anschluss am Umfang des Anschlusses ist teilweise ein Spalt (Anschluss unvollständig eingebunden)
A43: 8,50 | B43: BCA | C43: C / A | D43: 150,00 | E43: 1 | G43: Anschluss Sattelanschluss – gemeißelt offen | I43: Einmessen,Öffnen, | J43: €200
A44: 8,50 | B44: BAH | C44: A | E44: 12 - 2 | G44: Schadhafter Anschluss Lage des Anschlusses um das Rohr ist falsch | I44: Einzelbaugrube | J44: €3,000
A45: 9,00 | B45: BAF | C45: E / E | E45: 12 - 12 | G45: Oberflächenschaden Zuschlagstoffe fehlen Ursache nicht eindeutig festellbar | H45: B
A46: 9,10 | B46: BAF | C46: E / E | E46: 12 - 12 | G46: Oberflächenschaden Zuschlagstoffe fehlen Ursache nicht eindeutig festellbar | H46: A
A47: 16,20 | B47: BAH | C47: B | E47: 3 - 9 | F47: JA | G47: Schadhafter Anschluss Spalt zwischen dem Ende des Anschlusses und der Rohrleitung (Zurückliegende Anschluss)
A48: 16,20 | B48: BAP | E48: 7 - 9 | G48: Hohlraum sichtbar
A49: 16,20 | B49: BCA | C49: C / A | D49: 200,00 | E49: 9 | G49: Anschluss Sattelanschluss – gemeißelt offen | I49: Einmessen,Öffnen,Stsan | J49: €800
A50: 20,60 | B50: BDD | C50: C | D50: 10,00 | G50: Wasserspiegel trüb | H50: A
A51: 22,80 | B51: BDD | C51: C | D51: 10,00 | G51: Wasserspiegel trüb | H51: B
A52: 22,80 | B52: BAF | C52: E / E | E52: 12 - 12 | G52: Oberflächenschaden Zuschlagstoffe fehlen Ursache nicht eindeutig festellbar | H52: B
A53: 22,80 | B53: BCE | C53: XP | G53: Endknoten | I53: Schlauchliner | J53: €3,094
G54: netto-Zwischensumme | J54: =SUM(J38:J53) -> €7,894
A55: Renovation | G55: Baustelleneinrichtung anteilig Haltung | H55: 10 | J55: =(H55/100)*J54 -> €789
G56: Verkehrssicherung anteilig Haltung | H56: 5 | J56: =(H56/100)*J54 -> €395
A57: Sanierungspriorität | C57: Info | G57: Aufrechterhaltung der Vorflut Haltung | H57: 12 | J57: =(H57/100)*J54 -> €947
A58: kurzfristing | B58: ja oder nein | C58: 6-12 Monate | G58: Kanalreinigung vor Sanierung | H58: 22.8 | I58: 2 | J58: =H58*I58 -> €46
A59: mittelfristig | B59: ja oder nein | C59: 1 bis 5 Jahre | G59: Kamerainspektion Abnahme | H59: 22.8 | I59: 3 | J59: =H59*I59 -> €68
A60: langfristig | B60: ja oder nein | C60: 5 bis 10 Jahre | G60: Summe netto Haltung | J60: =SUM(J54:J59) -> €10,139
G61: Mehrwertsteuer | H61: 19 | J61: =(H61/100)*J60 -> €1,926
A62: Sanierung im Verbund | B62: ja oder nein | G62: Summe brutto Haltung | J62: =SUM(J60:J61) -> €12,066
A64: Haltungsbewertung:
A65: Info: Haltung Beton, deutliche Alterserscheinigungen, fortgeschrittene Betonkorrosion. Schlauchliner kurzfristig zu empfehlen. Stutzen nicht fachgerecht und undicht. Sanierung im Reparaturverfahren nicht zu empfehlen. Stutzen bei 8,50 m in geschlossener Bauweise nicht fachgerecht sanierbar, Einzelbaugrube
A70: Sanierungsempfehlung: | B70: Renovation Schlauch
A72: Hinweis:
A73: TV-Befahrung: | B73: Sohle sichtbar: | C73: 20 | D73: % Wasser in der Sohle
C74: Sohle nicht einsehbar

Sheet 09340053
A1: Haltung | B1: Straße | C1: Inspizierte Länge | D1: Länge | E1: Tiefe | G1: Schadensbeschreibung | I1: Durchmesser | J1: Material
A2: 09340054 - 09340053 | B2: BERLINER STRAßE | C2: 19,40 | D2: 20,40 | E2: Not Implemented yet | I2: 300 | J2: B
A4: Station | B4: Kürzel | C4: Charakterisi. | D4: Quantifizierung | E4: Lage im Kreis | G4: Schadensbeschreibung / Info | H4: Strecke | I4: Sanierungsvorschlag | J4: Kostenans.
A5: 0,00 | B5: BCD | C5: XP | G5: Anfangsknoten
A6: 9,80 | B6: BCA | C6: C / A | D6: 150,00 | E6: 2 | G6: Anschluss Sattelanschluss – gemeißelt offen
A7: 16,90 | B7: BAI | C7: Z | D7: 5,00 | E7: 6 - 10 | F7: JA | G7: Einragendes Dichtungsmaterial andere Dichtungsart | I7: Fräsen | J7: €80
A8: 18,00 | B8: BAH | C8: A | E8: 10 - 1 | G8: Schadhafter Anschluss Lage des Anschlusses um das Rohr ist falsch | I8: Einzelbaugrube | J8: €3,000
A9: 18,00 | B9: BCA | C9: C / A | D9: 150,00 | E9: 11 | G9: Anschluss Sattelanschluss – gemeißelt offen
A10: 19,00 | B10: BBF | C10: B | E10: 12 - 12 | F10: JA | G10: Infiltration Tropfen
A11: 19,00 | B11: BBB | C11: A | D11: 5,00 | E11: 12 - 12 | F11: JA | G11: Anhaftende Stoffe Inkrustation | I11: Fräsen | J11: €50
A12: 19,40 | B12: BCE | C12: XP | G12: Endknoten
G13: netto-Zwischensumme | J13: =SUM(J5:J12) -> €3,130
A14: Reparatur | G14: Baustelleneinrichtung anteilig Haltung | H14: 10 | J14: =(H14/100)*J13 -> €313
G15: Verkehrssicherung anteilig Haltung | H15: 5 | J15: =(H15/100)*J13 -> €157
A16: Sanierungspriorität | C16: Info | G16: Aufrechterhaltung der Vorflut Haltung | H16: 12 | J16: =(H16/100)*J13 -> €376
A17: kurzfristing | B17: ja oder nein | C17: 6-12 Monate | G17: Kanalreinigung vor Sanierung | H17: 19.4 | I17: 2 | J17: =H17*I17 -> €39
A18: mittelfristig | B18: ja oder nein | C18: 1 bis 5 Jahre | G18: Kamerainspektion Abnahme | H18: 19.4 | I18: 3 | J18: =H18*I18 -> €58
A19: langfristig | B19: ja oder nein | C19: 5 bis 10 Jahre | G19: Summe netto Haltung | J19: =SUM(J13:J18) -> €4,072
G20: Mehrwertsteuer | H20: 19 | J20: =(H20/100)*J19 -> €774
A21: Sanierung im Verbund | B21: ja oder nein | G21: Summe brutto Haltung | J21: =SUM(J19:J20) -> €4,846
A26: Haltung | B26: Straße | C26: Inspizierte Länge | D26: Länge | E26: Tiefe | G26: Schadensbeschreibung | I26: Durchmesser | J26: Material
A27: 09340054 - 09340053 | B27: BERLINER STRAßE | C27: 19,40 | D27: 20,40 | E27: Not Implemented yet | I27: 300 | J27: B
A29: Station | B29: Kürzel | C29: Charakterisi. | D29: Quantifizierung | E29: Lage im Kreis | G29: Schadensbeschreibung / Info | H29: Strecke | I29: Sanierungsvorschlag | J29: Kostenans.
A30: 0,00 | B30: BCD | C30: XP | G30: Anfangsknoten
A31: 9,80 | B31: BCA | C31: C / A | D31: 150,00 | E31: 2 | G31: Anschluss Sattelanschluss – gemeißelt offen | I31: Einmessen,Öffnen,Stsan | J31: €800
A32: 16,90 | B32: BAI | C32: Z | D32: 5,00 | E32: 6 - 10 | F32: JA | G32: Einragendes Dichtungsmaterial andere Dichtungsart
A33: 18,00 | B33: BAH | C33: A | E33: 10 - 1 | G33: Schadhafter Anschluss Lage des Anschlusses um das Rohr ist falsch | I33: Einzelbaugrube | J33: €3,000
A34: 18,00 | B34: BCA | C34: C / A | D34: 150,00 | E34: 11 | G34: Anschluss Sattelanschluss – gemeißelt offen | I34: Einmessen,Öffnen, | J34: €200
A35: 19,00 | B35: BBF | C35: B | E35: 12 - 12 | F35: JA | G35: Infiltration Tropfen
A36: 19,00 | B36: BBB | C36: A | D36: 5,00 | E36: 12 - 12 | F36: JA | G36: Anhaftende Stoffe Inkrustation | I36: Fräsen | J36: €80
A37: 19,40 | B37: BCE | C37: XP | G37: Endknoten | I37: Schlauchliner | J37: €2,652
G38: netto-Zwischensumme | J38: =SUM(J30:J37) -> €6,732
A39: Renovation | G39: Baustelleneinrichtung anteilig Haltung | H39: 10 | J39: =(H39/100)*J38 -> €673
G40: Verkehrssicherung anteilig Haltung | H40: 5 | J40: =(H40/100)*J38 -> €337
A41: Sanierungspriorität | C41: Info | G41: Aufrechterhaltung der Vorflut Haltung | H41: 12 | J41: =(H41/100)*J38 -> €808
A42: kurzfristing | B42: ja oder nein | C42: 6-12 Monate | G42: Kanalreinigung vor Sanierung | H42: 19.4 | I42: 2 | J42: =H42*I42 -> €39
A43: mittelfristig | B43: ja oder nein | C43: 1 bis 5 Jahre | G43: Kamerainspektion Abnahme | H43: 19.4 | I43: 3 | J43: =H43*I43 -> €58
A44: langfristig | B44: ja oder nein | C44: 5 bis 10 Jahre | G44: Summe netto Haltung | J44: =SUM(J38:J43) -> €8,647
G45: Mehrwertsteuer | H45: 19 | J45: =(H45/100)*J44 -> €1,643
A46: Sanierung im Verbund | B46: ja oder nein | G46: Summe brutto Haltung | J46: =SUM(J44:J45) -> €10,290
A48: Haltungsbewertung:
A49: Info: Haltung Beton, deutliche Alterserscheinigungen, fortgeschrittene Betonkorrosion. Schlauchliner kurzfristig zu empfehlen. Stutzen nicht fachgerecht und undicht. Sanierung im Reparaturverfahren nicht zu empfehlen. Stutzen bei 18,00 m in geschlossener Bauweise nicht fachgerecht sanierbar, Einzelbaugrube
A54: Sanierungsempfehlung: | B54: Renovation Schlauch
A56: Hinweis:
A57: TV-Befahrung: | B57: Sohle sichtbar: | C57: 20 | D57: % Wasser in der Sohle
C58: Sohle nicht einsehbar

Sheet 09340054
A1: Haltung | B1: Straße | C1: Inspizierte Länge | D1: Länge | E1: Tiefe | G1: Schadensbeschreibung | I1: Durchmesser | J1: Material
A2: 9340054 - 09340613 | B2: BERLINER STRAßE | C2: 38,80 | D2: 39,80 | E2: Not Implemented yet | I2: 300 | J2: B
A4: Station | B4: Kürzel | C4: Charakterisi. | D4: Quantifizierung | E4: Lage im Kreis | G4: Schadensbeschreibung / Info | H4: Strecke | I4: Sanierungsvorschlag | J4: Kostenans.
A5: 0,00 | B5: BCD | C5: XP | G5: Anfangsknoten
A6: 0,00 | B6: BDD | C6: C | D6: 20,00 | G6: Wasserspiegel trüb | H6: A
A7: 1,20 | B7: BAF | C7: C / E | E7: 12 - 12 | G7: Oberflächenschaden Zuschlagstoffe sichtbar Ursache nicht eindeutig festellbar | H7: A
A8: 4,00 | B8: BDD | C8: C | G8: Wasserspiegel trüb | H8: B
A9: 7,30 | B9: BCA | C9: C / A | D9: 150,00 | E9: 9 | G9: Anschluss Sattelanschluss – gemeißelt offen
A10: 27,50 | B10: BCA | C10: C / A | D10: 150,00 | E10: 10 | G10: Anschluss Sattelanschluss – gemeißelt offen
A11: 27,50 | B11: BAH | C11: B | E11: 12 - 12 | F11: JA | G11: Schadhafter Anschluss Spalt zwischen dem Ende des Anschlusses und der Rohrleitung (Zurückliegende Anschluss) | J11: €0
A12: 38,10 | B12: BAC | C12: B | D12: 50,00 | E12: 11 - 3 | F12: JA | G12: Rohrbruch / Einsturz Fehlen von Teilen
A13: 38,80 | B13: BAF | C13: C / E | E13: 12 - 12 | G13: Oberflächenschaden Zuschlagstoffe sichtbar Ursache nicht eindeutig festellbar | H13: B
A14: 38,80 | B14: BCE | C14: XP | G14: Endknoten
G15: netto-Zwischensumme | J15: =SUM(J5:J14) -> €0
A16: Reparatur | G16: Baustelleneinrichtung anteilig Haltung | H16: 10 | J16: =(H16/100)*J15 -> €0
G17: Verkehrssicherung anteilig Haltung | H17: 5 | J17: =(H17/100)*J15 -> €0
A18: Sanierungspriorität | C18: Info | G18: Aufrechterhaltung der Vorflut Haltung | H18: 12 | J18: =(H18/100)*J15 -> €0
A19: kurzfristing | B19: ja oder nein | C19: 6-12 Monate | G19: Kanalreinigung vor Sanierung | H19: 38.8 | I19: 2 | J19: =H19*I19 -> €78
A20: mittelfristig | B20: ja oder nein | C20: 1 bis 5 Jahre | G20: Kamerainspektion Abnahme | H20: 38.8 | I20: 3 | J20: =H20*I20 -> €116
A21: langfristig | B21: ja oder nein | C21: 5 bis 10 Jahre | G21: Summe netto Haltung | J21: =SUM(J15:J20) -> €194
G22: Mehrwertsteuer | H22: 19 | J22: =(H22/100)*J21 -> €37
A23: Sanierung im Verbund | B23: ja oder nein | G23: Summe brutto Haltung | J23: =SUM(J21:J22) -> €231
A28: Haltung | B28: Straße | C28: Inspizierte Länge | D28: Länge | E28: Tiefe | G28: Schadensbeschreibung | I28: Durchmesser | J28: Material
A29: 9340054 - 09340613 | B29: BERLINER STRAßE | C29: 38,80 | D29: 39,80 | E29: Not Implemented yet | I29: 300 | J29: B
A31: Station | B31: Kürzel | C31: Charakterisi. | D31: Quantifizierung | E31: Lage im Kreis | G31: Schadensbeschreibung / Info | H31: Strecke | I31: Sanierungsvorschlag | J31: Kostenans.
A32: 0,00 | B32: BCD | C32: XP | G32: Anfangsknoten
A33: 0,00 | B33: BDD | C33: C | D33: 20,00 | G33: Wasserspiegel trüb | H33: A
A34: 1,20 | B34: BAF | C34: C / E | E34: 12 - 12 | G34: Oberflächenschaden Zuschlagstoffe sichtbar Ursache nicht eindeutig festellbar | H34: A
A35: 4,00 | B35: BDD | C35: C | G35: Wasserspiegel trüb | H35: B
A36: 7,30 | B36: BCA | C36: C / A | D36: 150,00 | E36: 9 | G36: Anschluss Sattelanschluss – gemeißelt offen | I36: Einmessen,Öffnen,Stsan | J36: €800
A37: 27,50 | B37: BCA | C37: C / A | D37: 150,00 | E37: 10 | G37: Anschluss Sattelanschluss – gemeißelt offen | I37: Einzelbaugrube | J37: €3,000
A38: 27,50 | B38: BAH | C38: B | E38: 12 - 12 | F38: JA | G38: Schadhafter Anschluss Spalt zwischen dem Ende des Anschlusses und der Rohrleitung (Zurückliegende Anschluss) | I38: Einmessen,Öffnen, | J38: €200
A39: 38,10 | B39: BAC | C39: B | D39: 50,00 | E39: 11 - 3 | F39: JA | G39: Rohrbruch / Einsturz Fehlen von Teilen | I39: keine Sanierung erforderl
A40: 38,80 | B40: BAF | C40: C / E | E40: 12 - 12 | G40: Oberflächenschaden Zuschlagstoffe sichtbar Ursache nicht eindeutig festellbar | H40: B
A41: 38,80 | B41: BCE | C41: XP | G41: Endknoten | I41: Schlauchliner | J41: €3,980
G42: netto-Zwischensumme | J42: =SUM(J32:J41) -> €7,980
A43: Renovation | G43: Baustelleneinrichtung anteilig Haltung | H43: 10 | J43: =(H43/100)*J42 -> €798
G44: Verkehrssicherung anteilig Haltung | H44: 5 | J44: =(H44/100)*J42 -> €399
A45: Sanierungspriorität | C45: Info | G45: Aufrechterhaltung der Vorflut Haltung | H45: 12 | J45: =(H45/100)*J42 -> €958
A46: kurzfristing | B46: ja oder nein | C46: 6-12 Monate | G46: Kanalreinigung vor Sanierung | H46: 38.8 | I46: 2 | J46: =H46*I46 -> €78
A47: mittelfristig | B47: ja oder nein | C47: 1 bis 5 Jahre | G47: Kamerainspektion Abnahme | H47: 38.8 | I47: 3 | J47: =H47*I47 -> €116
A48: langfristig | B48: ja oder nein | C48: 5 bis 10 Jahre | G48: Summe netto Haltung | J48: =SUM(J42:J47) -> €10,329
G49: Mehrwertsteuer | H49: 19 | J49: =(H49/100)*J48 -> €1,962
A50: Sanierung im Verbund | B50: ja oder nein | G50: Summe brutto Haltung | J50: =SUM(J48:J49) -> €12,291
A52: Haltungsbewertung:
A53: Info: Haltung Beton, deutliche Alterserscheinigungen, fortgeschrittene Betonkorrosion. Schlauchliner kurzfristig zu empfehlen. Stutzen nicht fachgerecht und undicht. Sanierung im Reparaturverfahren nicht zu empfehlen. Stutzen bei 27,50m in geschlossener Bauweise nicht fachgerecht sanierbar, Einzelbaugrube
A58: Sanierungsempfehlung: | B58: Renovation Schlauch
A60: Hinweis:
A61: TV-Befahrung: | B61: Sohle sichtbar: | C61: 20 | D61: % Wasser in der Sohle
C62: Sohle nicht einsehbar
A64: Kanal gereinigt: | C64: nein

Sheet 09340056
A1: Haltung | B1: Straße | C1: Inspizierte Länge | D1: Länge | E1: Tiefe | G1: Schadensbeschreibung | I1: Durchmesser | J1: Material
A2: 09340056 - 09340054 | B2: BERLINER STRAßE | C2: 36,40 | D2: 37,40 | E2: Not Implemented yet | I2: 300 | J2: B
A4: Station | B4: Kürzel | C4: Charakterisi. | D4: Quantifizierung | E4: Lage im Kreis | G4: Schadensbeschreibung / Info | H4: Strecke | I4: Sanierungsvorschlag | J4: Kostenans.
A5: 0,00 | B5: BCD | C5: XP | G5: Anfangsknoten
A6: 8,70 | B6: BCA | C6: B / A | D6: 150,00 | E6: 2 | G6: Anschluss Sattelanschluss – gebohrt offen
A7: 13,70 | B7: BCA | C7: B / A | D7: 150,00 | E7: 11 | G7: Anschluss Sattelanschluss – gebohrt offen
A8: 15,80 | B8: BCA | C8: B / A | D8: 150,00 | E8: 3 | G8: Anschluss Sattelanschluss – gebohrt offen
A9: 27,30 | B9: BCA | C9: B / A | D9: 150,00 | E9: 1 | G9: Anschluss Sattelanschluss – gebohrt offen
A10: 31,50 | B10: BCA | C10: B / A | D10: 150,00 | E10: 11 | G10: Anschluss Sattelanschluss – gebohrt offen
A11: 34,90 | B11: BCA | C11: B / A | D11: 150,00 | E11: 2 | G11: Anschluss Sattelanschluss – gebohrt offen
A12: 36,40 | B12: BCE | C12: XP | G12: Endknoten
G13: netto-Zwischensumme | J13: =SUM(J5:J12) -> €0
A14: Reparatur | G14: Baustelleneinrichtung anteilig Haltung | H14: 10 | J14: =(H14/100)*J13 -> €0
G15: Verkehrssicherung anteilig Haltung | H15: 5 | J15: =(H15/100)*J13 -> €0
A16: Sanierungspriorität | C16: Info | G16: Aufrechterhaltung der Vorflut Haltung | H16: 12 | J16: =(H16/100)*J13 -> €0
A17: kurzfristing | B17: ja oder nein | C17: 6-12 Monate | G17: Kanalreinigung vor Sanierung | H17: 36.4 | I17: 2 | J17: =H17*I17 -> €73
A18: mittelfristig | B18: ja oder nein | C18: 1 bis 5 Jahre | G18: Kamerainspektion Abnahme | H18: 36.4 | I18: 3 | J18: =H18*I18 -> €109
A19: langfristig | B19: ja oder nein | C19: 5 bis 10 Jahre | G19: Summe netto Haltung | J19: =SUM(J13:J18) -> €182
G20: Mehrwertsteuer | H20: 19 | J20: =(H20/100)*J19 -> €35
A21: Sanierung im Verbund | B21: ja oder nein | G21: Summe brutto Haltung | J21: =SUM(J19:J20) -> €217
A26: Haltung | B26: Straße | C26: Inspizierte Länge | D26: Länge | E26: Tiefe | G26: Schadensbeschreibung | I26: Durchmesser | J26: Material
A27: 09340056 - 09340054 | B27: BERLINER STRAßE | C27: 36,40 | D27: 37,40 | E27: Not Implemented yet | I27: 300 | J27: B
A29: Station | B29: Kürzel | C29: Charakterisi. | D29: Quantifizierung | E29: Lage im Kreis | G29: Schadensbeschreibung / Info | H29: Strecke | I29: Sanierungsvorschlag | J29: Kostenans.
A30: 0,00 | B30: BCD | C30: XP | G30: Anfangsknoten
A31: 8,70 | B31: BCA | C31: B / A | D31: 150,00 | E31: 2 | G31: Anschluss Sattelanschluss – gebohrt offen | I31: Einmessen,Öffnen,Hut | J31: €490
A32: 13,70 | B32: BCA | C32: B / A | D32: 150,00 | E32: 11 | G32: Anschluss Sattelanschluss – gebohrt offen | I32: Einmessen,Öffnen,Hut | J32: €490
A33: 15,80 | B33: BCA | C33: B / A | D33: 150,00 | E33: 3 | G33: Anschluss Sattelanschluss – gebohrt offen | I33: Einmessen,Öffnen,Hut | J33: €490
A34: 27,30 | B34: BCA | C34: B / A | D34: 150,00 | E34: 1 | G34: Anschluss Sattelanschluss – gebohrt offen | I34: Einmessen,Öffnen,Hut | J34: €490
A35: 31,50 | B35: BCA | C35: B / A | D35: 150,00 | E35: 11 | G35: Anschluss Sattelanschluss – gebohrt offen | I35: Einmessen,Öffnen,Hut | J35: €490
A36: 34,90 | B36: BCA | C36: B / A | D36: 150,00 | E36: 2 | G36: Anschluss Sattelanschluss – gebohrt offen | I36: Einmessen,Öffnen,Hut | J36: €490
A37: 36,40 | B37: BCE | C37: XP | G37: Endknoten | I37: Schlauchliner | J37: €3,740
G38: netto-Zwischensumme | J38: =SUM(J30:J37) -> €6,680
A39: Renovation | G39: Baustelleneinrichtung anteilig Haltung | H39: 10 | J39: =(H39/100)*J38 -> €668
G40: Verkehrssicherung anteilig Haltung | H40: 5 | J40: =(H40/100)*J38 -> €334
A41: Sanierungspriorität | C41: Info | G41: Aufrechterhaltung der Vorflut Haltung | H41: 12 | J41: =(H41/100)*J38 -> €802
A42: kurzfristing | B42: ja oder nein | C42: 6-12 Monate | G42: Kanalreinigung vor Sanierung | H42: 36.4 | I42: 2 | J42: =H42*I42 -> €73
A43: mittelfristig | B43: ja oder nein | C43: 1 bis 5 Jahre | G43: Kamerainspektion Abnahme | H43: 36.4 | I43: 3 | J43: =H43*I43 -> €109
A44: langfristig | B44: ja oder nein | C44: 5 bis 10 Jahre | G44: Summe netto Haltung | J44: =SUM(J38:J43) -> €8,666
A45: langfristig + TV-neu in 10 Jahren: | C45: ja | G45: Mehrwertsteuer | H45: 19 | J45: =(H45/100)*J44 -> €1,646
G46: Summe brutto Haltung | J46: =SUM(J44:J45) -> €10,312
A47: Sanierung im Verbund | B47: ja oder nein
A49: Haltungsbewertung:
A50: Info: Haltung neueren Datums, keine sichtbaren Schäden. Anschlussleitungen wurnden in PP erneuert (KG2000). Endschacht ebenfalls erneuert. Startschacht nicht bekannt. Keine Sanierung erforderlich.
A55: Sanierungsempfehlung: | B55: Renovation Schlauch
A57: Hinweis:
A58: TV-Befahrung: | B58: Sohle sichtbar: | C58: 10 | D58: % Wasser in der Sohle
A60: Kanal gereinigt: | C60: nein

Sheet 09340585
A1: Haltung | B1: Straße | C1: Inspizierte Länge | D1: Länge | E1: Tiefe | G1: Schadensbeschreibung | I1: Durchmesser | J1: Material
A2: 09340612 - 09340585 | B2: BERLINER STRAßE | C2: 56,60 | D2: 57,60 | E2: Not Implemented yet | I2: 200 | J2: B
A4: Station | B4: Kürzel | C4: Charakterisi. | D4: Quantifizierung | E4: Lage im Kreis | G4: Schadensbeschreibung / Info | H4: Strecke | I4: Sanierungsvorschlag | J4: Kostenans. | K4: Material HA | L4: Zustand
A5: 0,00 | B5: BCD | C5: XP | G5: Anfangsknoten
A6: 0,50 | B6: BAJ | C6: B | D6: 25,00 | E6: 6 | F6: JA | G6: Verschobene Verbindung radial | I6: Fräsen | J6: €50 | M6: 0,50 | N6: Besichtigung Schacht erforderlich, ob Haltung abgesackt
A7: 1,40 | B7: BDD | C7: C | D7: 15,00 | G7: Wasserspiegel trüb | H7: A
A8: 2,30 | B8: BDD | C8: C | G8: Wasserspiegel trüb | H8: B
A9: 2,30 | B9: BAI | C9: Z | D9: 5,00 | E9: 12 - 12 | F9: JA | G9: Einragendes Dichtungsmaterial andere Dichtungsart | I9: Fräsen | J9: €50
A10: 5,20 | B10: BAI | C10: Z | D10: 5,00 | E10: 12 - 12 | F10: JA | G10: Einragendes Dichtungsmaterial andere Dichtungsart | I10: Fräsen | J10: €50
A11: 5,20 | B11: BAF | C11: E / E | E11: 12 - 12 | G11: Oberflächenschaden Zuschlagstoffe fehlen Ursache nicht eindeutig festellbar | H11: A
A12: 5,20 | B12: BAN | E12: 12 - 12 | G12: Poröses Rohr | H12: A
A13: 5,40 | B13: BAF | C13: E / E | E13: 12 - 12 | G13: Oberflächenschaden Zuschlagstoffe fehlen Ursache nicht eindeutig festellbar | H13: C
A14: 7,00 | B14: BDD | C14: C | D14: 15,00 | G14: Wasserspiegel trüb | H14: A
A15: 7,40 | B15: BAJ | C15: B | D15: 25,00 | E15: 6 | F15: JA | G15: Verschobene Verbindung radial | I15: Fräsen | J15: €50
A16: 8,30 | B16: BBA | C16: B | D16: 2,00 | E16: 12 - 12 | F16: JA | G16: Wurzeln einzelne feine Wurzeln | I16: Fräsen | J16: €50
A17: 11,30 | B17: BBA | C17: B | D17: 2,00 | E17: 12 - 12 | F17: JA | G17: Wurzeln einzelne feine Wurzeln | I17: Fräsen | J17: €50
A18: 11,40 | B18: BAB | C18: B / A | D18: 2,00 | E18: 1 | F18: JA | G18: Rissbildung Riss in Längsrichtung
A19: 12,40 | B19: BAB | C19: B / A | D19: 2,00 | E19: 5 - 7 | G19: Rissbildung Riss in Längsrichtung | H19: A
A20: 13,10 | B20: BDD | C20: C | G20: Wasserspiegel trüb | H20: B
A21: 13,30 | B21: BAB | C21: B / A | D21: 5,00 | E21: 5 - 7 | G21: Rissbildung Riss in Längsrichtung | H21: B
A22: 14,40 | B22: BAB | C22: B / A | D22: 3,00 | E22: 5 - 7 | G22: Rissbildung Riss in Längsrichtung | H22: A
A23: 15,20 | B23: BCA | C23: C / A | D23: 150,00 | E23: 12 | G23: Anschluss Sattelanschluss – gemeißelt offen | K23: Steinzeug | L23: gut
A24: 15,90 | B24: BAB | C24: B / A | D24: 3,00 | E24: 5 - 7 | G24: Rissbildung Riss in Längsrichtung | H24: B
A25: 21,30 | B25: BCA | C25: C / A | D25: 150,00 | E25: 12 | G25: Anschluss Sattelanschluss – gemeißelt offen | K25: Steinzeug | L25: gut
A26: 26,00 | B26: BCA | C26: C / A | D26: 150,00 | E26: 2 | G26: Anschluss Sattelanschluss – gemeißelt offen | K26: Beton | L26: stark korrdiert
A27: 26,60 | B27: BCA | C27: C / A | D27: 100,00 | E27: 1 | G27: Anschluss Sattelanschluss – gemeißelt offen | K27: PVC | L27: gut | M27: einragend
A28: 26,60 | B28: BAG | D28: 25,00 | E28: 12 - 3 | G28: Einragender Anschluss | I28: Fräsen | J28: €50
A29: 28,40 | B29: BBA | C29: B | D29: 5,00 | E29: 12 - 12 | F29: JA | G29: Wurzeln einzelne feine Wurzeln | I29: Fräsen | J29: €50
A30: 31,60 | B30: BCA | C30: C / A | D30: 150,00 | E30: 12 | G30: Anschluss Sattelanschluss – gemeißelt offen
A31: 31,60 | B31: BAH | C31: D | E31: 12 - 12 | G31: Schadhafter Anschluss Anschluss beschädigt | J31: €0 | K31: Steinezeug | L31: gut | M31: Scherbe am RA
A32: 32,70 | B32: BDD | C32: C | D32: 15,00 | G32: Wasserspiegel trüb | H32: A
A33: 33,50 | B33: BAP | E33: 3 - 9 | F33: JA | G33: Hohlraum sichtbar
A34: 33,50 | B34: BAJ | C34: B | D34: 20,00 | E34: 12 | F34: JA | G34: Verschobene Verbindung radial | I34: Fräsen | J34: €50
A35: 34,50 | B35: BDD | C35: C | G35: Wasserspiegel trüb | H35: B
A36: 36,60 | B36: BAC | C36: B | D36: 100,00 | E36: 5 - 7 | G36: Rohrbruch / Einsturz Fehlen von Teilen
A37: 37,80 | B37: BBE | C37: D | D37: 5,00 | E37: 4 - 6 | G37: Andere Hindernisse Gegenstand ragt durch die Wand ein
A38: 37,90 | B38: BCA | C38: C / A | D38: 150,00 | E38: 12 | G38: Anschluss Sattelanschluss – gemeißelt offen | K38: Steinzeug | L38: gut
A39: 42,00 | B39: BCA | C39: C / A | D39: 150,00 | E39: 2 | G39: Anschluss Sattelanschluss – gemeißelt offen | K39: Beton | L39: stark korrodiert
A40: 42,00 | B40: BAH | C40: C | E40: 12 - 12 | F40: JA | G40: Schadhafter Anschluss am Umfang des Anschlusses ist teilweise ein Spalt (Anschluss unvollständig eingebunden) | I40: Fräsen,Hut | J40: €450 | K40: PVC | L40: gut | M40: einragend
A41: 43,40 | B41: BCA | C41: C / A | D41: 100,00 | E41: 2 | G41: Anschluss Sattelanschluss – gemeißelt offen
A42: 43,40 | B42: BBE | C42: D | D42: 10,00 | E42: 2 - 4 | G42: Andere Hindernisse Gegenstand ragt durch die Wand ein
A43: 48,30 | B43: BAG | D43: 10,00 | E43: 1 - 3 | G43: Einragender Anschluss | I43: Fräsen | J43: €50 | K43: Steinzeug | L43: gut | M43: einragend
A44: 48,30 | B44: BCA | C44: C / A | D44: 150,00 | E44: 2 | G44: Anschluss Sattelanschluss – gemeißelt offen
A45: 49,10 | B45: BBC | C45: C | D45: 5,00 | E45: 4 - 8 | G45: Ablagerungen hartes oder verdichtetes Material | H45: A | I45: Fräsen | J45: €50
A46: 51,50 | B46: BAF | C46: E / E | E46: 12 - 12 | G46: Oberflächenschaden Zuschlagstoffe fehlen Ursache nicht eindeutig festellbar | H46: C
A47: 52,50 | B47: BCA | C47: C / A | D47: 150,00 | E47: 1 | G47: Anschluss Sattelanschluss – gemeißelt offen | K47: Steinzeug | L47: gut | M47: einragend
A48: 52,50 | B48: BBC | C48: C | D48: 5,00 | E48: 1 - 6 | G48: Ablagerungen hartes oder verdichtetes Material | I48: Fräsen | J48: €50
A49: 52,50 | B49: BAG | D49: 5,00 | E49: 12 - 2 | G49: Einragender Anschluss | I49: Fräsen | J49: €50
A50: 55,00 | B50: BBC | C50: C | D50: 5,00 | E50: 4 - 8 | G50: Ablagerungen hartes oder verdichtetes Material | H50: B | I50: Fräsen | J50: €50
A51: 55,00 | B51: BAF | C51: E / E | E51: 12 - 12 | G51: Oberflächenschaden Zuschlagstoffe fehlen Ursache nicht eindeutig festellbar | H51: B
A52: 55,00 | B52: BAN | E52: 12 - 12 | G52: Poröses Rohr | H52: B
A53: 56,60 | B53: BCE | C53: XP | G53: Endknoten
G54: netto-Zwischensumme | J54: =SUM(J5:J53) -> €1,150
A55: Reparatur | G55: Baustelleneinrichtung anteilig Haltung | H55: 10 | J55: =(H55/100)*J54 -> €115
G56: Verkehrssicherung anteilig Haltung | H56: 5 | J56: =(H56/100)*J54 -> €58
A57: Sanierungspriorität | C57: Info | G57: Aufrechterhaltung der Vorflut Haltung | H57: 12 | J57: =(H57/100)*J54 -> €138
A58: kurzfristing | B58: ja oder nein | C58: 6-12 Monate | G58: Kanalreinigung vor Sanierung | H58: 56.6 | I58: 2 | J58: =H58*I58 -> €113
A59: mittelfristig | B59: ja oder nein | C59: 1 bis 5 Jahre | G59: Kamerainspektion Abnahme | H59: 56.6 | I59: 3 | J59: =H59*I59 -> €170
A60: langfristig | B60: ja oder nein | C60: 5 bis 10 Jahre | G60: Summe netto Haltung | J60: =SUM(J54:J59) -> €1,744
G61: Mehrwertsteuer | H61: 19 | J61: =(H61/100)*J60 -> €331
A62: Sanierung im Verbund | B62: ja oder nein | G62: Summe brutto Haltung | J62: =SUM(J60:J61) -> €2,075
A67: Haltung | B67: Straße | C67: Inspizierte Länge | D67: Länge | E67: Tiefe | G67: Schadensbeschreibung | I67: Durchmesser | J67: Material
A68: 09340612 - 09340585 | B68: BERLINER STRAßE | C68: 56,60 | D68: 57,60 | E68: Not Implemented yet | I68: 200 | J68: B
A70: Station | B70: Kürzel | C70: Charakterisi. | D70: Quantifizierung | E70: Lage im Kreis | G70: Schadensbeschreibung / Info | H70: Strecke | I70: Sanierungsvorschlag | J70: Kostenans. | K70: Material HA | L70: Zustand
A71: 0,00 | B71: BCD | C71: XP | G71: Anfangsknoten
A72: 0,50 | B72: BAJ | C72: B | D72: 25,00 | E72: 6 | F72: JA | G72: Verschobene Verbindung radial | I72: Fräsen | J72: €50 | M72: 0,50 | N72: Besichtigung Schacht erforderlich, ob Haltung abgesackt
A73: 1,40 | B73: BDD | C73: C | D73: 15,00 | G73: Wasserspiegel trüb | H73: A
A74: 2,30 | B74: BDD | C74: C | G74: Wasserspiegel trüb | H74: B
A75: 2,30 | B75: BAI | C75: Z | D75: 5,00 | E75: 12 - 12 | F75: JA | G75: Einragendes Dichtungsmaterial andere Dichtungsart
A76: 5,20 | B76: BAI | C76: Z | D76: 5,00 | E76: 12 - 12 | F76: JA | G76: Einragendes Dichtungsmaterial andere Dichtungsart
A77: 5,20 | B77: BAF | C77: E / E | E77: 12 - 12 | G77: Oberflächenschaden Zuschlagstoffe fehlen Ursache nicht eindeutig festellbar | H77: A
A78: 5,20 | B78: BAN | E78: 12 - 12 | G78: Poröses Rohr | H78: A
A79: 5,40 | B79: BAF | C79: E / E | E79: 12 - 12 | G79: Oberflächenschaden Zuschlagstoffe fehlen Ursache nicht eindeutig festellbar | H79: C
A80: 7,00 | B80: BDD | C80: C | D80: 15,00 | G80: Wasserspiegel trüb | H80: A
A81: 7,40 | B81: BAJ | C81: B | D81: 25,00 | E81: 6 | F81: JA | G81: Verschobene Verbindung radial | I81: Fräsen | J81: €50
A82: 8,30 | B82: BBA | C82: B | D82: 2,00 | E82: 12 - 12 | F82: JA | G82: Wurzeln einzelne feine Wurzeln | I82: Fräsen | J82: €50
A83: 11,30 | B83: BBA | C83: B | D83: 2,00 | E83: 12 - 12 | F83: JA | G83: Wurzeln einzelne feine Wurzeln | I83: Fräsen | J83: €50
A84: 11,40 | B84: BAB | C84: B / A | D84: 2,00 | E84: 1 | F84: JA | G84: Rissbildung Riss in Längsrichtung
A85: 12,40 | B85: BAB | C85: B / A | D85: 2,00 | E85: 5 - 7 | G85: Rissbildung Riss in Längsrichtung | H85: A
A86: 13,10 | B86: BDD | C86: C | G86: Wasserspiegel trüb | H86: B
A87: 13,30 | B87: BAB | C87: B / A | D87: 5,00 | E87: 5 - 7 | G87: Rissbildung Riss in Längsrichtung | H87: B
A88: 14,40 | B88: BAB | C88: B / A | D88: 3,00 | E88: 5 - 7 | G88: Rissbildung Riss in Längsrichtung | H88: A
A89: 15,20 | B89: BCA | C89: C / A | D89: 150,00 | E89: 12 | G89: Anschluss Sattelanschluss – gemeißelt offen | I89: Einmessen,Öffnen,Hut | J89: €600 | K89: Steinzeug | L89: gut
A90: 15,90 | B90: BAB | C90: B / A | D90: 3,00 | E90: 5 - 7 | G90: Rissbildung Riss in Längsrichtung | H90: B
A91: 21,30 | B91: BCA | C91: C / A | D91: 150,00 | E91: 12 | G91: Anschluss Sattelanschluss – gemeißelt offen | I91: Einmessen,Öffnen,Hut | J91: €600 | K91: Steinzeug | L91: gut
A92: 26,00 | B92: BCA | C92: C / A | D92: 150,00 | E92: 2 | G92: Anschluss Sattelanschluss – gemeißelt offen | I92: Einmessen,Öffnen,Hut | J92: €600 | K92: Beton | L92: stark korrdiert
A93: 26,60 | B93: BCA | C93: C / A | D93: 100,00 | E93: 1 | G93: Anschluss Sattelanschluss – gemeißelt offen | I93: Einmessen,Öffnen,Hut | J93: €600 | K93: PVC | L93: gut | M93: einragend
A94: 26,60 | B94: BAG | D94: 25,00 | E94: 12 - 3 | G94: Einragender Anschluss
A95: 28,40 | B95: BBA | C95: B | D95: 5,00 | E95: 12 - 12 | F95: JA | G95: Wurzeln einzelne feine Wurzeln | I95: Fräsen | J95: €50
A96: 31,60 | B96: BCA | C96: C / A | D96: 150,00 | E96: 12 | G96: Anschluss Sattelanschluss – gemeißelt offen | I96: Einmessen,Öffnen,Hut | J96: €600
A97: 31,60 | B97: BAH | C97: D | E97: 12 - 12 | G97: Schadhafter Anschluss Anschluss beschädigt | K97: Steinezeug | L97: gut | M97: Scherbe am RA
A98: 32,70 | B98: BDD | C98: C | D98: 15,00 | G98: Wasserspiegel trüb | H98: A
A99: 33,50 | B99: BAP | E99: 3 - 9 | F99: JA | G99: Hohlraum sichtbar
A100: 33,50 | B100: BAJ | C100: B | D100: 20,00 | E100: 12 | F100: JA | G100: Verschobene Verbindung radial | I100: Fräsen | J100: €50
A101: 34,50 | B101: BDD | C101: C | G101: Wasserspiegel trüb | H101: B
A102: 36,60 | B102: BAC | C102: B | D102: 100,00 | E102: 5 - 7 | G102: Rohrbruch / Einsturz Fehlen von Teilen
A103: 37,80 | B103: BBE | C103: D | D103: 5,00 | E103: 4 - 6 | G103: Andere Hindernisse Gegenstand ragt durch die Wand ein
A104: 37,90 | B104: BCA | C104: C / A | D104: 150,00 | E104: 12 | G104: Anschluss Sattelanschluss – gemeißelt offen | I104: Einmessen,Öffnen,Hut | J104: €600 | K104: Steinzeug | L104: gut
A105: 42,00 | B105: BCA | C105: C / A | D105: 150,00 | E105: 2 | G105: Anschluss Sattelanschluss – gemeißelt offen | I105: Einmessen,Öffnen,Hut | J105: €600 | K105: Beton | L105: stark korrodiert
A106: 42,00 | B106: BAH | C106: C | E106: 12 - 12 | F106: JA | G106: Schadhafter Anschluss am Umfang des Anschlusses ist teilweise ein Spalt (Anschluss unvollständig eingebunden) | K106: PVC | L106: gut | M106: einragend
A107: 43,40 | B107: BCA | C107: C / A | D107: 100,00 | E107: 2 | G107: Anschluss Sattelanschluss – gemeißelt offen | I107: Einmessen,Öffnen,Hut | J107: €600
A108: 43,40 | B108: BBE | C108: D | D108: 10,00 | E108: 2 - 4 | G108: Andere Hindernisse Gegenstand ragt durch die Wand ein
A109: 48,30 | B109: BAG | D109: 10,00 | E109: 1 - 3 | G109: Einragender Anschluss | K109: Steinzeug | L109: gut | M109: einragend
A110: 48,30 | B110: BCA | C110: C / A | D110: 150,00 | E110: 2 | G110: Anschluss Sattelanschluss – gemeißelt offen | I110: Einmessen,Öffnen,Hut | J110: €600
A111: 49,10 | B111: BBC | C111: C | D111: 5,00 | E111: 4 - 8 | G111: Ablagerungen hartes oder verdichtetes Material | H111: A | I111: Fräsen | J111: €50
A112: 51,50 | B112: BAF | C112: E / E | E112: 12 - 12 | G112: Oberflächenschaden Zuschlagstoffe fehlen Ursache nicht eindeutig festellbar | H112: C
A113: 52,50 | B113: BCA | C113: C / A | D113: 150,00 | E113: 1 | G113: Anschluss Sattelanschluss – gemeißelt offen | I113: Einmessen,Öffnen,Hut | J113: €600 | K113: Steinzeug | L113: gut | M113: einragend
A114: 52,50 | B114: BBC | C114: C | D114: 5,00 | E114: 1 - 6 | G114: Ablagerungen hartes oder verdichtetes Material | I114: Fräsen | J114: €50
A115: 52,50 | B115: BAG | D115: 5,00 | E115: 12 - 2 | G115: Einragender Anschluss
A116: 55,00 | B116: BBC | C116: C | D116: 5,00 | E116: 4 - 8 | G116: Ablagerungen hartes oder verdichtetes Material | H116: B | I116: Fräsen | J116: €50
A117: 55,00 | B117: BAF | C117: E / E | E117: 12 - 12 | G117: Oberflächenschaden Zuschlagstoffe fehlen Ursache nicht eindeutig festellbar | H117: B
A118: 55,00 | B118: BAN | E118: 12 - 12 | G118: Poröses Rohr | H118: B
A119: 56,60 | B119: BCE | C119: XP | G119: Endknoten | I119: Schlauchliner | J119: €5,760
G120: netto-Zwischensumme | J120: =SUM(J71:J119) -> €12,210
A121: Renovation | G121: Baustelleneinrichtung anteilig Haltung | H121: 5 | J121: =(H121/100)*J120 -> €611
G122: Verkehrssicherung anteilig Haltung | H122: 5 | J122: =(H122/100)*J120 -> €611
A123: Sanierungspriorität | C123: Info | G123: Aufrechterhaltung der Vorflut Haltung | H123: 10 | J123: =(H123/100)*J120 -> €1,221
A124: kurzfristing | B124: ja oder nein | C124: 6-12 Monate | G124: Kanalreinigung vor Sanierung | H124: 56.6 | I124: 4 | J124: =H124*I124 -> €226
A125: mittelfristig | B125: ja oder nein | C125: 1 bis 5 Jahre | G125: Kamerainspektion Abnahme | H125: 56.6 | I125: 4 | J125: =H125*I125 -> €226
A126: langfristig | B126: ja oder nein | C126: 5 bis 10 Jahre | G126: Summe netto Haltung | J126: =SUM(J120:J125) -> €15,105
G127: Mehrwertsteuer | H127: 19 | J127: =(H127/100)*J126 -> €2,870
A128: Sanierung im Verbund | B128: ja oder nein | G128: Summe brutto Haltung | J128: =SUM(J126:J127) -> €17,975
A130: Haltungsbewertung:
A131: Info: Haltung Beton, deutliche Alterserscheinigungen, sehr starke Betonkorrosion. Schlauchliner kurzfristig zu empfehlen. Stutzen nicht fachgerecht und undicht. Sanierung im Reparaturverfahren nicht zu empfehlen. Anfang der Haltung unklar, ob Haltung abgesackt. Teilweise Rissbildung im Sohlbereich > Vier-Gelenkriss. Sanierung mit gewebeverstärktem Preliner wegen freiligenden Zuschlagstoffe
A136: Sanierungsempfehlung: | B136: Renovation Schlauch
A138: Hinweis:
A139: TV-Befahrung: | B139: Sohle sichtbar: | C139: 20 | D139: % Wasser in der Sohle
C140: Sohle nicht einsehbar
A142: Kanal gereinigt: | C142: nein

Sheet 09340611
A1: Haltung | B1: Straße | C1: Inspizierte Länge | D1: Länge | E1: Tiefe | G1: Schadensbeschreibung | I1: Durchmesser | J1: Material
A2: 09340612 - 09340611 | B2: BERLINER STRAßE | C2: 28,10 | D2: 29,10 | E2: Not Implemented yet | I2: 250 | J2: B
A4: Station | B4: Kürzel | C4: Charakterisi. | D4: Quantifizierung | E4: Lage im Kreis | G4: Schadensbeschreibung / Info | H4: Strecke | I4: Sanierungsvorschlag | J4: Kostenans.
A5: 0,00 | B5: BCD | C5: XP | G5: Anfangsknoten
A6: 1,30 | B6: BDD | C6: C | D6: 25,00 | G6: Wasserspiegel trüb | H6: A
A7: 3,70 | B7: BAF | C7: C / E | E7: 2 - 10 | G7: Oberflächenschaden Zuschlagstoffe sichtbar Ursache nicht eindeutig festellbar | H7: A
A8: 5,80 | B8: BAH | C8: C | E8: 1 - 12 | G8: Schadhafter Anschluss am Umfang des Anschlusses ist teilweise ein Spalt (Anschluss unvollständig eingebunden) | I8: Fräsen,Hut | J8: €450
A9: 5,80 | B9: BCA | C9: C / A | D9: 200,00 | E9: 9 | G9: Anschluss Sattelanschluss – gemeißelt offen
A10: 9,60 | B10: BAF | C10: C / E | E10: 2 - 10 | G10: Oberflächenschaden Zuschlagstoffe sichtbar Ursache nicht eindeutig festellbar | H10: B
A11: 9,60 | B11: BAF | C11: E / E | E11: 12 - 12 | G11: Oberflächenschaden Zuschlagstoffe fehlen Ursache nicht eindeutig festellbar | H11: A
A12: 13,00 | B12: BDD | C12: C | G12: Wasserspiegel trüb | H12: B
A13: 27,00 | B13: BAF | C13: E / E | E13: 12 - 12 | G13: Oberflächenschaden Zuschlagstoffe fehlen Ursache nicht eindeutig festellbar | H13: B
A14: 27,30 | B14: BCA | C14: C / A | D14: 150,00 | E14: 2 | G14: Anschluss Sattelanschluss – gemeißelt offen
A15: 27,40 | B15: BAB | C15: B / A | D15: 2,00 | E15: 9 | F15: JA | G15: Rissbildung Riss in Längsrichtung
A16: 28,10 | B16: BCE | C16: XP | G16: Endknoten
G17: netto-Zwischensumme | J17: =SUM(J5:J16) -> €450
A18: Reparatur | G18: Baustelleneinrichtung anteilig Haltung | H18: 10 | J18: =(H18/100)*J17 -> €45
G19: Verkehrssicherung anteilig Haltung | H19: 5 | J19: =(H19/100)*J17 -> €23
A20: Sanierungspriorität | C20: Info | G20: Aufrechterhaltung der Vorflut Haltung | H20: 12 | J20: =(H20/100)*J17 -> €54
A21: kurzfristing | B21: ja oder nein | C21: 6-12 Monate | G21: Kanalreinigung vor Sanierung | H21: 28.1 | I21: 2 | J21: =H21*I21 -> €56
A22: mittelfristig | B22: ja oder nein | C22: 1 bis 5 Jahre | G22: Kamerainspektion Abnahme | H22: 28.1 | I22: 3 | J22: =H22*I22 -> €84
A23: langfristig | B23: ja oder nein | C23: 5 bis 10 Jahre | G23: Summe netto Haltung | J23: =SUM(J17:J22) -> €712
G24: Mehrwertsteuer | H24: 19 | J24: =(H24/100)*J23 -> €135
A25: Sanierung im Verbund | B25: ja oder nein | G25: Summe brutto Haltung | J25: =SUM(J23:J24) -> €847
A30: Haltung | B30: Straße | C30: Inspizierte Länge | D30: Länge | E30: Tiefe | G30: Schadensbeschreibung | I30: Durchmesser | J30: Material
A31: 09340612 - 09340611 | B31: BERLINER STRAßE | C31: 28,10 | D31: 29,10 | E31: Not Implemented yet | I31: 250 | J31: B
A33: Station | B33: Kürzel | C33: Charakterisi. | D33: Quantifizierung | E33: Lage im Kreis | G33: Schadensbeschreibung / Info | H33: Strecke | I33: Sanierungsvorschlag | J33: Kostenans.
A34: 0,00 | B34: BCD | C34: XP | G34: Anfangsknoten
A35: 1,30 | B35: BDD | C35: C | D35: 25,00 | G35: Wasserspiegel trüb | H35: A
A36: 3,70 | B36: BAF | C36: C / E | E36: 2 - 10 | G36: Oberflächenschaden Zuschlagstoffe sichtbar Ursache nicht eindeutig festellbar | H36: A
A37: 5,80 | B37: BAH | C37: C | E37: 1 - 12 | G37: Schadhafter Anschluss am Umfang des Anschlusses ist teilweise ein Spalt (Anschluss unvollständig eingebunden)
A38: 5,80 | B38: BCA | C38: C / A | D38: 200,00 | E38: 9 | G38: Anschluss Sattelanschluss – gemeißelt offen | I38: Einmessen,Öffnen,Hut | J38: €600 | K38: Beton | L38: kaum korrodiert
A39: 9,60 | B39: BAF | C39: C / E | E39: 2 - 10 | G39: Oberflächenschaden Zuschlagstoffe sichtbar Ursache nicht eindeutig festellbar | H39: B
A40: 9,60 | B40: BAF | C40: E / E | E40: 12 - 12 | G40: Oberflächenschaden Zuschlagstoffe fehlen Ursache nicht eindeutig festellbar | H40: A
A41: 13,00 | B41: BDD | C41: C | G41: Wasserspiegel trüb | H41: B
A42: 27,00 | B42: BAF | C42: E / E | E42: 12 - 12 | G42: Oberflächenschaden Zuschlagstoffe fehlen Ursache nicht eindeutig festellbar | H42: B
A43: 27,30 | B43: BCA | C43: C / A | D43: 150,00 | E43: 2 | G43: Anschluss Sattelanschluss – gemeißelt offen | I43: Einmessen,Öffnen,Stsan | J43: €800 | K43: Steinzeug | L43: gut
A44: 27,40 | B44: BAB | C44: B / A | D44: 2,00 | E44: 9 | F44: JA | G44: Rissbildung Riss in Längsrichtung
A45: 28,10 | B45: BCE | C45: XP | G45: Endknoten | I45: Schlauchliner | J45: €3,783
G46: netto-Zwischensumme | J46: =SUM(J34:J45) -> €5,183
A47: Renovation | G47: Baustelleneinrichtung anteilig Haltung | H47: 10 | J47: =(H47/100)*J46 -> €518
G48: Verkehrssicherung anteilig Haltung | H48: 5 | J48: =(H48/100)*J46 -> €259
A49: Sanierungspriorität | C49: Info | G49: Aufrechterhaltung der Vorflut Haltung | H49: 12 | J49: =(H49/100)*J46 -> €622
A50: kurzfristing | B50: ja oder nein | C50: 6-12 Monate | G50: Kanalreinigung vor Sanierung | H50: 28.1 | I50: 5 | J50: =H50*I50 -> €141
A51: mittelfristig | B51: ja oder nein | C51: 1 bis 5 Jahre | G51: Kamerainspektion Abnahme | H51: 28.1 | I51: 5 | J51: =H51*I51 -> €141
A52: langfristig | B52: ja oder nein | C52: 5 bis 10 Jahre | G52: Summe netto Haltung | J52: =SUM(J46:J51) -> €6,863
G53: Mehrwertsteuer | H53: 19 | J53: =(H53/100)*J52 -> €1,304
A54: Sanierung im Verbund | B54: ja oder nein | G54: Summe brutto Haltung | J54: =SUM(J52:J53) -> €8,167
A56: Haltungsbewertung:
A57: Info: Haltung Beton, deutliche Alterserscheinigungen, sehr starke Betonkorrosion. Schlauchliner kurzfristig zu empfehlen. Stutzen nicht fachgerecht und undicht. Sanierung im Reparaturverfahren nicht zu empfehlen.
A62: Sanierungsempfehlung: | B62: Renovation Schlauch
A64: Hinweis:
A65: TV-Befahrung: | B65: Sohle sichtbar: | C65: 30 | D65: % Wasser in der Sohle
C66: Sohle nicht einsehbar
A68: Kanal gereinigt: | C68: nein

Sheet 09340612
A1: Haltung | B1: Straße | C1: Inspizierte Länge | D1: Länge | E1: Tiefe | G1: Schadensbeschreibung | I1: Durchmesser | J1: Material
A2: 09340612 | B2: BERLINER STRAßE | C2: 5,90 | D2: 6,90 | E2: Not Implemented yet | I2: 300 | J2: B
A4: Station | B4: Kürzel | C4: Charakterisi. | D4: Quantifizierung | E4: Lage im Kreis | G4: Schadensbeschreibung / Info | H4: Strecke | I4: Sanierungsvorschlag | J4: Kostenans.
A5: 0,00 | B5: BCD | C5: XP | G5: Anfangsknoten
A6: 0,20 | B6: BAB | C6: B / A | D6: 2,00 | E6: 11 - 1 | G6: Rissbildung Riss in Längsrichtung | H6: A
A7: 0,20 | B7: BAB | C7: B / B | D7: 5,00 | E7: 12 - 12 | G7: Rissbildung Riss am Rohrumfang
A8: 0,80 | B8: BAB | C8: B / A | D8: 2,00 | E8: 11 - 1 | G8: Rissbildung Riss in Längsrichtung | H8: B
A9: 5,70 | B9: BAB | C9: C / B | D9: 10,00 | E9: 12 - 12 | G9: Rissbildung Klaffender Riss am Rohrumfang
A10: 5,90 | B10: BCE | C10: XP | G10: Endknoten
G11: netto-Zwischensumme | J11: =SUM(J5:J10) -> €0
A12: Reparatur | G12: Baustelleneinrichtung anteilig Haltung | H12: 10 | J12: =(H12/100)*J11 -> €0
G13: Verkehrssicherung anteilig Haltung | H13: 5 | J13: =(H13/100)*J11 -> €0
A14: Sanierungspriorität | C14: Info | G14: Aufrechterhaltung der Vorflut Haltung | H14: 12 | J14: =(H14/100)*J11 -> €0
A15: kurzfristing | B15: ja oder nein | C15: 6-12 Monate | G15: Kanalreinigung vor Sanierung | H15: 5.9 | I15: 2 | J15: =H15*I15 -> €12
A16: mittelfristig | B16: ja oder nein | C16: 1 bis 5 Jahre | G16: Kamerainspektion Abnahme | H16: 5.9 | I16: 3 | J16: =H16*I16 -> €18
A17: langfristig | B17: ja oder nein | C17: 5 bis 10 Jahre | G17: Summe netto Haltung | J17: =SUM(J11:J16) -> €30
G18: Mehrwertsteuer | H18: 19 | J18: =(H18/100)*J17 -> €6
A19: Sanierung im Verbund | B19: ja oder nein | G19: Summe brutto Haltung | J19: =SUM(J17:J18) -> €35
A24: Haltung | B24: Straße | C24: Inspizierte Länge | D24: Länge | E24: Tiefe | G24: Schadensbeschreibung | I24: Durchmesser | J24: Material
A25: 09340612 | B25: BERLINER STRAßE | C25: 5,90 | D25: 6,90 | E25: Not Implemented yet | I25: 300 | J25: B
A27: Station | B27: Kürzel | C27: Charakterisi. | D27: Quantifizierung | E27: Lage im Kreis | G27: Schadensbeschreibung / Info | H27: Strecke | I27: Sanierungsvorschlag | J27: Kostenans.
A28: 0,00 | B28: BCD | C28: XP | G28: Anfangsknoten
A29: 0,20 | B29: BAB | C29: B / A | D29: 2,00 | E29: 11 - 1 | G29: Rissbildung Riss in Längsrichtung | H29: A
A30: 0,20 | B30: BAB | C30: B / B | D30: 5,00 | E30: 12 - 12 | G30: Rissbildung Riss am Rohrumfang
A31: 0,80 | B31: BAB | C31: B / A | D31: 2,00 | E31: 11 - 1 | G31: Rissbildung Riss in Längsrichtung | H31: B
A32: 5,70 | B32: BAB | C32: C / B | D32: 10,00 | E32: 12 - 12 | G32: Rissbildung Klaffender Riss am Rohrumfang
A33: 5,90 | B33: BCE | C33: XP | G33: Endknoten | I33: Schlauchliner | J33: €1,035
G34: netto-Zwischensumme | J34: =SUM(J28:J33) -> €1,035
A35: Renovation | G35: Baustelleneinrichtung anteilig Haltung | H35: 10 | J35: =(H35/100)*J34 -> €104
G36: Verkehrssicherung anteilig Haltung | H36: 5 | J36: =(H36/100)*J34 -> €52
A37: Sanierungspriorität | C37: Info | G37: Aufrechterhaltung der Vorflut Haltung | H37: 12 | J37: =(H37/100)*J34 -> €124
A38: kurzfristing | B38: ja oder nein | C38: 6-12 Monate | G38: Kanalreinigung vor Sanierung | H38: 5.9 | I38: 2 | J38: =H38*I38 -> €12
A39: mittelfristig | B39: ja oder nein | C39: 1 bis 5 Jahre | G39: Kamerainspektion Abnahme | H39: 5.9 | I39: 3 | J39: =H39*I39 -> €18
A40: langfristig | B40: ja oder nein | C40: 5 bis 10 Jahre | G40: Summe netto Haltung | J40: =SUM(J34:J39) -> €1,344
G41: Mehrwertsteuer | H41: 19 | J41: =(H41/100)*J40 -> €255
A42: Sanierung im Verbund | B42: ja oder nein | G42: Summe brutto Haltung | J42: =SUM(J40:J41) -> €1,599

Sheet 09340613
A1: Haltung | B1: Straße | C1: Inspizierte Länge | D1: Länge | E1: Tiefe | G1: Schadensbeschreibung | I1: Durchmesser | J1: Material
A2: 09340613 | B2: DÖHRENER WEG | C2: 7,00 | D2: 8,00 | E2: Not Implemented yet | I2: 300 | J2: B
A4: Station | B4: Kürzel | C4: Charakterisi. | D4: Quantifizierung | E4: Lage im Kreis | G4: Schadensbeschreibung / Info | H4: Strecke | I4: Sanierungsvorschlag | J4: Kostenans.
A5: 0,00 | B5: BCD | C5: XP | G5: Anfangsknoten
A6: 0,00 | B6: BDD | C6: C | D6: 30,00 | G6: Wasserspiegel trüb | H6: A
A7: 5,40 | B7: BDD | C7: C | D7: 15,00 | G7: Wasserspiegel trüb | H7: C
A8: 7,00 | B8: BDD | C8: C | G8: Wasserspiegel trüb | H8: B
A9: 7,00 | B9: BCE | C9: XP | G9: Endknoten
G10: netto-Zwischensumme | J10: =SUM(J5:J9) -> €0
A11: Reparatur | G11: Baustelleneinrichtung anteilig Haltung | H11: 10 | J11: =(H11/100)*J10 -> €0
G12: Verkehrssicherung anteilig Haltung | H12: 5 | J12: =(H12/100)*J10 -> €0
A13: Sanierungspriorität | C13: Info | G13: Aufrechterhaltung der Vorflut Haltung | H13: 12 | J13: =(H13/100)*J10 -> €0
A14: kurzfristing | B14: ja oder nein | C14: 6-12 Monate | G14: Kanalreinigung vor Sanierung | H14: 7 | I14: 2 | J14: =H14*I14 -> €14
A15: mittelfristig | B15: ja oder nein | C15: 1 bis 5 Jahre | G15: Kamerainspektion Abnahme | H15: 7 | I15: 3 | J15: =H15*I15 -> €21
A16: langfristig | B16: ja oder nein | C16: 5 bis 10 Jahre | G16: Summe netto Haltung | J16: =SUM(J10:J15) -> €35
G17: Mehrwertsteuer | H17: 19 | J17: =(H17/100)*J16 -> €7
A18: Sanierung im Verbund | B18: ja oder nein | G18: Summe brutto Haltung | J18: =SUM(J16:J17) -> €42
A23: Haltung | B23: Straße | C23: Inspizierte Länge | D23: Länge | E23: Tiefe | G23: Schadensbeschreibung | I23: Durchmesser | J23: Material
A24: 09340613 | B24: DÖHRENER WEG | C24: 7,00 | D24: 8,00 | E24: Not Implemented yet | I24: 300 | J24: B
A26: Station | B26: Kürzel | C26: Charakterisi. | D26: Quantifizierung | E26: Lage im Kreis | G26: Schadensbeschreibung / Info | H26: Strecke | I26: Sanierungsvorschlag | J26: Kostenans.
A27: 0,00 | B27: BCD | C27: XP | G27: Anfangsknoten
A28: 0,00 | B28: BDD | C28: C | D28: 30,00 | G28: Wasserspiegel trüb | H28: A
A29: 5,40 | B29: BDD | C29: C | D29: 15,00 | G29: Wasserspiegel trüb | H29: C
A30: 7,00 | B30: BDD | C30: C | G30: Wasserspiegel trüb | H30: B
A31: 7,00 | B31: BCE | C31: XP | G31: Endknoten | I31: Schlauchliner | J31: €1,200
G32: netto-Zwischensumme | J32: =SUM(J27:J31) -> €1,200
A33: Renovation | G33: Baustelleneinrichtung anteilig Haltung | H33: 10 | J33: =(H33/100)*J32 -> €120
G34: Verkehrssicherung anteilig Haltung | H34: 5 | J34: =(H34/100)*J32 -> €60
A35: Sanierungspriorität | C35: Info | G35: Aufrechterhaltung der Vorflut Haltung | H35: 12 | J35: =(H35/100)*J32 -> €144
A36: kurzfristing | B36: ja oder nein | C36: 6-12 Monate | G36: Kanalreinigung vor Sanierung | H36: 7 | I36: 2 | J36: =H36*I36 -> €14
A37: mittelfristig | B37: ja oder nein | C37: 1 bis 5 Jahre | G37: Kamerainspektion Abnahme | H37: 7 | I37: 3 | J37: =H37*I37 -> €21
A38: langfristig | B38: ja oder nein | C38: 5 bis 10 Jahre | G38: Summe netto Haltung | J38: =SUM(J32:J37) -> €1,559
G39: Mehrwertsteuer | H39: 19 | J39: =(H39/100)*J38 -> €296
A40: Sanierung im Verbund | B40: ja oder nein | G40: Summe brutto Haltung | J40: =SUM(J38:J39) -> €1,855

Sheet 09342379
A1: Haltung | B1: Straße | C1: Inspizierte Länge | D1: Länge | E1: Tiefe | G1: Schadensbeschreibung | I1: Durchmesser | J1: Material
A2: 09342379 | B2: LEIPZIGER STRAßE | C2: 5,90 | D2: 6,90 | E2: Not Implemented yet | I2: 200 | J2: STZ
A4: Station | B4: Kürzel | C4: Charakterisi. | D4: Quantifizierung | E4: Lage im Kreis | G4: Schadensbeschreibung / Info | H4: Strecke | I4: Sanierungsvorschlag | J4: Kostenans.
A5: 0,00 | B5: BCD | C5: XP | G5: Anfangsknoten
A6: 5,90 | B6: BCE | C6: XP | G6: Endknoten
G7: netto-Zwischensumme | J7: =SUM(J5:J6) -> €0
A8: Reparatur | G8: Baustelleneinrichtung anteilig Haltung | H8: 10 | J8: =(H8/100)*J7 -> €0
G9: Verkehrssicherung anteilig Haltung | H9: 5 | J9: =(H9/100)*J7 -> €0
A10: Sanierungspriorität | C10: Info | G10: Aufrechterhaltung der Vorflut Haltung | H10: 12 | J10: =(H10/100)*J7 -> €0
A11: kurzfristing | B11: ja oder nein | C11: 6-12 Monate | G11: Kanalreinigung vor Sanierung | H11: 5.9 | I11: 2 | J11: =H11*I11 -> €12
A12: mittelfristig | B12: ja oder nein | C12: 1 bis 5 Jahre | G12: Kamerainspektion Abnahme | H12: 5.9 | I12: 3 | J12: =H12*I12 -> €18
A13: langfristig | B13: ja oder nein | C13: 5 bis 10 Jahre | G13: Summe netto Haltung | J13: =SUM(J7:J12) -> €30
G14: Mehrwertsteuer | H14: 19 | J14: =(H14/100)*J13 -> €6
A15: Sanierung im Verbund | B15: ja oder nein | G15: Summe brutto Haltung | J15: =SUM(J13:J14) -> €35
A20: Haltung | B20: Straße | C20: Inspizierte Länge | D20: Länge | E20: Tiefe | G20: Schadensbeschreibung | I20: Durchmesser | J20: Material
A21: 09342379 | B21: LEIPZIGER STRAßE | C21: 5,90 | D21: 6,90 | E21: Not Implemented yet | I21: 200 | J21: STZ
A23: Station | B23: Kürzel | C23: Charakterisi. | D23: Quantifizierung | E23: Lage im Kreis | G23: Schadensbeschreibung / Info | H23: Strecke | I23: Sanierungsvorschlag | J23: Kostenans.
A24: 0,00 | B24: BCD | C24: XP | G24: Anfangsknoten
A25: 5,90 | B25: BCE | C25: XP | G25: Endknoten | I25: Schlauchliner | J25: €1,035
G26: netto-Zwischensumme | J26: =SUM(J24:J25) -> €1,035
A27: Renovation | G27: Baustelleneinrichtung anteilig Haltung | H27: 10 | J27: =(H27/100)*J26 -> €104
G28: Verkehrssicherung anteilig Haltung | H28: 5 | J28: =(H28/100)*J26 -> €52
A29: Sanierungspriorität | C29: Info | G29: Aufrechterhaltung der Vorflut Haltung | H29: 12 | J29: =(H29/100)*J26 -> €124
A30: kurzfristing | B30: ja oder nein | C30: 6-12 Monate | G30: Kanalreinigung vor Sanierung | H30: 5.9 | I30: 2 | J30: =H30*I30 -> €12
A31: mittelfristig | B31: ja oder nein | C31: 1 bis 5 Jahre | G31: Kamerainspektion Abnahme | H31: 5.9 | I31: 3 | J31: =H31*I31 -> €18
A32: langfristig | B32: ja oder nein | C32: 5 bis 10 Jahre | G32: Summe netto Haltung | J32: =SUM(J26:J31) -> €1,344
G33: Mehrwertsteuer | H33: 19 | J33: =(H33/100)*J32 -> €255
A34: Sanierung im Verbund | B34: ja oder nein | G34: Summe brutto Haltung | J34: =SUM(J32:J33) -> €1,599

Sheet 09342380
A1: Haltung | B1: Straße | C1: Inspizierte Länge | D1: Länge | E1: Tiefe | G1: Schadensbeschreibung | I1: Durchmesser | J1: Material
A2: 09342380 | B2: LEIPZIGER STRAßE | C2: 29,20 | D2: 30,20 | E2: Not Implemented yet | I2: 200 | J2: STZ
A4: Station | B4: Kürzel | C4: Charakterisi. | D4: Quantifizierung | E4: Lage im Kreis | G4: Schadensbeschreibung / Info | H4: Strecke | I4: Sanierungsvorschlag | J4: Kostenans.
A5: 0,00 | B5: BCD | C5: XP | G5: Anfangsknoten
A6: 4,20 | B6: BBC | C6: C | D6: 3,00 | E6: 4 - 8 | G6: Ablagerungen hartes oder verdichtetes Material | H6: A | I6: Fräsen | J6: €50
A7: 8,50 | B7: BDD | C7: C | D7: 10,00 | G7: Wasserspiegel trüb | H7: A
A8: 14,20 | B8: BDD | C8: C | G8: Wasserspiegel trüb | H8: B
A9: 17,70 | B9: BDD | C9: C | D9: 20,00 | G9: Wasserspiegel trüb | H9: A
A10: 25,40 | B10: BDD | C10: C | G10: Wasserspiegel trüb | H10: B
A11: 29,20 | B11: BBC | C11: C | D11: 3,00 | E11: 4 - 8 | G11: Ablagerungen hartes oder verdichtetes Material | H11: B | I11: Fräsen | J11: €50
A12: 29,20 | B12: BCE | C12: XP | G12: Endknoten
G13: netto-Zwischensumme | J13: =SUM(J5:J12) -> €100
A14: Reparatur | G14: Baustelleneinrichtung anteilig Haltung | H14: 10 | J14: =(H14/100)*J13 -> €10
G15: Verkehrssicherung anteilig Haltung | H15: 5 | J15: =(H15/100)*J13 -> €5
A16: Sanierungspriorität | C16: Info | G16: Aufrechterhaltung der Vorflut Haltung | H16: 12 | J16: =(H16/100)*J13 -> €12
A17: kurzfristing | B17: ja oder nein | C17: 6-12 Monate | G17: Kanalreinigung vor Sanierung | H17: 29.2 | I17: 2 | J17: =H17*I17 -> €58
A18: mittelfristig | B18: ja oder nein | C18: 1 bis 5 Jahre | G18: Kamerainspektion Abnahme | H18: 29.2 | I18: 3 | J18: =H18*I18 -> €88
A19: langfristig | B19: ja oder nein | C19: 5 bis 10 Jahre | G19: Summe netto Haltung | J19: =SUM(J13:J18) -> €273
G20: Mehrwertsteuer | H20: 19 | J20: =(H20/100)*J19 -> €52
A21: Sanierung im Verbund | B21: ja oder nein | G21: Summe brutto Haltung | J21: =SUM(J19:J20) -> €325
A26: Haltung | B26: Straße | C26: Inspizierte Länge | D26: Länge | E26: Tiefe | G26: Schadensbeschreibung | I26: Durchmesser | J26: Material
A27: 09342380 | B27: LEIPZIGER STRAßE | C27: 29,20 | D27: 30,20 | E27: Not Implemented yet | I27: 200 | J27: STZ
A29: Station | B29: Kürzel | C29: Charakterisi. | D29: Quantifizierung | E29: Lage im Kreis | G29: Schadensbeschreibung / Info | H29: Strecke | I29: Sanierungsvorschlag | J29: Kostenans.
A30: 0,00 | B30: BCD | C30: XP | G30: Anfangsknoten
A31: 4,20 | B31: BBC | C31: C | D31: 3,00 | E31: 4 - 8 | G31: Ablagerungen hartes oder verdichtetes Material | H31: A | I31: Fräsen | J31: €50
A32: 8,50 | B32: BDD | C32: C | D32: 10,00 | G32: Wasserspiegel trüb | H32: A
A33: 14,20 | B33: BDD | C33: C | G33: Wasserspiegel trüb | H33: B
A34: 17,70 | B34: BDD | C34: C | D34: 20,00 | G34: Wasserspiegel trüb | H34: A
A35: 25,40 | B35: BDD | C35: C | G35: Wasserspiegel trüb | H35: B
A36: 29,20 | B36: BBC | C36: C | D36: 3,00 | E36: 4 - 8 | G36: Ablagerungen hartes oder verdichtetes Material | H36: B | I36: Fräsen | J36: €50
A37: 29,20 | B37: BCE | C37: XP | G37: Endknoten | I37: Schlauchliner | J37: €3,020
G38: netto-Zwischensumme | J38: =SUM(J30:J37) -> €3,120
A39: Renovation | G39: Baustelleneinrichtung anteilig Haltung | H39: 10 | J39: =(H39/100)*J38 -> €312
G40: Verkehrssicherung anteilig Haltung | H40: 5 | J40: =(H40/100)*J38 -> €156
A41: Sanierungspriorität | C41: Info | G41: Aufrechterhaltung der Vorflut Haltung | H41: 12 | J41: =(H41/100)*J38 -> €374
A42: kurzfristing | B42: ja oder nein | C42: 6-12 Monate | G42: Kanalreinigung vor Sanierung | H42: 29.2 | I42: 2 | J42: =H42*I42 -> €58
A43: mittelfristig | B43: ja oder nein | C43: 1 bis 5 Jahre | G43: Kamerainspektion Abnahme | H43: 29.2 | I43: 3 | J43: =H43*I43 -> €88
A44: langfristig | B44: ja oder nein | C44: 5 bis 10 Jahre | G44: Summe netto Haltung | J44: =SUM(J38:J43) -> €4,108
G45: Mehrwertsteuer | H45: 19 | J45: =(H45/100)*J44 -> €781
A46: Sanierung im Verbund | B46: ja oder nein | G46: Summe brutto Haltung | J46: =SUM(J44:J45) -> €4,889

Sheet 09342381
A1: Haltung | B1: Straße | C1: Inspizierte Länge | D1: Länge | E1: Tiefe | G1: Schadensbeschreibung | I1: Durchmesser | J1: Material
A2: 09342381 | B2: LEIPZIGER STRAßE | C2: 29,20 | D2: 30,20 | E2: Not Implemented yet | I2: 200 | J2: STZ
A4: Station | B4: Kürzel | C4: Charakterisi. | D4: Quantifizierung | E4: Lage im Kreis | G4: Schadensbeschreibung / Info | H4: Strecke | I4: Sanierungsvorschlag | J4: Kostenans.
A5: 0,00 | B5: BCD | C5: XP | G5: Anfangsknoten
A6: 22,10 | B6: BDD | C6: C | D6: 15,00 | G6: Wasserspiegel trüb | H6: A
A7: 28,20 | B7: BDD | C7: C | G7: Wasserspiegel trüb | H7: B
A8: 28,60 | B8: BBC | C8: C | D8: 10,00 | E8: 10 - 2 | G8: Ablagerungen hartes oder verdichtetes Material | I8: Fräsen | J8: €50
A9: 29,20 | B9: BCE | C9: XP | G9: Endknoten
G10: netto-Zwischensumme | J10: =SUM(J5:J9) -> €50
A11: Reparatur | G11: Baustelleneinrichtung anteilig Haltung | H11: 10 | J11: =(H11/100)*J10 -> €5
G12: Verkehrssicherung anteilig Haltung | H12: 5 | J12: =(H12/100)*J10 -> €3
A13: Sanierungspriorität | C13: Info | G13: Aufrechterhaltung der Vorflut Haltung | H13: 12 | J13: =(H13/100)*J10 -> €6
A14: kurzfristing | B14: ja oder nein | C14: 6-12 Monate | G14: Kanalreinigung vor Sanierung | H14: 29.2 | I14: 2 | J14: =H14*I14 -> €58
A15: mittelfristig | B15: ja oder nein | C15: 1 bis 5 Jahre | G15: Kamerainspektion Abnahme | H15: 29.2 | I15: 3 | J15: =H15*I15 -> €88
A16: langfristig | B16: ja oder nein | C16: 5 bis 10 Jahre | G16: Summe netto Haltung | J16: =SUM(J10:J15) -> €210
G17: Mehrwertsteuer | H17: 19 | J17: =(H17/100)*J16 -> €40
A18: Sanierung im Verbund | B18: ja oder nein | G18: Summe brutto Haltung | J18: =SUM(J16:J17) -> €249
A23: Haltung | B23: Straße | C23: Inspizierte Länge | D23: Länge | E23: Tiefe | G23: Schadensbeschreibung | I23: Durchmesser | J23: Material
A24: 09342381 | B24: LEIPZIGER STRAßE | C24: 29,20 | D24: 30,20 | E24: Not Implemented yet | I24: 200 | J24: STZ
A26: Station | B26: Kürzel | C26: Charakterisi. | D26: Quantifizierung | E26: Lage im Kreis | G26: Schadensbeschreibung / Info | H26: Strecke | I26: Sanierungsvorschlag | J26: Kostenans.
A27: 0,00 | B27: BCD | C27: XP | G27: Anfangsknoten
A28: 22,10 | B28: BDD | C28: C | D28: 15,00 | G28: Wasserspiegel trüb | H28: A
A29: 28,20 | B29: BDD | C29: C | G29: Wasserspiegel trüb | H29: B
A30: 28,60 | B30: BBC | C30: C | D30: 10,00 | E30: 10 - 2 | G30: Ablagerungen hartes oder verdichtetes Material | I30: Fräsen | J30: €50
A31: 29,20 | B31: BCE | C31: XP | G31: Endknoten | I31: Schlauchliner | J31: €3,020
G32: netto-Zwischensumme | J32: =SUM(J27:J31) -> €3,070
A33: Renovation | G33: Baustelleneinrichtung anteilig Haltung | H33: 10 | J33: =(H33/100)*J32 -> €307
G34: Verkehrssicherung anteilig Haltung | H34: 5 | J34: =(H34/100)*J32 -> €154
A35: Sanierungspriorität | C35: Info | G35: Aufrechterhaltung der Vorflut Haltung | H35: 12 | J35: =(H35/100)*J32 -> €368
A36: kurzfristing | B36: ja oder nein | C36: 6-12 Monate | G36: Kanalreinigung vor Sanierung | H36: 29.2 | I36: 2 | J36: =H36*I36 -> €58
A37: mittelfristig | B37: ja oder nein | C37: 1 bis 5 Jahre | G37: Kamerainspektion Abnahme | H37: 29.2 | I37: 3 | J37: =H37*I37 -> €88
A38: langfristig | B38: ja oder nein | C38: 5 bis 10 Jahre | G38: Summe netto Haltung | J38: =SUM(J32:J37) -> €4,045
G39: Mehrwertsteuer | H39: 19 | J39: =(H39/100)*J38 -> €769
A40: Sanierung im Verbund | B40: ja oder nein | G40: Summe brutto Haltung | J40: =SUM(J38:J39) -> €4,813

Sheet 09342382
A1: Haltung | B1: Straße | C1: Inspizierte Länge | D1: Länge | E1: Tiefe | G1: Schadensbeschreibung | I1: Durchmesser | J1: Material
A2: 09342382 | B2: LEIPZIGER STRAßE | C2: 29,60 | D2: 30,60 | E2: Not Implemented yet | I2: 200 | J2: STZ
A4: Station | B4: Kürzel | C4: Charakterisi. | D4: Quantifizierung | E4: Lage im Kreis | G4: Schadensbeschreibung / Info | H4: Strecke | I4: Sanierungsvorschlag | J4: Kostenans.
A5: 0,00 | B5: BCD | C5: XP | G5: Anfangsknoten
A6: 9,30 | B6: BAI | C6: A / A | E6: 4 - 8 | F6: JA | G6: Einragendes Dichtungsmaterial Dichtring sichtbar verschoben, jedoch nicht in die Rohrleitung hineinragend | I6: Fräsen | J6: €50
A7: 18,50 | B7: BAB | C7: B / B | D7: 2,00 | E7: 12 - 12 | G7: Rissbildung Riss am Rohrumfang
A8: 29,60 | B8: BCE | C8: XP | G8: Endknoten
G9: netto-Zwischensumme | J9: =SUM(J5:J8) -> €50
A10: Reparatur | G10: Baustelleneinrichtung anteilig Haltung | H10: 10 | J10: =(H10/100)*J9 -> €5
G11: Verkehrssicherung anteilig Haltung | H11: 5 | J11: =(H11/100)*J9 -> €3
A12: Sanierungspriorität | C12: Info | G12: Aufrechterhaltung der Vorflut Haltung | H12: 12 | J12: =(H12/100)*J9 -> €6
A13: kurzfristing | B13: ja oder nein | C13: 6-12 Monate | G13: Kanalreinigung vor Sanierung | H13: 29.6 | I13: 2 | J13: =H13*I13 -> €59
A14: mittelfristig | B14: ja oder nein | C14: 1 bis 5 Jahre | G14: Kamerainspektion Abnahme | H14: 29.6 | I14: 3 | J14: =H14*I14 -> €89
A15: langfristig | B15: ja oder nein | C15: 5 bis 10 Jahre | G15: Summe netto Haltung | J15: =SUM(J9:J14) -> €212
G16: Mehrwertsteuer | H16: 19 | J16: =(H16/100)*J15 -> €40
A17: Sanierung im Verbund | B17: ja oder nein | G17: Summe brutto Haltung | J17: =SUM(J15:J16) -> €252
A22: Haltung | B22: Straße | C22: Inspizierte Länge | D22: Länge | E22: Tiefe | G22: Schadensbeschreibung | I22: Durchmesser | J22: Material
A23: 09342382 | B23: LEIPZIGER STRAßE | C23: 29,60 | D23: 30,60 | E23: Not Implemented yet | I23: 200 | J23: STZ
A25: Station | B25: Kürzel | C25: Charakterisi. | D25: Quantifizierung | E25: Lage im Kreis | G25: Schadensbeschreibung / Info | H25: Strecke | I25: Sanierungsvorschlag | J25: Kostenans.
A26: 0,00 | B26: BCD | C26: XP | G26: Anfangsknoten
A27: 9,30 | B27: BAI | C27: A / A | E27: 4 - 8 | F27: JA | G27: Einragendes Dichtungsmaterial Dichtring sichtbar verschoben, jedoch nicht in die Rohrleitung hineinragend
A28: 18,50 | B28: BAB | C28: B / B | D28: 2,00 | E28: 12 - 12 | G28: Rissbildung Riss am Rohrumfang
A29: 29,60 | B29: BCE | C29: XP | G29: Endknoten | I29: Schlauchliner | J29: €3,060
G30: netto-Zwischensumme | J30: =SUM(J26:J29) -> €3,060
A31: Renovation | G31: Baustelleneinrichtung anteilig Haltung | H31: 10 | J31: =(H31/100)*J30 -> €306
G32: Verkehrssicherung anteilig Haltung | H32: 5 | J32: =(H32/100)*J30 -> €153
A33: Sanierungspriorität | C33: Info | G33: Aufrechterhaltung der Vorflut Haltung | H33: 12 | J33: =(H33/100)*J30 -> €367
A34: kurzfristing | B34: ja oder nein | C34: 6-12 Monate | G34: Kanalreinigung vor Sanierung | H34: 29.6 | I34: 2 | J34: =H34*I34 -> €59
A35: mittelfristig | B35: ja oder nein | C35: 1 bis 5 Jahre | G35: Kamerainspektion Abnahme | H35: 29.6 | I35: 3 | J35: =H35*I35 -> €89
A36: langfristig | B36: ja oder nein | C36: 5 bis 10 Jahre | G36: Summe netto Haltung | J36: =SUM(J30:J35) -> €4,034
G37: Mehrwertsteuer | H37: 19 | J37: =(H37/100)*J36 -> €766
A38: Sanierung im Verbund | B38: ja oder nein | G38: Summe brutto Haltung | J38: =SUM(J36:J37) -> €4,801

Sheet 09342384
A1: Haltung | B1: Straße | C1: Inspizierte Länge | D1: Länge | E1: Tiefe | G1: Schadensbeschreibung | I1: Durchmesser | J1: Material
A2: 09342384 | B2: BERLINER STRAßE | C2: 30,60 | D2: 31,60 | E2: Not Implemented yet | I2: 200 | J2: STZ
A4: Station | B4: Kürzel | C4: Charakterisi. | D4: Quantifizierung | E4: Lage im Kreis | G4: Schadensbeschreibung / Info | H4: Strecke | I4: Sanierungsvorschlag | J4: Kostenans.
A5: 0,00 | B5: BCD | C5: XP | G5: Anfangsknoten
A6: 0,60 | B6: BCA | C6: A / A | D6: 150,00 | E6: 11 | G6: Anschluss Abzweig offen
A7: 0,90 | B7: BAJ | C7: B | D7: 10,00 | E7: 7 | F7: JA | G7: Verschobene Verbindung radial | I7: Fräsen | J7: €50
A8: 1,10 | B8: BBC | C8: C | D8: 5,00 | E8: 4 - 8 | G8: Ablagerungen hartes oder verdichtetes Material | H8: A | I8: Fräsen | J8: €50
A9: 2,40 | B9: BAJ | C9: B | D9: 10,00 | E9: 6 | F9: JA | G9: Verschobene Verbindung radial | I9: Fräsen | J9: €50
A10: 3,90 | B10: BCA | C10: A / A | D10: 150,00 | E10: 11 | G10: Anschluss Abzweig offen
A11: 8,40 | B11: BCA | C11: A / A | D11: 150,00 | E11: 11 | G11: Anschluss Abzweig offen
A12: 9,70 | B12: BAJ | C12: B | D12: 10,00 | E12: 7 | F12: JA | G12: Verschobene Verbindung radial | I12: Fräsen | J12: €50
A13: 11,50 | B13: BAJ | C13: B | D13: 15,00 | E13: 5 | F13: JA | G13: Verschobene Verbindung radial | I13: Fräsen | J13: €50
A14: 11,50 | B14: BCA | C14: A / A | D14: 150,00 | E14: 11 | G14: Anschluss Abzweig offen
A15: 17,20 | B15: BAJ | C15: B | D15: 15,00 | E15: 6 | F15: JA | G15: Verschobene Verbindung radial | I15: Fräsen | J15: €50
A16: 17,20 | B16: BCA | C16: A / A | D16: 150,00 | E16: 12 | G16: Anschluss Abzweig offen
A17: 17,20 | B17: BBB | C17: A | D17: 3,00 | E17: 12 - 12 | G17: Anhaftende Stoffe Inkrustation | I17: Fräsen | J17: €50
A18: 18,70 | B18: BAJ | C18: B | D18: 10,00 | E18: 7 | F18: JA | G18: Verschobene Verbindung radial | I18: Fräsen | J18: €50
A19: 19,80 | B19: BCA | C19: A / A | D19: 150,00 | E19: 12 | G19: Anschluss Abzweig offen
A20: 21,20 | B20: BBC | C20: C | D20: 2,00 | E20: 4 - 8 | G20: Ablagerungen hartes oder verdichtetes Material | H20: C | I20: Fräsen | J20: €50
A21: 23,20 | B21: BAJ | C21: B | D21: 10,00 | E21: 6 | F21: JA | G21: Verschobene Verbindung radial | I21: Fräsen | J21: €50
A22: 25,80 | B22: BCA | C22: A / A | D22: 150,00 | E22: 11 | G22: Anschluss Abzweig offen
A23: 28,50 | B23: BCA | C23: A / A | D23: 150,00 | E23: 11 | G23: Anschluss Abzweig offen
A24: 28,50 | B24: BAI | C24: A / B | E24: 11 - 4 | F24: JA | G24: Einragendes Dichtungsmaterial Dichtring einragend, aber nicht gebrochen - tiefster Punkt liegt oberhalb der horizontale Mittellinie | I24: Fräsen | J24: €50
A25: 30,60 | B25: BBC | C25: C | D25: 2,00 | E25: 4 - 8 | G25: Ablagerungen hartes oder verdichtetes Material | H25: B | I25: Fräsen | J25: €50
A26: 30,60 | B26: BCE | C26: XP | G26: Endknoten
G27: netto-Zwischensumme | J27: =SUM(J5:J26) -> €600
A28: Reparatur | G28: Baustelleneinrichtung anteilig Haltung | H28: 10 | J28: =(H28/100)*J27 -> €60
G29: Verkehrssicherung anteilig Haltung | H29: 5 | J29: =(H29/100)*J27 -> €30
A30: Sanierungspriorität | C30: Info | G30: Aufrechterhaltung der Vorflut Haltung | H30: 12 | J30: =(H30/100)*J27 -> €72
A31: kurzfristing | B31: ja oder nein | C31: 6-12 Monate | G31: Kanalreinigung vor Sanierung | H31: 30.6 | I31: 2 | J31: =H31*I31 -> €61
A32: mittelfristig | B32: ja oder nein | C32: 1 bis 5 Jahre | G32: Kamerainspektion Abnahme | H32: 30.6 | I32: 3 | J32: =H32*I32 -> €92
A33: langfristig | B33: ja oder nein | C33: 5 bis 10 Jahre | G33: Summe netto Haltung | J33: =SUM(J27:J32) -> €915
G34: Mehrwertsteuer | H34: 19 | J34: =(H34/100)*J33 -> €174
A35: Sanierung im Verbund | B35: ja oder nein | G35: Summe brutto Haltung | J35: =SUM(J33:J34) -> €1,089
A40: Haltung | B40: Straße | C40: Inspizierte Länge | D40: Länge | E40: Tiefe | G40: Schadensbeschreibung | I40: Durchmesser | J40: Material
A41: 09342384 | B41: BERLINER STRAßE | C41: 30,60 | D41: 31,60 | E41: Not Implemented yet | I41: 200 | J41: STZ
A43: Station | B43: Kürzel | C43: Charakterisi. | D43: Quantifizierung | E43: Lage im Kreis | G43: Schadensbeschreibung / Info | H43: Strecke | I43: Sanierungsvorschlag | J43: Kostenans.
A44: 0,00 | B44: BCD | C44: XP | G44: Anfangsknoten
A45: 0,60 | B45: BCA | C45: A / A | D45: 150,00 | E45: 11 | G45: Anschluss Abzweig offen | I45: Einmessen,Öffnen,Hut | J45: €490
A46: 0,90 | B46: BAJ | C46: B | D46: 10,00 | E46: 7 | F46: JA | G46: Verschobene Verbindung radial | I46: Fräsen | J46: €50
A47: 1,10 | B47: BBC | C47: C | D47: 5,00 | E47: 4 - 8 | G47: Ablagerungen hartes oder verdichtetes Material | H47: A | I47: Fräsen | J47: €50
A48: 2,40 | B48: BAJ | C48: B | D48: 10,00 | E48: 6 | F48: JA | G48: Verschobene Verbindung radial | I48: Fräsen | J48: €50
A49: 3,90 | B49: BCA | C49: A / A | D49: 150,00 | E49: 11 | G49: Anschluss Abzweig offen | I49: Einmessen,Öffnen,Hut | J49: €490
A50: 8,40 | B50: BCA | C50: A / A | D50: 150,00 | E50: 11 | G50: Anschluss Abzweig offen | I50: Einmessen,Öffnen,Hut | J50: €490
A51: 9,70 | B51: BAJ | C51: B | D51: 10,00 | E51: 7 | F51: JA | G51: Verschobene Verbindung radial | I51: Fräsen | J51: €50
A52: 11,50 | B52: BAJ | C52: B | D52: 15,00 | E52: 5 | F52: JA | G52: Verschobene Verbindung radial | I52: Fräsen | J52: €50
A53: 11,50 | B53: BCA | C53: A / A | D53: 150,00 | E53: 11 | G53: Anschluss Abzweig offen | I53: Einmessen,Öffnen,Hut | J53: €490
A54: 17,20 | B54: BAJ | C54: B | D54: 15,00 | E54: 6 | F54: JA | G54: Verschobene Verbindung radial | I54: Fräsen | J54: €50
A55: 17,20 | B55: BCA | C55: A / A | D55: 150,00 | E55: 12 | G55: Anschluss Abzweig offen | I55: Einmessen,Öffnen,Hut | J55: €490
A56: 17,20 | B56: BBB | C56: A | D56: 3,00 | E56: 12 - 12 | G56: Anhaftende Stoffe Inkrustation | I56: Fräsen | J56: €50
A57: 18,70 | B57: BAJ | C57: B | D57: 10,00 | E57: 7 | F57: JA | G57: Verschobene Verbindung radial | I57: Fräsen | J57: €50
A58: 19,80 | B58: BCA | C58: A / A | D58: 150,00 | E58: 12 | G58: Anschluss Abzweig offen | I58: Einmessen,Öffnen,Hut | J58: €490
A59: 21,20 | B59: BBC | C59: C | D59: 2,00 | E59: 4 - 8 | G59: Ablagerungen hartes oder verdichtetes Material | H59: C | I59: Fräsen | J59: €50
A60: 23,20 | B60: BAJ | C60: B | D60: 10,00 | E60: 6 | F60: JA | G60: Verschobene Verbindung radial | I60: Fräsen | J60: €50
A61: 25,80 | B61: BCA | C61: A / A | D61: 150,00 | E61: 11 | G61: Anschluss Abzweig offen | I61: Einmessen,Öffnen,Hut | J61: €490
A62: 28,50 | B62: BCA | C62: A / A | D62: 150,00 | E62: 11 | G62: Anschluss Abzweig offen | I62: Einmessen,Öffnen,Hut | J62: €490
A63: 28,50 | B63: BAI | C63: A / B | E63: 11 - 4 | F63: JA | G63: Einragendes Dichtungsmaterial Dichtring einragend, aber nicht gebrochen - tiefster Punkt liegt oberhalb der horizontale Mittellinie
A64: 30,60 | B64: BBC | C64: C | D64: 2,00 | E64: 4 - 8 | G64: Ablagerungen hartes oder verdichtetes Material | H64: B | I64: Fräsen | J64: €50
A65: 30,60 | B65: BCE | C65: XP | G65: Endknoten | I65: Schlauchliner | J65: €3,160
G66: netto-Zwischensumme | J66: =SUM(J44:J65) -> €7,630
A67: Renovation | G67: Baustelleneinrichtung anteilig Haltung | H67: 10 | J67: =(H67/100)*J66 -> €763
G68: Verkehrssicherung anteilig Haltung | H68: 5 | J68: =(H68/100)*J66 -> €382
A69: Sanierungspriorität | C69: Info | G69: Aufrechterhaltung der Vorflut Haltung | H69: 12 | J69: =(H69/100)*J66 -> €916
A70: kurzfristing | B70: ja oder nein | C70: 6-12 Monate | G70: Kanalreinigung vor Sanierung | H70: 30.6 | I70: 2 | J70: =H70*I70 -> €61
A71: mittelfristig | B71: ja oder nein | C71: 1 bis 5 Jahre | G71: Kamerainspektion Abnahme | H71: 30.6 | I71: 3 | J71: =H71*I71 -> €92
A72: langfristig | B72: ja oder nein | C72: 5 bis 10 Jahre | G72: Summe netto Haltung | J72: =SUM(J66:J71) -> €9,843
G73: Mehrwertsteuer | H73: 19 | J73: =(H73/100)*J72 -> €1,870
A74: Sanierung im Verbund | B74: ja oder nein | G74: Summe brutto Haltung | J74: =SUM(J72:J73) -> €11,713

Sheet 09342385
A1: Haltung | B1: Straße | C1: Inspizierte Länge | D1: Länge | E1: Tiefe | G1: Schadensbeschreibung | I1: Durchmesser | J1: Material
A2: 09342385 | B2: BERLINER STRAßE | C2: 42,30 | D2: 43,30 | E2: Not Implemented yet | I2: 200 | J2: STZ
A4: Station | B4: Kürzel | C4: Charakterisi. | D4: Quantifizierung | E4: Lage im Kreis | G4: Schadensbeschreibung / Info | H4: Strecke | I4: Sanierungsvorschlag | J4: Kostenans.
A5: 0,00 | B5: BCD | C5: XP | G5: Anfangsknoten
A6: 1,70 | B6: BBC | C6: C | D6: 3,00 | E6: 4 - 8 | G6: Ablagerungen hartes oder verdichtetes Material | H6: A | I6: Fräsen | J6: €50
A7: 3,20 | B7: BAJ | C7: B | D7: 10,00 | E7: 5 | F7: JA | G7: Verschobene Verbindung radial | I7: Fräsen | J7: €50
A8: 10,80 | B8: BAI | C8: A / C | E8: 11 - 4 | F8: JA | G8: Einragendes Dichtungsmaterial Dichtring einragend, aber nicht gebrochen - tiefster Punkt liegt unterhalb der horizontale Mittellinie | I8: Fräsen | J8: €50
A9: 13,80 | B9: BAJ | C9: B | D9: 10,00 | E9: 6 | F9: JA | G9: Verschobene Verbindung radial | I9: Fräsen | J9: €50
A10: 18,30 | B10: BAJ | C10: B | D10: 15,00 | E10: 5 | F10: JA | G10: Verschobene Verbindung radial | I10: Fräsen | J10: €50
A11: 21,20 | B11: BAJ | C11: B | D11: 10,00 | E11: 6 | F11: JA | G11: Verschobene Verbindung radial | I11: Fräsen | J11: €50
A12: 22,80 | B12: BAJ | C12: B | D12: 10,00 | E12: 6 | F12: JA | G12: Verschobene Verbindung radial | I12: Fräsen | J12: €50
A13: 25,60 | B13: BAF | C13: A / E | E13: 12 - 12 | G13: Oberflächenschaden erhöhte Rauheit Ursache nicht eindeutig festellbar
A14: 27,00 | B14: BAF | C14: A / E | E14: 12 - 12 | F14: JA | G14: Oberflächenschaden erhöhte Rauheit Ursache nicht eindeutig festellbar | H14: A
A15: 28,60 | B15: BAI | C15: A / A | E15: 12 - 12 | F15: JA | G15: Einragendes Dichtungsmaterial Dichtring sichtbar verschoben, jedoch nicht in die Rohrleitung hineinragend | I15: Fräsen | J15: €50
A16: 36,20 | B16: BAJ | C16: B | D16: 10,00 | E16: 6 | F16: JA | G16: Verschobene Verbindung radial | I16: Fräsen | J16: €50
A17: 36,90 | B17: BAF | C17: A / E | E17: 12 - 12 | F17: JA | G17: Oberflächenschaden erhöhte Rauheit Ursache nicht eindeutig festellbar | H17: C
A18: 37,00 | B18: BCA | C18: A / A | D18: 150,00 | E18: 12 | G18: Anschluss Abzweig offen
A19: 38,30 | B19: BBC | C19: C | D19: 5,00 | E19: 4 - 8 | G19: Ablagerungen hartes oder verdichtetes Material | H19: C | I19: Fräsen | J19: €50
A20: 40,40 | B20: BAJ | C20: B | D20: 15,00 | E20: 6 | F20: JA | G20: Verschobene Verbindung radial | I20: Fräsen | J20: €50
A21: 42,30 | B21: BBC | C21: C | D21: 5,00 | E21: 4 - 8 | G21: Ablagerungen hartes oder verdichtetes Material | H21: B | I21: Fräsen | J21: €50
A22: 42,30 | B22: BAF | C22: A / E | E22: 12 - 12 | F22: JA | G22: Oberflächenschaden erhöhte Rauheit Ursache nicht eindeutig festellbar | H22: B
A23: 42,30 | B23: BCE | C23: XP | G23: Endknoten
G24: netto-Zwischensumme | J24: =SUM(J5:J23) -> €600
A25: Reparatur | G25: Baustelleneinrichtung anteilig Haltung | H25: 10 | J25: =(H25/100)*J24 -> €60
G26: Verkehrssicherung anteilig Haltung | H26: 5 | J26: =(H26/100)*J24 -> €30
A27: Sanierungspriorität | C27: Info | G27: Aufrechterhaltung der Vorflut Haltung | H27: 12 | J27: =(H27/100)*J24 -> €72
A28: kurzfristing | B28: ja oder nein | C28: 6-12 Monate | G28: Kanalreinigung vor Sanierung | H28: 42.3 | I28: 2 | J28: =H28*I28 -> €85
A29: mittelfristig | B29: ja oder nein | C29: 1 bis 5 Jahre | G29: Kamerainspektion Abnahme | H29: 42.3 | I29: 3 | J29: =H29*I29 -> €127
A30: langfristig | B30: ja oder nein | C30: 5 bis 10 Jahre | G30: Summe netto Haltung | J30: =SUM(J24:J29) -> €974
G31: Mehrwertsteuer | H31: 19 | J31: =(H31/100)*J30 -> €185
A32: Sanierung im Verbund | B32: ja oder nein | G32: Summe brutto Haltung | J32: =SUM(J30:J31) -> €1,158
A37: Haltung | B37: Straße | C37: Inspizierte Länge | D37: Länge | E37: Tiefe | G37: Schadensbeschreibung | I37: Durchmesser | J37: Material
A38: 09342385 | B38: BERLINER STRAßE | C38: 42,30 | D38: 43,30 | E38: Not Implemented yet | I38: 200 | J38: STZ
A40: Station | B40: Kürzel | C40: Charakterisi. | D40: Quantifizierung | E40: Lage im Kreis | G40: Schadensbeschreibung / Info | H40: Strecke | I40: Sanierungsvorschlag | J40: Kostenans.
A41: 0,00 | B41: BCD | C41: XP | G41: Anfangsknoten
A42: 1,70 | B42: BBC | C42: C | D42: 3,00 | E42: 4 - 8 | G42: Ablagerungen hartes oder verdichtetes Material | H42: A | I42: Fräsen | J42: €50
A43: 3,20 | B43: BAJ | C43: B | D43: 10,00 | E43: 5 | F43: JA | G43: Verschobene Verbindung radial | I43: Fräsen | J43: €50
A44: 10,80 | B44: BAI | C44: A / C | E44: 11 - 4 | F44: JA | G44: Einragendes Dichtungsmaterial Dichtring einragend, aber nicht gebrochen - tiefster Punkt liegt unterhalb der horizontale Mittellinie
A45: 13,80 | B45: BAJ | C45: B | D45: 10,00 | E45: 6 | F45: JA | G45: Verschobene Verbindung radial | I45: Fräsen | J45: €50
A46: 18,30 | B46: BAJ | C46: B | D46: 15,00 | E46: 5 | F46: JA | G46: Verschobene Verbindung radial | I46: Fräsen | J46: €50
A47: 21,20 | B47: BAJ | C47: B | D47: 10,00 | E47: 6 | F47: JA | G47: Verschobene Verbindung radial | I47: Fräsen | J47: €50
A48: 22,80 | B48: BAJ | C48: B | D48: 10,00 | E48: 6 | F48: JA | G48: Verschobene Verbindung radial | I48: Fräsen | J48: €50
A49: 25,60 | B49: BAF | C49: A / E | E49: 12 - 12 | G49: Oberflächenschaden erhöhte Rauheit Ursache nicht eindeutig festellbar
A50: 27,00 | B50: BAF | C50: A / E | E50: 12 - 12 | F50: JA | G50: Oberflächenschaden erhöhte Rauheit Ursache nicht eindeutig festellbar | H50: A
A51: 28,60 | B51: BAI | C51: A / A | E51: 12 - 12 | F51: JA | G51: Einragendes Dichtungsmaterial Dichtring sichtbar verschoben, jedoch nicht in die Rohrleitung hineinragend
A52: 36,20 | B52: BAJ | C52: B | D52: 10,00 | E52: 6 | F52: JA | G52: Verschobene Verbindung radial | I52: Fräsen | J52: €50
A53: 36,90 | B53: BAF | C53: A / E | E53: 12 - 12 | F53: JA | G53: Oberflächenschaden erhöhte Rauheit Ursache nicht eindeutig festellbar | H53: C
A54: 37,00 | B54: BCA | C54: A / A | D54: 150,00 | E54: 12 | G54: Anschluss Abzweig offen | I54: Einmessen,Öffnen,Hut | J54: €490
A55: 38,30 | B55: BBC | C55: C | D55: 5,00 | E55: 4 - 8 | G55: Ablagerungen hartes oder verdichtetes Material | H55: C | I55: Fräsen | J55: €50
A56: 40,40 | B56: BAJ | C56: B | D56: 15,00 | E56: 6 | F56: JA | G56: Verschobene Verbindung radial | I56: Fräsen | J56: €50
A57: 42,30 | B57: BBC | C57: C | D57: 5,00 | E57: 4 - 8 | G57: Ablagerungen hartes oder verdichtetes Material | H57: B | I57: Fräsen | J57: €50
A58: 42,30 | B58: BAF | C58: A / E | E58: 12 - 12 | F58: JA | G58: Oberflächenschaden erhöhte Rauheit Ursache nicht eindeutig festellbar | H58: B
A59: 42,30 | B59: BCE | C59: XP | G59: Endknoten | I59: Schlauchliner | J59: €4,330
G60: netto-Zwischensumme | J60: =SUM(J41:J59) -> €5,320
A61: Renovation | G61: Baustelleneinrichtung anteilig Haltung | H61: 10 | J61: =(H61/100)*J60 -> €532
G62: Verkehrssicherung anteilig Haltung | H62: 5 | J62: =(H62/100)*J60 -> €266
A63: Sanierungspriorität | C63: Info | G63: Aufrechterhaltung der Vorflut Haltung | H63: 12 | J63: =(H63/100)*J60 -> €638
A64: kurzfristing | B64: ja oder nein | C64: 6-12 Monate | G64: Kanalreinigung vor Sanierung | H64: 42.3 | I64: 2 | J64: =H64*I64 -> €85
A65: mittelfristig | B65: ja oder nein | C65: 1 bis 5 Jahre | G65: Kamerainspektion Abnahme | H65: 42.3 | I65: 3 | J65: =H65*I65 -> €127
A66: langfristig | B66: ja oder nein | C66: 5 bis 10 Jahre | G66: Summe netto Haltung | J66: =SUM(J60:J65) -> €6,968
G67: Mehrwertsteuer | H67: 19 | J67: =(H67/100)*J66 -> €1,324
A68: Sanierung im Verbund | B68: ja oder nein | G68: Summe brutto Haltung | J68: =SUM(J66:J67) -> €8,292

Sheet 09342386
A1: Haltung | B1: Straße | C1: Inspizierte Länge | D1: Länge | E1: Tiefe | G1: Schadensbeschreibung | I1: Durchmesser | J1: Material
A2: 09342386 | B2: LEIPZIGER STRAßE | C2: 20,40 | D2: 21,40 | E2: Not Implemented yet | I2: 200 | J2: STZ
A4: Station | B4: Kürzel | C4: Charakterisi. | D4: Quantifizierung | E4: Lage im Kreis | G4: Schadensbeschreibung / Info | H4: Strecke | I4: Sanierungsvorschlag | J4: Kostenans.
A5: 0,00 | B5: BCD | C5: XP | G5: Anfangsknoten
A6: 0,30 | B6: BAB | C6: B / B | D6: 2,00 | E6: 12 - 12 | G6: Rissbildung Riss am Rohrumfang
A7: 5,80 | B7: BBC | C7: C | D7: 3,00 | E7: 4 - 8 | G7: Ablagerungen hartes oder verdichtetes Material | H7: A | I7: Fräsen | J7: €50
A8: 7,30 | B8: BCA | C8: C / A | D8: 150,00 | E8: 12 | G8: Anschluss Sattelanschluss – gemeißelt offen
A9: 11,00 | B9: BCA | C9: C / A | D9: 150,00 | E9: 12 | G9: Anschluss Sattelanschluss – gemeißelt offen
A10: 14,20 | B10: BCA | C10: C / A | D10: 150,00 | E10: 12 | G10: Anschluss Sattelanschluss – gemeißelt offen
A11: 19,50 | B11: BCA | C11: C / A | D11: 150,00 | E11: 12 | G11: Anschluss Sattelanschluss – gemeißelt offen
A12: 20,40 | B12: BBC | C12: C | D12: 3,00 | E12: 4 - 8 | G12: Ablagerungen hartes oder verdichtetes Material | H12: B | I12: Fräsen | J12: €50
A13: 20,40 | B13: BCE | C13: XP | G13: Endknoten
G14: netto-Zwischensumme | J14: =SUM(J5:J13) -> €100
A15: Reparatur | G15: Baustelleneinrichtung anteilig Haltung | H15: 10 | J15: =(H15/100)*J14 -> €10
G16: Verkehrssicherung anteilig Haltung | H16: 5 | J16: =(H16/100)*J14 -> €5
A17: Sanierungspriorität | C17: Info | G17: Aufrechterhaltung der Vorflut Haltung | H17: 12 | J17: =(H17/100)*J14 -> €12
A18: kurzfristing | B18: ja oder nein | C18: 6-12 Monate | G18: Kanalreinigung vor Sanierung | H18: 20.4 | I18: 2 | J18: =H18*I18 -> €41
A19: mittelfristig | B19: ja oder nein | C19: 1 bis 5 Jahre | G19: Kamerainspektion Abnahme | H19: 20.4 | I19: 3 | J19: =H19*I19 -> €61
A20: langfristig | B20: ja oder nein | C20: 5 bis 10 Jahre | G20: Summe netto Haltung | J20: =SUM(J14:J19) -> €229
G21: Mehrwertsteuer | H21: 19 | J21: =(H21/100)*J20 -> €44
A22: Sanierung im Verbund | B22: ja oder nein | G22: Summe brutto Haltung | J22: =SUM(J20:J21) -> €273
A27: Haltung | B27: Straße | C27: Inspizierte Länge | D27: Länge | E27: Tiefe | G27: Schadensbeschreibung | I27: Durchmesser | J27: Material
A28: 09342386 | B28: LEIPZIGER STRAßE | C28: 20,40 | D28: 21,40 | E28: Not Implemented yet | I28: 200 | J28: STZ
A30: Station | B30: Kürzel | C30: Charakterisi. | D30: Quantifizierung | E30: Lage im Kreis | G30: Schadensbeschreibung / Info | H30: Strecke | I30: Sanierungsvorschlag | J30: Kostenans.
A31: 0,00 | B31: BCD | C31: XP | G31: Anfangsknoten
A32: 0,30 | B32: BAB | C32: B / B | D32: 2,00 | E32: 12 - 12 | G32: Rissbildung Riss am Rohrumfang
A33: 5,80 | B33: BBC | C33: C | D33: 3,00 | E33: 4 - 8 | G33: Ablagerungen hartes oder verdichtetes Material | H33: A | I33: Fräsen | J33: €50
A34: 7,30 | B34: BCA | C34: C / A | D34: 150,00 | E34: 12 | G34: Anschluss Sattelanschluss – gemeißelt offen | I34: Einmessen,Öffnen,Hut | J34: €490
A35: 11,00 | B35: BCA | C35: C / A | D35: 150,00 | E35: 12 | G35: Anschluss Sattelanschluss – gemeißelt offen | I35: Einmessen,Öffnen,Hut | J35: €490
A36: 14,20 | B36: BCA | C36: C / A | D36: 150,00 | E36: 12 | G36: Anschluss Sattelanschluss – gemeißelt offen | I36: Einmessen,Öffnen,Hut | J36: €490
A37: 19,50 | B37: BCA | C37: C / A | D37: 150,00 | E37: 12 | G37: Anschluss Sattelanschluss – gemeißelt offen | I37: Einmessen,Öffnen,Hut | J37: €490
A38: 20,40 | B38: BBC | C38: C | D38: 3,00 | E38: 4 - 8 | G38: Ablagerungen hartes oder verdichtetes Material | H38: B | I38: Fräsen | J38: €50
A39: 20,40 | B39: BCE | C39: XP | G39: Endknoten | I39: Schlauchliner | J39: €2,782
G40: netto-Zwischensumme | J40: =SUM(J31:J39) -> €4,842
A41: Renovation | G41: Baustelleneinrichtung anteilig Haltung | H41: 10 | J41: =(H41/100)*J40 -> €484
G42: Verkehrssicherung anteilig Haltung | H42: 5 | J42: =(H42/100)*J40 -> €242
A43: Sanierungspriorität | C43: Info | G43: Aufrechterhaltung der Vorflut Haltung | H43: 12 | J43: =(H43/100)*J40 -> €581
A44: kurzfristing | B44: ja oder nein | C44: 6-12 Monate | G44: Kanalreinigung vor Sanierung | H44: 20.4 | I44: 2 | J44: =H44*I44 -> €41
A45: mittelfristig | B45: ja oder nein | C45: 1 bis 5 Jahre | G45: Kamerainspektion Abnahme | H45: 20.4 | I45: 3 | J45: =H45*I45 -> €61
A46: langfristig | B46: ja oder nein | C46: 5 bis 10 Jahre | G46: Summe netto Haltung | J46: =SUM(J40:J45) -> €6,251
G47: Mehrwertsteuer | H47: 19 | J47: =(H47/100)*J46 -> €1,188
A48: Sanierung im Verbund | B48: ja oder nein | G48: Summe brutto Haltung | J48: =SUM(J46:J47) -> €7,439

Sheet 09342387
A1: Haltung | B1: Straße | C1: Inspizierte Länge | D1: Länge | E1: Tiefe | G1: Schadensbeschreibung | I1: Durchmesser | J1: Material
A2: 09342387 | B2: LEIPZIGER STRAßE | C2: 21,90 | D2: 22,90 | E2: Not Implemented yet | I2: 200 | J2: STZ
A4: Station | B4: Kürzel | C4: Charakterisi. | D4: Quantifizierung | E4: Lage im Kreis | G4: Schadensbeschreibung / Info | H4: Strecke | I4: Sanierungsvorschlag | J4: Kostenans.
A5: 0,00 | B5: BCD | C5: XP | G5: Anfangsknoten
A6: 1,00 | B6: BCA | C6: C / A | D6: 150,00 | E6: 12 | G6: Anschluss Sattelanschluss – gemeißelt offen
A7: 5,80 | B7: BCA | C7: C / A | D7: 150,00 | E7: 12 | G7: Anschluss Sattelanschluss – gemeißelt offen
A8: 9,00 | B8: BCA | C8: C / A | D8: 150,00 | E8: 12 | G8: Anschluss Sattelanschluss – gemeißelt offen
A9: 14,30 | B9: BCA | C9: C / A | D9: 150,00 | E9: 12 | G9: Anschluss Sattelanschluss – gemeißelt offen
A10: 17,20 | B10: BCA | C10: C / A | D10: 150,00 | E10: 12 | G10: Anschluss Sattelanschluss – gemeißelt offen
A11: 20,90 | B11: BCA | C11: C / A | D11: 150,00 | E11: 12 | G11: Anschluss Sattelanschluss – gemeißelt offen
A12: 21,60 | B12: BCA | C12: A / A | D12: 200,00 | E12: 6 | G12: Anschluss Abzweig offen
A13: 21,90 | B13: BCE | C13: XP | G13: Endknoten
G14: netto-Zwischensumme | J14: =SUM(J5:J13) -> €0
A15: Reparatur | G15: Baustelleneinrichtung anteilig Haltung | H15: 10 | J15: =(H15/100)*J14 -> €0
G16: Verkehrssicherung anteilig Haltung | H16: 5 | J16: =(H16/100)*J14 -> €0
A17: Sanierungspriorität | C17: Info | G17: Aufrechterhaltung der Vorflut Haltung | H17: 12 | J17: =(H17/100)*J14 -> €0
A18: kurzfristing | B18: ja oder nein | C18: 6-12 Monate | G18: Kanalreinigung vor Sanierung | H18: 21.9 | I18: 2 | J18: =H18*I18 -> €44
A19: mittelfristig | B19: ja oder nein | C19: 1 bis 5 Jahre | G19: Kamerainspektion Abnahme | H19: 21.9 | I19: 3 | J19: =H19*I19 -> €66
A20: langfristig | B20: ja oder nein | C20: 5 bis 10 Jahre | G20: Summe netto Haltung | J20: =SUM(J14:J19) -> €110
G21: Mehrwertsteuer | H21: 19 | J21: =(H21/100)*J20 -> €21
A22: Sanierung im Verbund | B22: ja oder nein | G22: Summe brutto Haltung | J22: =SUM(J20:J21) -> €130
A27: Haltung | B27: Straße | C27: Inspizierte Länge | D27: Länge | E27: Tiefe | G27: Schadensbeschreibung | I27: Durchmesser | J27: Material
A28: 09342387 | B28: LEIPZIGER STRAßE | C28: 21,90 | D28: 22,90 | E28: Not Implemented yet | I28: 200 | J28: STZ
A30: Station | B30: Kürzel | C30: Charakterisi. | D30: Quantifizierung | E30: Lage im Kreis | G30: Schadensbeschreibung / Info | H30: Strecke | I30: Sanierungsvorschlag | J30: Kostenans.
A31: 0,00 | B31: BCD | C31: XP | G31: Anfangsknoten
A32: 1,00 | B32: BCA | C32: C / A | D32: 150,00 | E32: 12 | G32: Anschluss Sattelanschluss – gemeißelt offen | I32: Einmessen,Öffnen,Hut | J32: €490
A33: 5,80 | B33: BCA | C33: C / A | D33: 150,00 | E33: 12 | G33: Anschluss Sattelanschluss – gemeißelt offen | I33: Einmessen,Öffnen,Hut | J33: €490
A34: 9,00 | B34: BCA | C34: C / A | D34: 150,00 | E34: 12 | G34: Anschluss Sattelanschluss – gemeißelt offen | I34: Einmessen,Öffnen,Hut | J34: €490
A35: 14,30 | B35: BCA | C35: C / A | D35: 150,00 | E35: 12 | G35: Anschluss Sattelanschluss – gemeißelt offen | I35: Einmessen,Öffnen,Hut | J35: €490
A36: 17,20 | B36: BCA | C36: C / A | D36: 150,00 | E36: 12 | G36: Anschluss Sattelanschluss – gemeißelt offen | I36: Einmessen,Öffnen,Hut | J36: €490
A37: 20,90 | B37: BCA | C37: C / A | D37: 150,00 | E37: 12 | G37: Anschluss Sattelanschluss – gemeißelt offen | I37: Einmessen,Öffnen,Hut | J37: €490
A38: 21,60 | B38: BCA | C38: A / A | D38: 200,00 | E38: 6 | G38: Anschluss Abzweig offen | I38: Einmessen,Öffnen,Hut | J38: €490
A39: 21,90 | B39: BCE | C39: XP | G39: Endknoten | I39: Schlauchliner | J39: €2,977
G40: netto-Zwischensumme | J40: =SUM(J31:J39) -> €6,407
A41: Renovation | G41: Baustelleneinrichtung anteilig Haltung | H41: 10 | J41: =(H41/100)*J40 -> €641
G42: Verkehrssicherung anteilig Haltung | H42: 5 | J42: =(H42/100)*J40 -> €320
A43: Sanierungspriorität | C43: Info | G43: Aufrechterhaltung der Vorflut Haltung | H43: 12 | J43: =(H43/100)*J40 -> €769
A44: kurzfristing | B44: ja oder nein | C44: 6-12 Monate | G44: Kanalreinigung vor Sanierung | H44: 21.9 | I44: 2 | J44: =H44*I44 -> €44
A45: mittelfristig | B45: ja oder nein | C45: 1 bis 5 Jahre | G45: Kamerainspektion Abnahme | H45: 21.9 | I45: 3 | J45: =H45*I45 -> €66
A46: langfristig | B46: ja oder nein | C46: 5 bis 10 Jahre | G46: Summe netto Haltung | J46: =SUM(J40:J45) -> €8,246
G47: Mehrwertsteuer | H47: 19 | J47: =(H47/100)*J46 -> €1,567
A48: Sanierung im Verbund | B48: ja oder nein | G48: Summe brutto Haltung | J48: =SUM(J46:J47) -> €9,813

Sheet 09342668
A1: Haltung | B1: Straße | C1: Inspizierte Länge | D1: Länge | E1: Tiefe | G1: Schadensbeschreibung | I1: Durchmesser | J1: Material
A2: 09342668 | B2: LEIPZIGER STRAßE | C2: 29,00 | D2: 30,00 | E2: Not Implemented yet | I2: 300 | J2: B
A4: Station | B4: Kürzel | C4: Charakterisi. | D4: Quantifizierung | E4: Lage im Kreis | G4: Schadensbeschreibung / Info | H4: Strecke | I4: Sanierungsvorschlag | J4: Kostenans.
A5: 0,00 | B5: BCD | C5: XP | G5: Anfangsknoten
A6: 2,80 | B6: BCA | C6: C / A | D6: 150,00 | E6: 12 | G6: Anschluss Sattelanschluss – gemeißelt offen
A7: 3,60 | B7: BCA | C7: C / A | D7: 150,00 | E7: 3 | G7: Anschluss Sattelanschluss – gemeißelt offen
A8: 5,00 | B8: BAJ | C8: B | D8: 30,00 | E8: 12 | F8: JA | G8: Verschobene Verbindung radial | I8: Fräsen | J8: €50
A9: 7,20 | B9: BCA | C9: C / A | D9: 150,00 | E9: 3 | G9: Anschluss Sattelanschluss – gemeißelt offen
A10: 10,00 | B10: BAF | C10: E / E | E10: 2 - 10 | G10: Oberflächenschaden Zuschlagstoffe fehlen Ursache nicht eindeutig festellbar | H10: A
A11: 10,40 | B11: BDD | C11: C | D11: 20,00 | G11: Wasserspiegel trüb | H11: A
A12: 12,30 | B12: BCA | C12: C / A | D12: 200,00 | E12: 9 | G12: Anschluss Sattelanschluss – gemeißelt offen
A13: 12,30 | B13: BAH | C13: B | E13: 12 - 12 | G13: Schadhafter Anschluss Spalt zwischen dem Ende des Anschlusses und der Rohrleitung (Zurückliegende Anschluss) | J13: €0
A14: 12,80 | B14: BCA | C14: C / A | D14: 150,00 | E14: 3 | G14: Anschluss Sattelanschluss – gemeißelt offen
A15: 12,80 | B15: BAP | E15: 3 - 4 | G15: Hohlraum sichtbar
A16: 12,80 | B16: BAH | C16: B | E16: 12 - 12 | F16: JA | G16: Schadhafter Anschluss Spalt zwischen dem Ende des Anschlusses und der Rohrleitung (Zurückliegende Anschluss) | J16: €0
A17: 14,50 | B17: BDD | C17: C | D17: 20,00 | G17: Wasserspiegel trüb | H17: B
A18: 14,50 | B18: BAF | C18: E / E | E18: 2 - 10 | G18: Oberflächenschaden Zuschlagstoffe fehlen Ursache nicht eindeutig festellbar | H18: B
A19: 16,00 | B19: BAB | C19: B / A | D19: 2,00 | E19: 2 | G19: Rissbildung Riss in Längsrichtung
A20: 16,20 | B20: BCA | C20: C / A | D20: 150,00 | E20: 3 | G20: Anschluss Sattelanschluss – gemeißelt offen
A21: 22,70 | B21: BCA | C21: C / A | D21: 150,00 | E21: 3 | G21: Anschluss Sattelanschluss – gemeißelt offen
A22: 29,00 | B22: BCE | C22: XP | G22: Endknoten
G23: netto-Zwischensumme | J23: =SUM(J5:J22) -> €50
A24: Reparatur | G24: Baustelleneinrichtung anteilig Haltung | H24: 10 | J24: =(H24/100)*J23 -> €5
G25: Verkehrssicherung anteilig Haltung | H25: 5 | J25: =(H25/100)*J23 -> €3
A26: Sanierungspriorität | C26: Info | G26: Aufrechterhaltung der Vorflut Haltung | H26: 12 | J26: =(H26/100)*J23 -> €6
A27: kurzfristing | B27: ja oder nein | C27: 6-12 Monate | G27: Kanalreinigung vor Sanierung | H27: 29 | I27: 2 | J27: =H27*I27 -> €58
A28: mittelfristig | B28: ja oder nein | C28: 1 bis 5 Jahre | G28: Kamerainspektion Abnahme | H28: 29 | I28: 3 | J28: =H28*I28 -> €87
A29: langfristig | B29: ja oder nein | C29: 5 bis 10 Jahre | G29: Summe netto Haltung | J29: =SUM(J23:J28) -> €209
G30: Mehrwertsteuer | H30: 19 | J30: =(H30/100)*J29 -> €40
A31: Sanierung im Verbund | B31: ja oder nein | G31: Summe brutto Haltung | J31: =SUM(J29:J30) -> €248
A36: Haltung | B36: Straße | C36: Inspizierte Länge | D36: Länge | E36: Tiefe | G36: Schadensbeschreibung | I36: Durchmesser | J36: Material
A37: 09342668 | B37: LEIPZIGER STRAßE | C37: 29,00 | D37: 30,00 | E37: Not Implemented yet | I37: 300 | J37: B
A39: Station | B39: Kürzel | C39: Charakterisi. | D39: Quantifizierung | E39: Lage im Kreis | G39: Schadensbeschreibung / Info | H39: Strecke | I39: Sanierungsvorschlag | J39: Kostenans.
A40: 0,00 | B40: BCD | C40: XP | G40: Anfangsknoten
A41: 2,80 | B41: BCA | C41: C / A | D41: 150,00 | E41: 12 | G41: Anschluss Sattelanschluss – gemeißelt offen | I41: Einmessen,Öffnen,Hut | J41: €490
A42: 3,60 | B42: BCA | C42: C / A | D42: 150,00 | E42: 3 | G42: Anschluss Sattelanschluss – gemeißelt offen | I42: Einmessen,Öffnen,Hut | J42: €490
A43: 5,00 | B43: BAJ | C43: B | D43: 30,00 | E43: 12 | F43: JA | G43: Verschobene Verbindung radial | I43: Fräsen | J43: €50
A44: 7,20 | B44: BCA | C44: C / A | D44: 150,00 | E44: 3 | G44: Anschluss Sattelanschluss – gemeißelt offen | I44: Einmessen,Öffnen,Hut | J44: €490
A45: 10,00 | B45: BAF | C45: E / E | E45: 2 - 10 | G45: Oberflächenschaden Zuschlagstoffe fehlen Ursache nicht eindeutig festellbar | H45: A
A46: 10,40 | B46: BDD | C46: C | D46: 20,00 | G46: Wasserspiegel trüb | H46: A
A47: 12,30 | B47: BCA | C47: C / A | D47: 200,00 | E47: 9 | G47: Anschluss Sattelanschluss – gemeißelt offen | I47: Einmessen,Öffnen,Hut | J47: €490
A48: 12,30 | B48: BAH | C48: B | E48: 12 - 12 | G48: Schadhafter Anschluss Spalt zwischen dem Ende des Anschlusses und der Rohrleitung (Zurückliegende Anschluss)
A49: 12,80 | B49: BCA | C49: C / A | D49: 150,00 | E49: 3 | G49: Anschluss Sattelanschluss – gemeißelt offen | I49: Einmessen,Öffnen,Hut | J49: €490
A50: 12,80 | B50: BAP | E50: 3 - 4 | G50: Hohlraum sichtbar
A51: 12,80 | B51: BAH | C51: B | E51: 12 - 12 | F51: JA | G51: Schadhafter Anschluss Spalt zwischen dem Ende des Anschlusses und der Rohrleitung (Zurückliegende Anschluss)
A52: 14,50 | B52: BDD | C52: C | D52: 20,00 | G52: Wasserspiegel trüb | H52: B
A53: 14,50 | B53: BAF | C53: E / E | E53: 2 - 10 | G53: Oberflächenschaden Zuschlagstoffe fehlen Ursache nicht eindeutig festellbar | H53: B
A54: 16,00 | B54: BAB | C54: B / A | D54: 2,00 | E54: 2 | G54: Rissbildung Riss in Längsrichtung
A55: 16,20 | B55: BCA | C55: C / A | D55: 150,00 | E55: 3 | G55: Anschluss Sattelanschluss – gemeißelt offen | I55: Einmessen,Öffnen,Hut | J55: €490
A56: 22,70 | B56: BCA | C56: C / A | D56: 150,00 | E56: 3 | G56: Anschluss Sattelanschluss – gemeißelt offen | I56: Einmessen,Öffnen,Hut | J56: €490
A57: 29,00 | B57: BCE | C57: XP | G57: Endknoten | I57: Schlauchliner | J57: €3,000
G58: netto-Zwischensumme | J58: =SUM(J40:J57) -> €6,480
A59: Renovation | G59: Baustelleneinrichtung anteilig Haltung | H59: 10 | J59: =(H59/100)*J58 -> €648
G60: Verkehrssicherung anteilig Haltung | H60: 5 | J60: =(H60/100)*J58 -> €324
A61: Sanierungspriorität | C61: Info | G61: Aufrechterhaltung der Vorflut Haltung | H61: 12 | J61: =(H61/100)*J58 -> €778
A62: kurzfristing | B62: ja oder nein | C62: 6-12 Monate | G62: Kanalreinigung vor Sanierung | H62: 29 | I62: 2 | J62: =H62*I62 -> €58
A63: mittelfristig | B63: ja oder nein | C63: 1 bis 5 Jahre | G63: Kamerainspektion Abnahme | H63: 29 | I63: 3 | J63: =H63*I63 -> €87
A64: langfristig | B64: ja oder nein | C64: 5 bis 10 Jahre | G64: Summe netto Haltung | J64: =SUM(J58:J63) -> €8,375
G65: Mehrwertsteuer | H65: 19 | J65: =(H65/100)*J64 -> €1,591
A66: Sanierung im Verbund | B66: ja oder nein | G66: Summe brutto Haltung | J66: =SUM(J64:J65) -> €9,966

Sheet 09342668_1
A1: Haltung | B1: Straße | C1: Inspizierte Länge | D1: Länge | E1: Tiefe | G1: Schadensbeschreibung | I1: Durchmesser | J1: Material
A2: 09342668_1 | B2: LEIPZIGER STRAßE | C2: 6,80 | D2: 7,80 | E2: Not Implemented yet | I2: 300 | J2: B
A4: Station | B4: Kürzel | C4: Charakterisi. | D4: Quantifizierung | E4: Lage im Kreis | G4: Schadensbeschreibung / Info | H4: Strecke | I4: Sanierungsvorschlag | J4: Kostenans.
A5: 0,00 | B5: BCD | C5: XP | G5: Anfangsknoten
A6: 2,30 | B6: BAB | C6: B / A | D6: 2,00 | E6: 4 - 7 | G6: Rissbildung Riss in Längsrichtung | H6: A
A7: 2,80 | B7: BCA | C7: C / A | D7: 150,00 | E7: 11 | G7: Anschluss Sattelanschluss – gemeißelt offen
A8: 2,90 | B8: BAB | C8: B / A | D8: 2,00 | E8: 4 - 7 | G8: Rissbildung Riss in Längsrichtung | H8: B
A9: 2,90 | B9: BAB | C9: B / A | D9: 2,00 | E9: 11 | G9: Rissbildung Riss in Längsrichtung
A10: 6,80 | B10: BDB | G10: Allgemeine Anmerkung
A11: 6,80 | B11: BDC | C11: Y / Y | G11: Inspektion endet vor dem Endknoten nicht erkennbar nicht erkennbar
G12: netto-Zwischensumme | J12: =SUM(J5:J11) -> €0
A13: Reparatur | G13: Baustelleneinrichtung anteilig Haltung | H13: 10 | J13: =(H13/100)*J12 -> €0
G14: Verkehrssicherung anteilig Haltung | H14: 5 | J14: =(H14/100)*J12 -> €0
A15: Sanierungspriorität | C15: Info | G15: Aufrechterhaltung der Vorflut Haltung | H15: 12 | J15: =(H15/100)*J12 -> €0
A16: kurzfristing | B16: ja oder nein | C16: 6-12 Monate | G16: Kanalreinigung vor Sanierung | H16: 6.8 | I16: 2 | J16: =H16*I16 -> €14
A17: mittelfristig | B17: ja oder nein | C17: 1 bis 5 Jahre | G17: Kamerainspektion Abnahme | H17: 6.8 | I17: 3 | J17: =H17*I17 -> €20
A18: langfristig | B18: ja oder nein | C18: 5 bis 10 Jahre | G18: Summe netto Haltung | J18: =SUM(J12:J17) -> €34
G19: Mehrwertsteuer | H19: 19 | J19: =(H19/100)*J18 -> €6
A20: Sanierung im Verbund | B20: ja oder nein | G20: Summe brutto Haltung | J20: =SUM(J18:J19) -> €40
A25: Haltung | B25: Straße | C25: Inspizierte Länge | D25: Länge | E25: Tiefe | G25: Schadensbeschreibung | I25: Durchmesser | J25: Material
A26: 09342668_1 | B26: LEIPZIGER STRAßE | C26: 6,80 | D26: 7,80 | E26: Not Implemented yet | I26: 300 | J26: B
A28: Station | B28: Kürzel | C28: Charakterisi. | D28: Quantifizierung | E28: Lage im Kreis | G28: Schadensbeschreibung / Info | H28: Strecke | I28: Sanierungsvorschlag | J28: Kostenans.
A29: 0,00 | B29: BCD | C29: XP | G29: Anfangsknoten
A30: 2,30 | B30: BAB | C30: B / A | D30: 2,00 | E30: 4 - 7 | G30: Rissbildung Riss in Längsrichtung | H30: A
A31: 2,80 | B31: BCA | C31: C / A | D31: 150,00 | E31: 11 | G31: Anschluss Sattelanschluss – gemeißelt offen | I31: Einmessen,Öffnen,Hut | J31: €490
A32: 2,90 | B32: BAB | C32: B / A | D32: 2,00 | E32: 4 - 7 | G32: Rissbildung Riss in Längsrichtung | H32: B
A33: 2,90 | B33: BAB | C33: B / A | D33: 2,00 | E33: 11 | G33: Rissbildung Riss in Längsrichtung
A34: 6,80 | B34: BDB | G34: Allgemeine Anmerkung
A35: 6,80 | B35: BDC | C35: Y / Y | G35: Inspektion endet vor dem Endknoten nicht erkennbar nicht erkennbar
G36: netto-Zwischensumme | J36: =SUM(J29:J35) -> €490
A37: Renovation | G37: Baustelleneinrichtung anteilig Haltung | H37: 10 | J37: =(H37/100)*J36 -> €49
G38: Verkehrssicherung anteilig Haltung | H38: 5 | J38: =(H38/100)*J36 -> €25
A39: Sanierungspriorität | C39: Info | G39: Aufrechterhaltung der Vorflut Haltung | H39: 12 | J39: =(H39/100)*J36 -> €59
A40: kurzfristing | B40: ja oder nein | C40: 6-12 Monate | G40: Kanalreinigung vor Sanierung | H40: 6.8 | I40: 2 | J40: =H40*I40 -> €14
A41: mittelfristig | B41: ja oder nein | C41: 1 bis 5 Jahre | G41: Kamerainspektion Abnahme | H41: 6.8 | I41: 3 | J41: =H41*I41 -> €20
A42: langfristig | B42: ja oder nein | C42: 5 bis 10 Jahre | G42: Summe netto Haltung | J42: =SUM(J36:J41) -> €656
G43: Mehrwertsteuer | H43: 19 | J43: =(H43/100)*J42 -> €125
A44: Sanierung im Verbund | B44: ja oder nein | G44: Summe brutto Haltung | J44: =SUM(J42:J43) -> €781

Sheet 09342669
A1: Haltung | B1: Straße | C1: Inspizierte Länge | D1: Länge | E1: Tiefe | G1: Schadensbeschreibung | I1: Durchmesser | J1: Material
A2: 09342669 | B2: LEIPZIGER STRAßE | C2: 25,00 | D2: 26,00 | E2: Not Implemented yet | I2: 300 | J2: B
A4: Station | B4: Kürzel | C4: Charakterisi. | D4: Quantifizierung | E4: Lage im Kreis | G4: Schadensbeschreibung / Info | H4: Strecke | I4: Sanierungsvorschlag | J4: Kostenans.
A5: 0,00 | B5: BCD | C5: XP | G5: Anfangsknoten
A6: 2,30 | B6: BDD | C6: C | D6: 15,00 | G6: Wasserspiegel trüb | H6: A
A7: 4,40 | B7: BAB | C7: B / A | D7: 2,00 | E7: 9 | G7: Rissbildung Riss in Längsrichtung | H7: A
A8: 4,50 | B8: BCA | C8: C / A | D8: 150,00 | E8: 3 | G8: Anschluss Sattelanschluss – gemeißelt offen
A9: 4,50 | B9: BAH | C9: B | E9: 12 - 12 | F9: JA | G9: Schadhafter Anschluss Spalt zwischen dem Ende des Anschlusses und der Rohrleitung (Zurückliegende Anschluss) | J9: €0
A10: 4,80 | B10: BAB | C10: B / A | D10: 2,00 | E10: 9 | G10: Rissbildung Riss in Längsrichtung | H10: B
A11: 5,80 | B11: BDD | C11: C | G11: Wasserspiegel trüb | H11: B
A12: 8,30 | B12: BAH | C12: A | E12: 7 - 12 | G12: Schadhafter Anschluss Lage des Anschlusses um das Rohr ist falsch | J12: €0
A13: 8,30 | B13: BCA | C13: C / A | D13: 200,00 | E13: 9 | G13: Anschluss Sattelanschluss – gemeißelt offen
A14: 11,20 | B14: BCA | C14: C / A | D14: 150,00 | E14: 3 | G14: Anschluss Sattelanschluss – gemeißelt offen
A15: 14,70 | B15: BAP | E15: 2 - 4 | G15: Hohlraum sichtbar
A16: 14,70 | B16: BCA | C16: C / A | D16: 150,00 | E16: 3 | G16: Anschluss Sattelanschluss – gemeißelt offen
A17: 14,70 | B17: BAH | C17: B | E17: 12 - 12 | F17: JA | G17: Schadhafter Anschluss Spalt zwischen dem Ende des Anschlusses und der Rohrleitung (Zurückliegende Anschluss) | J17: €0
A18: 20,80 | B18: BCA | C18: C / A | D18: 150,00 | E18: 3 | G18: Anschluss Sattelanschluss – gemeißelt offen
A19: 23,80 | B19: BCA | C19: C / A | D19: 150,00 | E19: 3 | G19: Anschluss Sattelanschluss – gemeißelt offen
A20: 25,00 | B20: BCE | C20: XP | G20: Endknoten
G21: netto-Zwischensumme | J21: =SUM(J5:J20) -> €0
A22: Reparatur | G22: Baustelleneinrichtung anteilig Haltung | H22: 10 | J22: =(H22/100)*J21 -> €0
G23: Verkehrssicherung anteilig Haltung | H23: 5 | J23: =(H23/100)*J21 -> €0
A24: Sanierungspriorität | C24: Info | G24: Aufrechterhaltung der Vorflut Haltung | H24: 12 | J24: =(H24/100)*J21 -> €0
A25: kurzfristing | B25: ja oder nein | C25: 6-12 Monate | G25: Kanalreinigung vor Sanierung | H25: 25 | I25: 2 | J25: =H25*I25 -> €50
A26: mittelfristig | B26: ja oder nein | C26: 1 bis 5 Jahre | G26: Kamerainspektion Abnahme | H26: 25 | I26: 3 | J26: =H26*I26 -> €75
A27: langfristig | B27: ja oder nein | C27: 5 bis 10 Jahre | G27: Summe netto Haltung | J27: =SUM(J21:J26) -> €125
G28: Mehrwertsteuer | H28: 19 | J28: =(H28/100)*J27 -> €24
A29: Sanierung im Verbund | B29: ja oder nein | G29: Summe brutto Haltung | J29: =SUM(J27:J28) -> €149
A34: Haltung | B34: Straße | C34: Inspizierte Länge | D34: Länge | E34: Tiefe | G34: Schadensbeschreibung | I34: Durchmesser | J34: Material
A35: 09342669 | B35: LEIPZIGER STRAßE | C35: 25,00 | D35: 26,00 | E35: Not Implemented yet | I35: 300 | J35: B
A37: Station | B37: Kürzel | C37: Charakterisi. | D37: Quantifizierung | E37: Lage im Kreis | G37: Schadensbeschreibung / Info | H37: Strecke | I37: Sanierungsvorschlag | J37: Kostenans.
A38: 0,00 | B38: BCD | C38: XP | G38: Anfangsknoten
A39: 2,30 | B39: BDD | C39: C | D39: 15,00 | G39: Wasserspiegel trüb | H39: A
A40: 4,40 | B40: BAB | C40: B / A | D40: 2,00 | E40: 9 | G40: Rissbildung Riss in Längsrichtung | H40: A
A41: 4,50 | B41: BCA | C41: C / A | D41: 150,00 | E41: 3 | G41: Anschluss Sattelanschluss – gemeißelt offen | I41: Einmessen,Öffnen,Hut | J41: €490
A42: 4,50 | B42: BAH | C42: B | E42: 12 - 12 | F42: JA | G42: Schadhafter Anschluss Spalt zwischen dem Ende des Anschlusses und der Rohrleitung (Zurückliegende Anschluss)
A43: 4,80 | B43: BAB | C43: B / A | D43: 2,00 | E43: 9 | G43: Rissbildung Riss in Längsrichtung | H43: B
A44: 5,80 | B44: BDD | C44: C | G44: Wasserspiegel trüb | H44: B
A45: 8,30 | B45: BAH | C45: A | E45: 7 - 12 | G45: Schadhafter Anschluss Lage des Anschlusses um das Rohr ist falsch
A46: 8,30 | B46: BCA | C46: C / A | D46: 200,00 | E46: 9 | G46: Anschluss Sattelanschluss – gemeißelt offen | I46: Einmessen,Öffnen,Hut | J46: €490
A47: 11,20 | B47: BCA | C47: C / A | D47: 150,00 | E47: 3 | G47: Anschluss Sattelanschluss – gemeißelt offen | I47: Einmessen,Öffnen,Hut | J47: €490
A48: 14,70 | B48: BAP | E48: 2 - 4 | G48: Hohlraum sichtbar
A49: 14,70 | B49: BCA | C49: C / A | D49: 150,00 | E49: 3 | G49: Anschluss Sattelanschluss – gemeißelt offen | I49: Einmessen,Öffnen,Hut | J49: €490
A50: 14,70 | B50: BAH | C50: B | E50: 12 - 12 | F50: JA | G50: Schadhafter Anschluss Spalt zwischen dem Ende des Anschlusses und der Rohrleitung (Zurückliegende Anschluss)
A51: 20,80 | B51: BCA | C51: C / A | D51: 150,00 | E51: 3 | G51: Anschluss Sattelanschluss – gemeißelt offen | I51: Einmessen,Öffnen,Hut | J51: €490
A52: 23,80 | B52: BCA | C52: C / A | D52: 150,00 | E52: 3 | G52: Anschluss Sattelanschluss – gemeißelt offen | I52: Einmessen,Öffnen,Hut | J52: €490
A53: 25,00 | B53: BCE | C53: XP | G53: Endknoten | I53: Schlauchliner | J53: €3,380
G54: netto-Zwischensumme | J54: =SUM(J38:J53) -> €6,320
A55: Renovation | G55: Baustelleneinrichtung anteilig Haltung | H55: 10 | J55: =(H55/100)*J54 -> €632
G56: Verkehrssicherung anteilig Haltung | H56: 5 | J56: =(H56/100)*J54 -> €316
A57: Sanierungspriorität | C57: Info | G57: Aufrechterhaltung der Vorflut Haltung | H57: 12 | J57: =(H57/100)*J54 -> €758
A58: kurzfristing | B58: ja oder nein | C58: 6-12 Monate | G58: Kanalreinigung vor Sanierung | H58: 25 | I58: 2 | J58: =H58*I58 -> €50
A59: mittelfristig | B59: ja oder nein | C59: 1 bis 5 Jahre | G59: Kamerainspektion Abnahme | H59: 25 | I59: 3 | J59: =H59*I59 -> €75
A60: langfristig | B60: ja oder nein | C60: 5 bis 10 Jahre | G60: Summe netto Haltung | J60: =SUM(J54:J59) -> €8,151
G61: Mehrwertsteuer | H61: 19 | J61: =(H61/100)*J60 -> €1,549
A62: Sanierung im Verbund | B62: ja oder nein | G62: Summe brutto Haltung | J62: =SUM(J60:J61) -> €9,700

Sheet 09342670
A1: Haltung | B1: Straße | C1: Inspizierte Länge | D1: Länge | E1: Tiefe | G1: Schadensbeschreibung | I1: Durchmesser | J1: Material
A2: 09342670 | B2: LEIPZIGER STRAßE | C2: 3,40 | D2: 4,40 | E2: Not Implemented yet | I2: 300 | J2: B
A4: Station | B4: Kürzel | C4: Charakterisi. | D4: Quantifizierung | E4: Lage im Kreis | G4: Schadensbeschreibung / Info | H4: Strecke | I4: Sanierungsvorschlag | J4: Kostenans.
A5: 0,00 | B5: BCD | C5: XP | G5: Anfangsknoten
A6: 1,70 | B6: BCA | C6: C / A | D6: 150,00 | E6: 2 | G6: Anschluss Sattelanschluss – gemeißelt offen
A7: 2,30 | B7: BCA | C7: C / A | D7: 150,00 | E7: 12 | G7: Anschluss Sattelanschluss – gemeißelt offen
A8: 2,90 | B8: BAP | E8: 3 - 9 | F8: JA | G8: Hohlraum sichtbar
A9: 2,90 | B9: BAC | C9: B | D9: 60,00 | E9: 12 - 12 | F9: JA | G9: Rohrbruch / Einsturz Fehlen von Teilen
A10: 3,40 | B10: BCE | C10: XP | G10: Endknoten
G11: netto-Zwischensumme | J11: =SUM(J5:J10) -> €0
A12: Reparatur | G12: Baustelleneinrichtung anteilig Haltung | H12: 10 | J12: =(H12/100)*J11 -> €0
G13: Verkehrssicherung anteilig Haltung | H13: 5 | J13: =(H13/100)*J11 -> €0
A14: Sanierungspriorität | C14: Info | G14: Aufrechterhaltung der Vorflut Haltung | H14: 12 | J14: =(H14/100)*J11 -> €0
A15: kurzfristing | B15: ja oder nein | C15: 6-12 Monate | G15: Kanalreinigung vor Sanierung | H15: 3.4 | I15: 2 | J15: =H15*I15 -> €7
A16: mittelfristig | B16: ja oder nein | C16: 1 bis 5 Jahre | G16: Kamerainspektion Abnahme | H16: 3.4 | I16: 3 | J16: =H16*I16 -> €10
A17: langfristig | B17: ja oder nein | C17: 5 bis 10 Jahre | G17: Summe netto Haltung | J17: =SUM(J11:J16) -> €17
G18: Mehrwertsteuer | H18: 19 | J18: =(H18/100)*J17 -> €3
A19: Sanierung im Verbund | B19: ja oder nein | G19: Summe brutto Haltung | J19: =SUM(J17:J18) -> €20
A24: Haltung | B24: Straße | C24: Inspizierte Länge | D24: Länge | E24: Tiefe | G24: Schadensbeschreibung | I24: Durchmesser | J24: Material
A25: 09342670 | B25: LEIPZIGER STRAßE | C25: 3,40 | D25: 4,40 | E25: Not Implemented yet | I25: 300 | J25: B
A27: Station | B27: Kürzel | C27: Charakterisi. | D27: Quantifizierung | E27: Lage im Kreis | G27: Schadensbeschreibung / Info | H27: Strecke | I27: Sanierungsvorschlag | J27: Kostenans.
A28: 0,00 | B28: BCD | C28: XP | G28: Anfangsknoten
A29: 1,70 | B29: BCA | C29: C / A | D29: 150,00 | E29: 2 | G29: Anschluss Sattelanschluss – gemeißelt offen | I29: Einmessen,Öffnen,Hut | J29: €490
A30: 2,30 | B30: BCA | C30: C / A | D30: 150,00 | E30: 12 | G30: Anschluss Sattelanschluss – gemeißelt offen | I30: Einmessen,Öffnen,Hut | J30: €490
A31: 2,90 | B31: BAP | E31: 3 - 9 | F31: JA | G31: Hohlraum sichtbar
A32: 2,90 | B32: BAC | C32: B | D32: 60,00 | E32: 12 - 12 | F32: JA | G32: Rohrbruch / Einsturz Fehlen von Teilen
A33: 3,40 | B33: BCE | C33: XP | G33: Endknoten | I33: Schlauchliner | J33: €660
G34: netto-Zwischensumme | J34: =SUM(J28:J33) -> €1,640
A35: Renovation | G35: Baustelleneinrichtung anteilig Haltung | H35: 10 | J35: =(H35/100)*J34 -> €164
G36: Verkehrssicherung anteilig Haltung | H36: 5 | J36: =(H36/100)*J34 -> €82
A37: Sanierungspriorität | C37: Info | G37: Aufrechterhaltung der Vorflut Haltung | H37: 12 | J37: =(H37/100)*J34 -> €197
A38: kurzfristing | B38: ja oder nein | C38: 6-12 Monate | G38: Kanalreinigung vor Sanierung | H38: 3.4 | I38: 2 | J38: =H38*I38 -> €7
A39: mittelfristig | B39: ja oder nein | C39: 1 bis 5 Jahre | G39: Kamerainspektion Abnahme | H39: 3.4 | I39: 3 | J39: =H39*I39 -> €10
A40: langfristig | B40: ja oder nein | C40: 5 bis 10 Jahre | G40: Summe netto Haltung | J40: =SUM(J34:J39) -> €2,100
G41: Mehrwertsteuer | H41: 19 | J41: =(H41/100)*J40 -> €399
A42: Sanierung im Verbund | B42: ja oder nein | G42: Summe brutto Haltung | J42: =SUM(J40:J41) -> €2,499

Sheet 09342671
A1: Haltung | B1: Straße | C1: Inspizierte Länge | D1: Länge | E1: Tiefe | G1: Schadensbeschreibung | I1: Durchmesser | J1: Material
A2: 09342671 | B2: LEIPZIGER STRAßE | C2: 47,80 | D2: 48,80 | E2: Not Implemented yet | I2: 300 | J2: B
A4: Station | B4: Kürzel | C4: Charakterisi. | D4: Quantifizierung | E4: Lage im Kreis | G4: Schadensbeschreibung / Info | H4: Strecke | I4: Sanierungsvorschlag | J4: Kostenans.
A5: 0,00 | B5: BCD | C5: XP | G5: Anfangsknoten
A6: 0,00 | B6: BDD | C6: C | D6: 20,00 | G6: Wasserspiegel trüb | H6: A
A7: 9,40 | B7: BDD | C7: C | G7: Wasserspiegel trüb | H7: B
A8: 13,20 | B8: BCA | C8: C / A | D8: 150,00 | E8: 3 | G8: Anschluss Sattelanschluss – gemeißelt offen
A9: 13,20 | B9: BAH | C9: B | E9: 12 - 12 | F9: JA | G9: Schadhafter Anschluss Spalt zwischen dem Ende des Anschlusses und der Rohrleitung (Zurückliegende Anschluss) | J9: €0
A10: 14,50 | B10: BBF | C10: A | E10: 2 - 10 | F10: JA | G10: Infiltration Schwitzen
A11: 18,60 | B11: BAF | C11: E / E | E11: 2 - 10 | G11: Oberflächenschaden Zuschlagstoffe fehlen Ursache nicht eindeutig festellbar | H11: A
A12: 19,90 | B12: BCA | C12: C / A | D12: 150,00 | E12: 3 | G12: Anschluss Sattelanschluss – gemeißelt offen
A13: 20,90 | B13: BCA | C13: C / A | D13: 150,00 | E13: 12 | G13: Anschluss Sattelanschluss – gemeißelt offen
A14: 22,50 | B14: BDD | C14: C | D14: 5,00 | G14: Wasserspiegel trüb | H14: A
A15: 23,10 | B15: BAF | C15: E / E | E15: 2 - 10 | G15: Oberflächenschaden Zuschlagstoffe fehlen Ursache nicht eindeutig festellbar | H15: B
A16: 23,40 | B16: BCA | C16: C / A | D16: 150,00 | E16: 3 | G16: Anschluss Sattelanschluss – gemeißelt offen
A17: 23,40 | B17: BAH | C17: A | E17: 12 - 12 | G17: Schadhafter Anschluss Lage des Anschlusses um das Rohr ist falsch | J17: €0
A18: 29,50 | B18: BCA | C18: A / A | D18: 150,00 | E18: 2 | G18: Anschluss Abzweig offen
A19: 33,40 | B19: BCA | C19: C / A | D19: 150,00 | E19: 3 | G19: Anschluss Sattelanschluss – gemeißelt offen
A20: 33,40 | B20: BAH | C20: C | E20: 11 - 1 | F20: JA | G20: Schadhafter Anschluss am Umfang des Anschlusses ist teilweise ein Spalt (Anschluss unvollständig eingebunden) | I20: Fräsen,Hut | J20: €450
A21: 34,30 | B21: BDD | C21: C | G21: Wasserspiegel trüb | H21: B
A22: 39,30 | B22: BCA | C22: C / A | D22: 150,00 | E22: 2 | G22: Anschluss Sattelanschluss – gemeißelt offen
A23: 40,00 | B23: BAF | C23: E / E | E23: 2 - 10 | G23: Oberflächenschaden Zuschlagstoffe fehlen Ursache nicht eindeutig festellbar | H23: A
A24: 43,00 | B24: BCA | C24: C / A | D24: 150,00 | E24: 3 | G24: Anschluss Sattelanschluss – gemeißelt offen
A25: 43,00 | B25: BAH | C25: B | E25: 12 - 12 | F25: JA | G25: Schadhafter Anschluss Spalt zwischen dem Ende des Anschlusses und der Rohrleitung (Zurückliegende Anschluss) | J25: €0
A26: 46,20 | B26: BDD | C26: C | D26: 10,00 | G26: Wasserspiegel trüb | H26: A
A27: 47,80 | B27: BDD | C27: C | D27: 5,00 | G27: Wasserspiegel trüb | H27: B
A28: 47,80 | B28: BAF | C28: E / E | E28: 2 - 10 | G28: Oberflächenschaden Zuschlagstoffe fehlen Ursache nicht eindeutig festellbar | H28: B
A29: 47,80 | B29: BCE | C29: XP | G29: Endknoten
G30: netto-Zwischensumme | J30: =SUM(J5:J29) -> €450
A31: Reparatur | G31: Baustelleneinrichtung anteilig Haltung | H31: 10 | J31: =(H31/100)*J30 -> €45
G32: Verkehrssicherung anteilig Haltung | H32: 5 | J32: =(H32/100)*J30 -> €23
A33: Sanierungspriorität | C33: Info | G33: Aufrechterhaltung der Vorflut Haltung | H33: 12 | J33: =(H33/100)*J30 -> €54
A34: kurzfristing | B34: ja oder nein | C34: 6-12 Monate | G34: Kanalreinigung vor Sanierung | H34: 47.8 | I34: 2 | J34: =H34*I34 -> €96
A35: mittelfristig | B35: ja oder nein | C35: 1 bis 5 Jahre | G35: Kamerainspektion Abnahme | H35: 47.8 | I35: 3 | J35: =H35*I35 -> €143
A36: langfristig | B36: ja oder nein | C36: 5 bis 10 Jahre | G36: Summe netto Haltung | J36: =SUM(J30:J35) -> €811
G37: Mehrwertsteuer | H37: 19 | J37: =(H37/100)*J36 -> €154
A38: Sanierung im Verbund | B38: ja oder nein | G38: Summe brutto Haltung | J38: =SUM(J36:J37) -> €964
A43: Haltung | B43: Straße | C43: Inspizierte Länge | D43: Länge | E43: Tiefe | G43: Schadensbeschreibung | I43: Durchmesser | J43: Material
A44: 09342671 | B44: LEIPZIGER STRAßE | C44: 47,80 | D44: 48,80 | E44: Not Implemented yet | I44: 300 | J44: B
A46: Station | B46: Kürzel | C46: Charakterisi. | D46: Quantifizierung | E46: Lage im Kreis | G46: Schadensbeschreibung / Info | H46: Strecke | I46: Sanierungsvorschlag | J46: Kostenans.
A47: 0,00 | B47: BCD | C47: XP | G47: Anfangsknoten
A48: 0,00 | B48: BDD | C48: C | D48: 20,00 | G48: Wasserspiegel trüb | H48: A
A49: 9,40 | B49: BDD | C49: C | G49: Wasserspiegel trüb | H49: B
A50: 13,20 | B50: BCA | C50: C / A | D50: 150,00 | E50: 3 | G50: Anschluss Sattelanschluss – gemeißelt offen | I50: Einmessen,Öffnen,Hut | J50: €490
A51: 13,20 | B51: BAH | C51: B | E51: 12 - 12 | F51: JA | G51: Schadhafter Anschluss Spalt zwischen dem Ende des Anschlusses und der Rohrleitung (Zurückliegende Anschluss)
A52: 14,50 | B52: BBF | C52: A | E52: 2 - 10 | F52: JA | G52: Infiltration Schwitzen
A53: 18,60 | B53: BAF | C53: E / E | E53: 2 - 10 | G53: Oberflächenschaden Zuschlagstoffe fehlen Ursache nicht eindeutig festellbar | H53: A
A54: 19,90 | B54: BCA | C54: C / A | D54: 150,00 | E54: 3 | G54: Anschluss Sattelanschluss – gemeißelt offen | I54: Einmessen,Öffnen,Hut | J54: €490
A55: 20,90 | B55: BCA | C55: C / A | D55: 150,00 | E55: 12 | G55: Anschluss Sattelanschluss – gemeißelt offen | I55: Einmessen,Öffnen,Hut | J55: €490
A56: 22,50 | B56: BDD | C56: C | D56: 5,00 | G56: Wasserspiegel trüb | H56: A
A57: 23,10 | B57: BAF | C57: E / E | E57: 2 - 10 | G57: Oberflächenschaden Zuschlagstoffe fehlen Ursache nicht eindeutig festellbar | H57: B
A58: 23,40 | B58: BCA | C58: C / A | D58: 150,00 | E58: 3 | G58: Anschluss Sattelanschluss – gemeißelt offen | I58: Einmessen,Öffnen,Hut | J58: €490
A59: 23,40 | B59: BAH | C59: A | E59: 12 - 12 | G59: Schadhafter Anschluss Lage des Anschlusses um das Rohr ist falsch
A60: 29,50 | B60: BCA | C60: A / A | D60: 150,00 | E60: 2 | G60: Anschluss Abzweig offen | I60: Einmessen,Öffnen,Hut | J60: €490
A61: 33,40 | B61: BCA | C61: C / A | D61: 150,00 | E61: 3 | G61: Anschluss Sattelanschluss – gemeißelt offen | I61: Einmessen,Öffnen,Hut | J61: €490
A62: 33,40 | B62: BAH | C62: C | E62: 11 - 1 | F62: JA | G62: Schadhafter Anschluss am Umfang des Anschlusses ist teilweise ein Spalt (Anschluss unvollständig eingebunden)
A63: 34,30 | B63: BDD | C63: C | G63: Wasserspiegel trüb | H63: B
A64: 39,30 | B64: BCA | C64: C / A | D64: 150,00 | E64: 2 | G64: Anschluss Sattelanschluss – gemeißelt offen | I64: Einmessen,Öffnen,Hut | J64: €490
A65: 40,00 | B65: BAF | C65: E / E | E65: 2 - 10 | G65: Oberflächenschaden Zuschlagstoffe fehlen Ursache nicht eindeutig festellbar | H65: A
A66: 43,00 | B66: BCA | C66: C / A | D66: 150,00 | E66: 3 | G66: Anschluss Sattelanschluss – gemeißelt offen | I66: Einmessen,Öffnen,Hut | J66: €490
A67: 43,00 | B67: BAH | C67: B | E67: 12 - 12 | F67: JA | G67: Schadhafter Anschluss Spalt zwischen dem Ende des Anschlusses und der Rohrleitung (Zurückliegende Anschluss)
A68: 46,20 | B68: BDD | C68: C | D68: 10,00 | G68: Wasserspiegel trüb | H68: A
A69: 47,80 | B69: BDD | C69: C | D69: 5,00 | G69: Wasserspiegel trüb | H69: B
A70: 47,80 | B70: BAF | C70: E / E | E70: 2 - 10 | G70: Oberflächenschaden Zuschlagstoffe fehlen Ursache nicht eindeutig festellbar | H70: B
A71: 47,80 | B71: BCE | C71: XP | G71: Endknoten | I71: Schlauchliner | J71: €4,880
G72: netto-Zwischensumme | J72: =SUM(J47:J71) -> €8,800
A73: Renovation | G73: Baustelleneinrichtung anteilig Haltung | H73: 10 | J73: =(H73/100)*J72 -> €880
G74: Verkehrssicherung anteilig Haltung | H74: 5 | J74: =(H74/100)*J72 -> €440
A75: Sanierungspriorität | C75: Info | G75: Aufrechterhaltung der Vorflut Haltung | H75: 12 | J75: =(H75/100)*J72 -> €1,056
A76: kurzfristing | B76: ja oder nein | C76: 6-12 Monate | G76: Kanalreinigung vor Sanierung | H76: 47.8 | I76: 2 | J76: =H76*I76 -> €96
A77: mittelfristig | B77: ja oder nein | C77: 1 bis 5 Jahre | G77: Kamerainspektion Abnahme | H77: 47.8 | I77: 3 | J77: =H77*I77 -> €143
A78: langfristig | B78: ja oder nein | C78: 5 bis 10 Jahre | G78: Summe netto Haltung | J78: =SUM(J72:J77) -> €11,415
G79: Mehrwertsteuer | H79: 19 | J79: =(H79/100)*J78 -> €2,169
A80: Sanierung im Verbund | B80: ja oder nein | G80: Summe brutto Haltung | J80: =SUM(J78:J79) -> €13,584

Sheet 09342829
A1: Haltung | B1: Straße | C1: Inspizierte Länge | D1: Länge | E1: Tiefe | G1: Schadensbeschreibung | I1: Durchmesser | J1: Material
A2: 09342829 | B2: BERLINER STRAßE | C2: 62,00 | D2: 62,80 | E2: Not Implemented yet | I2: 200 | J2: B
A4: Station | B4: Kürzel | C4: Charakterisi. | D4: Quantifizierung | E4: Lage im Kreis | G4: Schadensbeschreibung / Info | H4: Strecke | I4: Sanierungsvorschlag | J4: Kostenans.
A5: 0,00 | B5: BCD | C5: XP | G5: Anfangsknoten
A6: 0,00 | B6: BAF | C6: E / E | E6: 12 - 12 | G6: Oberflächenschaden Zuschlagstoffe fehlen Ursache nicht eindeutig festellbar | H6: A
A7: 0,00 | B7: BAB | C7: B / C | D7: 2,00 | E7: 12 - 12 | G7: Rissbildung Riss komplexe Rissbildung | H7: A
A8: 1,20 | B8: BAB | C8: B / C | D8: 2,00 | E8: 12 - 12 | G8: Rissbildung Riss komplexe Rissbildung | H8: B
A9: 2,00 | B9: BDD | C9: C | D9: 15,00 | G9: Wasserspiegel trüb | H9: A
A10: 5,30 | B10: BAN | E10: 4 - 8 | G10: Poröses Rohr | H10: A
A11: 7,90 | B11: BDD | C11: C | D11: 3,00 | G11: Wasserspiegel trüb | H11: B
A12: 10,20 | B12: BAN | E12: 4 - 8 | G12: Poröses Rohr | H12: C
A13: 10,20 | B13: BAF | C13: E / E | E13: 12 - 12 | G13: Oberflächenschaden Zuschlagstoffe fehlen Ursache nicht eindeutig festellbar | H13: C
A14: 13,20 | B14: BAF | C14: E / E | E14: 12 - 12 | G14: Oberflächenschaden Zuschlagstoffe fehlen Ursache nicht eindeutig festellbar | H14: C
A15: 14,80 | B15: BDD | C15: C | D15: 15,00 | G15: Wasserspiegel trüb | H15: A
A16: 15,90 | B16: BAB | C16: B / A | D16: 2,00 | E16: 3 - 4 | G16: Rissbildung Riss in Längsrichtung | H16: A
A17: 16,00 | B17: BAH | C17: A | E17: 9 - 12 | G17: Schadhafter Anschluss Lage des Anschlusses um das Rohr ist falsch | J17: €0
A18: 16,00 | B18: BAG | D18: 10,00 | E18: 9 - 12 | G18: Einragender Anschluss | I18: Fräsen | J18: €50
A19: 16,00 | B19: BCA | C19: C / A | D19: 150,00 | E19: 10 | G19: Anschluss Sattelanschluss – gemeißelt offen
A20: 16,10 | B20: BAB | C20: B / A | D20: 2,00 | E20: 3 - 4 | G20: Rissbildung Riss in Längsrichtung | H20: B
A21: 17,20 | B21: BDD | C21: C | D21: 20,00 | G21: Wasserspiegel trüb | H21: C
A22: 17,40 | B22: BCA | C22: C / A | D22: 150,00 | E22: 10 | G22: Anschluss Sattelanschluss – gemeißelt offen
A23: 20,10 | B23: BAF | C23: E / E | E23: 12 - 12 | G23: Oberflächenschaden Zuschlagstoffe fehlen Ursache nicht eindeutig festellbar | H23: C
A24: 24,60 | B24: BAC | C24: B | D24: 300,00 | E24: 7 - 9 | G24: Rohrbruch / Einsturz Fehlen von Teilen
A25: 24,60 | B25: BAP | E25: 7 - 9 | G25: Hohlraum sichtbar
A26: 24,60 | B26: BAF | C26: I / E | E26: 7 - 9 | G26: Oberflächenschaden fehlende Wand Ursache nicht eindeutig festellbar
A27: 24,70 | B27: BCA | C27: C / A | D27: 150,00 | E27: 10 | G27: Anschluss Sattelanschluss – gemeißelt offen
A28: 26,10 | B28: BAF | C28: E / E | E28: 12 - 12 | G28: Oberflächenschaden Zuschlagstoffe fehlen Ursache nicht eindeutig festellbar | H28: C
A29: 26,30 | B29: BAG | D29: 15,00 | E29: 8 - 11 | G29: Einragender Anschluss | I29: Fräsen | J29: €50
A30: 26,30 | B30: BCA | C30: C / A | D30: 150,00 | E30: 10 | G30: Anschluss Sattelanschluss – gemeißelt offen
A31: 28,80 | B31: BDD | C31: C | D31: 20,00 | G31: Wasserspiegel trüb | H31: B
A32: 33,50 | B32: BAG | D32: 20,00 | E32: 9 - 12 | G32: Einragender Anschluss | I32: Fräsen | J32: €50
A33: 33,50 | B33: BCA | C33: C / A | D33: 150,00 | E33: 10 | G33: Anschluss Sattelanschluss – gemeißelt offen
A34: 33,50 | B34: BAH | C34: C | E34: 12 - 12 | G34: Schadhafter Anschluss am Umfang des Anschlusses ist teilweise ein Spalt (Anschluss unvollständig eingebunden) | I34: Fräsen,Hut | J34: €450
A35: 35,20 | B35: BAF | C35: I / E | E35: 2 - 4 | G35: Oberflächenschaden fehlende Wand Ursache nicht eindeutig festellbar
A36: 35,30 | B36: BAH | C36: A | E36: 9 - 12 | G36: Schadhafter Anschluss Lage des Anschlusses um das Rohr ist falsch | J36: €0
A37: 35,30 | B37: BCA | C37: C / A | D37: 150,00 | E37: 11 | G37: Anschluss Sattelanschluss – gemeißelt offen
A38: 39,00 | B38: BAB | C38: B / A | D38: 3,00 | E38: 5 - 7 | G38: Rissbildung Riss in Längsrichtung | H38: A
A39: 40,10 | B39: BAB | C39: B / A | D39: 3,00 | E39: 5 - 7 | G39: Rissbildung Riss in Längsrichtung | H39: B
A40: 42,60 | B40: BAG | D40: 10,00 | E40: 9 - 11 | G40: Einragender Anschluss | I40: Fräsen | J40: €50
A41: 42,60 | B41: BCA | C41: C / A | D41: 150,00 | E41: 10 | G41: Anschluss Sattelanschluss – gemeißelt offen
A42: 44,70 | B42: BAF | C42: I / E | E42: 3 - 5 | G42: Oberflächenschaden fehlende Wand Ursache nicht eindeutig festellbar
A43: 44,70 | B43: BAP | E43: 3 - 5 | G43: Hohlraum sichtbar
A44: 44,70 | B44: BAG | D44: 10,00 | E44: 9 - 11 | G44: Einragender Anschluss | I44: Fräsen | J44: €50
A45: 44,70 | B45: BCA | C45: C / A | D45: 150,00 | E45: 10 | G45: Anschluss Sattelanschluss – gemeißelt offen
A46: 51,50 | B46: BAF | C46: I / E | E46: 6 - 9 | G46: Oberflächenschaden fehlende Wand Ursache nicht eindeutig festellbar
A47: 51,50 | B47: BAP | E47: 6 - 9 | G47: Hohlraum sichtbar
A48: 51,60 | B48: BCA | C48: C / A | D48: 125,00 | E48: 10 | G48: Anschluss Sattelanschluss – gemeißelt offen
A49: 52,90 | B49: BAB | C49: B / B | D49: 3,00 | E49: 12 - 12 | G49: Rissbildung Riss am Rohrumfang
A50: 53,40 | B50: BCA | C50: C / A | D50: 150,00 | E50: 10 | G50: Anschluss Sattelanschluss – gemeißelt offen
A51: 60,70 | B51: BCA | C51: C / A | D51: 150,00 | E51: 10 | G51: Anschluss Sattelanschluss – gemeißelt offen
A52: 60,80 | B52: BAC | C52: B | D52: 50,00 | E52: 8 - 9 | G52: Rohrbruch / Einsturz Fehlen von Teilen
A53: 60,80 | B53: BAP | E53: 8 - 9 | G53: Hohlraum sichtbar
A54: 61,40 | B54: BAN | E54: 4 - 8 | G54: Poröses Rohr | H54: B
A55: 61,40 | B55: BAF | C55: E / E | E55: 12 - 12 | G55: Oberflächenschaden Zuschlagstoffe fehlen Ursache nicht eindeutig festellbar | H55: B
A56: 62,00 | B56: BCE | C56: XP | G56: Endknoten
G57: netto-Zwischensumme | J57: =SUM(J5:J56) -> €700
A58: Reparatur | G58: Baustelleneinrichtung anteilig Haltung | H58: 10 | J58: =(H58/100)*J57 -> €70
G59: Verkehrssicherung anteilig Haltung | H59: 5 | J59: =(H59/100)*J57 -> €35
A60: Sanierungspriorität | C60: Info | G60: Aufrechterhaltung der Vorflut Haltung | H60: 12 | J60: =(H60/100)*J57 -> €84
A61: kurzfristing | B61: ja oder nein | C61: 6-12 Monate | G61: Kanalreinigung vor Sanierung | H61: 62 | I61: 2 | J61: =H61*I61 -> €124
A62: mittelfristig | B62: ja oder nein | C62: 1 bis 5 Jahre | G62: Kamerainspektion Abnahme | H62: 62 | I62: 3 | J62: =H62*I62 -> €186
A63: langfristig | B63: ja oder nein | C63: 5 bis 10 Jahre | G63: Summe netto Haltung | J63: =SUM(J57:J62) -> €1,199
G64: Mehrwertsteuer | H64: 19 | J64: =(H64/100)*J63 -> €228
A65: Sanierung im Verbund | B65: ja oder nein | G65: Summe brutto Haltung | J65: =SUM(J63:J64) -> €1,427
A70: Haltung | B70: Straße | C70: Inspizierte Länge | D70: Länge | E70: Tiefe | G70: Schadensbeschreibung | I70: Durchmesser | J70: Material
A71: 09342829 | B71: BERLINER STRAßE | C71: 62,00 | D71: 62,80 | E71: Not Implemented yet | I71: 200 | J71: B
A73: Station | B73: Kürzel | C73: Charakterisi. | D73: Quantifizierung | E73: Lage im Kreis | G73: Schadensbeschreibung / Info | H73: Strecke | I73: Sanierungsvorschlag | J73: Kostenans.
A74: 0,00 | B74: BCD | C74: XP | G74: Anfangsknoten
A75: 0,00 | B75: BAF | C75: E / E | E75: 12 - 12 | G75: Oberflächenschaden Zuschlagstoffe fehlen Ursache nicht eindeutig festellbar | H75: A
A76: 0,00 | B76: BAB | C76: B / C | D76: 2,00 | E76: 12 - 12 | G76: Rissbildung Riss komplexe Rissbildung | H76: A
A77: 1,20 | B77: BAB | C77: B / C | D77: 2,00 | E77: 12 - 12 | G77: Rissbildung Riss komplexe Rissbildung | H77: B
A78: 2,00 | B78: BDD | C78: C | D78: 15,00 | G78: Wasserspiegel trüb | H78: A
A79: 5,30 | B79: BAN | E79: 4 - 8 | G79: Poröses Rohr | H79: A
A80: 7,90 | B80: BDD | C80: C | D80: 3,00 | G80: Wasserspiegel trüb | H80: B
A81: 10,20 | B81: BAN | E81: 4 - 8 | G81: Poröses Rohr | H81: C
A82: 10,20 | B82: BAF | C82: E / E | E82: 12 - 12 | G82: Oberflächenschaden Zuschlagstoffe fehlen Ursache nicht eindeutig festellbar | H82: C
A83: 13,20 | B83: BAF | C83: E / E | E83: 12 - 12 | G83: Oberflächenschaden Zuschlagstoffe fehlen Ursache nicht eindeutig festellbar | H83: C
A84: 14,80 | B84: BDD | C84: C | D84: 15,00 | G84: Wasserspiegel trüb | H84: A
A85: 15,90 | B85: BAB | C85: B / A | D85: 2,00 | E85: 3 - 4 | G85: Rissbildung Riss in Längsrichtung | H85: A
A86: 16,00 | B86: BAH | C86: A | E86: 9 - 12 | G86: Schadhafter Anschluss Lage des Anschlusses um das Rohr ist falsch
A87: 16,00 | B87: BAG | D87: 10,00 | E87: 9 - 12 | G87: Einragender Anschluss
A88: 16,00 | B88: BCA | C88: C / A | D88: 150,00 | E88: 10 | G88: Anschluss Sattelanschluss – gemeißelt offen | I88: Einmessen,Öffnen,Hut | J88: €490
A89: 16,10 | B89: BAB | C89: B / A | D89: 2,00 | E89: 3 - 4 | G89: Rissbildung Riss in Längsrichtung | H89: B
A90: 17,20 | B90: BDD | C90: C | D90: 20,00 | G90: Wasserspiegel trüb | H90: C
A91: 17,40 | B91: BCA | C91: C / A | D91: 150,00 | E91: 10 | G91: Anschluss Sattelanschluss – gemeißelt offen | I91: Einmessen,Öffnen,Hut | J91: €490
A92: 20,10 | B92: BAF | C92: E / E | E92: 12 - 12 | G92: Oberflächenschaden Zuschlagstoffe fehlen Ursache nicht eindeutig festellbar | H92: C
A93: 24,60 | B93: BAC | C93: B | D93: 300,00 | E93: 7 - 9 | G93: Rohrbruch / Einsturz Fehlen von Teilen
A94: 24,60 | B94: BAP | E94: 7 - 9 | G94: Hohlraum sichtbar
A95: 24,60 | B95: BAF | C95: I / E | E95: 7 - 9 | G95: Oberflächenschaden fehlende Wand Ursache nicht eindeutig festellbar
A96: 24,70 | B96: BCA | C96: C / A | D96: 150,00 | E96: 10 | G96: Anschluss Sattelanschluss – gemeißelt offen | I96: Einmessen,Öffnen,Hut | J96: €490
A97: 26,10 | B97: BAF | C97: E / E | E97: 12 - 12 | G97: Oberflächenschaden Zuschlagstoffe fehlen Ursache nicht eindeutig festellbar | H97: C
A98: 26,30 | B98: BAG | D98: 15,00 | E98: 8 - 11 | G98: Einragender Anschluss
A99: 26,30 | B99: BCA | C99: C / A | D99: 150,00 | E99: 10 | G99: Anschluss Sattelanschluss – gemeißelt offen | I99: Einmessen,Öffnen,Hut | J99: €490
A100: 28,80 | B100: BDD | C100: C | D100: 20,00 | G100: Wasserspiegel trüb | H100: B
A101: 33,50 | B101: BAG | D101: 20,00 | E101: 9 - 12 | G101: Einragender Anschluss
A102: 33,50 | B102: BCA | C102: C / A | D102: 150,00 | E102: 10 | G102: Anschluss Sattelanschluss – gemeißelt offen | I102: Einmessen,Öffnen,Hut | J102: €490
A103: 33,50 | B103: BAH | C103: C | E103: 12 - 12 | G103: Schadhafter Anschluss am Umfang des Anschlusses ist teilweise ein Spalt (Anschluss unvollständig eingebunden)
A104: 35,20 | B104: BAF | C104: I / E | E104: 2 - 4 | G104: Oberflächenschaden fehlende Wand Ursache nicht eindeutig festellbar
A105: 35,30 | B105: BAH | C105: A | E105: 9 - 12 | G105: Schadhafter Anschluss Lage des Anschlusses um das Rohr ist falsch
A106: 35,30 | B106: BCA | C106: C / A | D106: 150,00 | E106: 11 | G106: Anschluss Sattelanschluss – gemeißelt offen | I106: Einmessen,Öffnen,Hut | J106: €490
A107: 39,00 | B107: BAB | C107: B / A | D107: 3,00 | E107: 5 - 7 | G107: Rissbildung Riss in Längsrichtung | H107: A
A108: 40,10 | B108: BAB | C108: B / A | D108: 3,00 | E108: 5 - 7 | G108: Rissbildung Riss in Längsrichtung | H108: B
A109: 42,60 | B109: BAG | D109: 10,00 | E109: 9 - 11 | G109: Einragender Anschluss
A110: 42,60 | B110: BCA | C110: C / A | D110: 150,00 | E110: 10 | G110: Anschluss Sattelanschluss – gemeißelt offen | I110: Einmessen,Öffnen,Hut | J110: €490
A111: 44,70 | B111: BAF | C111: I / E | E111: 3 - 5 | G111: Oberflächenschaden fehlende Wand Ursache nicht eindeutig festellbar
A112: 44,70 | B112: BAP | E112: 3 - 5 | G112: Hohlraum sichtbar
A113: 44,70 | B113: BAG | D113: 10,00 | E113: 9 - 11 | G113: Einragender Anschluss
A114: 44,70 | B114: BCA | C114: C / A | D114: 150,00 | E114: 10 | G114: Anschluss Sattelanschluss – gemeißelt offen | I114: Einmessen,Öffnen,Hut | J114: €490
A115: 51,50 | B115: BAF | C115: I / E | E115: 6 - 9 | G115: Oberflächenschaden fehlende Wand Ursache nicht eindeutig festellbar
A116: 51,50 | B116: BAP | E116: 6 - 9 | G116: Hohlraum sichtbar
A117: 51,60 | B117: BCA | C117: C / A | D117: 125,00 | E117: 10 | G117: Anschluss Sattelanschluss – gemeißelt offen | I117: Einmessen,Öffnen,Hut | J117: €490
A118: 52,90 | B118: BAB | C118: B / B | D118: 3,00 | E118: 12 - 12 | G118: Rissbildung Riss am Rohrumfang
A119: 53,40 | B119: BCA | C119: C / A | D119: 150,00 | E119: 10 | G119: Anschluss Sattelanschluss – gemeißelt offen | I119: Einmessen,Öffnen,Hut | J119: €490
A120: 60,70 | B120: BCA | C120: C / A | D120: 150,00 | E120: 10 | G120: Anschluss Sattelanschluss – gemeißelt offen | I120: Einmessen,Öffnen,Hut | J120: €490
A121: 60,80 | B121: BAC | C121: B | D121: 50,00 | E121: 8 - 9 | G121: Rohrbruch / Einsturz Fehlen von Teilen
A122: 60,80 | B122: BAP | E122: 8 - 9 | G122: Hohlraum sichtbar
A123: 61,40 | B123: BAN | E123: 4 - 8 | G123: Poröses Rohr | H123: B
A124: 61,40 | B124: BAF | C124: E / E | E124: 12 - 12 | G124: Oberflächenschaden Zuschlagstoffe fehlen Ursache nicht eindeutig festellbar | H124: B
A125: 62,00 | B125: BCE | C125: XP | G125: Endknoten | I125: Schlauchliner | J125: €6,280
G126: netto-Zwischensumme | J126: =SUM(J74:J125) -> €11,670
A127: Renovation | G127: Baustelleneinrichtung anteilig Haltung | H127: 10 | J127: =(H127/100)*J126 -> €1,167
G128: Verkehrssicherung anteilig Haltung | H128: 5 | J128: =(H128/100)*J126 -> €584
A129: Sanierungspriorität | C129: Info | G129: Aufrechterhaltung der Vorflut Haltung | H129: 12 | J129: =(H129/100)*J126 -> €1,400
A130: kurzfristing | B130: ja oder nein | C130: 6-12 Monate | G130: Kanalreinigung vor Sanierung | H130: 62 | I130: 2 | J130: =H130*I130 -> €124
A131: mittelfristig | B131: ja oder nein | C131: 1 bis 5 Jahre | G131: Kamerainspektion Abnahme | H131: 62 | I131: 3 | J131: =H131*I131 -> €186
A132: langfristig | B132: ja oder nein | C132: 5 bis 10 Jahre | G132: Summe netto Haltung | J132: =SUM(J126:J131) -> €15,131
G133: Mehrwertsteuer | H133: 19 | J133: =(H133/100)*J132 -> €2,875
A134: Sanierung im Verbund | B134: ja oder nein | G134: Summe brutto Haltung | J134: =SUM(J132:J133) -> €18,006

Sheet 09342831
A1: Haltung | B1: Straße | C1: Inspizierte Länge | D1: Länge | E1: Tiefe | G1: Schadensbeschreibung | I1: Durchmesser | J1: Material
A2: 09342831 | B2: LEIPZIGER STRAßE | C2: 42,30 | D2: 43,30 | E2: Not Implemented yet | I2: 200 | J2: B
A4: Station | B4: Kürzel | C4: Charakterisi. | D4: Quantifizierung | E4: Lage im Kreis | G4: Schadensbeschreibung / Info | H4: Strecke | I4: Sanierungsvorschlag | J4: Kostenans.
A5: 0,00 | B5: BCD | C5: XP | G5: Anfangsknoten
A6: 1,20 | B6: BAF | C6: E / E | E6: 2 - 10 | G6: Oberflächenschaden Zuschlagstoffe fehlen Ursache nicht eindeutig festellbar | H6: A
A7: 1,20 | B7: BAJ | C7: C | D7: 10,00 | E7: 6 | F7: JA | G7: Verschobene Verbindung im Winkel | I7: Fräsen | J7: €50
A8: 1,20 | B8: BAJ | C8: B | D8: 20,00 | E8: 12 | F8: JA | G8: Verschobene Verbindung radial | I8: Fräsen | J8: €50
A9: 2,10 | B9: BAC | C9: A | D9: 200,00 | E9: 12 - 12 | G9: Rohrbruch / Einsturz Bruch
A10: 2,10 | B10: BAO | E10: 12 - 12 | G10: Boden sichtbar
A11: 4,00 | B11: BBA | C11: B | D11: 5,00 | E11: 6 - 8 | F11: JA | G11: Wurzeln einzelne feine Wurzeln | I11: Fräsen | J11: €50
A12: 5,00 | B12: BAF | C12: E / E | E12: 2 - 10 | G12: Oberflächenschaden Zuschlagstoffe fehlen Ursache nicht eindeutig festellbar | H12: C
A13: 8,50 | B13: BAH | C13: B | E13: 2 - 10 | G13: Schadhafter Anschluss Spalt zwischen dem Ende des Anschlusses und der Rohrleitung (Zurückliegende Anschluss) | J13: €0
A14: 8,50 | B14: BCA | C14: C / A | D14: 150,00 | E14: 10 | G14: Anschluss Sattelanschluss – gemeißelt offen
A15: 15,00 | B15: BAH | C15: A | E15: 8 - 1 | G15: Schadhafter Anschluss Lage des Anschlusses um das Rohr ist falsch | J15: €0
A16: 15,00 | B16: BCA | C16: C / A | D16: 150,00 | E16: 10 | G16: Anschluss Sattelanschluss – gemeißelt offen
A17: 15,00 | B17: BAC | C17: A | D17: 300,00 | E17: 10 - 2 | F17: JA | G17: Rohrbruch / Einsturz Bruch
A18: 15,10 | B18: BAF | C18: E / E | E18: 2 - 10 | G18: Oberflächenschaden Zuschlagstoffe fehlen Ursache nicht eindeutig festellbar | H18: C
A19: 15,60 | B19: BAH | C19: A | E19: 8 - 1 | G19: Schadhafter Anschluss Lage des Anschlusses um das Rohr ist falsch | J19: €0
A20: 15,60 | B20: BCA | C20: C / A | D20: 150,00 | E20: 10 | G20: Anschluss Sattelanschluss – gemeißelt offen
A21: 21,70 | B21: BAH | C21: A | E21: 8 - 1 | G21: Schadhafter Anschluss Lage des Anschlusses um das Rohr ist falsch | J21: €0
A22: 21,70 | B22: BCA | C22: C / A | D22: 150,00 | E22: 10 | G22: Anschluss Sattelanschluss – gemeißelt offen
A23: 22,40 | B23: BAH | C23: A | E23: 8 - 1 | G23: Schadhafter Anschluss Lage des Anschlusses um das Rohr ist falsch | J23: €0
A24: 22,40 | B24: BCA | C24: C / A | D24: 150,00 | E24: 9 | G24: Anschluss Sattelanschluss – gemeißelt offen
A25: 28,60 | B25: BAH | C25: A | E25: 8 - 1 | G25: Schadhafter Anschluss Lage des Anschlusses um das Rohr ist falsch | J25: €0
A26: 28,60 | B26: BCA | C26: C / A | D26: 150,00 | E26: 9 | G26: Anschluss Sattelanschluss – gemeißelt offen
A27: 29,10 | B27: BAC | C27: B | D27: 100,00 | E27: 7 - 9 | F27: JA | G27: Rohrbruch / Einsturz Fehlen von Teilen
A28: 29,10 | B28: BAP | E28: 7 - 9 | F28: JA | G28: Hohlraum sichtbar
A29: 29,20 | B29: BCA | C29: C / A | D29: 150,00 | E29: 9 | G29: Anschluss Sattelanschluss – gemeißelt offen
A30: 35,50 | B30: BAH | C30: A | E30: 8 - 1 | G30: Schadhafter Anschluss Lage des Anschlusses um das Rohr ist falsch | J30: €0
A31: 35,50 | B31: BCA | C31: C / A | D31: 150,00 | E31: 9 | G31: Anschluss Sattelanschluss – gemeißelt offen
A32: 36,00 | B32: BCA | C32: C / A | D32: 150,00 | E32: 10 | G32: Anschluss Sattelanschluss – gemeißelt offen
A33: 41,60 | B33: BCA | C33: C / A | D33: 150,00 | E33: 9 | G33: Anschluss Sattelanschluss – gemeißelt offen
A34: 42,30 | B34: BAF | C34: E / E | E34: 2 - 10 | G34: Oberflächenschaden Zuschlagstoffe fehlen Ursache nicht eindeutig festellbar | H34: B
A35: 42,30 | B35: BCE | C35: XP | G35: Endknoten
G36: netto-Zwischensumme | J36: =SUM(J5:J35) -> €150
A37: Reparatur | G37: Baustelleneinrichtung anteilig Haltung | H37: 10 | J37: =(H37/100)*J36 -> €15
G38: Verkehrssicherung anteilig Haltung | H38: 5 | J38: =(H38/100)*J36 -> €8
A39: Sanierungspriorität | C39: Info | G39: Aufrechterhaltung der Vorflut Haltung | H39: 12 | J39: =(H39/100)*J36 -> €18
A40: kurzfristing | B40: ja oder nein | C40: 6-12 Monate | G40: Kanalreinigung vor Sanierung | H40: 42.3 | I40: 2 | J40: =H40*I40 -> €85
A41: mittelfristig | B41: ja oder nein | C41: 1 bis 5 Jahre | G41: Kamerainspektion Abnahme | H41: 42.3 | I41: 3 | J41: =H41*I41 -> €127
A42: langfristig | B42: ja oder nein | C42: 5 bis 10 Jahre | G42: Summe netto Haltung | J42: =SUM(J36:J41) -> €402
G43: Mehrwertsteuer | H43: 19 | J43: =(H43/100)*J42 -> €76
A44: Sanierung im Verbund | B44: ja oder nein | G44: Summe brutto Haltung | J44: =SUM(J42:J43) -> €478
A49: Haltung | B49: Straße | C49: Inspizierte Länge | D49: Länge | E49: Tiefe | G49: Schadensbeschreibung | I49: Durchmesser | J49: Material
A50: 09342831 | B50: LEIPZIGER STRAßE | C50: 42,30 | D50: 43,30 | E50: Not Implemented yet | I50: 200 | J50: B
A52: Station | B52: Kürzel | C52: Charakterisi. | D52: Quantifizierung | E52: Lage im Kreis | G52: Schadensbeschreibung / Info | H52: Strecke | I52: Sanierungsvorschlag | J52: Kostenans.
A53: 0,00 | B53: BCD | C53: XP | G53: Anfangsknoten
A54: 1,20 | B54: BAF | C54: E / E | E54: 2 - 10 | G54: Oberflächenschaden Zuschlagstoffe fehlen Ursache nicht eindeutig festellbar | H54: A
A55: 1,20 | B55: BAJ | C55: C | D55: 10,00 | E55: 6 | F55: JA | G55: Verschobene Verbindung im Winkel | I55: Fräsen | J55: €50
A56: 1,20 | B56: BAJ | C56: B | D56: 20,00 | E56: 12 | F56: JA | G56: Verschobene Verbindung radial | I56: Fräsen | J56: €50
A57: 2,10 | B57: BAC | C57: A | D57: 200,00 | E57: 12 - 12 | G57: Rohrbruch / Einsturz Bruch
A58: 2,10 | B58: BAO | E58: 12 - 12 | G58: Boden sichtbar
A59: 4,00 | B59: BBA | C59: B | D59: 5,00 | E59: 6 - 8 | F59: JA | G59: Wurzeln einzelne feine Wurzeln | I59: Fräsen | J59: €50
A60: 5,00 | B60: BAF | C60: E / E | E60: 2 - 10 | G60: Oberflächenschaden Zuschlagstoffe fehlen Ursache nicht eindeutig festellbar | H60: C
A61: 8,50 | B61: BAH | C61: B | E61: 2 - 10 | G61: Schadhafter Anschluss Spalt zwischen dem Ende des Anschlusses und der Rohrleitung (Zurückliegende Anschluss)
A62: 8,50 | B62: BCA | C62: C / A | D62: 150,00 | E62: 10 | G62: Anschluss Sattelanschluss – gemeißelt offen | I62: Einmessen,Öffnen,Hut | J62: €490
A63: 15,00 | B63: BAH | C63: A | E63: 8 - 1 | G63: Schadhafter Anschluss Lage des Anschlusses um das Rohr ist falsch
A64: 15,00 | B64: BCA | C64: C / A | D64: 150,00 | E64: 10 | G64: Anschluss Sattelanschluss – gemeißelt offen | I64: Einmessen,Öffnen,Hut | J64: €490
A65: 15,00 | B65: BAC | C65: A | D65: 300,00 | E65: 10 - 2 | F65: JA | G65: Rohrbruch / Einsturz Bruch
A66: 15,10 | B66: BAF | C66: E / E | E66: 2 - 10 | G66: Oberflächenschaden Zuschlagstoffe fehlen Ursache nicht eindeutig festellbar | H66: C
A67: 15,60 | B67: BAH | C67: A | E67: 8 - 1 | G67: Schadhafter Anschluss Lage des Anschlusses um das Rohr ist falsch
A68: 15,60 | B68: BCA | C68: C / A | D68: 150,00 | E68: 10 | G68: Anschluss Sattelanschluss – gemeißelt offen | I68: Einmessen,Öffnen,Hut | J68: €490
A69: 21,70 | B69: BAH | C69: A | E69: 8 - 1 | G69: Schadhafter Anschluss Lage des Anschlusses um das Rohr ist falsch
A70: 21,70 | B70: BCA | C70: C / A | D70: 150,00 | E70: 10 | G70: Anschluss Sattelanschluss – gemeißelt offen | I70: Einmessen,Öffnen,Hut | J70: €490
A71: 22,40 | B71: BAH | C71: A | E71: 8 - 1 | G71: Schadhafter Anschluss Lage des Anschlusses um das Rohr ist falsch
A72: 22,40 | B72: BCA | C72: C / A | D72: 150,00 | E72: 9 | G72: Anschluss Sattelanschluss – gemeißelt offen | I72: Einmessen,Öffnen,Hut | J72: €490
A73: 28,60 | B73: BAH | C73: A | E73: 8 - 1 | G73: Schadhafter Anschluss Lage des Anschlusses um das Rohr ist falsch
A74: 28,60 | B74: BCA | C74: C / A | D74: 150,00 | E74: 9 | G74: Anschluss Sattelanschluss – gemeißelt offen | I74: Einmessen,Öffnen,Hut | J74: €490
A75: 29,10 | B75: BAC | C75: B | D75: 100,00 | E75: 7 - 9 | F75: JA | G75: Rohrbruch / Einsturz Fehlen von Teilen
A76: 29,10 | B76: BAP | E76: 7 - 9 | F76: JA | G76: Hohlraum sichtbar
A77: 29,20 | B77: BCA | C77: C / A | D77: 150,00 | E77: 9 | G77: Anschluss Sattelanschluss – gemeißelt offen | I77: Einmessen,Öffnen,Hut | J77: €490
A78: 35,50 | B78: BAH | C78: A | E78: 8 - 1 | G78: Schadhafter Anschluss Lage des Anschlusses um das Rohr ist falsch
A79: 35,50 | B79: BCA | C79: C / A | D79: 150,00 | E79: 9 | G79: Anschluss Sattelanschluss – gemeißelt offen | I79: Einmessen,Öffnen,Hut | J79: €490
A80: 36,00 | B80: BCA | C80: C / A | D80: 150,00 | E80: 10 | G80: Anschluss Sattelanschluss – gemeißelt offen | I80: Einmessen,Öffnen,Hut | J80: €490
A81: 41,60 | B81: BCA | C81: C / A | D81: 150,00 | E81: 9 | G81: Anschluss Sattelanschluss – gemeißelt offen | I81: Einmessen,Öffnen,Hut | J81: €490
A82: 42,30 | B82: BAF | C82: E / E | E82: 2 - 10 | G82: Oberflächenschaden Zuschlagstoffe fehlen Ursache nicht eindeutig festellbar | H82: B
A83: 42,30 | B83: BCE | C83: XP | G83: Endknoten | I83: Schlauchliner | J83: €4,330
G84: netto-Zwischensumme | J84: =SUM(J53:J83) -> €9,380
A85: Renovation | G85: Baustelleneinrichtung anteilig Haltung | H85: 10 | J85: =(H85/100)*J84 -> €938
G86: Verkehrssicherung anteilig Haltung | H86: 5 | J86: =(H86/100)*J84 -> €469
A87: Sanierungspriorität | C87: Info | G87: Aufrechterhaltung der Vorflut Haltung | H87: 12 | J87: =(H87/100)*J84 -> €1,126
A88: kurzfristing | B88: ja oder nein | C88: 6-12 Monate | G88: Kanalreinigung vor Sanierung | H88: 42.3 | I88: 2 | J88: =H88*I88 -> €85
A89: mittelfristig | B89: ja oder nein | C89: 1 bis 5 Jahre | G89: Kamerainspektion Abnahme | H89: 42.3 | I89: 3 | J89: =H89*I89 -> €127
A90: langfristig | B90: ja oder nein | C90: 5 bis 10 Jahre | G90: Summe netto Haltung | J90: =SUM(J84:J89) -> €12,124
G91: Mehrwertsteuer | H91: 19 | J91: =(H91/100)*J90 -> €2,304
A92: Sanierung im Verbund | B92: ja oder nein | G92: Summe brutto Haltung | J92: =SUM(J90:J91) -> €14,428

Sheet 09342832
A1: Haltung | B1: Straße | C1: Inspizierte Länge | D1: Länge | E1: Tiefe | G1: Schadensbeschreibung | I1: Durchmesser | J1: Material
A2: 09342832 | B2: LEIPZIGER STRAßE | C2: 42,90 | D2: 43,60 | E2: Not Implemented yet | I2: 200 | J2: B
A4: Station | B4: Kürzel | C4: Charakterisi. | D4: Quantifizierung | E4: Lage im Kreis | G4: Schadensbeschreibung / Info | H4: Strecke | I4: Sanierungsvorschlag | J4: Kostenans.
A5: 0,00 | B5: BCD | C5: XP | G5: Anfangsknoten
A6: 0,00 | B6: BAF | C6: A / E | E6: 4 - 8 | G6: Oberflächenschaden erhöhte Rauheit Ursache nicht eindeutig festellbar | H6: A
A7: 1,20 | B7: BAC | C7: A | D7: 300,00 | E7: 8 - 4 | G7: Rohrbruch / Einsturz Bruch
A8: 4,10 | B8: BAF | C8: E / E | E8: 2 - 10 | G8: Oberflächenschaden Zuschlagstoffe fehlen Ursache nicht eindeutig festellbar | H8: A
A9: 4,80 | B9: BAF | C9: E / E | E9: 2 - 10 | G9: Oberflächenschaden Zuschlagstoffe fehlen Ursache nicht eindeutig festellbar | H9: C
A10: 8,40 | B10: BAH | C10: C | E10: 3 - 9 | F10: JA | G10: Schadhafter Anschluss am Umfang des Anschlusses ist teilweise ein Spalt (Anschluss unvollständig eingebunden) | I10: Fräsen,Hut | J10: €450
A11: 8,40 | B11: BAH | C11: A | E11: 8 - 1 | G11: Schadhafter Anschluss Lage des Anschlusses um das Rohr ist falsch | J11: €0
A12: 8,40 | B12: BCA | C12: C / A | D12: 150,00 | E12: 9 | G12: Anschluss Sattelanschluss – gemeißelt offen
A13: 14,60 | B13: BAF | C13: E / E | E13: 2 - 10 | G13: Oberflächenschaden Zuschlagstoffe fehlen Ursache nicht eindeutig festellbar | H13: C
A14: 14,80 | B14: BAH | C14: A | E14: 8 - 1 | G14: Schadhafter Anschluss Lage des Anschlusses um das Rohr ist falsch | J14: €0
A15: 14,80 | B15: BCA | C15: C / A | D15: 150,00 | E15: 9 | G15: Anschluss Sattelanschluss – gemeißelt offen
A16: 15,50 | B16: BAH | C16: A | E16: 8 - 1 | G16: Schadhafter Anschluss Lage des Anschlusses um das Rohr ist falsch | J16: €0
A17: 15,50 | B17: BCA | C17: C / A | D17: 150,00 | E17: 9 | G17: Anschluss Sattelanschluss – gemeißelt offen
A18: 21,90 | B18: BAH | C18: A | E18: 8 - 1 | G18: Schadhafter Anschluss Lage des Anschlusses um das Rohr ist falsch | J18: €0
A19: 21,90 | B19: BCA | C19: C / A | D19: 150,00 | E19: 9 | G19: Anschluss Sattelanschluss – gemeißelt offen
A20: 22,50 | B20: BAH | C20: A | E20: 8 - 1 | G20: Schadhafter Anschluss Lage des Anschlusses um das Rohr ist falsch | J20: €0
A21: 22,50 | B21: BCA | C21: C / A | D21: 150,00 | E21: 9 | G21: Anschluss Sattelanschluss – gemeißelt offen
A22: 28,60 | B22: BAF | C22: E / E | E22: 2 - 10 | G22: Oberflächenschaden Zuschlagstoffe fehlen Ursache nicht eindeutig festellbar | H22: C
A23: 28,70 | B23: BCA | C23: C / A | D23: 150,00 | E23: 9 | G23: Anschluss Sattelanschluss – gemeißelt offen
A24: 29,20 | B24: BAH | C24: C | E24: 2 - 10 | F24: JA | G24: Schadhafter Anschluss am Umfang des Anschlusses ist teilweise ein Spalt (Anschluss unvollständig eingebunden) | I24: Fräsen,Hut | J24: €450
A25: 29,20 | B25: BCA | C25: C / A | D25: 150,00 | E25: 9 | G25: Anschluss Sattelanschluss – gemeißelt offen
A26: 35,20 | B26: BCA | C26: C / A | D26: 150,00 | E26: 9 | G26: Anschluss Sattelanschluss – gemeißelt offen
A27: 35,90 | B27: BAH | C27: A | E27: 8 - 1 | G27: Schadhafter Anschluss Lage des Anschlusses um das Rohr ist falsch | J27: €0
A28: 35,90 | B28: BCA | C28: C / A | D28: 150,00 | E28: 9 | G28: Anschluss Sattelanschluss – gemeißelt offen
A29: 41,90 | B29: BAF | C29: E / E | E29: 2 - 10 | G29: Oberflächenschaden Zuschlagstoffe fehlen Ursache nicht eindeutig festellbar | H29: B
A30: 42,20 | B30: BAF | C30: A / E | E30: 4 - 8 | G30: Oberflächenschaden erhöhte Rauheit Ursache nicht eindeutig festellbar | H30: B
A31: 42,20 | B31: BCA | C31: C / A | D31: 150,00 | E31: 9 | G31: Anschluss Sattelanschluss – gemeißelt offen
A32: 42,90 | B32: BCE | C32: XP | G32: Endknoten
G33: netto-Zwischensumme | J33: =SUM(J5:J32) -> €900
A34: Reparatur | G34: Baustelleneinrichtung anteilig Haltung | H34: 10 | J34: =(H34/100)*J33 -> €90
G35: Verkehrssicherung anteilig Haltung | H35: 5 | J35: =(H35/100)*J33 -> €45
A36: Sanierungspriorität | C36: Info | G36: Aufrechterhaltung der Vorflut Haltung | H36: 12 | J36: =(H36/100)*J33 -> €108
A37: kurzfristing | B37: ja oder nein | C37: 6-12 Monate | G37: Kanalreinigung vor Sanierung | H37: 42.9 | I37: 2 | J37: =H37*I37 -> €86
A38: mittelfristig | B38: ja oder nein | C38: 1 bis 5 Jahre | G38: Kamerainspektion Abnahme | H38: 42.9 | I38: 3 | J38: =H38*I38 -> €129
A39: langfristig | B39: ja oder nein | C39: 5 bis 10 Jahre | G39: Summe netto Haltung | J39: =SUM(J33:J38) -> €1,358
G40: Mehrwertsteuer | H40: 19 | J40: =(H40/100)*J39 -> €258
A41: Sanierung im Verbund | B41: ja oder nein | G41: Summe brutto Haltung | J41: =SUM(J39:J40) -> €1,615
A46: Haltung | B46: Straße | C46: Inspizierte Länge | D46: Länge | E46: Tiefe | G46: Schadensbeschreibung | I46: Durchmesser | J46: Material
A47: 09342832 | B47: LEIPZIGER STRAßE | C47: 42,90 | D47: 43,60 | E47: Not Implemented yet | I47: 200 | J47: B
A49: Station | B49: Kürzel | C49: Charakterisi. | D49: Quantifizierung | E49: Lage im Kreis | G49: Schadensbeschreibung / Info | H49: Strecke | I49: Sanierungsvorschlag | J49: Kostenans.
A50: 0,00 | B50: BCD | C50: XP | G50: Anfangsknoten
A51: 0,00 | B51: BAF | C51: A / E | E51: 4 - 8 | G51: Oberflächenschaden erhöhte Rauheit Ursache nicht eindeutig festellbar | H51: A
A52: 1,20 | B52: BAC | C52: A | D52: 300,00 | E52: 8 - 4 | G52: Rohrbruch / Einsturz Bruch
A53: 4,10 | B53: BAF | C53: E / E | E53: 2 - 10 | G53: Oberflächenschaden Zuschlagstoffe fehlen Ursache nicht eindeutig festellbar | H53: A
A54: 4,80 | B54: BAF | C54: E / E | E54: 2 - 10 | G54: Oberflächenschaden Zuschlagstoffe fehlen Ursache nicht eindeutig festellbar | H54: C
A55: 8,40 | B55: BAH | C55: C | E55: 3 - 9 | F55: JA | G55: Schadhafter Anschluss am Umfang des Anschlusses ist teilweise ein Spalt (Anschluss unvollständig eingebunden)
A56: 8,40 | B56: BAH | C56: A | E56: 8 - 1 | G56: Schadhafter Anschluss Lage des Anschlusses um das Rohr ist falsch
A57: 8,40 | B57: BCA | C57: C / A | D57: 150,00 | E57: 9 | G57: Anschluss Sattelanschluss – gemeißelt offen | I57: Einmessen,Öffnen,Hut | J57: €490
A58: 14,60 | B58: BAF | C58: E / E | E58: 2 - 10 | G58: Oberflächenschaden Zuschlagstoffe fehlen Ursache nicht eindeutig festellbar | H58: C
A59: 14,80 | B59: BAH | C59: A | E59: 8 - 1 | G59: Schadhafter Anschluss Lage des Anschlusses um das Rohr ist falsch
A60: 14,80 | B60: BCA | C60: C / A | D60: 150,00 | E60: 9 | G60: Anschluss Sattelanschluss – gemeißelt offen | I60: Einmessen,Öffnen,Hut | J60: €490
A61: 15,50 | B61: BAH | C61: A | E61: 8 - 1 | G61: Schadhafter Anschluss Lage des Anschlusses um das Rohr ist falsch
A62: 15,50 | B62: BCA | C62: C / A | D62: 150,00 | E62: 9 | G62: Anschluss Sattelanschluss – gemeißelt offen | I62: Einmessen,Öffnen,Hut | J62: €490
A63: 21,90 | B63: BAH | C63: A | E63: 8 - 1 | G63: Schadhafter Anschluss Lage des Anschlusses um das Rohr ist falsch
A64: 21,90 | B64: BCA | C64: C / A | D64: 150,00 | E64: 9 | G64: Anschluss Sattelanschluss – gemeißelt offen | I64: Einmessen,Öffnen,Hut | J64: €490
A65: 22,50 | B65: BAH | C65: A | E65: 8 - 1 | G65: Schadhafter Anschluss Lage des Anschlusses um das Rohr ist falsch
A66: 22,50 | B66: BCA | C66: C / A | D66: 150,00 | E66: 9 | G66: Anschluss Sattelanschluss – gemeißelt offen | I66: Einmessen,Öffnen,Hut | J66: €490
A67: 28,60 | B67: BAF | C67: E / E | E67: 2 - 10 | G67: Oberflächenschaden Zuschlagstoffe fehlen Ursache nicht eindeutig festellbar | H67: C
A68: 28,70 | B68: BCA | C68: C / A | D68: 150,00 | E68: 9 | G68: Anschluss Sattelanschluss – gemeißelt offen | I68: Einmessen,Öffnen,Hut | J68: €490
A69: 29,20 | B69: BAH | C69: C | E69: 2 - 10 | F69: JA | G69: Schadhafter Anschluss am Umfang des Anschlusses ist teilweise ein Spalt (Anschluss unvollständig eingebunden)
A70: 29,20 | B70: BCA | C70: C / A | D70: 150,00 | E70: 9 | G70: Anschluss Sattelanschluss – gemeißelt offen | I70: Einmessen,Öffnen,Hut | J70: €490
A71: 35,20 | B71: BCA | C71: C / A | D71: 150,00 | E71: 9 | G71: Anschluss Sattelanschluss – gemeißelt offen | I71: Einmessen,Öffnen,Hut | J71: €490
A72: 35,90 | B72: BAH | C72: A | E72: 8 - 1 | G72: Schadhafter Anschluss Lage des Anschlusses um das Rohr ist falsch
A73: 35,90 | B73: BCA | C73: C / A | D73: 150,00 | E73: 9 | G73: Anschluss Sattelanschluss – gemeißelt offen | I73: Einmessen,Öffnen,Hut | J73: €490
A74: 41,90 | B74: BAF | C74: E / E | E74: 2 - 10 | G74: Oberflächenschaden Zuschlagstoffe fehlen Ursache nicht eindeutig festellbar | H74: B
A75: 42,20 | B75: BAF | C75: A / E | E75: 4 - 8 | G75: Oberflächenschaden erhöhte Rauheit Ursache nicht eindeutig festellbar | H75: B
A76: 42,20 | B76: BCA | C76: C / A | D76: 150,00 | E76: 9 | G76: Anschluss Sattelanschluss – gemeißelt offen | I76: Einmessen,Öffnen,Hut | J76: €490
A77: 42,90 | B77: BCE | C77: XP | G77: Endknoten | I77: Schlauchliner | J77: €4,360
G78: netto-Zwischensumme | J78: =SUM(J50:J77) -> €9,260
A79: Renovation | G79: Baustelleneinrichtung anteilig Haltung | H79: 10 | J79: =(H79/100)*J78 -> €926
G80: Verkehrssicherung anteilig Haltung | H80: 5 | J80: =(H80/100)*J78 -> €463
A81: Sanierungspriorität | C81: Info | G81: Aufrechterhaltung der Vorflut Haltung | H81: 12 | J81: =(H81/100)*J78 -> €1,111
A82: kurzfristing | B82: ja oder nein | C82: 6-12 Monate | G82: Kanalreinigung vor Sanierung | H82: 42.9 | I82: 2 | J82: =H82*I82 -> €86
A83: mittelfristig | B83: ja oder nein | C83: 1 bis 5 Jahre | G83: Kamerainspektion Abnahme | H83: 42.9 | I83: 3 | J83: =H83*I83 -> €129
A84: langfristig | B84: ja oder nein | C84: 5 bis 10 Jahre | G84: Summe netto Haltung | J84: =SUM(J78:J83) -> €11,975
G85: Mehrwertsteuer | H85: 19 | J85: =(H85/100)*J84 -> €2,275
A86: Sanierung im Verbund | B86: ja oder nein | G86: Summe brutto Haltung | J86: =SUM(J84:J85) -> €14,250

Sheet 09342833
A1: Haltung | B1: Straße | C1: Inspizierte Länge | D1: Länge | E1: Tiefe | G1: Schadensbeschreibung | I1: Durchmesser | J1: Material
A2: 09342833 | B2: LEIPZIGER STRAßE | C2: 41,20 | D2: 42,20 | E2: Not Implemented yet | I2: 200 | J2: B
A4: Station | B4: Kürzel | C4: Charakterisi. | D4: Quantifizierung | E4: Lage im Kreis | G4: Schadensbeschreibung / Info | H4: Strecke | I4: Sanierungsvorschlag | J4: Kostenans.
A5: 0,00 | B5: BCD | C5: XP | G5: Anfangsknoten
A6: 2,80 | B6: BAF | C6: E / E | E6: 2 - 10 | G6: Oberflächenschaden Zuschlagstoffe fehlen Ursache nicht eindeutig festellbar | H6: A
A7: 3,70 | B7: BAB | C7: B / A | D7: 2,00 | E7: 4 - 8 | F7: JA | G7: Rissbildung Riss in Längsrichtung
A8: 3,70 | B8: BAJ | C8: B | D8: 15,00 | E8: 6 | F8: JA | G8: Verschobene Verbindung radial | I8: Fräsen | J8: €50
A9: 4,30 | B9: BAF | C9: E / E | E9: 12 - 12 | G9: Oberflächenschaden Zuschlagstoffe fehlen Ursache nicht eindeutig festellbar | H9: C
A10: 5,70 | B10: BAB | C10: B / A | D10: 2,00 | E10: 9 | F10: JA | G10: Rissbildung Riss in Längsrichtung
A11: 7,80 | B11: BAC | C11: B | D11: 60,00 | E11: 3 - 9 | F11: JA | G11: Rohrbruch / Einsturz Fehlen von Teilen
A12: 7,80 | B12: BAP | E12: 4 - 6 | F12: JA | G12: Hohlraum sichtbar
A13: 8,50 | B13: BAH | C13: B | E13: 2 - 10 | F13: JA | G13: Schadhafter Anschluss Spalt zwischen dem Ende des Anschlusses und der Rohrleitung (Zurückliegende Anschluss) | J13: €0
A14: 8,50 | B14: BCA | C14: C / A | D14: 150,00 | E14: 9 | G14: Anschluss Sattelanschluss – gemeißelt offen
A15: 8,80 | B15: BAC | C15: A | D15: 200,00 | E15: 8 - 10 | G15: Rohrbruch / Einsturz Bruch
A16: 10,80 | B16: BAB | C16: B / A | D16: 2,00 | E16: 3 | F16: JA | G16: Rissbildung Riss in Längsrichtung
A17: 12,20 | B17: BAF | C17: E / E | E17: 12 - 12 | G17: Oberflächenschaden Zuschlagstoffe fehlen Ursache nicht eindeutig festellbar | H17: C
A18: 12,50 | B18: BAF | C18: E / E | E18: 12 - 12 | G18: Oberflächenschaden Zuschlagstoffe fehlen Ursache nicht eindeutig festellbar | H18: C
A19: 13,40 | B19: BAB | C19: B / B | D19: 2,00 | E19: 12 - 12 | G19: Rissbildung Riss am Rohrumfang
A20: 15,30 | B20: BAF | C20: E / E | E20: 12 - 12 | G20: Oberflächenschaden Zuschlagstoffe fehlen Ursache nicht eindeutig festellbar | H20: C
A21: 15,50 | B21: BCA | C21: C / A | D21: 150,00 | E21: 10 | G21: Anschluss Sattelanschluss – gemeißelt offen
A22: 22,40 | B22: BAH | C22: A | E22: 8 - 1 | G22: Schadhafter Anschluss Lage des Anschlusses um das Rohr ist falsch | J22: €0
A23: 22,40 | B23: BCA | C23: C / A | D23: 150,00 | E23: 9 | G23: Anschluss Sattelanschluss – gemeißelt offen
A24: 29,10 | B24: BAF | C24: E / E | E24: 12 - 12 | G24: Oberflächenschaden Zuschlagstoffe fehlen Ursache nicht eindeutig festellbar | H24: C
A25: 29,30 | B25: BCA | C25: C / A | D25: 150,00 | E25: 9 | G25: Anschluss Sattelanschluss – gemeißelt offen
A26: 36,00 | B26: BCA | C26: C / A | D26: 150,00 | E26: 9 | G26: Anschluss Sattelanschluss – gemeißelt offen
A27: 40,10 | B27: BAF | C27: E / E | E27: 12 - 12 | G27: Oberflächenschaden Zuschlagstoffe fehlen Ursache nicht eindeutig festellbar | H27: B
A28: 40,30 | B28: BCA | C28: C / A | D28: 150,00 | E28: 9 | G28: Anschluss Sattelanschluss – gemeißelt offen
A29: 41,20 | B29: BCE | C29: XP | G29: Endknoten
G30: netto-Zwischensumme | J30: =SUM(J5:J29) -> €50
A31: Reparatur | G31: Baustelleneinrichtung anteilig Haltung | H31: 10 | J31: =(H31/100)*J30 -> €5
G32: Verkehrssicherung anteilig Haltung | H32: 5 | J32: =(H32/100)*J30 -> €3
A33: Sanierungspriorität | C33: Info | G33: Aufrechterhaltung der Vorflut Haltung | H33: 12 | J33: =(H33/100)*J30 -> €6
A34: kurzfristing | B34: ja oder nein | C34: 6-12 Monate | G34: Kanalreinigung vor Sanierung | H34: 41.2 | I34: 2 | J34: =H34*I34 -> €82
A35: mittelfristig | B35: ja oder nein | C35: 1 bis 5 Jahre | G35: Kamerainspektion Abnahme | H35: 41.2 | I35: 3 | J35: =H35*I35 -> €124
A36: langfristig | B36: ja oder nein | C36: 5 bis 10 Jahre | G36: Summe netto Haltung | J36: =SUM(J30:J35) -> €270
G37: Mehrwertsteuer | H37: 19 | J37: =(H37/100)*J36 -> €51
A38: Sanierung im Verbund | B38: ja oder nein | G38: Summe brutto Haltung | J38: =SUM(J36:J37) -> €321
A43: Haltung | B43: Straße | C43: Inspizierte Länge | D43: Länge | E43: Tiefe | G43: Schadensbeschreibung | I43: Durchmesser | J43: Material
A44: 09342833 | B44: LEIPZIGER STRAßE | C44: 41,20 | D44: 42,20 | E44: Not Implemented yet | I44: 200 | J44: B
A46: Station | B46: Kürzel | C46: Charakterisi. | D46: Quantifizierung | E46: Lage im Kreis | G46: Schadensbeschreibung / Info | H46: Strecke | I46: Sanierungsvorschlag | J46: Kostenans.
A47: 0,00 | B47: BCD | C47: XP | G47: Anfangsknoten
A48: 2,80 | B48: BAF | C48: E / E | E48: 2 - 10 | G48: Oberflächenschaden Zuschlagstoffe fehlen Ursache nicht eindeutig festellbar | H48: A
A49: 3,70 | B49: BAB | C49: B / A | D49: 2,00 | E49: 4 - 8 | F49: JA | G49: Rissbildung Riss in Längsrichtung
A50: 3,70 | B50: BAJ | C50: B | D50: 15,00 | E50: 6 | F50: JA | G50: Verschobene Verbindung radial | I50: Fräsen | J50: €50
A51: 4,30 | B51: BAF | C51: E / E | E51: 12 - 12 | G51: Oberflächenschaden Zuschlagstoffe fehlen Ursache nicht eindeutig festellbar | H51: C
A52: 5,70 | B52: BAB | C52: B / A | D52: 2,00 | E52: 9 | F52: JA | G52: Rissbildung Riss in Längsrichtung
A53: 7,80 | B53: BAC | C53: B | D53: 60,00 | E53: 3 - 9 | F53: JA | G53: Rohrbruch / Einsturz Fehlen von Teilen
A54: 7,80 | B54: BAP | E54: 4 - 6 | F54: JA | G54: Hohlraum sichtbar
A55: 8,50 | B55: BAH | C55: B | E55: 2 - 10 | F55: JA | G55: Schadhafter Anschluss Spalt zwischen dem Ende des Anschlusses und der Rohrleitung (Zurückliegende Anschluss)
A56: 8,50 | B56: BCA | C56: C / A | D56: 150,00 | E56: 9 | G56: Anschluss Sattelanschluss – gemeißelt offen | I56: Einmessen,Öffnen,Hut | J56: €490
A57: 8,80 | B57: BAC | C57: A | D57: 200,00 | E57: 8 - 10 | G57: Rohrbruch / Einsturz Bruch
A58: 10,80 | B58: BAB | C58: B / A | D58: 2,00 | E58: 3 | F58: JA | G58: Rissbildung Riss in Längsrichtung
A59: 12,20 | B59: BAF | C59: E / E | E59: 12 - 12 | G59: Oberflächenschaden Zuschlagstoffe fehlen Ursache nicht eindeutig festellbar | H59: C
A60: 12,50 | B60: BAF | C60: E / E | E60: 12 - 12 | G60: Oberflächenschaden Zuschlagstoffe fehlen Ursache nicht eindeutig festellbar | H60: C
A61: 13,40 | B61: BAB | C61: B / B | D61: 2,00 | E61: 12 - 12 | G61: Rissbildung Riss am Rohrumfang
A62: 15,30 | B62: BAF | C62: E / E | E62: 12 - 12 | G62: Oberflächenschaden Zuschlagstoffe fehlen Ursache nicht eindeutig festellbar | H62: C
A63: 15,50 | B63: BCA | C63: C / A | D63: 150,00 | E63: 10 | G63: Anschluss Sattelanschluss – gemeißelt offen | I63: Einmessen,Öffnen,Hut | J63: €490
A64: 22,40 | B64: BAH | C64: A | E64: 8 - 1 | G64: Schadhafter Anschluss Lage des Anschlusses um das Rohr ist falsch
A65: 22,40 | B65: BCA | C65: C / A | D65: 150,00 | E65: 9 | G65: Anschluss Sattelanschluss – gemeißelt offen | I65: Einmessen,Öffnen,Hut | J65: €490
A66: 29,10 | B66: BAF | C66: E / E | E66: 12 - 12 | G66: Oberflächenschaden Zuschlagstoffe fehlen Ursache nicht eindeutig festellbar | H66: C
A67: 29,30 | B67: BCA | C67: C / A | D67: 150,00 | E67: 9 | G67: Anschluss Sattelanschluss – gemeißelt offen | I67: Einmessen,Öffnen,Hut | J67: €490
A68: 36,00 | B68: BCA | C68: C / A | D68: 150,00 | E68: 9 | G68: Anschluss Sattelanschluss – gemeißelt offen | I68: Einmessen,Öffnen,Hut | J68: €490
A69: 40,10 | B69: BAF | C69: E / E | E69: 12 - 12 | G69: Oberflächenschaden Zuschlagstoffe fehlen Ursache nicht eindeutig festellbar | H69: B
A70: 40,30 | B70: BCA | C70: C / A | D70: 150,00 | E70: 9 | G70: Anschluss Sattelanschluss – gemeißelt offen | I70: Einmessen,Öffnen,Hut | J70: €490
A71: 41,20 | B71: BCE | C71: XP | G71: Endknoten | I71: Schlauchliner | J71: €4,220
G72: netto-Zwischensumme | J72: =SUM(J47:J71) -> €7,210
A73: Renovation | G73: Baustelleneinrichtung anteilig Haltung | H73: 10 | J73: =(H73/100)*J72 -> €721
G74: Verkehrssicherung anteilig Haltung | H74: 5 | J74: =(H74/100)*J72 -> €361
A75: Sanierungspriorität | C75: Info | G75: Aufrechterhaltung der Vorflut Haltung | H75: 12 | J75: =(H75/100)*J72 -> €865
A76: kurzfristing | B76: ja oder nein | C76: 6-12 Monate | G76: Kanalreinigung vor Sanierung | H76: 41.2 | I76: 2 | J76: =H76*I76 -> €82
A77: mittelfristig | B77: ja oder nein | C77: 1 bis 5 Jahre | G77: Kamerainspektion Abnahme | H77: 41.2 | I77: 3 | J77: =H77*I77 -> €124
A78: langfristig | B78: ja oder nein | C78: 5 bis 10 Jahre | G78: Summe netto Haltung | J78: =SUM(J72:J77) -> €9,363
G79: Mehrwertsteuer | H79: 19 | J79: =(H79/100)*J78 -> €1,779
A80: Sanierung im Verbund | B80: ja oder nein | G80: Summe brutto Haltung | J80: =SUM(J78:J79) -> €11,142

Sheet 09342834
A1: Haltung | B1: Straße | C1: Inspizierte Länge | D1: Länge | E1: Tiefe | G1: Schadensbeschreibung | I1: Durchmesser | J1: Material
A2: 09342834 | B2: LEIPZIGER STRAßE | C2: 29,30 | D2: 30,30 | E2: Not Implemented yet | I2: 300 | J2: B
A4: Station | B4: Kürzel | C4: Charakterisi. | D4: Quantifizierung | E4: Lage im Kreis | G4: Schadensbeschreibung / Info | H4: Strecke | I4: Sanierungsvorschlag | J4: Kostenans.
A5: 0,00 | B5: BCD | C5: XP | G5: Anfangsknoten
A6: 0,00 | B6: BDD | C6: C | D6: 15,00 | G6: Wasserspiegel trüb | H6: A
A7: 0,80 | B7: BAP | E7: 1 - 5 | G7: Hohlraum sichtbar
A8: 0,80 | B8: BBA | C8: B | D8: 2,00 | E8: 1 - 5 | G8: Wurzeln einzelne feine Wurzeln | I8: Fräsen | J8: €50
A9: 0,80 | B9: BCA | C9: C / A | D9: 150,00 | E9: 3 | G9: Anschluss Sattelanschluss – gemeißelt offen
A10: 0,80 | B10: BAH | C10: C | E10: 12 - 12 | F10: JA | G10: Schadhafter Anschluss am Umfang des Anschlusses ist teilweise ein Spalt (Anschluss unvollständig eingebunden) | I10: Fräsen,Hut | J10: €450
A11: 2,50 | B11: BCA | C11: C / A | D11: 150,00 | E11: 12 | G11: Anschluss Sattelanschluss – gemeißelt offen
A12: 3,90 | B12: BAB | C12: B / A | D12: 1,00 | E12: 3 | G12: Rissbildung Riss in Längsrichtung
A13: 4,10 | B13: BBA | C13: B | D13: 1,00 | E13: 2 - 4 | G13: Wurzeln einzelne feine Wurzeln | I13: Fräsen | J13: €50
A14: 4,10 | B14: BCA | C14: C / A | D14: 150,00 | E14: 3 | G14: Anschluss Sattelanschluss – gemeißelt offen
A15: 4,10 | B15: BAH | C15: B | E15: 12 - 12 | G15: Schadhafter Anschluss Spalt zwischen dem Ende des Anschlusses und der Rohrleitung (Zurückliegende Anschluss) | J15: €0
A16: 7,80 | B16: BAI | C16: Z | D16: 3,00 | E16: 1 - 4 | F16: JA | G16: Einragendes Dichtungsmaterial andere Dichtungsart | I16: Fräsen | J16: €50
A17: 9,60 | B17: BAP | E17: 1 - 5 | G17: Hohlraum sichtbar
A18: 9,60 | B18: BCA | C18: C / A | D18: 150,00 | E18: 3 | G18: Anschluss Sattelanschluss – gemeißelt offen
A19: 9,60 | B19: BAH | C19: B | E19: 12 - 12 | F19: JA | G19: Schadhafter Anschluss Spalt zwischen dem Ende des Anschlusses und der Rohrleitung (Zurückliegende Anschluss) | J19: €0
A20: 10,90 | B20: BDD | C20: C | D20: 10,00 | G20: Wasserspiegel trüb | H20: C
A21: 13,10 | B21: BBA | C21: B | D21: 2,00 | E21: 2 - 4 | G21: Wurzeln einzelne feine Wurzeln | I21: Fräsen | J21: €50
A22: 13,10 | B22: BCA | C22: C / A | D22: 150,00 | E22: 3 | G22: Anschluss Sattelanschluss – gemeißelt offen
A23: 13,80 | B23: BCA | C23: C / A | D23: 200,00 | E23: 9 | G23: Anschluss Sattelanschluss – gemeißelt offen
A24: 14,60 | B24: BDD | C24: C | G24: Wasserspiegel trüb | H24: B
A25: 19,40 | B25: BCA | C25: C / A | D25: 150,00 | E25: 3 | G25: Anschluss Sattelanschluss – gemeißelt offen
A26: 22,60 | B26: BCA | C26: C / A | D26: 150,00 | E26: 3 | G26: Anschluss Sattelanschluss – gemeißelt offen
A27: 28,90 | B27: BCA | C27: C / A | D27: 150,00 | E27: 3 | G27: Anschluss Sattelanschluss – gemeißelt offen
A28: 28,90 | B28: BAH | C28: B | E28: 12 - 12 | F28: JA | G28: Schadhafter Anschluss Spalt zwischen dem Ende des Anschlusses und der Rohrleitung (Zurückliegende Anschluss) | J28: €0
A29: 29,30 | B29: BCE | C29: XP | G29: Endknoten
G30: netto-Zwischensumme | J30: =SUM(J5:J29) -> €650
A31: Reparatur | G31: Baustelleneinrichtung anteilig Haltung | H31: 10 | J31: =(H31/100)*J30 -> €65
G32: Verkehrssicherung anteilig Haltung | H32: 5 | J32: =(H32/100)*J30 -> €33
A33: Sanierungspriorität | C33: Info | G33: Aufrechterhaltung der Vorflut Haltung | H33: 12 | J33: =(H33/100)*J30 -> €78
A34: kurzfristing | B34: ja oder nein | C34: 6-12 Monate | G34: Kanalreinigung vor Sanierung | H34: 29.3 | I34: 2 | J34: =H34*I34 -> €59
A35: mittelfristig | B35: ja oder nein | C35: 1 bis 5 Jahre | G35: Kamerainspektion Abnahme | H35: 29.3 | I35: 3 | J35: =H35*I35 -> €88
A36: langfristig | B36: ja oder nein | C36: 5 bis 10 Jahre | G36: Summe netto Haltung | J36: =SUM(J30:J35) -> €972
G37: Mehrwertsteuer | H37: 19 | J37: =(H37/100)*J36 -> €185
A38: Sanierung im Verbund | B38: ja oder nein | G38: Summe brutto Haltung | J38: =SUM(J36:J37) -> €1,157
A43: Haltung | B43: Straße | C43: Inspizierte Länge | D43: Länge | E43: Tiefe | G43: Schadensbeschreibung | I43: Durchmesser | J43: Material
A44: 09342834 | B44: LEIPZIGER STRAßE | C44: 29,30 | D44: 30,30 | E44: Not Implemented yet | I44: 300 | J44: B
A46: Station | B46: Kürzel | C46: Charakterisi. | D46: Quantifizierung | E46: Lage im Kreis | G46: Schadensbeschreibung / Info | H46: Strecke | I46: Sanierungsvorschlag | J46: Kostenans.
A47: 0,00 | B47: BCD | C47: XP | G47: Anfangsknoten
A48: 0,00 | B48: BDD | C48: C | D48: 15,00 | G48: Wasserspiegel trüb | H48: A
A49: 0,80 | B49: BAP | E49: 1 - 5 | G49: Hohlraum sichtbar
A50: 0,80 | B50: BBA | C50: B | D50: 2,00 | E50: 1 - 5 | G50: Wurzeln einzelne feine Wurzeln | I50: Fräsen | J50: €50
A51: 0,80 | B51: BCA | C51: C / A | D51: 150,00 | E51: 3 | G51: Anschluss Sattelanschluss – gemeißelt offen | I51: Einmessen,Öffnen,Hut | J51: €490
A52: 0,80 | B52: BAH | C52: C | E52: 12 - 12 | F52: JA | G52: Schadhafter Anschluss am Umfang des Anschlusses ist teilweise ein Spalt (Anschluss unvollständig eingebunden)
A53: 2,50 | B53: BCA | C53: C / A | D53: 150,00 | E53: 12 | G53: Anschluss Sattelanschluss – gemeißelt offen | I53: Einmessen,Öffnen,Hut | J53: €490
A54: 3,90 | B54: BAB | C54: B / A | D54: 1,00 | E54: 3 | G54: Rissbildung Riss in Längsrichtung
A55: 4,10 | B55: BBA | C55: B | D55: 1,00 | E55: 2 - 4 | G55: Wurzeln einzelne feine Wurzeln | I55: Fräsen | J55: €50
A56: 4,10 | B56: BCA | C56: C / A | D56: 150,00 | E56: 3 | G56: Anschluss Sattelanschluss – gemeißelt offen | I56: Einmessen,Öffnen,Hut | J56: €490
A57: 4,10 | B57: BAH | C57: B | E57: 12 - 12 | G57: Schadhafter Anschluss Spalt zwischen dem Ende des Anschlusses und der Rohrleitung (Zurückliegende Anschluss)
A58: 7,80 | B58: BAI | C58: Z | D58: 3,00 | E58: 1 - 4 | F58: JA | G58: Einragendes Dichtungsmaterial andere Dichtungsart
A59: 9,60 | B59: BAP | E59: 1 - 5 | G59: Hohlraum sichtbar
A60: 9,60 | B60: BCA | C60: C / A | D60: 150,00 | E60: 3 | G60: Anschluss Sattelanschluss – gemeißelt offen | I60: Einmessen,Öffnen,Hut | J60: €490
A61: 9,60 | B61: BAH | C61: B | E61: 12 - 12 | F61: JA | G61: Schadhafter Anschluss Spalt zwischen dem Ende des Anschlusses und der Rohrleitung (Zurückliegende Anschluss)
A62: 10,90 | B62: BDD | C62: C | D62: 10,00 | G62: Wasserspiegel trüb | H62: C
A63: 13,10 | B63: BBA | C63: B | D63: 2,00 | E63: 2 - 4 | G63: Wurzeln einzelne feine Wurzeln | I63: Fräsen | J63: €50
A64: 13,10 | B64: BCA | C64: C / A | D64: 150,00 | E64: 3 | G64: Anschluss Sattelanschluss – gemeißelt offen | I64: Einmessen,Öffnen,Hut | J64: €490
A65: 13,80 | B65: BCA | C65: C / A | D65: 200,00 | E65: 9 | G65: Anschluss Sattelanschluss – gemeißelt offen | I65: Einmessen,Öffnen,Hut | J65: €490
A66: 14,60 | B66: BDD | C66: C | G66: Wasserspiegel trüb | H66: B
A67: 19,40 | B67: BCA | C67: C / A | D67: 150,00 | E67: 3 | G67: Anschluss Sattelanschluss – gemeißelt offen | I67: Einmessen,Öffnen,Hut | J67: €490
A68: 22,60 | B68: BCA | C68: C / A | D68: 150,00 | E68: 3 | G68: Anschluss Sattelanschluss – gemeißelt offen | I68: Einmessen,Öffnen,Hut | J68: €490
A69: 28,90 | B69: BCA | C69: C / A | D69: 150,00 | E69: 3 | G69: Anschluss Sattelanschluss – gemeißelt offen | I69: Einmessen,Öffnen,Hut | J69: €490
A70: 28,90 | B70: BAH | C70: B | E70: 12 - 12 | F70: JA | G70: Schadhafter Anschluss Spalt zwischen dem Ende des Anschlusses und der Rohrleitung (Zurückliegende Anschluss)
A71: 29,30 | B71: BCE | C71: XP | G71: Endknoten | I71: Schlauchliner | J71: €3,030
G72: netto-Zwischensumme | J72: =SUM(J47:J71) -> €7,590
A73: Renovation | G73: Baustelleneinrichtung anteilig Haltung | H73: 10 | J73: =(H73/100)*J72 -> €759
G74: Verkehrssicherung anteilig Haltung | H74: 5 | J74: =(H74/100)*J72 -> €380
A75: Sanierungspriorität | C75: Info | G75: Aufrechterhaltung der Vorflut Haltung | H75: 12 | J75: =(H75/100)*J72 -> €911
A76: kurzfristing | B76: ja oder nein | C76: 6-12 Monate | G76: Kanalreinigung vor Sanierung | H76: 29.3 | I76: 2 | J76: =H76*I76 -> €59
A77: mittelfristig | B77: ja oder nein | C77: 1 bis 5 Jahre | G77: Kamerainspektion Abnahme | H77: 29.3 | I77: 3 | J77: =H77*I77 -> €88
A78: langfristig | B78: ja oder nein | C78: 5 bis 10 Jahre | G78: Summe netto Haltung | J78: =SUM(J72:J77) -> €9,786
G79: Mehrwertsteuer | H79: 19 | J79: =(H79/100)*J78 -> €1,859
A80: Sanierung im Verbund | B80: ja oder nein | G80: Summe brutto Haltung | J80: =SUM(J78:J79) -> €11,645

Sheet 09342838
A1: Haltung | B1: Straße | C1: Inspizierte Länge | D1: Länge | E1: Tiefe | G1: Schadensbeschreibung | I1: Durchmesser | J1: Material
A2: 09342838 | B2: BERLINER STRAßE | C2: 62,40 | D2: 63,40 | E2: Not Implemented yet | I2: 200 | J2: B
A4: Station | B4: Kürzel | C4: Charakterisi. | D4: Quantifizierung | E4: Lage im Kreis | G4: Schadensbeschreibung / Info | H4: Strecke | I4: Sanierungsvorschlag | J4: Kostenans.
A5: 0,00 | B5: BCD | C5: XP | G5: Anfangsknoten
A6: 0,00 | B6: BAF | C6: C / E | E6: 12 - 12 | G6: Oberflächenschaden Zuschlagstoffe sichtbar Ursache nicht eindeutig festellbar | H6: A
A7: 2,20 | B7: BAI | C7: Z | D7: 5,00 | E7: 2 - 10 | F7: JA | G7: Einragendes Dichtungsmaterial andere Dichtungsart | I7: Fräsen | J7: €50
A8: 3,20 | B8: BAI | C8: Z | D8: 3,00 | E8: 1 - 5 | F8: JA | G8: Einragendes Dichtungsmaterial andere Dichtungsart | I8: Fräsen | J8: €50
A9: 3,20 | B9: BAF | C9: C / E | E9: 12 - 12 | G9: Oberflächenschaden Zuschlagstoffe sichtbar Ursache nicht eindeutig festellbar | H9: B
A10: 3,20 | B10: BAF | C10: E / E | E10: 12 - 12 | G10: Oberflächenschaden Zuschlagstoffe fehlen Ursache nicht eindeutig festellbar | H10: A
A11: 5,20 | B11: BAJ | C11: B | D11: 20,00 | E11: 6 | F11: JA | G11: Verschobene Verbindung radial | I11: Fräsen | J11: €50
A12: 6,20 | B12: BBE | C12: D | D12: 10,00 | E12: 11 - 6 | F12: JA | G12: Andere Hindernisse Gegenstand ragt durch die Wand ein
A13: 7,20 | B13: BDD | C13: C | D13: 20,00 | G13: Wasserspiegel trüb | H13: A
A14: 7,20 | B14: BAI | C14: Z | D14: 5,00 | E14: 2 - 6 | F14: JA | G14: Einragendes Dichtungsmaterial andere Dichtungsart | I14: Fräsen | J14: €50
A15: 11,20 | B15: BAI | C15: Z | D15: 5,00 | E15: 2 - 8 | F15: JA | G15: Einragendes Dichtungsmaterial andere Dichtungsart | I15: Fräsen | J15: €50
A16: 11,40 | B16: BAN | E16: 4 - 8 | G16: Poröses Rohr | H16: A
A17: 11,40 | B17: BAF | C17: E / E | E17: 12 - 12 | G17: Oberflächenschaden Zuschlagstoffe fehlen Ursache nicht eindeutig festellbar | H17: C
A18: 14,30 | B18: BAF | C18: E / E | E18: 12 - 12 | G18: Oberflächenschaden Zuschlagstoffe fehlen Ursache nicht eindeutig festellbar | H18: C
A19: 15,40 | B19: BDD | C19: C | D19: 25,00 | G19: Wasserspiegel trüb | H19: C
A20: 16,00 | B20: BAF | C20: I / E | E20: 6 - 9 | G20: Oberflächenschaden fehlende Wand Ursache nicht eindeutig festellbar
A21: 16,00 | B21: BAP | E21: 6 - 9 | G21: Hohlraum sichtbar
A22: 16,00 | B22: BAG | D22: 5,00 | E22: 9 - 12 | G22: Einragender Anschluss | I22: Fräsen | J22: €50
A23: 16,00 | B23: BAH | C23: A | E23: 9 - 12 | G23: Schadhafter Anschluss Lage des Anschlusses um das Rohr ist falsch | J23: €0
A24: 16,00 | B24: BCA | C24: C / A | D24: 150,00 | E24: 10 | G24: Anschluss Sattelanschluss – gemeißelt offen
A25: 16,50 | B25: BDD | C25: C | D25: 40,00 | G25: Wasserspiegel trüb | H25: C
A26: 17,30 | B26: BBA | C26: B | D26: 2,00 | E26: 8 - 10 | F26: JA | G26: Wurzeln einzelne feine Wurzeln | I26: Fräsen | J26: €50
A27: 17,30 | B27: BCA | C27: C / A | D27: 150,00 | E27: 10 | G27: Anschluss Sattelanschluss – gemeißelt offen
A28: 18,30 | B28: BAI | C28: Z | D28: 3,00 | E28: 10 - 4 | F28: JA | G28: Einragendes Dichtungsmaterial andere Dichtungsart | I28: Fräsen | J28: €50
A29: 19,20 | B29: BAI | C29: Z | D29: 3,00 | E29: 4 - 9 | F29: JA | G29: Einragendes Dichtungsmaterial andere Dichtungsart | I29: Fräsen | J29: €50
A30: 20,70 | B30: BDD | C30: C | G30: Wasserspiegel trüb | H30: B
A31: 23,90 | B31: BDD | C31: C | D31: 20,00 | G31: Wasserspiegel trüb | H31: A
A32: 24,50 | B32: BCA | C32: C / A | D32: 150,00 | E32: 10 | G32: Anschluss Sattelanschluss – gemeißelt offen
A33: 24,50 | B33: BAH | C33: C | E33: 12 - 4 | F33: JA | G33: Schadhafter Anschluss am Umfang des Anschlusses ist teilweise ein Spalt (Anschluss unvollständig eingebunden) | I33: Fräsen,Hut | J33: €450
A34: 26,20 | B34: BCA | C34: C / A | D34: 150,00 | E34: 10 | G34: Anschluss Sattelanschluss – gemeißelt offen
A35: 30,80 | B35: BDD | C35: C | G35: Wasserspiegel trüb | H35: B
A36: 33,30 | B36: BAF | C36: E / E | E36: 12 - 12 | G36: Oberflächenschaden Zuschlagstoffe fehlen Ursache nicht eindeutig festellbar | H36: C
A37: 33,60 | B37: BAN | E37: 4 - 8 | G37: Poröses Rohr | H37: C
A38: 33,70 | B38: BAG | D38: 10,00 | E38: 9 - 12 | G38: Einragender Anschluss | I38: Fräsen | J38: €50
A39: 33,70 | B39: BAH | C39: A | E39: 9 - 12 | G39: Schadhafter Anschluss Lage des Anschlusses um das Rohr ist falsch | J39: €0
A40: 33,70 | B40: BCA | C40: C / A | D40: 150,00 | E40: 10 | G40: Anschluss Sattelanschluss – gemeißelt offen
A41: 34,80 | B41: BAB | C41: B / A | D41: 3,00 | E41: 5 - 7 | G41: Rissbildung Riss in Längsrichtung | H41: A
A42: 35,30 | B42: BAH | C42: A | E42: 10 - 2 | G42: Schadhafter Anschluss Lage des Anschlusses um das Rohr ist falsch | J42: €0
A43: 35,30 | B43: BCA | C43: C / A | D43: 150,00 | E43: 12 | G43: Anschluss Sattelanschluss – gemeißelt offen
A44: 38,90 | B44: BAB | C44: B / A | D44: 3,00 | E44: 5 - 7 | G44: Rissbildung Riss in Längsrichtung | H44: B
A45: 42,40 | B45: BAN | E45: 4 - 8 | G45: Poröses Rohr | H45: C
A46: 42,40 | B46: BAP | E46: 6 - 10 | G46: Hohlraum sichtbar
A47: 42,40 | B47: BAF | C47: I / E | E47: 6 - 9 | G47: Oberflächenschaden fehlende Wand Ursache nicht eindeutig festellbar
A48: 42,50 | B48: BCA | C48: C / A | D48: 150,00 | E48: 10 | G48: Anschluss Sattelanschluss – gemeißelt offen
A49: 44,20 | B49: BCA | C49: C / A | D49: 150,00 | E49: 10 | G49: Anschluss Sattelanschluss – gemeißelt offen
A50: 45,70 | B50: BDD | C50: C | D50: 15,00 | G50: Wasserspiegel trüb | H50: A
A51: 46,40 | B51: BAJ | C51: B | D51: 20,00 | E51: 12 | F51: JA | G51: Verschobene Verbindung radial | I51: Fräsen | J51: €50
A52: 51,40 | B52: BAI | C52: Z | D52: 3,00 | E52: 8 - 10 | F52: JA | G52: Einragendes Dichtungsmaterial andere Dichtungsart | I52: Fräsen | J52: €50
A53: 51,70 | B53: BAP | E53: 3 - 9 | F53: JA | G53: Hohlraum sichtbar
A54: 51,70 | B54: BAH | C54: A | E54: 9 - 12 | G54: Schadhafter Anschluss Lage des Anschlusses um das Rohr ist falsch | J54: €0
A55: 51,70 | B55: BCA | C55: C / A | D55: 150,00 | E55: 10 | G55: Anschluss Sattelanschluss – gemeißelt offen
A56: 51,70 | B56: BAH | C56: C | E56: 12 - 12 | F56: JA | G56: Schadhafter Anschluss am Umfang des Anschlusses ist teilweise ein Spalt (Anschluss unvollständig eingebunden) | I56: Fräsen,Hut | J56: €450
A57: 52,40 | B57: BAP | E57: 4 - 8 | F57: JA | G57: Hohlraum sichtbar
A58: 52,40 | B58: BAI | C58: Z | D58: 3,00 | E58: 12 - 12 | F58: JA | G58: Einragendes Dichtungsmaterial andere Dichtungsart | I58: Fräsen | J58: €50
A59: 53,00 | B59: BAF | C59: E / E | E59: 12 - 12 | G59: Oberflächenschaden Zuschlagstoffe fehlen Ursache nicht eindeutig festellbar | H59: C
A60: 53,00 | B60: BAN | E60: 12 - 12 | G60: Poröses Rohr | H60: C
A61: 53,10 | B61: BAF | C61: I / E | E61: 2 - 4 | G61: Oberflächenschaden fehlende Wand Ursache nicht eindeutig festellbar
A62: 53,20 | B62: BAG | D62: 10,00 | E62: 9 - 12 | G62: Einragender Anschluss | I62: Fräsen | J62: €50
A63: 53,20 | B63: BAH | C63: A | E63: 9 - 12 | G63: Schadhafter Anschluss Lage des Anschlusses um das Rohr ist falsch | J63: €0
A64: 53,20 | B64: BCA | C64: C / A | D64: 150,00 | E64: 10 | G64: Anschluss Sattelanschluss – gemeißelt offen
A65: 57,30 | B65: BDD | C65: C | G65: Wasserspiegel trüb | H65: B
A66: 59,40 | B66: BBE | C66: C | D66: 20,00 | E66: 4 - 8 | F66: JA | G66: Andere Hindernisse anderer Gegenstand liegt in der Rohrsohle
A67: 60,70 | B67: BAF | C67: I / E | E67: 8 - 10 | G67: Oberflächenschaden fehlende Wand Ursache nicht eindeutig festellbar
A68: 60,70 | B68: BAP | E68: 8 - 9 | G68: Hohlraum sichtbar
A69: 60,70 | B69: BCA | C69: C / A | D69: 150,00 | E69: 10 | G69: Anschluss Sattelanschluss – gemeißelt offen
A70: 61,20 | B70: BAF | C70: E / E | E70: 12 - 12 | G70: Oberflächenschaden Zuschlagstoffe fehlen Ursache nicht eindeutig festellbar | H70: B
A71: 61,20 | B71: BAN | E71: 12 - 12 | G71: Poröses Rohr | H71: B
A72: 62,10 | B72: BAB | C72: B / B | D72: 3,00 | E72: 12 - 12 | G72: Rissbildung Riss am Rohrumfang
A73: 62,40 | B73: BCE | C73: XP | G73: Endknoten
G74: netto-Zwischensumme | J74: =SUM(J5:J73) -> €1,600
A75: Reparatur | G75: Baustelleneinrichtung anteilig Haltung | H75: 10 | J75: =(H75/100)*J74 -> €160
G76: Verkehrssicherung anteilig Haltung | H76: 5 | J76: =(H76/100)*J74 -> €80
A77: Sanierungspriorität | C77: Info | G77: Aufrechterhaltung der Vorflut Haltung | H77: 12 | J77: =(H77/100)*J74 -> €192
A78: kurzfristing | B78: ja oder nein | C78: 6-12 Monate | G78: Kanalreinigung vor Sanierung | H78: 62.4 | I78: 2 | J78: =H78*I78 -> €125
A79: mittelfristig | B79: ja oder nein | C79: 1 bis 5 Jahre | G79: Kamerainspektion Abnahme | H79: 62.4 | I79: 3 | J79: =H79*I79 -> €187
A80: langfristig | B80: ja oder nein | C80: 5 bis 10 Jahre | G80: Summe netto Haltung | J80: =SUM(J74:J79) -> €2,344
G81: Mehrwertsteuer | H81: 19 | J81: =(H81/100)*J80 -> €445
A82: Sanierung im Verbund | B82: ja oder nein | G82: Summe brutto Haltung | J82: =SUM(J80:J81) -> €2,789
A87: Haltung | B87: Straße | C87: Inspizierte Länge | D87: Länge | E87: Tiefe | G87: Schadensbeschreibung | I87: Durchmesser | J87: Material
A88: 09342838 | B88: BERLINER STRAßE | C88: 62,40 | D88: 63,40 | E88: Not Implemented yet | I88: 200 | J88: B
A90: Station | B90: Kürzel | C90: Charakterisi. | D90: Quantifizierung | E90: Lage im Kreis | G90: Schadensbeschreibung / Info | H90: Strecke | I90: Sanierungsvorschlag | J90: Kostenans.
A91: 0,00 | B91: BCD | C91: XP | G91: Anfangsknoten
A92: 0,00 | B92: BAF | C92: C / E | E92: 12 - 12 | G92: Oberflächenschaden Zuschlagstoffe sichtbar Ursache nicht eindeutig festellbar | H92: A
A93: 2,20 | B93: BAI | C93: Z | D93: 5,00 | E93: 2 - 10 | F93: JA | G93: Einragendes Dichtungsmaterial andere Dichtungsart
A94: 3,20 | B94: BAI | C94: Z | D94: 3,00 | E94: 1 - 5 | F94: JA | G94: Einragendes Dichtungsmaterial andere Dichtungsart
A95: 3,20 | B95: BAF | C95: C / E | E95: 12 - 12 | G95: Oberflächenschaden Zuschlagstoffe sichtbar Ursache nicht eindeutig festellbar | H95: B
A96: 3,20 | B96: BAF | C96: E / E | E96: 12 - 12 | G96: Oberflächenschaden Zuschlagstoffe fehlen Ursache nicht eindeutig festellbar | H96: A
A97: 5,20 | B97: BAJ | C97: B | D97: 20,00 | E97: 6 | F97: JA | G97: Verschobene Verbindung radial | I97: Fräsen | J97: €50
A98: 6,20 | B98: BBE | C98: D | D98: 10,00 | E98: 11 - 6 | F98: JA | G98: Andere Hindernisse Gegenstand ragt durch die Wand ein
A99: 7,20 | B99: BDD | C99: C | D99: 20,00 | G99: Wasserspiegel trüb | H99: A
A100: 7,20 | B100: BAI | C100: Z | D100: 5,00 | E100: 2 - 6 | F100: JA | G100: Einragendes Dichtungsmaterial andere Dichtungsart
A101: 11,20 | B101: BAI | C101: Z | D101: 5,00 | E101: 2 - 8 | F101: JA | G101: Einragendes Dichtungsmaterial andere Dichtungsart
A102: 11,40 | B102: BAN | E102: 4 - 8 | G102: Poröses Rohr | H102: A
A103: 11,40 | B103: BAF | C103: E / E | E103: 12 - 12 | G103: Oberflächenschaden Zuschlagstoffe fehlen Ursache nicht eindeutig festellbar | H103: C
A104: 14,30 | B104: BAF | C104: E / E | E104: 12 - 12 | G104: Oberflächenschaden Zuschlagstoffe fehlen Ursache nicht eindeutig festellbar | H104: C
A105: 15,40 | B105: BDD | C105: C | D105: 25,00 | G105: Wasserspiegel trüb | H105: C
A106: 16,00 | B106: BAF | C106: I / E | E106: 6 - 9 | G106: Oberflächenschaden fehlende Wand Ursache nicht eindeutig festellbar
A107: 16,00 | B107: BAP | E107: 6 - 9 | G107: Hohlraum sichtbar
A108: 16,00 | B108: BAG | D108: 5,00 | E108: 9 - 12 | G108: Einragender Anschluss
A109: 16,00 | B109: BAH | C109: A | E109: 9 - 12 | G109: Schadhafter Anschluss Lage des Anschlusses um das Rohr ist falsch
A110: 16,00 | B110: BCA | C110: C / A | D110: 150,00 | E110: 10 | G110: Anschluss Sattelanschluss – gemeißelt offen | I110: Einmessen,Öffnen,Hut | J110: €490
A111: 16,50 | B111: BDD | C111: C | D111: 40,00 | G111: Wasserspiegel trüb | H111: C
A112: 17,30 | B112: BBA | C112: B | D112: 2,00 | E112: 8 - 10 | F112: JA | G112: Wurzeln einzelne feine Wurzeln | I112: Fräsen | J112: €50
A113: 17,30 | B113: BCA | C113: C / A | D113: 150,00 | E113: 10 | G113: Anschluss Sattelanschluss – gemeißelt offen | I113: Einmessen,Öffnen,Hut | J113: €490
A114: 18,30 | B114: BAI | C114: Z | D114: 3,00 | E114: 10 - 4 | F114: JA | G114: Einragendes Dichtungsmaterial andere Dichtungsart
A115: 19,20 | B115: BAI | C115: Z | D115: 3,00 | E115: 4 - 9 | F115: JA | G115: Einragendes Dichtungsmaterial andere Dichtungsart
A116: 20,70 | B116: BDD | C116: C | G116: Wasserspiegel trüb | H116: B
A117: 23,90 | B117: BDD | C117: C | D117: 20,00 | G117: Wasserspiegel trüb | H117: A
A118: 24,50 | B118: BCA | C118: C / A | D118: 150,00 | E118: 10 | G118: Anschluss Sattelanschluss – gemeißelt offen | I118: Einmessen,Öffnen,Hut | J118: €490
A119: 24,50 | B119: BAH | C119: C | E119: 12 - 4 | F119: JA | G119: Schadhafter Anschluss am Umfang des Anschlusses ist teilweise ein Spalt (Anschluss unvollständig eingebunden)
A120: 26,20 | B120: BCA | C120: C / A | D120: 150,00 | E120: 10 | G120: Anschluss Sattelanschluss – gemeißelt offen | I120: Einmessen,Öffnen,Hut | J120: €490
A121: 30,80 | B121: BDD | C121: C | G121: Wasserspiegel trüb | H121: B
A122: 33,30 | B122: BAF | C122: E / E | E122: 12 - 12 | G122: Oberflächenschaden Zuschlagstoffe fehlen Ursache nicht eindeutig festellbar | H122: C
A123: 33,60 | B123: BAN | E123: 4 - 8 | G123: Poröses Rohr | H123: C
A124: 33,70 | B124: BAG | D124: 10,00 | E124: 9 - 12 | G124: Einragender Anschluss
A125: 33,70 | B125: BAH | C125: A | E125: 9 - 12 | G125: Schadhafter Anschluss Lage des Anschlusses um das Rohr ist falsch
A126: 33,70 | B126: BCA | C126: C / A | D126: 150,00 | E126: 10 | G126: Anschluss Sattelanschluss – gemeißelt offen | I126: Einmessen,Öffnen,Hut | J126: €490
A127: 34,80 | B127: BAB | C127: B / A | D127: 3,00 | E127: 5 - 7 | G127: Rissbildung Riss in Längsrichtung | H127: A
A128: 35,30 | B128: BAH | C128: A | E128: 10 - 2 | G128: Schadhafter Anschluss Lage des Anschlusses um das Rohr ist falsch
A129: 35,30 | B129: BCA | C129: C / A | D129: 150,00 | E129: 12 | G129: Anschluss Sattelanschluss – gemeißelt offen | I129: Einmessen,Öffnen,Hut | J129: €490
A130: 38,90 | B130: BAB | C130: B / A | D130: 3,00 | E130: 5 - 7 | G130: Rissbildung Riss in Längsrichtung | H130: B
A131: 42,40 | B131: BAN | E131: 4 - 8 | G131: Poröses Rohr | H131: C
A132: 42,40 | B132: BAP | E132: 6 - 10 | G132: Hohlraum sichtbar
A133: 42,40 | B133: BAF | C133: I / E | E133: 6 - 9 | G133: Oberflächenschaden fehlende Wand Ursache nicht eindeutig festellbar
A134: 42,50 | B134: BCA | C134: C / A | D134: 150,00 | E134: 10 | G134: Anschluss Sattelanschluss – gemeißelt offen | I134: Einmessen,Öffnen,Hut | J134: €490
A135: 44,20 | B135: BCA | C135: C / A | D135: 150,00 | E135: 10 | G135: Anschluss Sattelanschluss – gemeißelt offen | I135: Einmessen,Öffnen,Hut | J135: €490
A136: 45,70 | B136: BDD | C136: C | D136: 15,00 | G136: Wasserspiegel trüb | H136: A
A137: 46,40 | B137: BAJ | C137: B | D137: 20,00 | E137: 12 | F137: JA | G137: Verschobene Verbindung radial | I137: Fräsen | J137: €50
A138: 51,40 | B138: BAI | C138: Z | D138: 3,00 | E138: 8 - 10 | F138: JA | G138: Einragendes Dichtungsmaterial andere Dichtungsart
A139: 51,70 | B139: BAP | E139: 3 - 9 | F139: JA | G139: Hohlraum sichtbar
A140: 51,70 | B140: BAH | C140: A | E140: 9 - 12 | G140: Schadhafter Anschluss Lage des Anschlusses um das Rohr ist falsch
A141: 51,70 | B141: BCA | C141: C / A | D141: 150,00 | E141: 10 | G141: Anschluss Sattelanschluss – gemeißelt offen | I141: Einmessen,Öffnen,Hut | J141: €490
A142: 51,70 | B142: BAH | C142: C | E142: 12 - 12 | F142: JA | G142: Schadhafter Anschluss am Umfang des Anschlusses ist teilweise ein Spalt (Anschluss unvollständig eingebunden)
A143: 52,40 | B143: BAP | E143: 4 - 8 | F143: JA | G143: Hohlraum sichtbar
A144: 52,40 | B144: BAI | C144: Z | D144: 3,00 | E144: 12 - 12 | F144: JA | G144: Einragendes Dichtungsmaterial andere Dichtungsart
A145: 53,00 | B145: BAF | C145: E / E | E145: 12 - 12 | G145: Oberflächenschaden Zuschlagstoffe fehlen Ursache nicht eindeutig festellbar | H145: C
A146: 53,00 | B146: BAN | E146: 12 - 12 | G146: Poröses Rohr | H146: C
A147: 53,10 | B147: BAF | C147: I / E | E147: 2 - 4 | G147: Oberflächenschaden fehlende Wand Ursache nicht eindeutig festellbar
A148: 53,20 | B148: BAG | D148: 10,00 | E148: 9 - 12 | G148: Einragender Anschluss
A149: 53,20 | B149: BAH | C149: A | E149: 9 - 12 | G149: Schadhafter Anschluss Lage des Anschlusses um das Rohr ist falsch
A150: 53,20 | B150: BCA | C150: C / A | D150: 150,00 | E150: 10 | G150: Anschluss Sattelanschluss – gemeißelt offen | I150: Einmessen,Öffnen,Hut | J150: €490
A151: 57,30 | B151: BDD | C151: C | G151: Wasserspiegel trüb | H151: B
A152: 59,40 | B152: BBE | C152: C | D152: 20,00 | E152: 4 - 8 | F152: JA | G152: Andere Hindernisse anderer Gegenstand liegt in der Rohrsohle
A153: 60,70 | B153: BAF | C153: I / E | E153: 8 - 10 | G153: Oberflächenschaden fehlende Wand Ursache nicht eindeutig festellbar
A154: 60,70 | B154: BAP | E154: 8 - 9 | G154: Hohlraum sichtbar
A155: 60,70 | B155: BCA | C155: C / A | D155: 150,00 | E155: 10 | G155: Anschluss Sattelanschluss – gemeißelt offen | I155: Einmessen,Öffnen,Hut | J155: €490
A156: 61,20 | B156: BAF | C156: E / E | E156: 12 - 12 | G156: Oberflächenschaden Zuschlagstoffe fehlen Ursache nicht eindeutig festellbar | H156: B
A157: 61,20 | B157: BAN | E157: 12 - 12 | G157: Poröses Rohr | H157: B
A158: 62,10 | B158: BAB | C158: B / B | D158: 3,00 | E158: 12 - 12 | G158: Rissbildung Riss am Rohrumfang
A159: 62,40 | B159: BCE | C159: XP | G159: Endknoten | I159: Schlauchliner | J159: €6,340
G160: netto-Zwischensumme | J160: =SUM(J91:J159) -> €11,880
A161: Renovation | G161: Baustelleneinrichtung anteilig Haltung | H161: 10 | J161: =(H161/100)*J160 -> €1,188
G162: Verkehrssicherung anteilig Haltung | H162: 5 | J162: =(H162/100)*J160 -> €594
A163: Sanierungspriorität | C163: Info | G163: Aufrechterhaltung der Vorflut Haltung | H163: 12 | J163: =(H163/100)*J160 -> €1,426
A164: kurzfristing | B164: ja oder nein | C164: 6-12 Monate | G164: Kanalreinigung vor Sanierung | H164: 62.4 | I164: 2 | J164: =H164*I164 -> €125
A165: mittelfristig | B165: ja oder nein | C165: 1 bis 5 Jahre | G165: Kamerainspektion Abnahme | H165: 62.4 | I165: 3 | J165: =H165*I165 -> €187
A166: langfristig | B166: ja oder nein | C166: 5 bis 10 Jahre | G166: Summe netto Haltung | J166: =SUM(J160:J165) -> €15,400
G167: Mehrwertsteuer | H167: 19 | J167: =(H167/100)*J166 -> €2,926
A168: Sanierung im Verbund | B168: ja oder nein | G168: Summe brutto Haltung | J168: =SUM(J166:J167) -> €18,326

Sheet 09342839
A1: Haltung | B1: Straße | C1: Inspizierte Länge | D1: Länge | E1: Tiefe | G1: Schadensbeschreibung | I1: Durchmesser | J1: Material
A2: 09342839 | B2: BERLINER STRAßE | C2: 62,50 | D2: 63,50 | E2: Not Implemented yet | I2: 200 | J2: B
A4: Station | B4: Kürzel | C4: Charakterisi. | D4: Quantifizierung | E4: Lage im Kreis | G4: Schadensbeschreibung / Info | H4: Strecke | I4: Sanierungsvorschlag | J4: Kostenans.
A5: 0,00 | B5: BCD | C5: XP | G5: Anfangsknoten
A6: 0,00 | B6: AED | C6: PP | G6: Grundlagen änderung
A7: 1,20 | B7: BAA | C7: A | D7: 3,00 | E7: 10 - 1 | G7: Verformung vertikal
A8: 1,20 | B8: BCB | C8: Z | E8: 12 - 12 | G8: Punktuelle Reparatur anderes grabenloses Reparaturverfahren | H8: A
A9: 1,50 | B9: AED | C9: B | G9: Grundlagen änderung
A10: 1,50 | B10: BCB | C10: Z | E10: 12 - 12 | G10: Punktuelle Reparatur anderes grabenloses Reparaturverfahren | H10: B
A11: 3,30 | B11: BBF | C11: A | E11: 12 - 12 | F11: JA | G11: Infiltration Schwitzen
A12: 5,40 | B12: BAN | E12: 12 - 12 | G12: Poröses Rohr | H12: A
A13: 5,50 | B13: BAC | C13: B | D13: 300,00 | E13: 1 - 6 | G13: Rohrbruch / Einsturz Fehlen von Teilen
A14: 5,50 | B14: BAP | E14: 1 - 5 | G14: Hohlraum sichtbar
A15: 5,50 | B15: BAF | C15: C / E | E15: 12 - 12 | G15: Oberflächenschaden Zuschlagstoffe sichtbar Ursache nicht eindeutig festellbar | H15: A
A16: 5,60 | B16: BAB | C16: B / A | D16: 2,00 | E16: 6 | G16: Rissbildung Riss in Längsrichtung | H16: A
A17: 6,30 | B17: BAI | C17: Z | D17: 5,00 | E17: 2 - 10 | F17: JA | G17: Einragendes Dichtungsmaterial andere Dichtungsart | I17: Fräsen | J17: €50
A18: 6,30 | B18: BAB | C18: B / A | D18: 2,00 | E18: 6 | G18: Rissbildung Riss in Längsrichtung | H18: B
A19: 7,30 | B19: BBF | C19: A | E19: 12 - 12 | F19: JA | G19: Infiltration Schwitzen
A20: 9,60 | B20: BBD | C20: A | D20: 2,00 | E20: 3 - 6 | G20: Eindringen von Bodenmaterial Sand
A21: 9,60 | B21: BAN | E21: 12 - 12 | G21: Poröses Rohr | H21: C
A22: 9,80 | B22: BAF | C22: E / E | E22: 8 - 4 | G22: Oberflächenschaden Zuschlagstoffe fehlen Ursache nicht eindeutig festellbar | H22: A
A23: 9,80 | B23: BAN | E23: 12 - 12 | G23: Poröses Rohr | H23: C
A24: 9,80 | B24: BAF | C24: C / E | E24: 12 - 12 | G24: Oberflächenschaden Zuschlagstoffe sichtbar Ursache nicht eindeutig festellbar | H24: B
A25: 10,50 | B25: BAC | C25: B | D25: 300,00 | E25: 12 - 6 | G25: Rohrbruch / Einsturz Fehlen von Teilen
A26: 10,50 | B26: BBD | C26: B | D26: 25,00 | E26: 12 - 6 | G26: Eindringen von Bodenmaterial Torf
A27: 10,50 | B27: BAP | E27: 12 - 6 | G27: Hohlraum sichtbar
A28: 10,90 | B28: BAP | E28: 9 - 12 | G28: Hohlraum sichtbar
A29: 10,90 | B29: BAN | E29: 12 - 12 | G29: Poröses Rohr | H29: C
A30: 10,90 | B30: BAC | C30: B | E30: 12 - 12 | G30: Rohrbruch / Einsturz Fehlen von Teilen | H30: A
A31: 14,30 | B31: BAI | C31: Z | D31: 5,00 | E31: 2 - 10 | F31: JA | G31: Einragendes Dichtungsmaterial andere Dichtungsart | I31: Fräsen | J31: €50
A32: 16,20 | B32: BAG | D32: 20,00 | E32: 9 - 11 | G32: Einragender Anschluss | I32: Fräsen | J32: €50
A33: 16,20 | B33: BCA | C33: C / A | D33: 150,00 | E33: 10 | G33: Anschluss Sattelanschluss – gemeißelt offen
A34: 16,20 | B34: BAH | C34: C | E34: 12 - 12 | F34: JA | G34: Schadhafter Anschluss am Umfang des Anschlusses ist teilweise ein Spalt (Anschluss unvollständig eingebunden) | I34: Fräsen,Hut | J34: €450
A35: 16,60 | B35: BAN | E35: 12 - 12 | G35: Poröses Rohr | H35: C
A36: 17,50 | B36: BCA | C36: C / A | D36: 150,00 | E36: 10 | G36: Anschluss Sattelanschluss – gemeißelt offen
A37: 20,60 | B37: BAC | C37: B | E37: 12 - 12 | G37: Rohrbruch / Einsturz Fehlen von Teilen | H37: C
A38: 21,60 | B38: BAC | C38: B | E38: 12 - 12 | G38: Rohrbruch / Einsturz Fehlen von Teilen | H38: C
A39: 21,60 | B39: BAP | E39: 12 - 12 | G39: Hohlraum sichtbar | H39: A
A40: 24,80 | B40: BCA | C40: C / A | D40: 150,00 | E40: 10 | G40: Anschluss Sattelanschluss – gemeißelt offen
A41: 26,70 | B41: BCA | C41: C / A | D41: 150,00 | E41: 10 | G41: Anschluss Sattelanschluss – gemeißelt offen
A42: 29,50 | B42: BAC | C42: B | D42: 500,00 | E42: 11 - 6 | G42: Rohrbruch / Einsturz Fehlen von Teilen | H42: A
A43: 29,80 | B43: BAC | C43: B | D43: 500,00 | E43: 11 - 6 | G43: Rohrbruch / Einsturz Fehlen von Teilen | H43: B
A44: 31,50 | B44: BAJ | C44: B | D44: 20,00 | E44: 6 | F44: JA | G44: Verschobene Verbindung radial | I44: Fräsen | J44: €50
A45: 33,50 | B45: BAB | C45: B / A | D45: 2,00 | E45: 11 | F45: JA | G45: Rissbildung Riss in Längsrichtung
A46: 33,60 | B46: BAH | C46: A | E46: 9 - 12 | G46: Schadhafter Anschluss Lage des Anschlusses um das Rohr ist falsch | J46: €0
A47: 33,60 | B47: BCA | C47: C / A | D47: 150,00 | E47: 10 | G47: Anschluss Sattelanschluss – gemeißelt offen
A48: 34,50 | B48: BAB | C48: B / A | D48: 2,00 | E48: 2 | F48: JA | G48: Rissbildung Riss in Längsrichtung
A49: 34,50 | B49: BAI | C49: Z | D49: 3,00 | E49: 2 - 4 | F49: JA | G49: Einragendes Dichtungsmaterial andere Dichtungsart | I49: Fräsen | J49: €50
A50: 35,20 | B50: BAB | C50: B / A | D50: 3,00 | E50: 4 - 5 | G50: Rissbildung Riss in Längsrichtung | H50: A
A51: 35,40 | B51: BCA | C51: C / A | D51: 150,00 | E51: 10 | G51: Anschluss Sattelanschluss – gemeißelt offen
A52: 35,90 | B52: BAB | C52: B / A | D52: 3,00 | E52: 4 - 5 | G52: Rissbildung Riss in Längsrichtung | H52: B
A53: 35,90 | B53: BAN | E53: 12 - 12 | G53: Poröses Rohr | H53: C
A54: 35,90 | B54: BAP | E54: 12 - 12 | G54: Hohlraum sichtbar | H54: C
A55: 35,90 | B55: BAC | C55: B | E55: 12 - 12 | G55: Rohrbruch / Einsturz Fehlen von Teilen | H55: C
A56: 35,90 | B56: BBD | C56: A | D56: 15,00 | E56: 12 - 7 | G56: Eindringen von Bodenmaterial Sand
A57: 37,50 | B57: BAI | C57: Z | D57: 5,00 | E57: 12 - 12 | F57: JA | G57: Einragendes Dichtungsmaterial andere Dichtungsart | I57: Fräsen | J57: €50
A58: 39,40 | B58: AED | C58: STZ | G58: Grundlagen änderung
A59: 39,40 | B59: BAF | C59: E / E | E59: 8 - 4 | G59: Oberflächenschaden Zuschlagstoffe fehlen Ursache nicht eindeutig festellbar | H59: B
A60: 39,40 | B60: BAN | E60: 12 - 12 | G60: Poröses Rohr | H60: B
A61: 39,40 | B61: BAC | C61: B | E61: 12 - 12 | G61: Rohrbruch / Einsturz Fehlen von Teilen | H61: B
A62: 39,40 | B62: BAP | E62: 12 - 12 | G62: Hohlraum sichtbar | H62: B
A63: 40,50 | B63: AED | C63: B | G63: Grundlagen änderung
A64: 41,10 | B64: BAF | C64: E / E | E64: 12 - 12 | G64: Oberflächenschaden Zuschlagstoffe fehlen Ursache nicht eindeutig festellbar | H64: A
A65: 41,10 | B65: BAN | E65: 12 - 12 | G65: Poröses Rohr | H65: A
A66: 42,80 | B66: BAH | C66: A | E66: 9 - 12 | G66: Schadhafter Anschluss Lage des Anschlusses um das Rohr ist falsch | J66: €0
A67: 42,80 | B67: BCA | C67: C / A | D67: 150,00 | E67: 10 | G67: Anschluss Sattelanschluss – gemeißelt offen
A68: 43,50 | B68: BAC | C68: B | E68: 12 - 12 | G68: Rohrbruch / Einsturz Fehlen von Teilen | H68: A
A69: 43,50 | B69: BAP | E69: 12 - 12 | G69: Hohlraum sichtbar | H69: A
A70: 44,60 | B70: BCA | C70: C / A | D70: 150,00 | E70: 10 | G70: Anschluss Sattelanschluss – gemeißelt offen
A71: 45,10 | B71: BAN | E71: 12 - 12 | G71: Poröses Rohr | H71: C
A72: 45,10 | B72: BAP | E72: 12 - 12 | G72: Hohlraum sichtbar | H72: C
A73: 46,00 | B73: BAC | C73: B | E73: 12 - 12 | G73: Rohrbruch / Einsturz Fehlen von Teilen | H73: C
A74: 49,60 | B74: BAI | C74: Z | D74: 3,00 | E74: 12 - 4 | F74: JA | G74: Einragendes Dichtungsmaterial andere Dichtungsart | I74: Fräsen | J74: €50
A75: 51,80 | B75: BAH | C75: A | E75: 9 - 12 | G75: Schadhafter Anschluss Lage des Anschlusses um das Rohr ist falsch | J75: €0
A76: 51,80 | B76: BCA | C76: C / A | D76: 150,00 | E76: 10 | G76: Anschluss Sattelanschluss – gemeißelt offen
A77: 52,50 | B77: AED | C77: PP | G77: Grundlagen änderung
A78: 52,50 | B78: BAF | C78: E / E | E78: 12 - 12 | G78: Oberflächenschaden Zuschlagstoffe fehlen Ursache nicht eindeutig festellbar | H78: B
A79: 52,50 | B79: BAN | E79: 12 - 12 | G79: Poröses Rohr | H79: B
A80: 52,50 | B80: BAC | C80: B | E80: 12 - 12 | G80: Rohrbruch / Einsturz Fehlen von Teilen | H80: B
A81: 52,50 | B81: BAP | E81: 12 - 12 | G81: Hohlraum sichtbar | H81: B
A82: 52,70 | B82: BCA | C82: A / A | D82: 150,00 | E82: 11 | G82: Anschluss Abzweig offen
A83: 54,50 | B83: AED | C83: B | G83: Grundlagen änderung
A84: 55,60 | B84: BAN | E84: 12 - 12 | G84: Poröses Rohr | H84: A
A85: 55,70 | B85: BAC | C85: B | E85: 12 - 12 | G85: Rohrbruch / Einsturz Fehlen von Teilen | H85: A
A86: 56,80 | B86: BAC | C86: B | E86: 12 - 12 | G86: Rohrbruch / Einsturz Fehlen von Teilen | H86: C
A87: 56,80 | B87: BAP | E87: 12 - 12 | G87: Hohlraum sichtbar | H87: A
A88: 57,10 | B88: BAP | E88: 12 - 12 | G88: Hohlraum sichtbar | H88: C
A89: 57,10 | B89: BAC | C89: B | D89: 100,00 | E89: 12 - 12 | G89: Rohrbruch / Einsturz Fehlen von Teilen
A90: 58,00 | B90: BAN | E90: 12 - 12 | G90: Poröses Rohr | H90: C
A91: 58,00 | B91: BAC | C91: B | E91: 12 - 12 | G91: Rohrbruch / Einsturz Fehlen von Teilen | H91: C
A92: 60,60 | B92: BAI | C92: Z | D92: 10,00 | E92: 12 - 12 | F92: JA | G92: Einragendes Dichtungsmaterial andere Dichtungsart | I92: Fräsen | J92: €50
A93: 60,90 | B93: BBA | C93: B | D93: 3,00 | E93: 8 - 9 | G93: Wurzeln einzelne feine Wurzeln | I93: Fräsen | J93: €50
A94: 60,90 | B94: BCA | C94: C / A | D94: 150,00 | E94: 10 | G94: Anschluss Sattelanschluss – gemeißelt offen
A95: 61,50 | B95: BBA | C95: B | D95: 2,00 | E95: 12 - 12 | F95: JA | G95: Wurzeln einzelne feine Wurzeln | I95: Fräsen | J95: €50
A96: 61,50 | B96: BAI | C96: Z | D96: 5,00 | E96: 12 - 12 | F96: JA | G96: Einragendes Dichtungsmaterial andere Dichtungsart | I96: Fräsen | J96: €50
A97: 61,90 | B97: BAN | E97: 12 - 12 | G97: Poröses Rohr | H97: C
A98: 61,90 | B98: BAC | C98: B | E98: 12 - 12 | G98: Rohrbruch / Einsturz Fehlen von Teilen | H98: C
A99: 61,90 | B99: BAP | E99: 12 - 12 | G99: Hohlraum sichtbar | H99: C
A100: 62,50 | B100: BAN | E100: 12 - 12 | G100: Poröses Rohr | H100: B
A101: 62,50 | B101: BAC | C101: B | E101: 12 - 12 | G101: Rohrbruch / Einsturz Fehlen von Teilen | H101: B
A102: 62,50 | B102: BAP | E102: 12 - 12 | G102: Hohlraum sichtbar | H102: B
A103: 62,50 | B103: BCE | C103: XP | G103: Endknoten
G104: netto-Zwischensumme | J104: =SUM(J5:J103) -> €1,000
A105: Reparatur | G105: Baustelleneinrichtung anteilig Haltung | H105: 10 | J105: =(H105/100)*J104 -> €100
G106: Verkehrssicherung anteilig Haltung | H106: 5 | J106: =(H106/100)*J104 -> €50
A107: Sanierungspriorität | C107: Info | G107: Aufrechterhaltung der Vorflut Haltung | H107: 12 | J107: =(H107/100)*J104 -> €120
A108: kurzfristing | B108: ja oder nein | C108: 6-12 Monate | G108: Kanalreinigung vor Sanierung | H108: 62.5 | I108: 2 | J108: =H108*I108 -> €125
A109: mittelfristig | B109: ja oder nein | C109: 1 bis 5 Jahre | G109: Kamerainspektion Abnahme | H109: 62.5 | I109: 3 | J109: =H109*I109 -> €188
A110: langfristig | B110: ja oder nein | C110: 5 bis 10 Jahre | G110: Summe netto Haltung | J110: =SUM(J104:J109) -> €1,583
G111: Mehrwertsteuer | H111: 19 | J111: =(H111/100)*J110 -> €301
A112: Sanierung im Verbund | B112: ja oder nein | G112: Summe brutto Haltung | J112: =SUM(J110:J111) -> €1,883
A117: Haltung | B117: Straße | C117: Inspizierte Länge | D117: Länge | E117: Tiefe | G117: Schadensbeschreibung | I117: Durchmesser | J117: Material
A118: 09342839 | B118: BERLINER STRAßE | C118: 62,50 | D118: 63,50 | E118: Not Implemented yet | I118: 200 | J118: B
A120: Station | B120: Kürzel | C120: Charakterisi. | D120: Quantifizierung | E120: Lage im Kreis | G120: Schadensbeschreibung / Info | H120: Strecke | I120: Sanierungsvorschlag | J120: Kostenans.
A121: 0,00 | B121: BCD | C121: XP | G121: Anfangsknoten
A122: 0,00 | B122: AED | C122: PP | G122: Grundlagen änderung
A123: 1,20 | B123: BAA | C123: A | D123: 3,00 | E123: 10 - 1 | G123: Verformung vertikal
A124: 1,20 | B124: BCB | C124: Z | E124: 12 - 12 | G124: Punktuelle Reparatur anderes grabenloses Reparaturverfahren | H124: A
A125: 1,50 | B125: AED | C125: B | G125: Grundlagen änderung
A126: 1,50 | B126: BCB | C126: Z | E126: 12 - 12 | G126: Punktuelle Reparatur anderes grabenloses Reparaturverfahren | H126: B
A127: 3,30 | B127: BBF | C127: A | E127: 12 - 12 | F127: JA | G127: Infiltration Schwitzen
A128: 5,40 | B128: BAN | E128: 12 - 12 | G128: Poröses Rohr | H128: A
A129: 5,50 | B129: BAC | C129: B | D129: 300,00 | E129: 1 - 6 | G129: Rohrbruch / Einsturz Fehlen von Teilen
A130: 5,50 | B130: BAP | E130: 1 - 5 | G130: Hohlraum sichtbar
A131: 5,50 | B131: BAF | C131: C / E | E131: 12 - 12 | G131: Oberflächenschaden Zuschlagstoffe sichtbar Ursache nicht eindeutig festellbar | H131: A
A132: 5,60 | B132: BAB | C132: B / A | D132: 2,00 | E132: 6 | G132: Rissbildung Riss in Längsrichtung | H132: A
A133: 6,30 | B133: BAI | C133: Z | D133: 5,00 | E133: 2 - 10 | F133: JA | G133: Einragendes Dichtungsmaterial andere Dichtungsart
A134: 6,30 | B134: BAB | C134: B / A | D134: 2,00 | E134: 6 | G134: Rissbildung Riss in Längsrichtung | H134: B
A135: 7,30 | B135: BBF | C135: A | E135: 12 - 12 | F135: JA | G135: Infiltration Schwitzen
A136: 9,60 | B136: BBD | C136: A | D136: 2,00 | E136: 3 - 6 | G136: Eindringen von Bodenmaterial Sand
A137: 9,60 | B137: BAN | E137: 12 - 12 | G137: Poröses Rohr | H137: C
A138: 9,80 | B138: BAF | C138: E / E | E138: 8 - 4 | G138: Oberflächenschaden Zuschlagstoffe fehlen Ursache nicht eindeutig festellbar | H138: A
A139: 9,80 | B139: BAN | E139: 12 - 12 | G139: Poröses Rohr | H139: C
A140: 9,80 | B140: BAF | C140: C / E | E140: 12 - 12 | G140: Oberflächenschaden Zuschlagstoffe sichtbar Ursache nicht eindeutig festellbar | H140: B
A141: 10,50 | B141: BAC | C141: B | D141: 300,00 | E141: 12 - 6 | G141: Rohrbruch / Einsturz Fehlen von Teilen
A142: 10,50 | B142: BBD | C142: B | D142: 25,00 | E142: 12 - 6 | G142: Eindringen von Bodenmaterial Torf
A143: 10,50 | B143: BAP | E143: 12 - 6 | G143: Hohlraum sichtbar
A144: 10,90 | B144: BAP | E144: 9 - 12 | G144: Hohlraum sichtbar
A145: 10,90 | B145: BAN | E145: 12 - 12 | G145: Poröses Rohr | H145: C
A146: 10,90 | B146: BAC | C146: B | E146: 12 - 12 | G146: Rohrbruch / Einsturz Fehlen von Teilen | H146: A
A147: 14,30 | B147: BAI | C147: Z | D147: 5,00 | E147: 2 - 10 | F147: JA | G147: Einragendes Dichtungsmaterial andere Dichtungsart
A148: 16,20 | B148: BAG | D148: 20,00 | E148: 9 - 11 | G148: Einragender Anschluss
A149: 16,20 | B149: BCA | C149: C / A | D149: 150,00 | E149: 10 | G149: Anschluss Sattelanschluss – gemeißelt offen | I149: Einmessen,Öffnen,Hut | J149: €490
A150: 16,20 | B150: BAH | C150: C | E150: 12 - 12 | F150: JA | G150: Schadhafter Anschluss am Umfang des Anschlusses ist teilweise ein Spalt (Anschluss unvollständig eingebunden)
A151: 16,60 | B151: BAN | E151: 12 - 12 | G151: Poröses Rohr | H151: C
A152: 17,50 | B152: BCA | C152: C / A | D152: 150,00 | E152: 10 | G152: Anschluss Sattelanschluss – gemeißelt offen | I152: Einmessen,Öffnen,Hut | J152: €490
A153: 20,60 | B153: BAC | C153: B | E153: 12 - 12 | G153: Rohrbruch / Einsturz Fehlen von Teilen | H153: C
A154: 21,60 | B154: BAC | C154: B | E154: 12 - 12 | G154: Rohrbruch / Einsturz Fehlen von Teilen | H154: C
A155: 21,60 | B155: BAP | E155: 12 - 12 | G155: Hohlraum sichtbar | H155: A
A156: 24,80 | B156: BCA | C156: C / A | D156: 150,00 | E156: 10 | G156: Anschluss Sattelanschluss – gemeißelt offen | I156: Einmessen,Öffnen,Hut | J156: €490
A157: 26,70 | B157: BCA | C157: C / A | D157: 150,00 | E157: 10 | G157: Anschluss Sattelanschluss – gemeißelt offen | I157: Einmessen,Öffnen,Hut | J157: €490
A158: 29,50 | B158: BAC | C158: B | D158: 500,00 | E158: 11 - 6 | G158: Rohrbruch / Einsturz Fehlen von Teilen | H158: A
A159: 29,80 | B159: BAC | C159: B | D159: 500,00 | E159: 11 - 6 | G159: Rohrbruch / Einsturz Fehlen von Teilen | H159: B
A160: 31,50 | B160: BAJ | C160: B | D160: 20,00 | E160: 6 | F160: JA | G160: Verschobene Verbindung radial | I160: Fräsen | J160: €50
A161: 33,50 | B161: BAB | C161: B / A | D161: 2,00 | E161: 11 | F161: JA | G161: Rissbildung Riss in Längsrichtung
A162: 33,60 | B162: BAH | C162: A | E162: 9 - 12 | G162: Schadhafter Anschluss Lage des Anschlusses um das Rohr ist falsch
A163: 33,60 | B163: BCA | C163: C / A | D163: 150,00 | E163: 10 | G163: Anschluss Sattelanschluss – gemeißelt offen | I163: Einmessen,Öffnen,Hut | J163: €490
A164: 34,50 | B164: BAB | C164: B / A | D164: 2,00 | E164: 2 | F164: JA | G164: Rissbildung Riss in Längsrichtung
A165: 34,50 | B165: BAI | C165: Z | D165: 3,00 | E165: 2 - 4 | F165: JA | G165: Einragendes Dichtungsmaterial andere Dichtungsart
A166: 35,20 | B166: BAB | C166: B / A | D166: 3,00 | E166: 4 - 5 | G166: Rissbildung Riss in Längsrichtung | H166: A
A167: 35,40 | B167: BCA | C167: C / A | D167: 150,00 | E167: 10 | G167: Anschluss Sattelanschluss – gemeißelt offen | I167: Einmessen,Öffnen,Hut | J167: €490
A168: 35,90 | B168: BAB | C168: B / A | D168: 3,00 | E168: 4 - 5 | G168: Rissbildung Riss in Längsrichtung | H168: B
A169: 35,90 | B169: BAN | E169: 12 - 12 | G169: Poröses Rohr | H169: C
A170: 35,90 | B170: BAP | E170: 12 - 12 | G170: Hohlraum sichtbar | H170: C
A171: 35,90 | B171: BAC | C171: B | E171: 12 - 12 | G171: Rohrbruch / Einsturz Fehlen von Teilen | H171: C
A172: 35,90 | B172: BBD | C172: A | D172: 15,00 | E172: 12 - 7 | G172: Eindringen von Bodenmaterial Sand
A173: 37,50 | B173: BAI | C173: Z | D173: 5,00 | E173: 12 - 12 | F173: JA | G173: Einragendes Dichtungsmaterial andere Dichtungsart
A174: 39,40 | B174: AED | C174: STZ | G174: Grundlagen änderung
A175: 39,40 | B175: BAF | C175: E / E | E175: 8 - 4 | G175: Oberflächenschaden Zuschlagstoffe fehlen Ursache nicht eindeutig festellbar | H175: B
A176: 39,40 | B176: BAN | E176: 12 - 12 | G176: Poröses Rohr | H176: B
A177: 39,40 | B177: BAC | C177: B | E177: 12 - 12 | G177: Rohrbruch / Einsturz Fehlen von Teilen | H177: B
A178: 39,40 | B178: BAP | E178: 12 - 12 | G178: Hohlraum sichtbar | H178: B
A179: 40,50 | B179: AED | C179: B | G179: Grundlagen änderung
A180: 41,10 | B180: BAF | C180: E / E | E180: 12 - 12 | G180: Oberflächenschaden Zuschlagstoffe fehlen Ursache nicht eindeutig festellbar | H180: A
A181: 41,10 | B181: BAN | E181: 12 - 12 | G181: Poröses Rohr | H181: A
A182: 42,80 | B182: BAH | C182: A | E182: 9 - 12 | G182: Schadhafter Anschluss Lage des Anschlusses um das Rohr ist falsch
A183: 42,80 | B183: BCA | C183: C / A | D183: 150,00 | E183: 10 | G183: Anschluss Sattelanschluss – gemeißelt offen | I183: Einmessen,Öffnen,Hut | J183: €490
A184: 43,50 | B184: BAC | C184: B | E184: 12 - 12 | G184: Rohrbruch / Einsturz Fehlen von Teilen | H184: A
A185: 43,50 | B185: BAP | E185: 12 - 12 | G185: Hohlraum sichtbar | H185: A
A186: 44,60 | B186: BCA | C186: C / A | D186: 150,00 | E186: 10 | G186: Anschluss Sattelanschluss – gemeißelt offen | I186: Einmessen,Öffnen,Hut | J186: €490
A187: 45,10 | B187: BAN | E187: 12 - 12 | G187: Poröses Rohr | H187: C
A188: 45,10 | B188: BAP | E188: 12 - 12 | G188: Hohlraum sichtbar | H188: C
A189: 46,00 | B189: BAC | C189: B | E189: 12 - 12 | G189: Rohrbruch / Einsturz Fehlen von Teilen | H189: C
A190: 49,60 | B190: BAI | C190: Z | D190: 3,00 | E190: 12 - 4 | F190: JA | G190: Einragendes Dichtungsmaterial andere Dichtungsart
A191: 51,80 | B191: BAH | C191: A | E191: 9 - 12 | G191: Schadhafter Anschluss Lage des Anschlusses um das Rohr ist falsch
A192: 51,80 | B192: BCA | C192: C / A | D192: 150,00 | E192: 10 | G192: Anschluss Sattelanschluss – gemeißelt offen | I192: Einmessen,Öffnen,Hut | J192: €490
A193: 52,50 | B193: AED | C193: PP | G193: Grundlagen änderung
A194: 52,50 | B194: BAF | C194: E / E | E194: 12 - 12 | G194: Oberflächenschaden Zuschlagstoffe fehlen Ursache nicht eindeutig festellbar | H194: B
A195: 52,50 | B195: BAN | E195: 12 - 12 | G195: Poröses Rohr | H195: B
A196: 52,50 | B196: BAC | C196: B | E196: 12 - 12 | G196: Rohrbruch / Einsturz Fehlen von Teilen | H196: B
A197: 52,50 | B197: BAP | E197: 12 - 12 | G197: Hohlraum sichtbar | H197: B
A198: 52,70 | B198: BCA | C198: A / A | D198: 150,00 | E198: 11 | G198: Anschluss Abzweig offen | I198: Einmessen,Öffnen,Hut | J198: €490
A199: 54,50 | B199: AED | C199: B | G199: Grundlagen änderung
A200: 55,60 | B200: BAN | E200: 12 - 12 | G200: Poröses Rohr | H200: A
A201: 55,70 | B201: BAC | C201: B | E201: 12 - 12 | G201: Rohrbruch / Einsturz Fehlen von Teilen | H201: A
A202: 56,80 | B202: BAC | C202: B | E202: 12 - 12 | G202: Rohrbruch / Einsturz Fehlen von Teilen | H202: C
A203: 56,80 | B203: BAP | E203: 12 - 12 | G203: Hohlraum sichtbar | H203: A
A204: 57,10 | B204: BAP | E204: 12 - 12 | G204: Hohlraum sichtbar | H204: C
A205: 57,10 | B205: BAC | C205: B | D205: 100,00 | E205: 12 - 12 | G205: Rohrbruch / Einsturz Fehlen von Teilen
A206: 58,00 | B206: BAN | E206: 12 - 12 | G206: Poröses Rohr | H206: C
... 22 more rows

Sheet 09342840
A1: Haltung | B1: Straße | C1: Inspizierte Länge | D1: Länge | E1: Tiefe | G1: Schadensbeschreibung | I1: Durchmesser | J1: Material
A2: 09342840 | B2: BERLINER STRAßE | C2: 62,70 | D2: 63,70 | E2: Not Implemented yet | I2: 200 | J2: B
A4: Station | B4: Kürzel | C4: Charakterisi. | D4: Quantifizierung | E4: Lage im Kreis | G4: Schadensbeschreibung / Info | H4: Strecke | I4: Sanierungsvorschlag | J4: Kostenans.
A5: 0,00 | B5: BCD | C5: XP | G5: Anfangsknoten
A6: 0,00 | B6: BAF | C6: C / E | E6: 12 - 12 | G6: Oberflächenschaden Zuschlagstoffe sichtbar Ursache nicht eindeutig festellbar | H6: A
A7: 1,30 | B7: BAF | C7: C / E | E7: 12 - 12 | G7: Oberflächenschaden Zuschlagstoffe sichtbar Ursache nicht eindeutig festellbar | H7: B
A8: 1,30 | B8: BAF | C8: E / E | E8: 12 - 12 | G8: Oberflächenschaden Zuschlagstoffe fehlen Ursache nicht eindeutig festellbar | H8: A
A9: 2,30 | B9: BAF | C9: I / E | E9: 7 - 9 | G9: Oberflächenschaden fehlende Wand Ursache nicht eindeutig festellbar
A10: 2,30 | B10: BAP | E10: 7 - 9 | G10: Hohlraum sichtbar
A11: 2,30 | B11: BAF | C11: E / E | E11: 12 - 12 | G11: Oberflächenschaden Zuschlagstoffe fehlen Ursache nicht eindeutig festellbar | H11: C
A12: 5,50 | B12: BCA | C12: C / A | D12: 150,00 | E12: 9 | G12: Anschluss Sattelanschluss – gemeißelt offen
A13: 9,80 | B13: BAF | C13: E / E | E13: 12 - 12 | G13: Oberflächenschaden Zuschlagstoffe fehlen Ursache nicht eindeutig festellbar | H13: B
A14: 9,80 | B14: BAF | C14: C / E | E14: 12 - 12 | G14: Oberflächenschaden Zuschlagstoffe sichtbar Ursache nicht eindeutig festellbar | H14: A
A15: 22,80 | B15: BCA | C15: C / A | D15: 150,00 | E15: 12 | G15: Anschluss Sattelanschluss – gemeißelt offen
A16: 37,00 | B16: BCA | C16: C / A | D16: 150,00 | E16: 9 | G16: Anschluss Sattelanschluss – gemeißelt offen
A17: 38,00 | B17: BDD | C17: C | D17: 15,00 | G17: Wasserspiegel trüb | H17: A
A18: 39,70 | B18: BDD | C18: C | G18: Wasserspiegel trüb | H18: B
A19: 41,70 | B19: BAF | C19: E / E | E19: 12 - 12 | G19: Oberflächenschaden Zuschlagstoffe fehlen Ursache nicht eindeutig festellbar
A20: 42,80 | B20: BAF | C20: I / E | E20: 4 - 6 | G20: Oberflächenschaden fehlende Wand Ursache nicht eindeutig festellbar
A21: 45,50 | B21: BBA | C21: B | D21: 1,00 | E21: 11 - 1 | G21: Wurzeln einzelne feine Wurzeln | I21: Fräsen | J21: €50
A22: 48,30 | B22: BAB | C22: B / A | D22: 3,00 | E22: 11 - 2 | G22: Rissbildung Riss in Längsrichtung | H22: A
A23: 48,50 | B23: BAB | C23: B / A | D23: 3,00 | E23: 11 - 2 | G23: Rissbildung Riss in Längsrichtung | H23: B
A24: 50,80 | B24: BAF | C24: I / E | E24: 2 - 4 | G24: Oberflächenschaden fehlende Wand Ursache nicht eindeutig festellbar
A25: 50,80 | B25: BAP | E25: 2 - 4 | G25: Hohlraum sichtbar
A26: 53,20 | B26: BAB | C26: B / A | D26: 3,00 | E26: 4 - 5 | G26: Rissbildung Riss in Längsrichtung | H26: A
A27: 53,40 | B27: BCA | C27: A / A | D27: 150,00 | E27: 10 | G27: Anschluss Abzweig offen
A28: 53,60 | B28: BAB | C28: B / A | D28: 3,00 | E28: 4 - 5 | G28: Rissbildung Riss in Längsrichtung | H28: B
A29: 59,80 | B29: BAJ | C29: B | D29: 20,00 | E29: 6 | F29: JA | G29: Verschobene Verbindung radial | I29: Fräsen | J29: €50
A30: 61,30 | B30: BAF | C30: E / E | E30: 3 - 9 | G30: Oberflächenschaden Zuschlagstoffe fehlen Ursache nicht eindeutig festellbar
A31: 62,70 | B31: BAF | C31: C / E | E31: 12 - 12 | G31: Oberflächenschaden Zuschlagstoffe sichtbar Ursache nicht eindeutig festellbar | H31: B
A32: 62,70 | B32: BCE | C32: XP | G32: Endknoten
G33: netto-Zwischensumme | J33: =SUM(J5:J32) -> €100
A34: Reparatur | G34: Baustelleneinrichtung anteilig Haltung | H34: 10 | J34: =(H34/100)*J33 -> €10
G35: Verkehrssicherung anteilig Haltung | H35: 5 | J35: =(H35/100)*J33 -> €5
A36: Sanierungspriorität | C36: Info | G36: Aufrechterhaltung der Vorflut Haltung | H36: 12 | J36: =(H36/100)*J33 -> €12
A37: kurzfristing | B37: ja oder nein | C37: 6-12 Monate | G37: Kanalreinigung vor Sanierung | H37: 62.7 | I37: 2 | J37: =H37*I37 -> €125
A38: mittelfristig | B38: ja oder nein | C38: 1 bis 5 Jahre | G38: Kamerainspektion Abnahme | H38: 62.7 | I38: 3 | J38: =H38*I38 -> €188
A39: langfristig | B39: ja oder nein | C39: 5 bis 10 Jahre | G39: Summe netto Haltung | J39: =SUM(J33:J38) -> €441
G40: Mehrwertsteuer | H40: 19 | J40: =(H40/100)*J39 -> €84
A41: Sanierung im Verbund | B41: ja oder nein | G41: Summe brutto Haltung | J41: =SUM(J39:J40) -> €524
A46: Haltung | B46: Straße | C46: Inspizierte Länge | D46: Länge | E46: Tiefe | G46: Schadensbeschreibung | I46: Durchmesser | J46: Material
A47: 09342840 | B47: BERLINER STRAßE | C47: 62,70 | D47: 63,70 | E47: Not Implemented yet | I47: 200 | J47: B
A49: Station | B49: Kürzel | C49: Charakterisi. | D49: Quantifizierung | E49: Lage im Kreis | G49: Schadensbeschreibung / Info | H49: Strecke | I49: Sanierungsvorschlag | J49: Kostenans.
A50: 0,00 | B50: BCD | C50: XP | G50: Anfangsknoten
A51: 0,00 | B51: BAF | C51: C / E | E51: 12 - 12 | G51: Oberflächenschaden Zuschlagstoffe sichtbar Ursache nicht eindeutig festellbar | H51: A
A52: 1,30 | B52: BAF | C52: C / E | E52: 12 - 12 | G52: Oberflächenschaden Zuschlagstoffe sichtbar Ursache nicht eindeutig festellbar | H52: B
A53: 1,30 | B53: BAF | C53: E / E | E53: 12 - 12 | G53: Oberflächenschaden Zuschlagstoffe fehlen Ursache nicht eindeutig festellbar | H53: A
A54: 2,30 | B54: BAF | C54: I / E | E54: 7 - 9 | G54: Oberflächenschaden fehlende Wand Ursache nicht eindeutig festellbar
A55: 2,30 | B55: BAP | E55: 7 - 9 | G55: Hohlraum sichtbar
A56: 2,30 | B56: BAF | C56: E / E | E56: 12 - 12 | G56: Oberflächenschaden Zuschlagstoffe fehlen Ursache nicht eindeutig festellbar | H56: C
A57: 5,50 | B57: BCA | C57: C / A | D57: 150,00 | E57: 9 | G57: Anschluss Sattelanschluss – gemeißelt offen | I57: Einmessen,Öffnen,Hut | J57: €490
A58: 9,80 | B58: BAF | C58: E / E | E58: 12 - 12 | G58: Oberflächenschaden Zuschlagstoffe fehlen Ursache nicht eindeutig festellbar | H58: B
A59: 9,80 | B59: BAF | C59: C / E | E59: 12 - 12 | G59: Oberflächenschaden Zuschlagstoffe sichtbar Ursache nicht eindeutig festellbar | H59: A
A60: 22,80 | B60: BCA | C60: C / A | D60: 150,00 | E60: 12 | G60: Anschluss Sattelanschluss – gemeißelt offen | I60: Einmessen,Öffnen,Hut | J60: €490
A61: 37,00 | B61: BCA | C61: C / A | D61: 150,00 | E61: 9 | G61: Anschluss Sattelanschluss – gemeißelt offen | I61: Einmessen,Öffnen,Hut | J61: €490
A62: 38,00 | B62: BDD | C62: C | D62: 15,00 | G62: Wasserspiegel trüb | H62: A
A63: 39,70 | B63: BDD | C63: C | G63: Wasserspiegel trüb | H63: B
A64: 41,70 | B64: BAF | C64: E / E | E64: 12 - 12 | G64: Oberflächenschaden Zuschlagstoffe fehlen Ursache nicht eindeutig festellbar
A65: 42,80 | B65: BAF | C65: I / E | E65: 4 - 6 | G65: Oberflächenschaden fehlende Wand Ursache nicht eindeutig festellbar
A66: 45,50 | B66: BBA | C66: B | D66: 1,00 | E66: 11 - 1 | G66: Wurzeln einzelne feine Wurzeln | I66: Fräsen | J66: €50
A67: 48,30 | B67: BAB | C67: B / A | D67: 3,00 | E67: 11 - 2 | G67: Rissbildung Riss in Längsrichtung | H67: A
A68: 48,50 | B68: BAB | C68: B / A | D68: 3,00 | E68: 11 - 2 | G68: Rissbildung Riss in Längsrichtung | H68: B
A69: 50,80 | B69: BAF | C69: I / E | E69: 2 - 4 | G69: Oberflächenschaden fehlende Wand Ursache nicht eindeutig festellbar
A70: 50,80 | B70: BAP | E70: 2 - 4 | G70: Hohlraum sichtbar
A71: 53,20 | B71: BAB | C71: B / A | D71: 3,00 | E71: 4 - 5 | G71: Rissbildung Riss in Längsrichtung | H71: A
A72: 53,40 | B72: BCA | C72: A / A | D72: 150,00 | E72: 10 | G72: Anschluss Abzweig offen | I72: Einmessen,Öffnen,Hut | J72: €490
A73: 53,60 | B73: BAB | C73: B / A | D73: 3,00 | E73: 4 - 5 | G73: Rissbildung Riss in Längsrichtung | H73: B
A74: 59,80 | B74: BAJ | C74: B | D74: 20,00 | E74: 6 | F74: JA | G74: Verschobene Verbindung radial | I74: Fräsen | J74: €50
A75: 61,30 | B75: BAF | C75: E / E | E75: 3 - 9 | G75: Oberflächenschaden Zuschlagstoffe fehlen Ursache nicht eindeutig festellbar
A76: 62,70 | B76: BAF | C76: C / E | E76: 12 - 12 | G76: Oberflächenschaden Zuschlagstoffe sichtbar Ursache nicht eindeutig festellbar | H76: B
A77: 62,70 | B77: BCE | C77: XP | G77: Endknoten | I77: Schlauchliner | J77: €6,370
G78: netto-Zwischensumme | J78: =SUM(J50:J77) -> €8,430
A79: Renovation | G79: Baustelleneinrichtung anteilig Haltung | H79: 10 | J79: =(H79/100)*J78 -> €843
G80: Verkehrssicherung anteilig Haltung | H80: 5 | J80: =(H80/100)*J78 -> €422
A81: Sanierungspriorität | C81: Info | G81: Aufrechterhaltung der Vorflut Haltung | H81: 12 | J81: =(H81/100)*J78 -> €1,012
A82: kurzfristing | B82: ja oder nein | C82: 6-12 Monate | G82: Kanalreinigung vor Sanierung | H82: 62.7 | I82: 2 | J82: =H82*I82 -> €125
A83: mittelfristig | B83: ja oder nein | C83: 1 bis 5 Jahre | G83: Kamerainspektion Abnahme | H83: 62.7 | I83: 3 | J83: =H83*I83 -> €188
A84: langfristig | B84: ja oder nein | C84: 5 bis 10 Jahre | G84: Summe netto Haltung | J84: =SUM(J78:J83) -> €11,020
G85: Mehrwertsteuer | H85: 19 | J85: =(H85/100)*J84 -> €2,094
A86: Sanierung im Verbund | B86: ja oder nein | G86: Summe brutto Haltung | J86: =SUM(J84:J85) -> €13,113

Sheet 09343175
A1: Haltung | B1: Straße | C1: Inspizierte Länge | D1: Länge | E1: Tiefe | G1: Schadensbeschreibung | I1: Durchmesser | J1: Material
A2: 09343175 | B2: BERLINER STRAßE | C2: 31,80 | D2: 56,91 | E2: Not Implemented yet | I2: 200 | J2: B
A4: Station | B4: Kürzel | C4: Charakterisi. | D4: Quantifizierung | E4: Lage im Kreis | G4: Schadensbeschreibung / Info | H4: Strecke | I4: Sanierungsvorschlag | J4: Kostenans.
A5: 0,00 | B5: BCD | C5: XP | G5: Anfangsknoten
A6: 7,70 | B6: BAF | C6: C / E | E6: 12 - 12 | G6: Oberflächenschaden Zuschlagstoffe sichtbar Ursache nicht eindeutig festellbar | H6: A
A7: 11,40 | B7: BBC | C7: C | D7: 3,00 | E7: 4 - 8 | G7: Ablagerungen hartes oder verdichtetes Material | H7: A | I7: Fräsen | J7: €50
A8: 15,00 | B8: BAG | D8: 20,00 | E8: 1 - 5 | G8: Einragender Anschluss | I8: Fräsen | J8: €50
A9: 15,00 | B9: BCA | C9: C / A | D9: 150,00 | E9: 3 | G9: Anschluss Sattelanschluss – gemeißelt offen
A10: 15,00 | B10: BBE | C10: C | D10: 10,00 | E10: 3 - 6 | G10: Andere Hindernisse anderer Gegenstand liegt in der Rohrsohle
A11: 18,10 | B11: BBA | C11: C | D11: 5,00 | E11: 1 - 5 | F11: JA | G11: Wurzeln komplexes Wurzelwerk | I11: Fräsen | J11: €50
A12: 20,40 | B12: BAF | C12: E / E | E12: 10 - 2 | G12: Oberflächenschaden Zuschlagstoffe fehlen Ursache nicht eindeutig festellbar
A13: 21,70 | B13: BDD | C13: C | D13: 10,00 | G13: Wasserspiegel trüb | H13: A
A14: 23,30 | B14: BDD | C14: C | G14: Wasserspiegel trüb | H14: B
A15: 26,00 | B15: BCA | C15: C / A | D15: 150,00 | E15: 2 | G15: Anschluss Sattelanschluss – gemeißelt offen
A16: 31,20 | B16: BCA | C16: C / A | D16: 150,00 | E16: 3 | G16: Anschluss Sattelanschluss – gemeißelt offen
A17: 31,20 | B17: BAH | C17: C | E17: 12 - 12 | G17: Schadhafter Anschluss am Umfang des Anschlusses ist teilweise ein Spalt (Anschluss unvollständig eingebunden) | I17: Fräsen,Hut | J17: €450
A18: 31,20 | B18: BAG | D18: 25,00 | E18: 12 - 6 | G18: Einragender Anschluss | I18: Fräsen | J18: €50
A19: 31,80 | B19: BBC | C19: C | D19: 3,00 | E19: 4 - 8 | G19: Ablagerungen hartes oder verdichtetes Material | H19: B | I19: Fräsen | J19: €50
A20: 31,80 | B20: BAF | C20: C / E | E20: 12 - 12 | G20: Oberflächenschaden Zuschlagstoffe sichtbar Ursache nicht eindeutig festellbar | H20: B
A21: 31,80 | B21: BDC | C21: Y / Y | G21: Inspektion endet vor dem Endknoten nicht erkennbar nicht erkennbar
G22: netto-Zwischensumme | J22: =SUM(J5:J21) -> €700
A23: Reparatur | G23: Baustelleneinrichtung anteilig Haltung | H23: 10 | J23: =(H23/100)*J22 -> €70
G24: Verkehrssicherung anteilig Haltung | H24: 5 | J24: =(H24/100)*J22 -> €35
A25: Sanierungspriorität | C25: Info | G25: Aufrechterhaltung der Vorflut Haltung | H25: 12 | J25: =(H25/100)*J22 -> €84
A26: kurzfristing | B26: ja oder nein | C26: 6-12 Monate | G26: Kanalreinigung vor Sanierung | H26: 31.8 | I26: 2 | J26: =H26*I26 -> €64
A27: mittelfristig | B27: ja oder nein | C27: 1 bis 5 Jahre | G27: Kamerainspektion Abnahme | H27: 31.8 | I27: 3 | J27: =H27*I27 -> €95
A28: langfristig | B28: ja oder nein | C28: 5 bis 10 Jahre | G28: Summe netto Haltung | J28: =SUM(J22:J27) -> €1,048
G29: Mehrwertsteuer | H29: 19 | J29: =(H29/100)*J28 -> €199
A30: Sanierung im Verbund | B30: ja oder nein | G30: Summe brutto Haltung | J30: =SUM(J28:J29) -> €1,247
A35: Haltung | B35: Straße | C35: Inspizierte Länge | D35: Länge | E35: Tiefe | G35: Schadensbeschreibung | I35: Durchmesser | J35: Material
A36: 09343175 | B36: BERLINER STRAßE | C36: 31,80 | D36: 56,91 | E36: Not Implemented yet | I36: 200 | J36: B
A38: Station | B38: Kürzel | C38: Charakterisi. | D38: Quantifizierung | E38: Lage im Kreis | G38: Schadensbeschreibung / Info | H38: Strecke | I38: Sanierungsvorschlag | J38: Kostenans.
A39: 0,00 | B39: BCD | C39: XP | G39: Anfangsknoten
A40: 7,70 | B40: BAF | C40: C / E | E40: 12 - 12 | G40: Oberflächenschaden Zuschlagstoffe sichtbar Ursache nicht eindeutig festellbar | H40: A
A41: 11,40 | B41: BBC | C41: C | D41: 3,00 | E41: 4 - 8 | G41: Ablagerungen hartes oder verdichtetes Material | H41: A | I41: Fräsen | J41: €50
A42: 15,00 | B42: BAG | D42: 20,00 | E42: 1 - 5 | G42: Einragender Anschluss
A43: 15,00 | B43: BCA | C43: C / A | D43: 150,00 | E43: 3 | G43: Anschluss Sattelanschluss – gemeißelt offen | I43: Einmessen,Öffnen,Hut | J43: €490
A44: 15,00 | B44: BBE | C44: C | D44: 10,00 | E44: 3 - 6 | G44: Andere Hindernisse anderer Gegenstand liegt in der Rohrsohle
A45: 18,10 | B45: BBA | C45: C | D45: 5,00 | E45: 1 - 5 | F45: JA | G45: Wurzeln komplexes Wurzelwerk | I45: Fräsen | J45: €50
A46: 20,40 | B46: BAF | C46: E / E | E46: 10 - 2 | G46: Oberflächenschaden Zuschlagstoffe fehlen Ursache nicht eindeutig festellbar
A47: 21,70 | B47: BDD | C47: C | D47: 10,00 | G47: Wasserspiegel trüb | H47: A
A48: 23,30 | B48: BDD | C48: C | G48: Wasserspiegel trüb | H48: B
A49: 26,00 | B49: BCA | C49: C / A | D49: 150,00 | E49: 2 | G49: Anschluss Sattelanschluss – gemeißelt offen | I49: Einmessen,Öffnen,Hut | J49: €490
A50: 31,20 | B50: BCA | C50: C / A | D50: 150,00 | E50: 3 | G50: Anschluss Sattelanschluss – gemeißelt offen | I50: Einmessen,Öffnen,Hut | J50: €490
A51: 31,20 | B51: BAH | C51: C | E51: 12 - 12 | G51: Schadhafter Anschluss am Umfang des Anschlusses ist teilweise ein Spalt (Anschluss unvollständig eingebunden)
A52: 31,20 | B52: BAG | D52: 25,00 | E52: 12 - 6 | G52: Einragender Anschluss
A53: 31,80 | B53: BBC | C53: C | D53: 3,00 | E53: 4 - 8 | G53: Ablagerungen hartes oder verdichtetes Material | H53: B | I53: Fräsen | J53: €50
A54: 31,80 | B54: BAF | C54: C / E | E54: 12 - 12 | G54: Oberflächenschaden Zuschlagstoffe sichtbar Ursache nicht eindeutig festellbar | H54: B
A55: 31,80 | B55: BDC | C55: Y / Y | G55: Inspektion endet vor dem Endknoten nicht erkennbar nicht erkennbar
G56: netto-Zwischensumme | J56: =SUM(J39:J55) -> €1,620
A57: Renovation | G57: Baustelleneinrichtung anteilig Haltung | H57: 10 | J57: =(H57/100)*J56 -> €162
G58: Verkehrssicherung anteilig Haltung | H58: 5 | J58: =(H58/100)*J56 -> €81
A59: Sanierungspriorität | C59: Info | G59: Aufrechterhaltung der Vorflut Haltung | H59: 12 | J59: =(H59/100)*J56 -> €194
A60: kurzfristing | B60: ja oder nein | C60: 6-12 Monate | G60: Kanalreinigung vor Sanierung | H60: 31.8 | I60: 2 | J60: =H60*I60 -> €64
A61: mittelfristig | B61: ja oder nein | C61: 1 bis 5 Jahre | G61: Kamerainspektion Abnahme | H61: 31.8 | I61: 3 | J61: =H61*I61 -> €95
A62: langfristig | B62: ja oder nein | C62: 5 bis 10 Jahre | G62: Summe netto Haltung | J62: =SUM(J56:J61) -> €2,216
G63: Mehrwertsteuer | H63: 19 | J63: =(H63/100)*J62 -> €421
A64: Sanierung im Verbund | B64: ja oder nein | G64: Summe brutto Haltung | J64: =SUM(J62:J63) -> €2,638

Sheet 09345300
A1: Haltung | B1: Straße | C1: Inspizierte Länge | D1: Länge | E1: Tiefe | G1: Schadensbeschreibung | I1: Durchmesser | J1: Material
A2: 09345300 | B2: BERLINER STRAßE | C2: 57,20 | D2: 58,20 | E2: Not Implemented yet | I2: 250 | J2: B
A4: Station | B4: Kürzel | C4: Charakterisi. | D4: Quantifizierung | E4: Lage im Kreis | G4: Schadensbeschreibung / Info | H4: Strecke | I4: Sanierungsvorschlag | J4: Kostenans.
A5: 0,00 | B5: BCD | C5: XP | G5: Anfangsknoten
A6: 2,20 | B6: BAJ | C6: B | D6: 15,00 | E6: 6 | F6: JA | G6: Verschobene Verbindung radial | I6: Fräsen | J6: €50
A7: 5,40 | B7: BAG | D7: 15,00 | E7: 1 - 5 | G7: Einragender Anschluss | I7: Fräsen | J7: €50
A8: 5,40 | B8: BCA | C8: C / A | D8: 150,00 | E8: 3 | G8: Anschluss Sattelanschluss – gemeißelt offen
A9: 14,60 | B9: BAG | D9: 15,00 | E9: 1 - 5 | G9: Einragender Anschluss | I9: Fräsen | J9: €50
A10: 14,60 | B10: BCA | C10: C / A | D10: 150,00 | E10: 2 | G10: Anschluss Sattelanschluss – gemeißelt offen
A11: 22,90 | B11: BAF | C11: E / E | E11: 4 - 8 | G11: Oberflächenschaden Zuschlagstoffe fehlen Ursache nicht eindeutig festellbar
A12: 25,30 | B12: BAG | D12: 10,00 | E12: 1 - 5 | G12: Einragender Anschluss | I12: Fräsen | J12: €50
A13: 25,30 | B13: BCA | C13: C / A | D13: 150,00 | E13: 2 | G13: Anschluss Sattelanschluss – gemeißelt offen
A14: 34,60 | B14: BAG | D14: 10,00 | E14: 1 - 4 | G14: Einragender Anschluss | I14: Fräsen | J14: €50
A15: 34,60 | B15: BCA | C15: C / A | D15: 150,00 | E15: 2 | G15: Anschluss Sattelanschluss – gemeißelt offen
A16: 36,60 | B16: BAF | C16: E / E | E16: 5 - 7 | G16: Oberflächenschaden Zuschlagstoffe fehlen Ursache nicht eindeutig festellbar | H16: A
A17: 37,20 | B17: BAF | C17: E / E | E17: 5 - 7 | G17: Oberflächenschaden Zuschlagstoffe fehlen Ursache nicht eindeutig festellbar | H17: B
A18: 40,60 | B18: BBA | C18: B | D18: 1,00 | E18: 5 - 8 | G18: Wurzeln einzelne feine Wurzeln | H18: A | I18: Fräsen | J18: €50
A19: 41,50 | B19: BBA | C19: B | D19: 1,00 | E19: 5 - 8 | F19: JA | G19: Wurzeln einzelne feine Wurzeln | H19: B | I19: Fräsen | J19: €50
A20: 42,30 | B20: BBA | C20: C | D20: 5,00 | E20: 4 - 6 | F20: JA | G20: Wurzeln komplexes Wurzelwerk | I20: Fräsen | J20: €50
A21: 43,60 | B21: BBE | C21: C | D21: 15,00 | E21: 4 - 7 | G21: Andere Hindernisse anderer Gegenstand liegt in der Rohrsohle
A22: 43,70 | B22: BCA | C22: C / A | D22: 150,00 | E22: 2 | G22: Anschluss Sattelanschluss – gemeißelt offen
A23: 43,70 | B23: BAH | C23: A | E23: 12 - 6 | G23: Schadhafter Anschluss Lage des Anschlusses um das Rohr ist falsch | J23: €0
A24: 44,00 | B24: BAF | C24: E / E | E24: 4 - 8 | G24: Oberflächenschaden Zuschlagstoffe fehlen Ursache nicht eindeutig festellbar | H24: A
A25: 44,40 | B25: BBA | C25: B | D25: 3,00 | E25: 12 - 12 | F25: JA | G25: Wurzeln einzelne feine Wurzeln | I25: Fräsen | J25: €50
A26: 47,50 | B26: BAF | C26: E / E | E26: 4 - 8 | G26: Oberflächenschaden Zuschlagstoffe fehlen Ursache nicht eindeutig festellbar | H26: C
A27: 50,50 | B27: BBA | C27: B | D27: 5,00 | E27: 12 - 12 | F27: JA | G27: Wurzeln einzelne feine Wurzeln | I27: Fräsen | J27: €50
A28: 51,60 | B28: BBA | C28: B | D28: 5,00 | E28: 12 - 12 | F28: JA | G28: Wurzeln einzelne feine Wurzeln | I28: Fräsen | J28: €50
A29: 56,80 | B29: BAF | C29: E / E | E29: 4 - 8 | G29: Oberflächenschaden Zuschlagstoffe fehlen Ursache nicht eindeutig festellbar | H29: B
A30: 57,20 | B30: BCE | C30: XP | G30: Endknoten
G31: netto-Zwischensumme | J31: =SUM(J5:J30) -> €550
A32: Reparatur | G32: Baustelleneinrichtung anteilig Haltung | H32: 10 | J32: =(H32/100)*J31 -> €55
G33: Verkehrssicherung anteilig Haltung | H33: 5 | J33: =(H33/100)*J31 -> €28
A34: Sanierungspriorität | C34: Info | G34: Aufrechterhaltung der Vorflut Haltung | H34: 12 | J34: =(H34/100)*J31 -> €66
A35: kurzfristing | B35: ja oder nein | C35: 6-12 Monate | G35: Kanalreinigung vor Sanierung | H35: 57.2 | I35: 2 | J35: =H35*I35 -> €114
A36: mittelfristig | B36: ja oder nein | C36: 1 bis 5 Jahre | G36: Kamerainspektion Abnahme | H36: 57.2 | I36: 3 | J36: =H36*I36 -> €172
A37: langfristig | B37: ja oder nein | C37: 5 bis 10 Jahre | G37: Summe netto Haltung | J37: =SUM(J31:J36) -> €985
G38: Mehrwertsteuer | H38: 19 | J38: =(H38/100)*J37 -> €187
A39: Sanierung im Verbund | B39: ja oder nein | G39: Summe brutto Haltung | J39: =SUM(J37:J38) -> €1,172
A44: Haltung | B44: Straße | C44: Inspizierte Länge | D44: Länge | E44: Tiefe | G44: Schadensbeschreibung | I44: Durchmesser | J44: Material
A45: 09345300 | B45: BERLINER STRAßE | C45: 57,20 | D45: 58,20 | E45: Not Implemented yet | I45: 250 | J45: B
A47: Station | B47: Kürzel | C47: Charakterisi. | D47: Quantifizierung | E47: Lage im Kreis | G47: Schadensbeschreibung / Info | H47: Strecke | I47: Sanierungsvorschlag | J47: Kostenans.
A48: 0,00 | B48: BCD | C48: XP | G48: Anfangsknoten
A49: 2,20 | B49: BAJ | C49: B | D49: 15,00 | E49: 6 | F49: JA | G49: Verschobene Verbindung radial | I49: Fräsen | J49: €50
A50: 5,40 | B50: BAG | D50: 15,00 | E50: 1 - 5 | G50: Einragender Anschluss
A51: 5,40 | B51: BCA | C51: C / A | D51: 150,00 | E51: 3 | G51: Anschluss Sattelanschluss – gemeißelt offen | I51: Einmessen,Öffnen,Hut | J51: €490
A52: 14,60 | B52: BAG | D52: 15,00 | E52: 1 - 5 | G52: Einragender Anschluss
A53: 14,60 | B53: BCA | C53: C / A | D53: 150,00 | E53: 2 | G53: Anschluss Sattelanschluss – gemeißelt offen | I53: Einmessen,Öffnen,Hut | J53: €490
A54: 22,90 | B54: BAF | C54: E / E | E54: 4 - 8 | G54: Oberflächenschaden Zuschlagstoffe fehlen Ursache nicht eindeutig festellbar
A55: 25,30 | B55: BAG | D55: 10,00 | E55: 1 - 5 | G55: Einragender Anschluss
A56: 25,30 | B56: BCA | C56: C / A | D56: 150,00 | E56: 2 | G56: Anschluss Sattelanschluss – gemeißelt offen | I56: Einmessen,Öffnen,Hut | J56: €490
A57: 34,60 | B57: BAG | D57: 10,00 | E57: 1 - 4 | G57: Einragender Anschluss
A58: 34,60 | B58: BCA | C58: C / A | D58: 150,00 | E58: 2 | G58: Anschluss Sattelanschluss – gemeißelt offen | I58: Einmessen,Öffnen,Hut | J58: €490
A59: 36,60 | B59: BAF | C59: E / E | E59: 5 - 7 | G59: Oberflächenschaden Zuschlagstoffe fehlen Ursache nicht eindeutig festellbar | H59: A
A60: 37,20 | B60: BAF | C60: E / E | E60: 5 - 7 | G60: Oberflächenschaden Zuschlagstoffe fehlen Ursache nicht eindeutig festellbar | H60: B
A61: 40,60 | B61: BBA | C61: B | D61: 1,00 | E61: 5 - 8 | G61: Wurzeln einzelne feine Wurzeln | H61: A | I61: Fräsen | J61: €50
A62: 41,50 | B62: BBA | C62: B | D62: 1,00 | E62: 5 - 8 | F62: JA | G62: Wurzeln einzelne feine Wurzeln | H62: B | I62: Fräsen | J62: €50
A63: 42,30 | B63: BBA | C63: C | D63: 5,00 | E63: 4 - 6 | F63: JA | G63: Wurzeln komplexes Wurzelwerk | I63: Fräsen | J63: €50
A64: 43,60 | B64: BBE | C64: C | D64: 15,00 | E64: 4 - 7 | G64: Andere Hindernisse anderer Gegenstand liegt in der Rohrsohle
A65: 43,70 | B65: BCA | C65: C / A | D65: 150,00 | E65: 2 | G65: Anschluss Sattelanschluss – gemeißelt offen | I65: Einmessen,Öffnen,Hut | J65: €490
A66: 43,70 | B66: BAH | C66: A | E66: 12 - 6 | G66: Schadhafter Anschluss Lage des Anschlusses um das Rohr ist falsch
A67: 44,00 | B67: BAF | C67: E / E | E67: 4 - 8 | G67: Oberflächenschaden Zuschlagstoffe fehlen Ursache nicht eindeutig festellbar | H67: A
A68: 44,40 | B68: BBA | C68: B | D68: 3,00 | E68: 12 - 12 | F68: JA | G68: Wurzeln einzelne feine Wurzeln | I68: Fräsen | J68: €50
A69: 47,50 | B69: BAF | C69: E / E | E69: 4 - 8 | G69: Oberflächenschaden Zuschlagstoffe fehlen Ursache nicht eindeutig festellbar | H69: C
A70: 50,50 | B70: BBA | C70: B | D70: 5,00 | E70: 12 - 12 | F70: JA | G70: Wurzeln einzelne feine Wurzeln | I70: Fräsen | J70: €50
A71: 51,60 | B71: BBA | C71: B | D71: 5,00 | E71: 12 - 12 | F71: JA | G71: Wurzeln einzelne feine Wurzeln | I71: Fräsen | J71: €50
A72: 56,80 | B72: BAF | C72: E / E | E72: 4 - 8 | G72: Oberflächenschaden Zuschlagstoffe fehlen Ursache nicht eindeutig festellbar | H72: B
A73: 57,20 | B73: BCE | C73: XP | G73: Endknoten | I73: Schlauchliner | J73: €5,820
G74: netto-Zwischensumme | J74: =SUM(J48:J73) -> €8,620
A75: Renovation | G75: Baustelleneinrichtung anteilig Haltung | H75: 10 | J75: =(H75/100)*J74 -> €862
G76: Verkehrssicherung anteilig Haltung | H76: 5 | J76: =(H76/100)*J74 -> €431
A77: Sanierungspriorität | C77: Info | G77: Aufrechterhaltung der Vorflut Haltung | H77: 12 | J77: =(H77/100)*J74 -> €1,034
A78: kurzfristing | B78: ja oder nein | C78: 6-12 Monate | G78: Kanalreinigung vor Sanierung | H78: 57.2 | I78: 2 | J78: =H78*I78 -> €114
A79: mittelfristig | B79: ja oder nein | C79: 1 bis 5 Jahre | G79: Kamerainspektion Abnahme | H79: 57.2 | I79: 3 | J79: =H79*I79 -> €172
A80: langfristig | B80: ja oder nein | C80: 5 bis 10 Jahre | G80: Summe netto Haltung | J80: =SUM(J74:J79) -> €11,233
G81: Mehrwertsteuer | H81: 19 | J81: =(H81/100)*J80 -> €2,134
A82: Sanierung im Verbund | B82: ja oder nein | G82: Summe brutto Haltung | J82: =SUM(J80:J81) -> €13,368

Sheet 09345333
A1: Haltung | B1: Straße | C1: Inspizierte Länge | D1: Länge | E1: Tiefe | G1: Schadensbeschreibung | I1: Durchmesser | J1: Material
A2: 09345333 | B2: BERLINER STRAßE | C2: 31,00 | D2: 32,00 | E2: Not Implemented yet | I2: 250 | J2: B
A4: Station | B4: Kürzel | C4: Charakterisi. | D4: Quantifizierung | E4: Lage im Kreis | G4: Schadensbeschreibung / Info | H4: Strecke | I4: Sanierungsvorschlag | J4: Kostenans.
A5: 0,00 | B5: BCD | C5: XP | G5: Anfangsknoten
A6: 0,30 | B6: BCA | C6: C / A | D6: 150,00 | E6: 2 | G6: Anschluss Sattelanschluss – gemeißelt offen
A7: 5,40 | B7: BDD | C7: C | D7: 15,00 | G7: Wasserspiegel trüb
A8: 5,40 | B8: BAJ | C8: B | D8: 15,00 | E8: 6 | F8: JA | G8: Verschobene Verbindung radial | I8: Fräsen | J8: €50
A9: 6,40 | B9: BAJ | C9: B | D9: 25,00 | E9: 12 | F9: JA | G9: Verschobene Verbindung radial | I9: Fräsen | J9: €50
A10: 9,50 | B10: BAC | C10: A | D10: 600,00 | E10: 1 - 5 | G10: Rohrbruch / Einsturz Bruch | H10: A
A11: 9,80 | B11: BCA | C11: C / A | D11: 150,00 | E11: 3 | G11: Anschluss Sattelanschluss – gemeißelt offen
A12: 9,80 | B12: BAG | D12: 20,00 | E12: 12 - 4 | G12: Einragender Anschluss | I12: Fräsen | J12: €50
A13: 10,20 | B13: BAC | C13: A | D13: 600,00 | E13: 1 - 5 | G13: Rohrbruch / Einsturz Bruch | H13: B
A14: 16,00 | B14: BCA | C14: C / A | D14: 150,00 | E14: 10 | G14: Anschluss Sattelanschluss – gemeißelt offen
A15: 16,90 | B15: BCA | C15: C / A | D15: 150,00 | E15: 3 | G15: Anschluss Sattelanschluss – gemeißelt offen
A16: 19,60 | B16: BAF | C16: E / E | E16: 4 - 8 | G16: Oberflächenschaden Zuschlagstoffe fehlen Ursache nicht eindeutig festellbar | H16: A
A17: 21,00 | B17: BAF | C17: E / E | E17: 4 - 8 | G17: Oberflächenschaden Zuschlagstoffe fehlen Ursache nicht eindeutig festellbar | H17: B
A18: 23,30 | B18: BAC | C18: B | D18: 300,00 | E18: 2 - 6 | G18: Rohrbruch / Einsturz Fehlen von Teilen | H18: A
A19: 23,30 | B19: BBE | C19: D | D19: 50,00 | E19: 12 - 6 | G19: Andere Hindernisse Gegenstand ragt durch die Wand ein
A20: 23,50 | B20: BAC | C20: B | D20: 300,00 | E20: 2 - 6 | G20: Rohrbruch / Einsturz Fehlen von Teilen | H20: B
A21: 26,00 | B21: BCA | C21: C / A | D21: 150,00 | E21: 3 | G21: Anschluss Sattelanschluss – gemeißelt offen
A22: 31,00 | B22: BCE | C22: XP | G22: Endknoten
G23: netto-Zwischensumme | J23: =SUM(J5:J22) -> €150
A24: Reparatur | G24: Baustelleneinrichtung anteilig Haltung | H24: 10 | J24: =(H24/100)*J23 -> €15
G25: Verkehrssicherung anteilig Haltung | H25: 5 | J25: =(H25/100)*J23 -> €8
A26: Sanierungspriorität | C26: Info | G26: Aufrechterhaltung der Vorflut Haltung | H26: 12 | J26: =(H26/100)*J23 -> €18
A27: kurzfristing | B27: ja oder nein | C27: 6-12 Monate | G27: Kanalreinigung vor Sanierung | H27: 31 | I27: 2 | J27: =H27*I27 -> €62
A28: mittelfristig | B28: ja oder nein | C28: 1 bis 5 Jahre | G28: Kamerainspektion Abnahme | H28: 31 | I28: 3 | J28: =H28*I28 -> €93
A29: langfristig | B29: ja oder nein | C29: 5 bis 10 Jahre | G29: Summe netto Haltung | J29: =SUM(J23:J28) -> €346
G30: Mehrwertsteuer | H30: 19 | J30: =(H30/100)*J29 -> €66
A31: Sanierung im Verbund | B31: ja oder nein | G31: Summe brutto Haltung | J31: =SUM(J29:J30) -> €411
A36: Haltung | B36: Straße | C36: Inspizierte Länge | D36: Länge | E36: Tiefe | G36: Schadensbeschreibung | I36: Durchmesser | J36: Material
A37: 09345333 | B37: BERLINER STRAßE | C37: 31,00 | D37: 32,00 | E37: Not Implemented yet | I37: 250 | J37: B
A39: Station | B39: Kürzel | C39: Charakterisi. | D39: Quantifizierung | E39: Lage im Kreis | G39: Schadensbeschreibung / Info | H39: Strecke | I39: Sanierungsvorschlag | J39: Kostenans.
A40: 0,00 | B40: BCD | C40: XP | G40: Anfangsknoten
A41: 0,30 | B41: BCA | C41: C / A | D41: 150,00 | E41: 2 | G41: Anschluss Sattelanschluss – gemeißelt offen | I41: Einmessen,Öffnen,Hut | J41: €490
A42: 5,40 | B42: BDD | C42: C | D42: 15,00 | G42: Wasserspiegel trüb
A43: 5,40 | B43: BAJ | C43: B | D43: 15,00 | E43: 6 | F43: JA | G43: Verschobene Verbindung radial | I43: Fräsen | J43: €50
A44: 6,40 | B44: BAJ | C44: B | D44: 25,00 | E44: 12 | F44: JA | G44: Verschobene Verbindung radial | I44: Fräsen | J44: €50
A45: 9,50 | B45: BAC | C45: A | D45: 600,00 | E45: 1 - 5 | G45: Rohrbruch / Einsturz Bruch | H45: A
A46: 9,80 | B46: BCA | C46: C / A | D46: 150,00 | E46: 3 | G46: Anschluss Sattelanschluss – gemeißelt offen | I46: Einmessen,Öffnen,Hut | J46: €490
A47: 9,80 | B47: BAG | D47: 20,00 | E47: 12 - 4 | G47: Einragender Anschluss
A48: 10,20 | B48: BAC | C48: A | D48: 600,00 | E48: 1 - 5 | G48: Rohrbruch / Einsturz Bruch | H48: B
A49: 16,00 | B49: BCA | C49: C / A | D49: 150,00 | E49: 10 | G49: Anschluss Sattelanschluss – gemeißelt offen | I49: Einmessen,Öffnen,Hut | J49: €490
A50: 16,90 | B50: BCA | C50: C / A | D50: 150,00 | E50: 3 | G50: Anschluss Sattelanschluss – gemeißelt offen | I50: Einmessen,Öffnen,Hut | J50: €490
A51: 19,60 | B51: BAF | C51: E / E | E51: 4 - 8 | G51: Oberflächenschaden Zuschlagstoffe fehlen Ursache nicht eindeutig festellbar | H51: A
A52: 21,00 | B52: BAF | C52: E / E | E52: 4 - 8 | G52: Oberflächenschaden Zuschlagstoffe fehlen Ursache nicht eindeutig festellbar | H52: B
A53: 23,30 | B53: BAC | C53: B | D53: 300,00 | E53: 2 - 6 | G53: Rohrbruch / Einsturz Fehlen von Teilen | H53: A
A54: 23,30 | B54: BBE | C54: D | D54: 50,00 | E54: 12 - 6 | G54: Andere Hindernisse Gegenstand ragt durch die Wand ein
A55: 23,50 | B55: BAC | C55: B | D55: 300,00 | E55: 2 - 6 | G55: Rohrbruch / Einsturz Fehlen von Teilen | H55: B
A56: 26,00 | B56: BCA | C56: C / A | D56: 150,00 | E56: 3 | G56: Anschluss Sattelanschluss – gemeißelt offen | I56: Einmessen,Öffnen,Hut | J56: €490
A57: 31,00 | B57: BCE | C57: XP | G57: Endknoten | I57: Schlauchliner | J57: €3,200
G58: netto-Zwischensumme | J58: =SUM(J40:J57) -> €5,750
A59: Renovation | G59: Baustelleneinrichtung anteilig Haltung | H59: 10 | J59: =(H59/100)*J58 -> €575
G60: Verkehrssicherung anteilig Haltung | H60: 5 | J60: =(H60/100)*J58 -> €288
A61: Sanierungspriorität | C61: Info | G61: Aufrechterhaltung der Vorflut Haltung | H61: 12 | J61: =(H61/100)*J58 -> €690
A62: kurzfristing | B62: ja oder nein | C62: 6-12 Monate | G62: Kanalreinigung vor Sanierung | H62: 31 | I62: 2 | J62: =H62*I62 -> €62
A63: mittelfristig | B63: ja oder nein | C63: 1 bis 5 Jahre | G63: Kamerainspektion Abnahme | H63: 31 | I63: 3 | J63: =H63*I63 -> €93
A64: langfristig | B64: ja oder nein | C64: 5 bis 10 Jahre | G64: Summe netto Haltung | J64: =SUM(J58:J63) -> €7,458
G65: Mehrwertsteuer | H65: 19 | J65: =(H65/100)*J64 -> €1,417
A66: Sanierung im Verbund | B66: ja oder nein | G66: Summe brutto Haltung | J66: =SUM(J64:J65) -> €8,874

Sheet 09345333_1
A1: Haltung | B1: Straße | C1: Inspizierte Länge | D1: Länge | E1: Tiefe | G1: Schadensbeschreibung | I1: Durchmesser | J1: Material
A2: 09345333_1 | B2: BERLINER STRAßE | C2: 47,30 | D2: 48,30 | E2: Not Implemented yet | I2: 200 | J2: B
A4: Station | B4: Kürzel | C4: Charakterisi. | D4: Quantifizierung | E4: Lage im Kreis | G4: Schadensbeschreibung / Info | H4: Strecke | I4: Sanierungsvorschlag | J4: Kostenans.
A5: 0,00 | B5: BCD | C5: XP | G5: Anfangsknoten
A6: 1,20 | B6: BAF | C6: E / E | E6: 4 - 8 | G6: Oberflächenschaden Zuschlagstoffe fehlen Ursache nicht eindeutig festellbar | H6: A
A7: 1,30 | B7: BAI | C7: Z | D7: 5,00 | E7: 12 - 12 | F7: JA | G7: Einragendes Dichtungsmaterial andere Dichtungsart | I7: Fräsen | J7: €50
A8: 2,30 | B8: BAF | C8: E / E | E8: 4 - 8 | G8: Oberflächenschaden Zuschlagstoffe fehlen Ursache nicht eindeutig festellbar | H8: C
A9: 5,70 | B9: BCA | C9: C / A | D9: 150,00 | E9: 3 | G9: Anschluss Sattelanschluss – gemeißelt offen
A10: 5,70 | B10: BAH | C10: A | E10: 12 - 4 | G10: Schadhafter Anschluss Lage des Anschlusses um das Rohr ist falsch | J10: €0
A11: 12,30 | B11: BAF | C11: E / E | E11: 4 - 8 | G11: Oberflächenschaden Zuschlagstoffe fehlen Ursache nicht eindeutig festellbar | H11: C
A12: 15,00 | B12: BCA | C12: C / A | D12: 150,00 | E12: 3 | G12: Anschluss Sattelanschluss – gemeißelt offen
A13: 15,00 | B13: BAH | C13: A | E13: 12 - 4 | G13: Schadhafter Anschluss Lage des Anschlusses um das Rohr ist falsch | J13: €0
A14: 15,50 | B14: BDD | C14: C | D14: 10,00 | G14: Wasserspiegel trüb | H14: A
A15: 18,00 | B15: BDD | C15: C | G15: Wasserspiegel trüb | H15: B
A16: 22,70 | B16: BAG | D16: 20,00 | E16: 1 - 5 | G16: Einragender Anschluss | I16: Fräsen | J16: €50
A17: 22,70 | B17: BCA | C17: C / A | D17: 125,00 | E17: 3 | G17: Anschluss Sattelanschluss – gemeißelt offen
A18: 25,10 | B18: BAH | C18: A | E18: 1 - 5 | G18: Schadhafter Anschluss Lage des Anschlusses um das Rohr ist falsch | J18: €0
A19: 25,10 | B19: BCA | C19: C / A | D19: 150,00 | E19: 3 | G19: Anschluss Sattelanschluss – gemeißelt offen
A20: 27,50 | B20: BAF | C20: E / E | E20: 4 - 8 | G20: Oberflächenschaden Zuschlagstoffe fehlen Ursache nicht eindeutig festellbar | H20: C
A21: 34,80 | B21: BAB | C21: B / A | D21: 2,00 | E21: 2 | F21: JA | G21: Rissbildung Riss in Längsrichtung
A22: 34,80 | B22: BCA | C22: C / A | D22: 150,00 | E22: 3 | G22: Anschluss Sattelanschluss – gemeißelt offen
A23: 34,80 | B23: BAH | C23: A | E23: 12 - 4 | G23: Schadhafter Anschluss Lage des Anschlusses um das Rohr ist falsch | J23: €0
A24: 37,70 | B24: BAF | C24: E / E | E24: 4 - 8 | G24: Oberflächenschaden Zuschlagstoffe fehlen Ursache nicht eindeutig festellbar | H24: C
A25: 38,80 | B25: BAF | C25: E / E | E25: 4 - 8 | G25: Oberflächenschaden Zuschlagstoffe fehlen Ursache nicht eindeutig festellbar | H25: C
A26: 39,80 | B26: BAF | C26: I / E | E26: 4 - 8 | F26: JA | G26: Oberflächenschaden fehlende Wand Ursache nicht eindeutig festellbar
A27: 44,00 | B27: BAH | C27: A | E27: 1 - 5 | G27: Schadhafter Anschluss Lage des Anschlusses um das Rohr ist falsch | J27: €0
A28: 44,00 | B28: BCA | C28: C / A | D28: 150,00 | E28: 2 | G28: Anschluss Sattelanschluss – gemeißelt offen
A29: 46,80 | B29: BAF | C29: E / E | E29: 4 - 8 | G29: Oberflächenschaden Zuschlagstoffe fehlen Ursache nicht eindeutig festellbar | H29: B
A30: 46,80 | B30: BAJ | C30: B | D30: 20,00 | E30: 6 | F30: JA | G30: Verschobene Verbindung radial | I30: Fräsen | J30: €50
A31: 47,30 | B31: BCE | C31: XP | G31: Endknoten
G32: netto-Zwischensumme | J32: =SUM(J5:J31) -> €150
A33: Reparatur | G33: Baustelleneinrichtung anteilig Haltung | H33: 10 | J33: =(H33/100)*J32 -> €15
G34: Verkehrssicherung anteilig Haltung | H34: 5 | J34: =(H34/100)*J32 -> €8
A35: Sanierungspriorität | C35: Info | G35: Aufrechterhaltung der Vorflut Haltung | H35: 12 | J35: =(H35/100)*J32 -> €18
A36: kurzfristing | B36: ja oder nein | C36: 6-12 Monate | G36: Kanalreinigung vor Sanierung | H36: 47.3 | I36: 2 | J36: =H36*I36 -> €95
A37: mittelfristig | B37: ja oder nein | C37: 1 bis 5 Jahre | G37: Kamerainspektion Abnahme | H37: 47.3 | I37: 3 | J37: =H37*I37 -> €142
A38: langfristig | B38: ja oder nein | C38: 5 bis 10 Jahre | G38: Summe netto Haltung | J38: =SUM(J32:J37) -> €427
G39: Mehrwertsteuer | H39: 19 | J39: =(H39/100)*J38 -> €81
A40: Sanierung im Verbund | B40: ja oder nein | G40: Summe brutto Haltung | J40: =SUM(J38:J39) -> €508
A45: Haltung | B45: Straße | C45: Inspizierte Länge | D45: Länge | E45: Tiefe | G45: Schadensbeschreibung | I45: Durchmesser | J45: Material
A46: 09345333_1 | B46: BERLINER STRAßE | C46: 47,30 | D46: 48,30 | E46: Not Implemented yet | I46: 200 | J46: B
A48: Station | B48: Kürzel | C48: Charakterisi. | D48: Quantifizierung | E48: Lage im Kreis | G48: Schadensbeschreibung / Info | H48: Strecke | I48: Sanierungsvorschlag | J48: Kostenans.
A49: 0,00 | B49: BCD | C49: XP | G49: Anfangsknoten
A50: 1,20 | B50: BAF | C50: E / E | E50: 4 - 8 | G50: Oberflächenschaden Zuschlagstoffe fehlen Ursache nicht eindeutig festellbar | H50: A
A51: 1,30 | B51: BAI | C51: Z | D51: 5,00 | E51: 12 - 12 | F51: JA | G51: Einragendes Dichtungsmaterial andere Dichtungsart
A52: 2,30 | B52: BAF | C52: E / E | E52: 4 - 8 | G52: Oberflächenschaden Zuschlagstoffe fehlen Ursache nicht eindeutig festellbar | H52: C
A53: 5,70 | B53: BCA | C53: C / A | D53: 150,00 | E53: 3 | G53: Anschluss Sattelanschluss – gemeißelt offen | I53: Einmessen,Öffnen,Hut | J53: €490
A54: 5,70 | B54: BAH | C54: A | E54: 12 - 4 | G54: Schadhafter Anschluss Lage des Anschlusses um das Rohr ist falsch
A55: 12,30 | B55: BAF | C55: E / E | E55: 4 - 8 | G55: Oberflächenschaden Zuschlagstoffe fehlen Ursache nicht eindeutig festellbar | H55: C
A56: 15,00 | B56: BCA | C56: C / A | D56: 150,00 | E56: 3 | G56: Anschluss Sattelanschluss – gemeißelt offen | I56: Einmessen,Öffnen,Hut | J56: €490
A57: 15,00 | B57: BAH | C57: A | E57: 12 - 4 | G57: Schadhafter Anschluss Lage des Anschlusses um das Rohr ist falsch
A58: 15,50 | B58: BDD | C58: C | D58: 10,00 | G58: Wasserspiegel trüb | H58: A
A59: 18,00 | B59: BDD | C59: C | G59: Wasserspiegel trüb | H59: B
A60: 22,70 | B60: BAG | D60: 20,00 | E60: 1 - 5 | G60: Einragender Anschluss
A61: 22,70 | B61: BCA | C61: C / A | D61: 125,00 | E61: 3 | G61: Anschluss Sattelanschluss – gemeißelt offen | I61: Einmessen,Öffnen,Hut | J61: €490
A62: 25,10 | B62: BAH | C62: A | E62: 1 - 5 | G62: Schadhafter Anschluss Lage des Anschlusses um das Rohr ist falsch
A63: 25,10 | B63: BCA | C63: C / A | D63: 150,00 | E63: 3 | G63: Anschluss Sattelanschluss – gemeißelt offen | I63: Einmessen,Öffnen,Hut | J63: €490
A64: 27,50 | B64: BAF | C64: E / E | E64: 4 - 8 | G64: Oberflächenschaden Zuschlagstoffe fehlen Ursache nicht eindeutig festellbar | H64: C
A65: 34,80 | B65: BAB | C65: B / A | D65: 2,00 | E65: 2 | F65: JA | G65: Rissbildung Riss in Längsrichtung
A66: 34,80 | B66: BCA | C66: C / A | D66: 150,00 | E66: 3 | G66: Anschluss Sattelanschluss – gemeißelt offen | I66: Einmessen,Öffnen,Hut | J66: €490
A67: 34,80 | B67: BAH | C67: A | E67: 12 - 4 | G67: Schadhafter Anschluss Lage des Anschlusses um das Rohr ist falsch
A68: 37,70 | B68: BAF | C68: E / E | E68: 4 - 8 | G68: Oberflächenschaden Zuschlagstoffe fehlen Ursache nicht eindeutig festellbar | H68: C
A69: 38,80 | B69: BAF | C69: E / E | E69: 4 - 8 | G69: Oberflächenschaden Zuschlagstoffe fehlen Ursache nicht eindeutig festellbar | H69: C
A70: 39,80 | B70: BAF | C70: I / E | E70: 4 - 8 | F70: JA | G70: Oberflächenschaden fehlende Wand Ursache nicht eindeutig festellbar
A71: 44,00 | B71: BAH | C71: A | E71: 1 - 5 | G71: Schadhafter Anschluss Lage des Anschlusses um das Rohr ist falsch
A72: 44,00 | B72: BCA | C72: C / A | D72: 150,00 | E72: 2 | G72: Anschluss Sattelanschluss – gemeißelt offen | I72: Einmessen,Öffnen,Hut | J72: €490
A73: 46,80 | B73: BAF | C73: E / E | E73: 4 - 8 | G73: Oberflächenschaden Zuschlagstoffe fehlen Ursache nicht eindeutig festellbar | H73: B
A74: 46,80 | B74: BAJ | C74: B | D74: 20,00 | E74: 6 | F74: JA | G74: Verschobene Verbindung radial | I74: Fräsen | J74: €50
A75: 47,30 | B75: BCE | C75: XP | G75: Endknoten | I75: Schlauchliner | J75: €4,830
G76: netto-Zwischensumme | J76: =SUM(J49:J75) -> €7,820
A77: Renovation | G77: Baustelleneinrichtung anteilig Haltung | H77: 10 | J77: =(H77/100)*J76 -> €782
G78: Verkehrssicherung anteilig Haltung | H78: 5 | J78: =(H78/100)*J76 -> €391
A79: Sanierungspriorität | C79: Info | G79: Aufrechterhaltung der Vorflut Haltung | H79: 12 | J79: =(H79/100)*J76 -> €938
A80: kurzfristing | B80: ja oder nein | C80: 6-12 Monate | G80: Kanalreinigung vor Sanierung | H80: 47.3 | I80: 2 | J80: =H80*I80 -> €95
A81: mittelfristig | B81: ja oder nein | C81: 1 bis 5 Jahre | G81: Kamerainspektion Abnahme | H81: 47.3 | I81: 3 | J81: =H81*I81 -> €142
A82: langfristig | B82: ja oder nein | C82: 5 bis 10 Jahre | G82: Summe netto Haltung | J82: =SUM(J76:J81) -> €10,168
G83: Mehrwertsteuer | H83: 19 | J83: =(H83/100)*J82 -> €1,932
A84: Sanierung im Verbund | B84: ja oder nein | G84: Summe brutto Haltung | J84: =SUM(J82:J83) -> €12,100

Sheet 09345334
A1: Haltung | B1: Straße | C1: Inspizierte Länge | D1: Länge | E1: Tiefe | G1: Schadensbeschreibung | I1: Durchmesser | J1: Material
A2: 09345334 | B2: LEIPZIGER STRAßE | C2: 29,40 | D2: 30,40 | E2: Not Implemented yet | I2: 300 | J2: B
A4: Station | B4: Kürzel | C4: Charakterisi. | D4: Quantifizierung | E4: Lage im Kreis | G4: Schadensbeschreibung / Info | H4: Strecke | I4: Sanierungsvorschlag | J4: Kostenans.
A5: 0,00 | B5: BCD | C5: XP | G5: Anfangsknoten
A6: 0,50 | B6: BCA | C6: C / A | D6: 150,00 | E6: 2 | G6: Anschluss Sattelanschluss – gemeißelt offen
A7: 1,50 | B7: BAJ | C7: B | D7: 30,00 | E7: 12 | F7: JA | G7: Verschobene Verbindung radial | I7: Fräsen | J7: €50
A8: 6,40 | B8: BCA | C8: C / A | D8: 150,00 | E8: 3 | G8: Anschluss Sattelanschluss – gemeißelt offen
A9: 14,30 | B9: BAI | C9: Z | D9: 3,00 | E9: 2 - 6 | F9: JA | G9: Einragendes Dichtungsmaterial andere Dichtungsart | I9: Fräsen | J9: €50
A10: 15,00 | B10: BCA | C10: C / A | D10: 150,00 | E10: 1 | G10: Anschluss Sattelanschluss – gemeißelt offen
A11: 16,80 | B11: BCA | C11: C / A | D11: 150,00 | E11: 3 | G11: Anschluss Sattelanschluss – gemeißelt offen
A12: 16,80 | B12: BAH | C12: E | E12: 3 - 9 | G12: Schadhafter Anschluss Anschluss verstopft | J12: €0
A13: 16,80 | B13: BBE | C13: D | D13: 20,00 | E13: 3 - 6 | G13: Andere Hindernisse Gegenstand ragt durch die Wand ein
A14: 26,30 | B14: BCA | C14: C / A | D14: 150,00 | E14: 2 | G14: Anschluss Sattelanschluss – gemeißelt offen
A15: 26,30 | B15: BAC | C15: A | D15: 900,00 | E15: 12 - 12 | G15: Rohrbruch / Einsturz Bruch | H15: A
A16: 26,60 | B16: BCA | C16: C / A | D16: 150,00 | E16: 3 | G16: Anschluss Sattelanschluss – gemeißelt offen
A17: 26,80 | B17: BAC | C17: A | D17: 900,00 | E17: 12 - 12 | G17: Rohrbruch / Einsturz Bruch | H17: B
A18: 27,40 | B18: BAB | C18: B / A | D18: 2,00 | E18: 10 - 1 | G18: Rissbildung Riss in Längsrichtung | H18: A
A19: 28,00 | B19: BAB | C19: B / A | D19: 2,00 | E19: 10 - 1 | G19: Rissbildung Riss in Längsrichtung | H19: B
A20: 29,40 | B20: BCE | C20: XP | G20: Endknoten
G21: netto-Zwischensumme | J21: =SUM(J5:J20) -> €100
A22: Reparatur | G22: Baustelleneinrichtung anteilig Haltung | H22: 10 | J22: =(H22/100)*J21 -> €10
G23: Verkehrssicherung anteilig Haltung | H23: 5 | J23: =(H23/100)*J21 -> €5
A24: Sanierungspriorität | C24: Info | G24: Aufrechterhaltung der Vorflut Haltung | H24: 12 | J24: =(H24/100)*J21 -> €12
A25: kurzfristing | B25: ja oder nein | C25: 6-12 Monate | G25: Kanalreinigung vor Sanierung | H25: 29.4 | I25: 2 | J25: =H25*I25 -> €59
A26: mittelfristig | B26: ja oder nein | C26: 1 bis 5 Jahre | G26: Kamerainspektion Abnahme | H26: 29.4 | I26: 3 | J26: =H26*I26 -> €88
A27: langfristig | B27: ja oder nein | C27: 5 bis 10 Jahre | G27: Summe netto Haltung | J27: =SUM(J21:J26) -> €274
G28: Mehrwertsteuer | H28: 19 | J28: =(H28/100)*J27 -> €52
A29: Sanierung im Verbund | B29: ja oder nein | G29: Summe brutto Haltung | J29: =SUM(J27:J28) -> €326
A34: Haltung | B34: Straße | C34: Inspizierte Länge | D34: Länge | E34: Tiefe | G34: Schadensbeschreibung | I34: Durchmesser | J34: Material
A35: 09345334 | B35: LEIPZIGER STRAßE | C35: 29,40 | D35: 30,40 | E35: Not Implemented yet | I35: 300 | J35: B
A37: Station | B37: Kürzel | C37: Charakterisi. | D37: Quantifizierung | E37: Lage im Kreis | G37: Schadensbeschreibung / Info | H37: Strecke | I37: Sanierungsvorschlag | J37: Kostenans.
A38: 0,00 | B38: BCD | C38: XP | G38: Anfangsknoten
A39: 0,50 | B39: BCA | C39: C / A | D39: 150,00 | E39: 2 | G39: Anschluss Sattelanschluss – gemeißelt offen | I39: Einmessen,Öffnen,Hut | J39: €490
A40: 1,50 | B40: BAJ | C40: B | D40: 30,00 | E40: 12 | F40: JA | G40: Verschobene Verbindung radial | I40: Fräsen | J40: €50
A41: 6,40 | B41: BCA | C41: C / A | D41: 150,00 | E41: 3 | G41: Anschluss Sattelanschluss – gemeißelt offen | I41: Einmessen,Öffnen,Hut | J41: €490
A42: 14,30 | B42: BAI | C42: Z | D42: 3,00 | E42: 2 - 6 | F42: JA | G42: Einragendes Dichtungsmaterial andere Dichtungsart
A43: 15,00 | B43: BCA | C43: C / A | D43: 150,00 | E43: 1 | G43: Anschluss Sattelanschluss – gemeißelt offen | I43: Einmessen,Öffnen,Hut | J43: €490
A44: 16,80 | B44: BCA | C44: C / A | D44: 150,00 | E44: 3 | G44: Anschluss Sattelanschluss – gemeißelt offen | I44: Einmessen,Öffnen,Hut | J44: €490
A45: 16,80 | B45: BAH | C45: E | E45: 3 - 9 | G45: Schadhafter Anschluss Anschluss verstopft
A46: 16,80 | B46: BBE | C46: D | D46: 20,00 | E46: 3 - 6 | G46: Andere Hindernisse Gegenstand ragt durch die Wand ein
A47: 26,30 | B47: BCA | C47: C / A | D47: 150,00 | E47: 2 | G47: Anschluss Sattelanschluss – gemeißelt offen | I47: Einmessen,Öffnen,Hut | J47: €490
A48: 26,30 | B48: BAC | C48: A | D48: 900,00 | E48: 12 - 12 | G48: Rohrbruch / Einsturz Bruch | H48: A
A49: 26,60 | B49: BCA | C49: C / A | D49: 150,00 | E49: 3 | G49: Anschluss Sattelanschluss – gemeißelt offen | I49: Einmessen,Öffnen,Hut | J49: €490
A50: 26,80 | B50: BAC | C50: A | D50: 900,00 | E50: 12 - 12 | G50: Rohrbruch / Einsturz Bruch | H50: B
A51: 27,40 | B51: BAB | C51: B / A | D51: 2,00 | E51: 10 - 1 | G51: Rissbildung Riss in Längsrichtung | H51: A
A52: 28,00 | B52: BAB | C52: B / A | D52: 2,00 | E52: 10 - 1 | G52: Rissbildung Riss in Längsrichtung | H52: B
A53: 29,40 | B53: BCE | C53: XP | G53: Endknoten | I53: Schlauchliner | J53: €3,040
G54: netto-Zwischensumme | J54: =SUM(J38:J53) -> €6,030
A55: Renovation | G55: Baustelleneinrichtung anteilig Haltung | H55: 10 | J55: =(H55/100)*J54 -> €603
G56: Verkehrssicherung anteilig Haltung | H56: 5 | J56: =(H56/100)*J54 -> €302
A57: Sanierungspriorität | C57: Info | G57: Aufrechterhaltung der Vorflut Haltung | H57: 12 | J57: =(H57/100)*J54 -> €724
A58: kurzfristing | B58: ja oder nein | C58: 6-12 Monate | G58: Kanalreinigung vor Sanierung | H58: 29.4 | I58: 2 | J58: =H58*I58 -> €59
A59: mittelfristig | B59: ja oder nein | C59: 1 bis 5 Jahre | G59: Kamerainspektion Abnahme | H59: 29.4 | I59: 3 | J59: =H59*I59 -> €88
A60: langfristig | B60: ja oder nein | C60: 5 bis 10 Jahre | G60: Summe netto Haltung | J60: =SUM(J54:J59) -> €7,805
G61: Mehrwertsteuer | H61: 19 | J61: =(H61/100)*J60 -> €1,483
A62: Sanierung im Verbund | B62: ja oder nein | G62: Summe brutto Haltung | J62: =SUM(J60:J61) -> €9,288

Sheet 09345335
A1: Haltung | B1: Straße | C1: Inspizierte Länge | D1: Länge | E1: Tiefe | G1: Schadensbeschreibung | I1: Durchmesser | J1: Material
A2: 09345335 | B2: LEIPZIGER STRAßE | C2: 48,70 | D2: 49,70 | E2: Not Implemented yet | I2: 250 | J2: B
A4: Station | B4: Kürzel | C4: Charakterisi. | D4: Quantifizierung | E4: Lage im Kreis | G4: Schadensbeschreibung / Info | H4: Strecke | I4: Sanierungsvorschlag | J4: Kostenans.
A5: 0,00 | B5: BCD | C5: XP | G5: Anfangsknoten
A6: 19,60 | B6: BAG | D6: 10,00 | E6: 8 - 10 | G6: Einragender Anschluss | I6: Fräsen | J6: €50
A7: 19,60 | B7: BCA | C7: C / A | D7: 150,00 | E7: 9 | G7: Anschluss Sattelanschluss – gemeißelt offen
A8: 21,00 | B8: BCA | C8: C / A | D8: 150,00 | E8: 12 | G8: Anschluss Sattelanschluss – gemeißelt offen
A9: 25,80 | B9: BBE | C9: H | D9: 5,00 | E9: 12 - 6 | G9: Andere Hindernisse Gegenstand/Objekt in den Rohrkörper eingebaut
A10: 26,10 | B10: BAG | D10: 10,00 | E10: 8 - 10 | G10: Einragender Anschluss | I10: Fräsen | J10: €50
A11: 26,10 | B11: BCA | C11: C / A | D11: 150,00 | E11: 9 | G11: Anschluss Sattelanschluss – gemeißelt offen
A12: 32,70 | B12: BCA | C12: C / A | D12: 150,00 | E12: 9 | G12: Anschluss Sattelanschluss – gemeißelt offen
A13: 39,20 | B13: BAH | C13: E | E13: 6 - 9 | G13: Schadhafter Anschluss Anschluss verstopft | J13: €0
A14: 39,20 | B14: BCA | C14: C / A | D14: 150,00 | E14: 9 | G14: Anschluss Sattelanschluss – gemeißelt offen
A15: 45,90 | B15: BBE | C15: D | D15: 20,00 | E15: 7 - 9 | G15: Andere Hindernisse Gegenstand ragt durch die Wand ein
A16: 45,90 | B16: BCA | C16: C / A | D16: 150,00 | E16: 9 | G16: Anschluss Sattelanschluss – gemeißelt offen
A17: 47,90 | B17: BAH | C17: E | E17: 3 - 9 | G17: Schadhafter Anschluss Anschluss verstopft | J17: €0
A18: 47,90 | B18: BCA | C18: C / A | D18: 150,00 | E18: 9 | G18: Anschluss Sattelanschluss – gemeißelt offen
A19: 48,70 | B19: BCE | C19: XP | G19: Endknoten
G20: netto-Zwischensumme | J20: =SUM(J5:J19) -> €100
A21: Reparatur | G21: Baustelleneinrichtung anteilig Haltung | H21: 10 | J21: =(H21/100)*J20 -> €10
G22: Verkehrssicherung anteilig Haltung | H22: 5 | J22: =(H22/100)*J20 -> €5
A23: Sanierungspriorität | C23: Info | G23: Aufrechterhaltung der Vorflut Haltung | H23: 12 | J23: =(H23/100)*J20 -> €12
A24: kurzfristing | B24: ja oder nein | C24: 6-12 Monate | G24: Kanalreinigung vor Sanierung | H24: 48.7 | I24: 2 | J24: =H24*I24 -> €97
A25: mittelfristig | B25: ja oder nein | C25: 1 bis 5 Jahre | G25: Kamerainspektion Abnahme | H25: 48.7 | I25: 3 | J25: =H25*I25 -> €146
A26: langfristig | B26: ja oder nein | C26: 5 bis 10 Jahre | G26: Summe netto Haltung | J26: =SUM(J20:J25) -> €371
G27: Mehrwertsteuer | H27: 19 | J27: =(H27/100)*J26 -> €70
A28: Sanierung im Verbund | B28: ja oder nein | G28: Summe brutto Haltung | J28: =SUM(J26:J27) -> €441
A33: Haltung | B33: Straße | C33: Inspizierte Länge | D33: Länge | E33: Tiefe | G33: Schadensbeschreibung | I33: Durchmesser | J33: Material
A34: 09345335 | B34: LEIPZIGER STRAßE | C34: 48,70 | D34: 49,70 | E34: Not Implemented yet | I34: 250 | J34: B
A36: Station | B36: Kürzel | C36: Charakterisi. | D36: Quantifizierung | E36: Lage im Kreis | G36: Schadensbeschreibung / Info | H36: Strecke | I36: Sanierungsvorschlag | J36: Kostenans.
A37: 0,00 | B37: BCD | C37: XP | G37: Anfangsknoten
A38: 19,60 | B38: BAG | D38: 10,00 | E38: 8 - 10 | G38: Einragender Anschluss
A39: 19,60 | B39: BCA | C39: C / A | D39: 150,00 | E39: 9 | G39: Anschluss Sattelanschluss – gemeißelt offen | I39: Einmessen,Öffnen,Hut | J39: €490
A40: 21,00 | B40: BCA | C40: C / A | D40: 150,00 | E40: 12 | G40: Anschluss Sattelanschluss – gemeißelt offen | I40: Einmessen,Öffnen,Hut | J40: €490
A41: 25,80 | B41: BBE | C41: H | D41: 5,00 | E41: 12 - 6 | G41: Andere Hindernisse Gegenstand/Objekt in den Rohrkörper eingebaut
A42: 26,10 | B42: BAG | D42: 10,00 | E42: 8 - 10 | G42: Einragender Anschluss
A43: 26,10 | B43: BCA | C43: C / A | D43: 150,00 | E43: 9 | G43: Anschluss Sattelanschluss – gemeißelt offen | I43: Einmessen,Öffnen,Hut | J43: €490
A44: 32,70 | B44: BCA | C44: C / A | D44: 150,00 | E44: 9 | G44: Anschluss Sattelanschluss – gemeißelt offen | I44: Einmessen,Öffnen,Hut | J44: €490
A45: 39,20 | B45: BAH | C45: E | E45: 6 - 9 | G45: Schadhafter Anschluss Anschluss verstopft
A46: 39,20 | B46: BCA | C46: C / A | D46: 150,00 | E46: 9 | G46: Anschluss Sattelanschluss – gemeißelt offen | I46: Einmessen,Öffnen,Hut | J46: €490
A47: 45,90 | B47: BBE | C47: D | D47: 20,00 | E47: 7 - 9 | G47: Andere Hindernisse Gegenstand ragt durch die Wand ein
A48: 45,90 | B48: BCA | C48: C / A | D48: 150,00 | E48: 9 | G48: Anschluss Sattelanschluss – gemeißelt offen | I48: Einmessen,Öffnen,Hut | J48: €490
A49: 47,90 | B49: BAH | C49: E | E49: 3 - 9 | G49: Schadhafter Anschluss Anschluss verstopft
A50: 47,90 | B50: BCA | C50: C / A | D50: 150,00 | E50: 9 | G50: Anschluss Sattelanschluss – gemeißelt offen | I50: Einmessen,Öffnen,Hut | J50: €490
A51: 48,70 | B51: BCE | C51: XP | G51: Endknoten | I51: Schlauchliner | J51: €4,970
G52: netto-Zwischensumme | J52: =SUM(J37:J51) -> €8,400
A53: Renovation | G53: Baustelleneinrichtung anteilig Haltung | H53: 10 | J53: =(H53/100)*J52 -> €840
G54: Verkehrssicherung anteilig Haltung | H54: 5 | J54: =(H54/100)*J52 -> €420
A55: Sanierungspriorität | C55: Info | G55: Aufrechterhaltung der Vorflut Haltung | H55: 12 | J55: =(H55/100)*J52 -> €1,008
A56: kurzfristing | B56: ja oder nein | C56: 6-12 Monate | G56: Kanalreinigung vor Sanierung | H56: 48.7 | I56: 2 | J56: =H56*I56 -> €97
A57: mittelfristig | B57: ja oder nein | C57: 1 bis 5 Jahre | G57: Kamerainspektion Abnahme | H57: 48.7 | I57: 3 | J57: =H57*I57 -> €146
A58: langfristig | B58: ja oder nein | C58: 5 bis 10 Jahre | G58: Summe netto Haltung | J58: =SUM(J52:J57) -> €10,912
G59: Mehrwertsteuer | H59: 19 | J59: =(H59/100)*J58 -> €2,073
A60: Sanierung im Verbund | B60: ja oder nein | G60: Summe brutto Haltung | J60: =SUM(J58:J59) -> €12,985

Sheet 09345336
A1: Haltung | B1: Straße | C1: Inspizierte Länge | D1: Länge | E1: Tiefe | G1: Schadensbeschreibung | I1: Durchmesser | J1: Material
A2: 09345336 | B2: LEIPZIGER STRAßE | C2: 36,60 | D2: 37,60 | E2: Not Implemented yet | I2: 300 | J2: B
A4: Station | B4: Kürzel | C4: Charakterisi. | D4: Quantifizierung | E4: Lage im Kreis | G4: Schadensbeschreibung / Info | H4: Strecke | I4: Sanierungsvorschlag | J4: Kostenans.
A5: 0,00 | B5: BCD | C5: XP | G5: Anfangsknoten
A6: 2,20 | B6: BBA | C6: B | D6: 1,00 | E6: 9 - 12 | F6: JA | G6: Wurzeln einzelne feine Wurzeln | I6: Fräsen | J6: €50
A7: 4,90 | B7: BCA | C7: C / A | D7: 150,00 | E7: 3 | G7: Anschluss Sattelanschluss – gemeißelt offen
A8: 4,90 | B8: BAH | C8: A | E8: 12 - 4 | G8: Schadhafter Anschluss Lage des Anschlusses um das Rohr ist falsch | J8: €0
A9: 5,10 | B9: BCA | C9: C / A | D9: 150,00 | E9: 3 | G9: Anschluss Sattelanschluss – gemeißelt offen
A10: 5,10 | B10: BAH | C10: E | E10: 3 - 9 | G10: Schadhafter Anschluss Anschluss verstopft | J10: €0
A11: 5,20 | B11: BAB | C11: B / A | D11: 2,00 | E11: 2 - 3 | F11: JA | G11: Rissbildung Riss in Längsrichtung
A12: 12,50 | B12: BCA | C12: C / A | D12: 150,00 | E12: 12 | G12: Anschluss Sattelanschluss – gemeißelt offen
A13: 12,50 | B13: BAB | C13: B / A | D13: 2,00 | E13: 12 | G13: Rissbildung Riss in Längsrichtung
A14: 13,80 | B14: BAH | C14: A | E14: 8 - 1 | G14: Schadhafter Anschluss Lage des Anschlusses um das Rohr ist falsch | J14: €0
A15: 13,80 | B15: BCA | C15: C / A | D15: 200,00 | E15: 9 | G15: Anschluss Sattelanschluss – gemeißelt offen
A16: 17,00 | B16: BCA | C16: C / A | D16: 200,00 | E16: 12 | G16: Anschluss Sattelanschluss – gemeißelt offen
A17: 25,90 | B17: BAH | C17: A | E17: 8 - 1 | G17: Schadhafter Anschluss Lage des Anschlusses um das Rohr ist falsch | J17: €0
A18: 25,90 | B18: BCA | C18: C / A | D18: 200,00 | E18: 9 | G18: Anschluss Sattelanschluss – gemeißelt offen
A19: 35,50 | B19: BAC | C19: B | D19: 60,00 | E19: 3 - 9 | F19: JA | G19: Rohrbruch / Einsturz Fehlen von Teilen
A20: 36,60 | B20: BCE | C20: XP | G20: Endknoten
G21: netto-Zwischensumme | J21: =SUM(J5:J20) -> €50
A22: Reparatur | G22: Baustelleneinrichtung anteilig Haltung | H22: 10 | J22: =(H22/100)*J21 -> €5
G23: Verkehrssicherung anteilig Haltung | H23: 5 | J23: =(H23/100)*J21 -> €3
A24: Sanierungspriorität | C24: Info | G24: Aufrechterhaltung der Vorflut Haltung | H24: 12 | J24: =(H24/100)*J21 -> €6
A25: kurzfristing | B25: ja oder nein | C25: 6-12 Monate | G25: Kanalreinigung vor Sanierung | H25: 36.6 | I25: 2 | J25: =H25*I25 -> €73
A26: mittelfristig | B26: ja oder nein | C26: 1 bis 5 Jahre | G26: Kamerainspektion Abnahme | H26: 36.6 | I26: 3 | J26: =H26*I26 -> €110
A27: langfristig | B27: ja oder nein | C27: 5 bis 10 Jahre | G27: Summe netto Haltung | J27: =SUM(J21:J26) -> €247
G28: Mehrwertsteuer | H28: 19 | J28: =(H28/100)*J27 -> €47
A29: Sanierung im Verbund | B29: ja oder nein | G29: Summe brutto Haltung | J29: =SUM(J27:J28) -> €293
A34: Haltung | B34: Straße | C34: Inspizierte Länge | D34: Länge | E34: Tiefe | G34: Schadensbeschreibung | I34: Durchmesser | J34: Material
A35: 09345336 | B35: LEIPZIGER STRAßE | C35: 36,60 | D35: 37,60 | E35: Not Implemented yet | I35: 300 | J35: B
A37: Station | B37: Kürzel | C37: Charakterisi. | D37: Quantifizierung | E37: Lage im Kreis | G37: Schadensbeschreibung / Info | H37: Strecke | I37: Sanierungsvorschlag | J37: Kostenans.
A38: 0,00 | B38: BCD | C38: XP | G38: Anfangsknoten
A39: 2,20 | B39: BBA | C39: B | D39: 1,00 | E39: 9 - 12 | F39: JA | G39: Wurzeln einzelne feine Wurzeln | I39: Fräsen | J39: €50
A40: 4,90 | B40: BCA | C40: C / A | D40: 150,00 | E40: 3 | G40: Anschluss Sattelanschluss – gemeißelt offen | I40: Einmessen,Öffnen,Hut | J40: €490
A41: 4,90 | B41: BAH | C41: A | E41: 12 - 4 | G41: Schadhafter Anschluss Lage des Anschlusses um das Rohr ist falsch
A42: 5,10 | B42: BCA | C42: C / A | D42: 150,00 | E42: 3 | G42: Anschluss Sattelanschluss – gemeißelt offen | I42: Einmessen,Öffnen,Hut | J42: €490
A43: 5,10 | B43: BAH | C43: E | E43: 3 - 9 | G43: Schadhafter Anschluss Anschluss verstopft
A44: 5,20 | B44: BAB | C44: B / A | D44: 2,00 | E44: 2 - 3 | F44: JA | G44: Rissbildung Riss in Längsrichtung
A45: 12,50 | B45: BCA | C45: C / A | D45: 150,00 | E45: 12 | G45: Anschluss Sattelanschluss – gemeißelt offen | I45: Einmessen,Öffnen,Hut | J45: €490
A46: 12,50 | B46: BAB | C46: B / A | D46: 2,00 | E46: 12 | G46: Rissbildung Riss in Längsrichtung
A47: 13,80 | B47: BAH | C47: A | E47: 8 - 1 | G47: Schadhafter Anschluss Lage des Anschlusses um das Rohr ist falsch
A48: 13,80 | B48: BCA | C48: C / A | D48: 200,00 | E48: 9 | G48: Anschluss Sattelanschluss – gemeißelt offen | I48: Einmessen,Öffnen,Hut | J48: €490
A49: 17,00 | B49: BCA | C49: C / A | D49: 200,00 | E49: 12 | G49: Anschluss Sattelanschluss – gemeißelt offen | I49: Einmessen,Öffnen,Hut | J49: €490
A50: 25,90 | B50: BAH | C50: A | E50: 8 - 1 | G50: Schadhafter Anschluss Lage des Anschlusses um das Rohr ist falsch
A51: 25,90 | B51: BCA | C51: C / A | D51: 200,00 | E51: 9 | G51: Anschluss Sattelanschluss – gemeißelt offen | I51: Einmessen,Öffnen,Hut | J51: €490
A52: 35,50 | B52: BAC | C52: B | D52: 60,00 | E52: 3 - 9 | F52: JA | G52: Rohrbruch / Einsturz Fehlen von Teilen
A53: 36,60 | B53: BCE | C53: XP | G53: Endknoten | I53: Schlauchliner | J53: €3,760
G54: netto-Zwischensumme | J54: =SUM(J38:J53) -> €6,750
A55: Renovation | G55: Baustelleneinrichtung anteilig Haltung | H55: 10 | J55: =(H55/100)*J54 -> €675
G56: Verkehrssicherung anteilig Haltung | H56: 5 | J56: =(H56/100)*J54 -> €338
A57: Sanierungspriorität | C57: Info | G57: Aufrechterhaltung der Vorflut Haltung | H57: 12 | J57: =(H57/100)*J54 -> €810
A58: kurzfristing | B58: ja oder nein | C58: 6-12 Monate | G58: Kanalreinigung vor Sanierung | H58: 36.6 | I58: 2 | J58: =H58*I58 -> €73
A59: mittelfristig | B59: ja oder nein | C59: 1 bis 5 Jahre | G59: Kamerainspektion Abnahme | H59: 36.6 | I59: 3 | J59: =H59*I59 -> €110
A60: langfristig | B60: ja oder nein | C60: 5 bis 10 Jahre | G60: Summe netto Haltung | J60: =SUM(J54:J59) -> €8,756
G61: Mehrwertsteuer | H61: 19 | J61: =(H61/100)*J60 -> €1,664
A62: Sanierung im Verbund | B62: ja oder nein | G62: Summe brutto Haltung | J62: =SUM(J60:J61) -> €10,419

Sheet 09345337
A1: Haltung | B1: Straße | C1: Inspizierte Länge | D1: Länge | E1: Tiefe | G1: Schadensbeschreibung | I1: Durchmesser | J1: Material
A2: 09345337 | B2: LEIPZIGER STRAßE | C2: 5,00 | D2: 6,00 | E2: Not Implemented yet | I2: 300 | J2: B
A4: Station | B4: Kürzel | C4: Charakterisi. | D4: Quantifizierung | E4: Lage im Kreis | G4: Schadensbeschreibung / Info | H4: Strecke | I4: Sanierungsvorschlag | J4: Kostenans.
A5: 0,00 | B5: BCD | C5: XP | G5: Anfangsknoten
A6: 5,00 | B6: BCE | C6: XP | G6: Endknoten
G7: netto-Zwischensumme | J7: =SUM(J5:J6) -> €0
A8: Reparatur | G8: Baustelleneinrichtung anteilig Haltung | H8: 10 | J8: =(H8/100)*J7 -> €0
G9: Verkehrssicherung anteilig Haltung | H9: 5 | J9: =(H9/100)*J7 -> €0
A10: Sanierungspriorität | C10: Info | G10: Aufrechterhaltung der Vorflut Haltung | H10: 12 | J10: =(H10/100)*J7 -> €0
A11: kurzfristing | B11: ja oder nein | C11: 6-12 Monate | G11: Kanalreinigung vor Sanierung | H11: 5 | I11: 2 | J11: =H11*I11 -> €10
A12: mittelfristig | B12: ja oder nein | C12: 1 bis 5 Jahre | G12: Kamerainspektion Abnahme | H12: 5 | I12: 3 | J12: =H12*I12 -> €15
A13: langfristig | B13: ja oder nein | C13: 5 bis 10 Jahre | G13: Summe netto Haltung | J13: =SUM(J7:J12) -> €25
G14: Mehrwertsteuer | H14: 19 | J14: =(H14/100)*J13 -> €5
A15: Sanierung im Verbund | B15: ja oder nein | G15: Summe brutto Haltung | J15: =SUM(J13:J14) -> €30
A20: Haltung | B20: Straße | C20: Inspizierte Länge | D20: Länge | E20: Tiefe | G20: Schadensbeschreibung | I20: Durchmesser | J20: Material
A21: 09345337 | B21: LEIPZIGER STRAßE | C21: 5,00 | D21: 6,00 | E21: Not Implemented yet | I21: 300 | J21: B
A23: Station | B23: Kürzel | C23: Charakterisi. | D23: Quantifizierung | E23: Lage im Kreis | G23: Schadensbeschreibung / Info | H23: Strecke | I23: Sanierungsvorschlag | J23: Kostenans.
A24: 0,00 | B24: BCD | C24: XP | G24: Anfangsknoten
A25: 5,00 | B25: BCE | C25: XP | G25: Endknoten | I25: Schlauchliner | J25: €900
G26: netto-Zwischensumme | J26: =SUM(J24:J25) -> €900
A27: Renovation | G27: Baustelleneinrichtung anteilig Haltung | H27: 10 | J27: =(H27/100)*J26 -> €90
G28: Verkehrssicherung anteilig Haltung | H28: 5 | J28: =(H28/100)*J26 -> €45
A29: Sanierungspriorität | C29: Info | G29: Aufrechterhaltung der Vorflut Haltung | H29: 12 | J29: =(H29/100)*J26 -> €108
A30: kurzfristing | B30: ja oder nein | C30: 6-12 Monate | G30: Kanalreinigung vor Sanierung | H30: 5 | I30: 2 | J30: =H30*I30 -> €10
A31: mittelfristig | B31: ja oder nein | C31: 1 bis 5 Jahre | G31: Kamerainspektion Abnahme | H31: 5 | I31: 3 | J31: =H31*I31 -> €15
A32: langfristig | B32: ja oder nein | C32: 5 bis 10 Jahre | G32: Summe netto Haltung | J32: =SUM(J26:J31) -> €1,168
G33: Mehrwertsteuer | H33: 19 | J33: =(H33/100)*J32 -> €222
A34: Sanierung im Verbund | B34: ja oder nein | G34: Summe brutto Haltung | J34: =SUM(J32:J33) -> €1,390

Sheet 09345338
A1: Haltung | B1: Straße | C1: Inspizierte Länge | D1: Länge | E1: Tiefe | G1: Schadensbeschreibung | I1: Durchmesser | J1: Material
A2: 09345338 | B2: LEIPZIGER STRAßE | C2: 29,20 | D2: 30,20 | E2: Not Implemented yet | I2: 300 | J2: B
A4: Station | B4: Kürzel | C4: Charakterisi. | D4: Quantifizierung | E4: Lage im Kreis | G4: Schadensbeschreibung / Info | H4: Strecke | I4: Sanierungsvorschlag | J4: Kostenans.
A5: 0,00 | B5: BCD | C5: XP | G5: Anfangsknoten
A6: 4,40 | B6: BCA | C6: C / A | D6: 150,00 | E6: 1 | G6: Anschluss Sattelanschluss – gemeißelt offen
A7: 4,40 | B7: BAH | C7: A | E7: 12 - 4 | G7: Schadhafter Anschluss Lage des Anschlusses um das Rohr ist falsch | J7: €0
A8: 5,40 | B8: BAF | C8: E / E | E8: 3 - 7 | G8: Oberflächenschaden Zuschlagstoffe fehlen Ursache nicht eindeutig festellbar
A9: 9,00 | B9: BCA | C9: B / A | D9: 150,00 | E9: 1 | G9: Anschluss Sattelanschluss – gebohrt offen
A10: 9,00 | B10: BAG | D10: 5,00 | E10: 12 - 3 | G10: Einragender Anschluss | I10: Fräsen | J10: €50
A11: 12,70 | B11: BCA | C11: C / A | D11: 200,00 | E11: 9 | G11: Anschluss Sattelanschluss – gemeißelt offen
A12: 29,20 | B12: BCE | C12: XP | G12: Endknoten
G13: netto-Zwischensumme | J13: =SUM(J5:J12) -> €50
A14: Reparatur | G14: Baustelleneinrichtung anteilig Haltung | H14: 10 | J14: =(H14/100)*J13 -> €5
G15: Verkehrssicherung anteilig Haltung | H15: 5 | J15: =(H15/100)*J13 -> €3
A16: Sanierungspriorität | C16: Info | G16: Aufrechterhaltung der Vorflut Haltung | H16: 12 | J16: =(H16/100)*J13 -> €6
A17: kurzfristing | B17: ja oder nein | C17: 6-12 Monate | G17: Kanalreinigung vor Sanierung | H17: 29.2 | I17: 2 | J17: =H17*I17 -> €58
A18: mittelfristig | B18: ja oder nein | C18: 1 bis 5 Jahre | G18: Kamerainspektion Abnahme | H18: 29.2 | I18: 3 | J18: =H18*I18 -> €88
A19: langfristig | B19: ja oder nein | C19: 5 bis 10 Jahre | G19: Summe netto Haltung | J19: =SUM(J13:J18) -> €210
G20: Mehrwertsteuer | H20: 19 | J20: =(H20/100)*J19 -> €40
A21: Sanierung im Verbund | B21: ja oder nein | G21: Summe brutto Haltung | J21: =SUM(J19:J20) -> €249
A26: Haltung | B26: Straße | C26: Inspizierte Länge | D26: Länge | E26: Tiefe | G26: Schadensbeschreibung | I26: Durchmesser | J26: Material
A27: 09345338 | B27: LEIPZIGER STRAßE | C27: 29,20 | D27: 30,20 | E27: Not Implemented yet | I27: 300 | J27: B
A29: Station | B29: Kürzel | C29: Charakterisi. | D29: Quantifizierung | E29: Lage im Kreis | G29: Schadensbeschreibung / Info | H29: Strecke | I29: Sanierungsvorschlag | J29: Kostenans.
A30: 0,00 | B30: BCD | C30: XP | G30: Anfangsknoten
A31: 4,40 | B31: BCA | C31: C / A | D31: 150,00 | E31: 1 | G31: Anschluss Sattelanschluss – gemeißelt offen | I31: Einmessen,Öffnen,Hut | J31: €490
A32: 4,40 | B32: BAH | C32: A | E32: 12 - 4 | G32: Schadhafter Anschluss Lage des Anschlusses um das Rohr ist falsch
A33: 5,40 | B33: BAF | C33: E / E | E33: 3 - 7 | G33: Oberflächenschaden Zuschlagstoffe fehlen Ursache nicht eindeutig festellbar
A34: 9,00 | B34: BCA | C34: B / A | D34: 150,00 | E34: 1 | G34: Anschluss Sattelanschluss – gebohrt offen | I34: Einmessen,Öffnen,Hut | J34: €490
A35: 9,00 | B35: BAG | D35: 5,00 | E35: 12 - 3 | G35: Einragender Anschluss
A36: 12,70 | B36: BCA | C36: C / A | D36: 200,00 | E36: 9 | G36: Anschluss Sattelanschluss – gemeißelt offen | I36: Einmessen,Öffnen,Hut | J36: €490
A37: 29,20 | B37: BCE | C37: XP | G37: Endknoten | I37: Schlauchliner | J37: €3,020
G38: netto-Zwischensumme | J38: =SUM(J30:J37) -> €4,490
A39: Renovation | G39: Baustelleneinrichtung anteilig Haltung | H39: 10 | J39: =(H39/100)*J38 -> €449
G40: Verkehrssicherung anteilig Haltung | H40: 5 | J40: =(H40/100)*J38 -> €225
A41: Sanierungspriorität | C41: Info | G41: Aufrechterhaltung der Vorflut Haltung | H41: 12 | J41: =(H41/100)*J38 -> €539
A42: kurzfristing | B42: ja oder nein | C42: 6-12 Monate | G42: Kanalreinigung vor Sanierung | H42: 29.2 | I42: 2 | J42: =H42*I42 -> €58
A43: mittelfristig | B43: ja oder nein | C43: 1 bis 5 Jahre | G43: Kamerainspektion Abnahme | H43: 29.2 | I43: 3 | J43: =H43*I43 -> €88
A44: langfristig | B44: ja oder nein | C44: 5 bis 10 Jahre | G44: Summe netto Haltung | J44: =SUM(J38:J43) -> €5,848
G45: Mehrwertsteuer | H45: 19 | J45: =(H45/100)*J44 -> €1,111
A46: Sanierung im Verbund | B46: ja oder nein | G46: Summe brutto Haltung | J46: =SUM(J44:J45) -> €6,959

Sheet 09345339
A1: Haltung | B1: Straße | C1: Inspizierte Länge | D1: Länge | E1: Tiefe | G1: Schadensbeschreibung | I1: Durchmesser | J1: Material
A2: 09345339 | B2: LEIPZIGER STRAßE | C2: 29,20 | D2: 30,20 | E2: Not Implemented yet | I2: 300 | J2: B
A4: Station | B4: Kürzel | C4: Charakterisi. | D4: Quantifizierung | E4: Lage im Kreis | G4: Schadensbeschreibung / Info | H4: Strecke | I4: Sanierungsvorschlag | J4: Kostenans.
A5: 0,00 | B5: BCD | C5: XP | G5: Anfangsknoten
A6: 8,60 | B6: BCA | C6: C / A | D6: 150,00 | E6: 2 | G6: Anschluss Sattelanschluss – gemeißelt offen
A7: 8,60 | B7: BAH | C7: D | E7: 12 - 12 | G7: Schadhafter Anschluss Anschluss beschädigt | J7: €0
A8: 12,50 | B8: BAH | C8: A | E8: 8 - 1 | G8: Schadhafter Anschluss Lage des Anschlusses um das Rohr ist falsch | J8: €0
A9: 12,50 | B9: BCA | C9: C / A | D9: 200,00 | E9: 9 | G9: Anschluss Sattelanschluss – gemeißelt offen
A10: 28,60 | B10: BCA | C10: C / A | D10: 150,00 | E10: 2 | G10: Anschluss Sattelanschluss – gemeißelt offen
A11: 28,60 | B11: BAH | C11: A | E11: 12 - 3 | G11: Schadhafter Anschluss Lage des Anschlusses um das Rohr ist falsch | J11: €0
A12: 29,20 | B12: BCE | C12: XP | G12: Endknoten
G13: netto-Zwischensumme | J13: =SUM(J5:J12) -> €0
A14: Reparatur | G14: Baustelleneinrichtung anteilig Haltung | H14: 10 | J14: =(H14/100)*J13 -> €0
G15: Verkehrssicherung anteilig Haltung | H15: 5 | J15: =(H15/100)*J13 -> €0
A16: Sanierungspriorität | C16: Info | G16: Aufrechterhaltung der Vorflut Haltung | H16: 12 | J16: =(H16/100)*J13 -> €0
A17: kurzfristing | B17: ja oder nein | C17: 6-12 Monate | G17: Kanalreinigung vor Sanierung | H17: 29.2 | I17: 2 | J17: =H17*I17 -> €58
A18: mittelfristig | B18: ja oder nein | C18: 1 bis 5 Jahre | G18: Kamerainspektion Abnahme | H18: 29.2 | I18: 3 | J18: =H18*I18 -> €88
A19: langfristig | B19: ja oder nein | C19: 5 bis 10 Jahre | G19: Summe netto Haltung | J19: =SUM(J13:J18) -> €146
G20: Mehrwertsteuer | H20: 19 | J20: =(H20/100)*J19 -> €28
A21: Sanierung im Verbund | B21: ja oder nein | G21: Summe brutto Haltung | J21: =SUM(J19:J20) -> €174
A26: Haltung | B26: Straße | C26: Inspizierte Länge | D26: Länge | E26: Tiefe | G26: Schadensbeschreibung | I26: Durchmesser | J26: Material
A27: 09345339 | B27: LEIPZIGER STRAßE | C27: 29,20 | D27: 30,20 | E27: Not Implemented yet | I27: 300 | J27: B
A29: Station | B29: Kürzel | C29: Charakterisi. | D29: Quantifizierung | E29: Lage im Kreis | G29: Schadensbeschreibung / Info | H29: Strecke | I29: Sanierungsvorschlag | J29: Kostenans.
A30: 0,00 | B30: BCD | C30: XP | G30: Anfangsknoten
A31: 8,60 | B31: BCA | C31: C / A | D31: 150,00 | E31: 2 | G31: Anschluss Sattelanschluss – gemeißelt offen | I31: Einmessen,Öffnen,Hut | J31: €490
A32: 8,60 | B32: BAH | C32: D | E32: 12 - 12 | G32: Schadhafter Anschluss Anschluss beschädigt
A33: 12,50 | B33: BAH | C33: A | E33: 8 - 1 | G33: Schadhafter Anschluss Lage des Anschlusses um das Rohr ist falsch
A34: 12,50 | B34: BCA | C34: C / A | D34: 200,00 | E34: 9 | G34: Anschluss Sattelanschluss – gemeißelt offen | I34: Einmessen,Öffnen,Hut | J34: €490
A35: 28,60 | B35: BCA | C35: C / A | D35: 150,00 | E35: 2 | G35: Anschluss Sattelanschluss – gemeißelt offen | I35: Einmessen,Öffnen,Hut | J35: €490
A36: 28,60 | B36: BAH | C36: A | E36: 12 - 3 | G36: Schadhafter Anschluss Lage des Anschlusses um das Rohr ist falsch
A37: 29,20 | B37: BCE | C37: XP | G37: Endknoten | I37: Schlauchliner | J37: €3,020
G38: netto-Zwischensumme | J38: =SUM(J30:J37) -> €4,490
A39: Renovation | G39: Baustelleneinrichtung anteilig Haltung | H39: 10 | J39: =(H39/100)*J38 -> €449
G40: Verkehrssicherung anteilig Haltung | H40: 5 | J40: =(H40/100)*J38 -> €225
